Workbook

Sheet Dashboard
A1: `` | J1: Swtich Alt1 | L1: Switch Alt2
J2: 1 | L2: 1
D4: Keuze Nieuw of Retrofit | H4: Categorie | J4: Categorie | L4: Categorie | BA4: Kosten per kilometer | BC4: Ref | BD4: Alt1 | BE4: Alt2 | BF4: Rank
D5: =Profielgroep2 -> ALT1 | E5: Cat2_ | H5: Cat1_ | J5: =VLOOKUP(J91,$D5:$E6,2,0) -> Cat2_ | L5: =VLOOKUP(L91,$D5:$E6,2,0) -> Cat2_ | Q5: Error checking | BA5: Brandstofkosten hvt | BC5: =ROUND(Referentie!G216,2) -> 0.27 | BD5: =Switch_Alt1*ROUND('Alternatief 1'!G216,2) -> 0.21 | BE5: =Switch_Alt2*ROUND('Alternatief 2'!G216,2) -> 0.21 | BF5: =COUNTIF($BC$5:$BC$14,">"&BC5)+COUNTIF(BC$5:BC5,BC5) -> 2
D6: =Profielgroep3 -> ALT2 | E6: Cat3_ | Q6: fouten dashboard | R6: =COUNTIF(Kernwinkelgebied,"<0")+COUNTIF(G95:G107,"→")+COUNTIF(I95:I107,"→")+COUNTIF(K95:K107,"→")+COUNTIF(G111:G112,"→")+COUNTIF(I111:I112,"→")+COUNTIF(K111:K112,"→")+COUNTIF(G123:G131,"→")+COUNTIF(I123:I131,"→")+COUNTIF(K123:K131,"→")+COUNTIF(AN119:AN121,"<0")+COUNTIF(AQ41:AQ43,"<0")+IF(AND(SUM(AM119:AO120)=0,Omrijdafstand>0),1,0)+IF(Capaciteit_stadsvoertuig>Lading_hoofdvoertuig,1,0) -> 0 | BA6: Onderhoudskosten hvt | BC6: =ROUND(Referentie!G217,2) -> 0 | BD6: =Switch_Alt1*ROUND('Alternatief 1'!G217,2) -> 0 | BE6: =Switch_Alt2*ROUND('Alternatief 2'!G217,2) -> 0 | BF6: =COUNTIF($BC$5:$BC$14,">"&BC6)+COUNTIF(BC$5:BC6,BC6) -> 5
J7: Bepaal PullDown | K7: 1 | L7: Bepaal PullDown | Q7: fouten stadsvoertuig | R7: =check_svt -> 0 | BA7: Verzekeringen hvt | BC7: =ROUND(Referentie!G218,2) -> 0 | BD7: =Switch_Alt1*ROUND('Alternatief 1'!G218,2) -> 0 | BE7: =Switch_Alt2*ROUND('Alternatief 2'!G218,2) -> 0 | BF7: =COUNTIF($BC$5:$BC$14,">"&BC7)+COUNTIF(BC$5:BC7,BC7) -> 6
D8: Overzicht voertuigprofielen | J8: PullDown Referentie | L8: PullDown Alternatief 2 | Q8: lege cellen dashboard | R8: =ROUNDUP(COUNTBLANK($F$85)*($H$125+$J$125+$L$125),0)+COUNTBLANK(F81:F83)+COUNTBLANK(H96:H97)+COUNTBLANK(H101:H103)+COUNTBLANK(BrandstofprijsR)+SUM(H62:H71)+SUM(J62:J64)+SUM(L62:L64)+Switch_Alt1*COUNTBLANK(J96:J97)+Switch_Alt1*COUNTBLANK(J101:J103)++Switch_Alt1*COUNTBLANK(Brandstofprijs1)+Switch_Alt2*COUNTBLANK(L96:L97)+Switch_Alt2*COUNTBLANK(L101:L103)+switch_ref_br2*COUNTBLANK(H100)+switch_ref_br2*COUNTBLANK(BrandstofprijsR_2)+Switch_Alt1*switch_Alt1_br2*(COUNTBLANK(J100)+COUNTBLANK(J112))+Switch_Alt1*switch_Alt1_br2*COUNTBLANK(Brandstofprijs1_2)+Switch_Alt2*switch_Alt2_br2*(COUNTBLANK(L100)+COUNTBLANK(L112))+Switch_Alt2*switch_Alt2_br2*COUNTBLANK(Brandstofprijs2_2)+COUNTBLANK(AM119:AM120)+COUNTBLANK(AY118)+COUNTBLANK(AY120:AY121)+COUNTBLANK(AQ123:AQ125)+COUNTBLANK(AQ126:AQ127)+COUNTBLANK(AS124:AS125)+COUNTBLANK(AU133:AU135)+COUNTBLANK(AW135)+COUNTBLANK(AY135)+COUNTBLANK(Uren_hvt_ref)+COUNTBLANK(Uren_hvt_alt1)+COUNTBLANK(Uren_hvt_alt2)+COUNTBLANK(AI133:AI135) +Buitenstedelijk*(COUNTBLANK(Snelheid_buitenstedelijk)+COUNTBLANK(Snelheid_buitenstedelijk_spits)) +Overig_stedelijk *(COUNTBLANK(Snelheid_stedelijk)+COUNTBLANK(Snelheid_stedelijk_spits)) +Kernwinkelgebied*(COUNTBLANK(Snelheid_kwg)+COUNTBLANK(Snelheid_kwg_spits)) -> 0 | BA8: Voertuigbelasting hvt | BC8: =ROUND(Referentie!G219,2) -> 0 | BD8: =Switch_Alt1*ROUND('Alternatief 1'!G219,2) -> 0 | BE8: =Switch_Alt2*ROUND('Alternatief 2'!G219,2) -> 0 | BF8: =COUNTIF($BC$5:$BC$14,">"&BC8)+COUNTIF(BC$5:BC8,BC8) -> 7
D9: Soort+Naam | E9: Nr. | J9: =Alternatief1_Categorie&"PullDown"&HLOOKUP(J91,PullDown_Selectie,13,0) -> Cat2_PullDown1 | L9: =Alternatief2_Categorie&"PullDown"&HLOOKUP(L91,PullDown_Selectie,13,0) -> Cat2_PullDown1 | Q9: categorie namen | R9: =COUNTIF(I91,"→")+COUNTIF(K91,"→") -> 0 | BA9: Ontheffing AMvB/APV tijden | BC9: =ROUND(Referentie!G220,2) -> 0 | BD9: =Switch_Alt1*ROUND('Alternatief 1'!G220,2) -> 0 | BE9: =Switch_Alt2*ROUND('Alternatief 2'!G220,2) -> 0 | BF9: =COUNTIF($BC$5:$BC$14,">"&BC9)+COUNTIF(BC$5:BC9,BC9) -> 8
D10: ="Cat1_"&Voertuigprofielen!H54 -> Cat1_Diesel | E10: 1 | Q10: voertuignamen | R10: =COUNTIF(G93,"→")+COUNTIF(I93,"→")+COUNTIF(K93,"→") -> 0 | BA10: Overige kosten hvt | BC10: =ROUND(Referentie!G221,2) -> 0 | BD10: =Switch_Alt1*ROUND('Alternatief 1'!G221,2) -> 0 | BE10: =Switch_Alt2*ROUND('Alternatief 2'!G221,2) -> 0 | BF10: =COUNTIF($BC$5:$BC$14,">"&BC10)+COUNTIF(BC$5:BC10,BC10) -> 9
D11: ="Cat1_"&Voertuigprofielen!I54 -> Cat1_ | E11: =E10+1 -> 2 | H11: Ophalen Referentie | J11: Ophalen Alternatief1 | L11: Ophalen Alternatief 2 | Q11: fouten voertuigprofielen | R11: =IF(SUM(Voertuigprofielen!S25:S45)>0,1,0) -> 0 | BA11: Inzet stadsvoertuigen | BC11: =ROUND(Referentie!G222,2) -> 0 | BD11: =Switch_Alt1*ROUND('Alternatief 1'!G222,2) -> 0 | BE11: =Switch_Alt2*ROUND('Alternatief 2'!G222,2) -> 0 | BF11: =COUNTIF($BC$5:$BC$14,">"&BC11)+COUNTIF(BC$5:BC11,BC11) -> 10
D12: ="Cat1_"&Voertuigprofielen!J54 -> Cat1_ | E12: 3 | H12: Naam | J12: Soort+Naam: | L12: Soort+Naam: | Q12: fouten brandstofprofielen | R12: =IF(SUM(Brandstofprofielen!S18:S19)>0,1,0) -> 0 | BA12: Personeelskosten | BC12: =ROUND(SUM(Referentie!G223:G224),2) -> 0.79 | BD12: =Switch_Alt1*ROUND(SUM('Alternatief 1'!G223:G224),2) -> 0.79 | BE12: =Switch_Alt2*ROUND(SUM('Alternatief 2'!G223:G224),2) -> 0.79 | BF12: =COUNTIF($BC$5:$BC$14,">"&BC12)+COUNTIF(BC$5:BC12,BC12) -> 1
D13: ="Cat1_"&Voertuigprofielen!K54 -> Cat1_ | E13: 4 | H13: ="Cat1_"&H93 -> Cat1_Diesel | J13: =Alternatief1_Categorie&J93 -> Cat2_LNG | L13: =Alternatief2_Categorie&L93 -> Cat2_LNG | Q13: totaal fouten | R13: =SUM(R6:R12) -> 0 | BA13: Rente hvt | BC13: =ROUND(Referentie!G225,20) -> 0.01043865822 | BD13: =Switch_Alt1*ROUND('Alternatief 1'!G225,2) -> 0.01 | BE13: =Switch_Alt2*ROUND('Alternatief 2'!G225,2) -> 0.01 | BF13: =COUNTIF($BC$5:$BC$14,">"&BC13)+COUNTIF(BC$5:BC13,BC13) -> 4
D14: ="Cat1_"&Voertuigprofielen!L54 -> Cat1_ | E14: 5 | H14: =IFERROR("Naar_Ref_"&VLOOKUP(H13,Voertuigdefinitie_Tabel2,2,FALSE),"Ref_Clear") -> Naar_Ref_1 | J14: =IFERROR("Naar_Alt1_"&VLOOKUP(J13,Voertuigdefinitie_Tabel,2,FALSE),"Alt1_Clear") -> Naar_Alt1_1 | L14: =IFERROR("Naar_Alt2_"&VLOOKUP(L13,Voertuigdefinitie_Tabel,2,FALSE),"Alt2_Clear") -> Naar_Alt2_1 | Q14: waarschuwingen dashboard | R14: =COUNTIF(G135,"→")+COUNTIF(I135,"→")+COUNTIF(K135,"→")+IF(Rente_nominaal<Inflatie,1,0) -> 0 | BA14: Afschrijving hvt | BC14: =ROUND(Referentie!G226,20) -> 0.105952381 | BD14: =Switch_Alt1*ROUND('Alternatief 1'!G226,2) -> 0.15 | BE14: =Switch_Alt2*ROUND('Alternatief 2'!G226,2) -> 0.15 | BF14: =COUNTIF($BC$5:$BC$14,">"&BC14)+COUNTIF(BC$5:BC14,BC14) -> 3
D15: ="Cat1_"&Voertuigprofielen!M54 -> Cat1_ | E15: 6 | BA15: =INDEX(BA$5:BA$14,MATCH(ROWS(BA$15:BA15),$BF$5:$BF$14,0)) -> Personeelskosten | BC15: =INDEX(BC$5:BC$14,MATCH(ROWS(BC$15:BC15),$BF$5:$BF$14,0)) -> 0.79 | BD15: =VLOOKUP($BA15,$BA$5:$BE$14,4,FALSE) -> 0.79 | BE15: =VLOOKUP($BA15,$BA$5:$BE$14,5,FALSE) -> 0.79
D16: ="Cat1_"&Voertuigprofielen!N54 -> Cat1_ | E16: 7 | H16: Bewaren Referentie | J16: Bewaren Alternatief 1 | L16: Bewaren Alternatief 2 | Q16: verficatiewaarden | R16: min | BA16: =INDEX(BA$5:BA$14,MATCH(ROWS(BA$15:BA16),$BF$5:$BF$14,0)) -> Brandstofkosten hvt | BC16: =INDEX(BC$5:BC$14,MATCH(ROWS(BC$15:BC16),$BF$5:$BF$14,0)) -> 0.27 | BD16: 0.21 | BE16: 0.21
D17: ="Cat1_"&Voertuigprofielen!O54 -> Cat1_ | E17: 8 | H17: Soort+Naam: | J17: Soort+Naam: | L17: Soort+Naam: | Q17: referentie_brandstof1 | R17: =IF(Referentie_2="N.v.t.",1,0) -> 1 | BA17: =INDEX(BA$5:BA$14,MATCH(ROWS(BA$15:BA17),$BF$5:$BF$14,0)) -> Afschrijving hvt | BC17: =INDEX(BC$5:BC$14,MATCH(ROWS(BC$15:BC17),$BF$5:$BF$14,0)) -> 0.105952381 | BD17: 0.15 | BE17: 0.15
D18: ="Cat1_"&Voertuigprofielen!P54 -> Cat1_ | E18: 9 | H18: =Referentie_Categorie&H93 -> Cat1_Diesel | J18: =Alternatief1_Categorie&J93 -> Cat2_LNG | L18: =Alternatief2_Categorie&L93 -> Cat2_LNG | Q18: alternatief1_brandstof1 | R18: =IF(Alternatief1_2="N.v.t.",1,0) -> 1 | BA18: =INDEX(BA$5:BA$14,MATCH(ROWS(BA$15:BA18),$BF$5:$BF$14,0)) -> Rente hvt | BC18: =INDEX(BC$5:BC$14,MATCH(ROWS(BC$15:BC18),$BF$5:$BF$14,0)) -> 0.01043865822 | BD18: 0.01 | BE18: 0.01
D19: ="Cat1_"&Voertuigprofielen!Q54 -> Cat1_ | E19: 10 | H19: Macronaam: | J19: Macronaam: | L19: Macronaam: | Q19: alternatief2_brandstof1 | R19: =IF(Alternatief2_2="N.v.t.",1,0) -> 1 | BA19: =INDEX(BA$5:BA$14,MATCH(ROWS(BA$15:BA19),$BF$5:$BF$14,0)) -> Onderhoudskosten hvt | BC19: =INDEX(BC$5:BC$14,MATCH(ROWS(BC$15:BC19),$BF$5:$BF$14,0)) -> 0 | BD19: 0 | BE19: 0
D20: ="Cat2_"&Voertuigprofielen!H85 -> Cat2_LNG | E20: 1 | H20: ="Van_Ref_"&VLOOKUP(IF(COUNTIF(Voertuig_Name2,H18)=0,"Referentievoertuig",H18),Voertuigdefinitie_Tabel2,2,FALSE) -> Van_Ref_1 | J20: ="Van_Alt1_"&VLOOKUP(IF(COUNTIF(Voertuig_Name,J18)=0,Alternatief1_Categorie,J18),Voertuigdefinitie_Tabel,2,FALSE) -> Van_Alt1_1 | L20: ="Van_Alt2_"&VLOOKUP(IF(COUNTIF(Voertuig_Name,L18)=0,Alternatief2_Categorie,L18),Voertuigdefinitie_Tabel,2,FALSE) -> Van_Alt2_1 | BA20: =INDEX(BA$5:BA$14,MATCH(ROWS(BA$15:BA20),$BF$5:$BF$14,0)) -> Verzekeringen hvt | BC20: =INDEX(BC$5:BC$14,MATCH(ROWS(BC$15:BC20),$BF$5:$BF$14,0)) -> 0 | BD20: 0 | BE20: 0
D21: ="Cat2_"&Voertuigprofielen!I85 -> Cat2_ | E21: =E20+1 -> 2 | Q21: Inzet svt (1=ja; 0=nee) | R21: =IF(H125+J125*Switch_Alt1+L125*Switch_Alt2=0,0,1) -> 0 | BA21: =INDEX(BA$5:BA$14,MATCH(ROWS(BA$15:BA21),$BF$5:$BF$14,0)) -> Voertuigbelasting hvt | BC21: =INDEX(BC$5:BC$14,MATCH(ROWS(BC$15:BC21),$BF$5:$BF$14,0)) -> 0 | BD21: 0 | BE21: 0
D22: ="Cat2_"&Voertuigprofielen!J85 -> Cat2_ | E22: 3 | H22: Macronamen voor ophalen en bewaren brandstofprofielen | BA22: =INDEX(BA$5:BA$14,MATCH(ROWS(BA$15:BA22),$BF$5:$BF$14,0)) -> Ontheffing AMvB/APV tijden | BC22: =INDEX(BC$5:BC$14,MATCH(ROWS(BC$15:BC22),$BF$5:$BF$14,0)) -> 0 | BD22: 0 | BE22: 0
D23: ="Cat2_"&Voertuigprofielen!K85 -> Cat2_ | E23: 4 | H23: =VLOOKUP(Referentie,Brandstofdefinitie_Tabel,2,FALSE) -> 1 | J23: =VLOOKUP(Alternatief1,Brandstofdefinitie_Tabel,2,FALSE) -> 2 | L23: =VLOOKUP(Alternatief2,Brandstofdefinitie_Tabel,2,FALSE) -> 2 | Q23: Direct aansluitende stadsdistributie | BA23: =INDEX(BA$5:BA$14,MATCH(ROWS(BA$15:BA23),$BF$5:$BF$14,0)) -> Overige kosten hvt | BC23: =INDEX(BC$5:BC$14,MATCH(ROWS(BC$15:BC23),$BF$5:$BF$14,0)) -> 0 | BD23: 0 | BE23: 0
D24: ="Cat2_"&Voertuigprofielen!L85 -> Cat2_ | E24: 5 | H24: ="Naar_Ref_Br"&H23 -> Naar_Ref_Br1 | J24: ="Naar_Alt1_Br"&J23 -> Naar_Alt1_Br2 | L24: ="Naar_Alt2_Br"&L23 -> Naar_Alt2_Br2 | Q24: opties | R24: ja | BA24: =INDEX(BA$5:BA$14,MATCH(ROWS(BA$15:BA24),$BF$5:$BF$14,0)) -> Inzet stadsvoertuigen | BC24: =INDEX(BC$5:BC$14,MATCH(ROWS(BC$15:BC24),$BF$5:$BF$14,0)) -> 0 | BD24: 0 | BE24: 0
D25: ="Cat2_"&Voertuigprofielen!M85 -> Cat2_ | E25: 6 | H25: ="Van_Ref_Br"&H23 -> Van_Ref_Br1 | J25: ="Van_Alt1_Br"&J23 -> Van_Alt1_Br2 | L25: ="Van_Alt2_Br"&L23 -> Van_Alt2_Br2 | R25: nee
D26: ="Cat2_"&Voertuigprofielen!N85 -> Cat2_ | E26: 7 | H26: =IFERROR(VLOOKUP(Referentie_2,Brandstofdefinitie_Tabel,2,FALSE),"nvt") -> nvt | J26: =IFERROR(VLOOKUP(Alternatief1_2,Brandstofdefinitie_Tabel,2,FALSE),"nvt") -> nvt | L26: =IFERROR(VLOOKUP(Alternatief2_2,Brandstofdefinitie_Tabel,2,FALSE),"nvt") -> nvt | Q26: gekozen | R26: =AY130 -> ja | BA26: Vermindering uitstoot # | BC26: Alt1 | BD26: Alt2
D27: ="Cat2_"&Voertuigprofielen!O85 -> Cat2_ | E27: 8 | H27: ="Naar_Ref_2_Br"&H26 -> Naar_Ref_2_Brnvt | J27: ="Naar_Alt1_2_Br"&J26 -> Naar_Alt1_2_Brnvt | L27: ="Naar_Alt2_2_Br"&L26 -> Naar_Alt2_2_Brnvt | Q27: ja=1; nee=0: | R27: =IF(R26=R24,1,0) -> 1 | BA27: ="CO2 ("&S61&", "&CO2_weight&")" -> CO2 (TtW, ton) | BC27: =Switch_Alt1*ROUND(-'Alternatief 1'!J347,0) -> 0 | BD27: =Switch_Alt2*ROUND(-'Alternatief 2'!J347,0) -> 0
D28: ="Cat2_"&Voertuigprofielen!P85 -> Cat2_ | E28: 9 | H28: ="Van_Ref_2_Br"&H26 -> Van_Ref_2_Brnvt | J28: ="Van_Alt1_2_Br"&J26 -> Van_Alt1_2_Brnvt | L28: ="Van_Alt2_2_Br"&L26 -> Van_Alt2_2_Brnvt | BA28: ="NOx ("&S63&", "&NOx_weight&")" -> NOx (TtW, kg) | BC28: =Switch_Alt1*ROUND(-'Alternatief 1'!J350,0) -> 6 | BD28: =Switch_Alt2*ROUND(-'Alternatief 2'!J350,0) -> 6
D29: ="Cat2_"&Voertuigprofielen!Q85 -> Cat2_ | E29: 10 | BA29: ="PM ("&S65&", "&PM_weight&")" -> PM (TtW, hg) | BC29: =Switch_Alt1*ROUND(-'Alternatief 1'!J353,0) -> 1 | BD29: =Switch_Alt2*ROUND(-'Alternatief 2'!J353,0) -> 1
D30: ="Cat3_"&Voertuigprofielen!H116 -> Cat3_ | E30: 11 | H30: Reéle financieringsrente | BA30: ="Geluid (x 10^"&noise_weight&" dBh)" -> Geluid (x 10^4 dBh) | BC30: =Switch_Alt1*ROUND(-'Alternatief 1'!J356,0) -> 2 | BD30: =Switch_Alt2*ROUND(-'Alternatief 2'!J356,0) -> 2
D31: ="Cat3_"&Voertuigprofielen!I116 -> Cat3_ | E31: 12 | H31: Regulier | J31: Regulier | L31: Regulier
D32: ="Cat3_"&Voertuigprofielen!J116 -> Cat3_ | E32: 13 | H32: =((1+Rente_nominaal/1)/(1+Inflatie/1)-1) -> 0.02463054187 | J32: =((1+Rente_nominaal/1)/(1+Inflatie/1)-1) -> 0.02463054187 | L32: =((1+Rente_nominaal/1)/(1+Inflatie/1)-1) -> 0.02463054187
D33: ="Cat3_"&Voertuigprofielen!K116 -> Cat3_ | E33: 14 | H33: Zacht | J33: Zacht | L33: Zacht | BA33: Vermindering uitstoot EUR | BC33: Alt1 | BD33: Alt2
D34: ="Cat3_"&Voertuigprofielen!L116 -> Cat3_ | E34: 15 | H34: =((1+H135/1)/(1+Inflatie/1)-1) -> 0.01477832512 | J34: =((1+J135/1)/(1+Inflatie/1)-1) -> 0.02463054187 | L34: =((1+L135/1)/(1+Inflatie/1)-1) -> 0.02463054187 | BA34: ="CO2 ("&S61&")" -> CO2 (TtW) | BC34: =Switch_Alt1*ROUND(-'Alternatief 1'!J348,0) -> 7 | BD34: =Switch_Alt2*ROUND(-'Alternatief 2'!J348,0) -> 7
D35: ="Cat3_"&Voertuigprofielen!M116 -> Cat3_ | E35: 16 | Q35: Switch gtm/ld | BA35: ="NOx ("&S63&")" -> NOx (TtW) | BC35: =Switch_Alt1*ROUND(-'Alternatief 1'!J351,0) -> 64 | BD35: =Switch_Alt2*ROUND(-'Alternatief 2'!J351,0) -> 64
D36: ="Cat3_"&Voertuigprofielen!N116 -> Cat3_ | E36: 17 | H36: Brandstoffen en eenheden | Q36: switch | R36: 1 | BA36: ="PM ("&S63&")" -> PM (TtW) | BC36: =Switch_Alt1*ROUND(-'Alternatief 1'!J354,0) -> 17 | BD36: =Switch_Alt2*ROUND(-'Alternatief 2'!J354,0) -> 17
D37: ="Cat3_"&Voertuigprofielen!O116 -> Cat3_ | E37: 18 | H37: =HLOOKUP(Referentie,Brandstofprofielen,3,FALSE) -> Diesel | J37: =HLOOKUP(Alternatief1,Brandstofprofielen,3,FALSE) -> LNG | L37: =HLOOKUP(Alternatief2,Brandstofprofielen,3,FALSE) -> LNG | Q37: gebruikstermijn | R37: =IF(R36=1,1,0) -> 1 | BA37: Geluid | BC37: =Switch_Alt1*ROUND(-'Alternatief 1'!J357,0) -> 83 | BD37: =Switch_Alt2*ROUND(-'Alternatief 2'!J357,0) -> 83
D38: ="Cat3_"&Voertuigprofielen!P116 -> Cat3_ | E38: 19 | H38: =HLOOKUP(Referentie,Brandstofprofielen,4,FALSE) -> liter | J38: =HLOOKUP(Alternatief1,Brandstofprofielen,4,FALSE) -> kilogram | L38: =HLOOKUP(Alternatief2,Brandstofprofielen,4,FALSE) -> kilogram | Q38: levensduur | R38: =IF(R36=2,1,0) -> 0
D39: ="Cat3_"&Voertuigprofielen!Q116 -> Cat3_ | E39: 20 | H39: =HLOOKUP(Referentie_2,Brandstofprofielen,3,FALSE) ->  | J39: =HLOOKUP(Alternatief1_2,Brandstofprofielen,3,FALSE) ->  | L39: =HLOOKUP(Alternatief2_2,Brandstofprofielen,3,FALSE) -> 
H40: =HLOOKUP(Referentie_2,Brandstofprofielen,4,FALSE) ->  | J40: =HLOOKUP(Alternatief1_2,Brandstofprofielen,4,FALSE) ->  | L40: =HLOOKUP(Alternatief2_2,Brandstofprofielen,4,FALSE) ->  | AK40: Finale H/B | BA40: Contante waarden | BC40: Alt1 | BD40: Alt2
D41: Overzicht brandstofprofielen | H41: =IF(BrandstofprijsR_2="n.v.t.",1E+48,-BrandstofprijsR_2) -> 1e+48 | J41: =IF(Brandstofprijs1_2="n.v.t.",1E+48,-Brandstofprijs1_2) -> 1e+48 | L41: =IF(Brandstofprijs2_2="n.v.t.",1E+48,-Brandstofprijs2_2) -> 1e+48 | AK41: • buitenstedelijk | AQ41: =IF(Buitenstedelijk=1,1,0) -> 0 | AU41: aantal prio-svt | BA41: kosten | BC41: =Switch_Alt1*ROUND(-'Alternatief 1'!G362,0) -> 0 | BD41: =Switch_Alt2*ROUND(-'Alternatief 2'!G362,0) -> 0
D42: Soort+Naam | E42: Nr. | H42: =IF(Referentie_2="n.v.t.",1E+48,0) -> 1e+48 | J42: =IF(Alternatief1_2="n.v.t.",1E+48,0) -> 1e+48 | L42: =IF(Alternatief2_2="n.v.t.",1E+48,0) -> 1e+48 | AK42: • stedelijk | AQ42: =1-AQ41-AQ43 -> 1 | AU42: =ROUNDUP(directe_aansluiting_stadsdistr*Lading_hoofdvoertuig/Capaciteit_stadsvoertuig,0) -> 2 | BA42: opbrengsten | BC42: =Switch_Alt1*ROUND('Alternatief 1'!G361,0) -> 1032 | BD42: =Switch_Alt2*ROUND('Alternatief 2'!G361,0) -> 1032
D43: =Brandstofprofielen!H30 -> Diesel | E43: 1 | H43: =IF(Referentie_2="n.v.t.",0,1) -> 0 | J43: =IF(Alternatief1_2="n.v.t.",0,1) -> 0 | L43: =IF(Alternatief2_2="n.v.t.",0,1) -> 0 | AK43: • kernwinkelgebied | AQ43: =IF(Kernwinkelgebied>0,1,0) -> 0
D44: =Brandstofprofielen!I30 -> LNG | E44: =E43+1 -> 2 | Q44: Switch uur/km | AK44: =IF(AQ41=1,AK41,IF(AQ43=1,AK43,AK42)) -> • stedelijk | AU44: aantal uren referentie | BA44: Kn per maatregel | BC44: Alt1 | BD44: Alt2
D45: =Brandstofprofielen!J30 -> 0 | E45: =E44+1 -> 3 | H45: Waarschuwingen bij bewaren | Q45: uur/km | R45: 2 | AU45: aantal uren: | AW45: =Referentie!J176 -> 317.8571429 | BA45: MIA/VAMIL | BC45: =Switch_Alt1*ROUND('Alternatief 1'!G266,0) -> 0 | BD45: =Switch_Alt2*ROUND('Alternatief 2'!G266,0) -> 0
D46: =Brandstofprofielen!K30 -> 0 | E46: 4 | H46: ="De bovenstaande gegevens worden opgeslagen in voertuigprofiel "&Referentie_Naam&"." -> De bovenstaande gegevens worden opgeslagen in voertuigprofiel Diesel. | J46: ="De bovenstaande gegevens worden opgeslagen in voertuigprofiel "&Alternatief1_Naam&"." -> De bovenstaande gegevens worden opgeslagen in voertuigprofiel LNG. | L46: ="De bovenstaande gegevens worden opgeslagen in voertuigprofiel "&Alternatief2_Naam&"." -> De bovenstaande gegevens worden opgeslagen in voertuigprofiel LNG. | Q46: per km | R46: =IF(R45=2,1,0) -> 1 | AU46: urenfactor | AW46: =Uren_hvt_ref/totaal_uren_referentie -> 9.438202247 | BA46: =Referentie!B270 -> Investeringssubsidies | BC46: =Switch_Alt1*ROUND('Alternatief 1'!G270,0) -> 0 | BD46: =Switch_Alt2*ROUND('Alternatief 2'!G270,0) -> 0
D47: =Brandstofprofielen!L30 -> 0 | E47: 5 | H47: =IF(BrandstofprijsR_2<>"n.v.t.","De brandstofprijzen van de brandstofprofielen "&Referentie&" en "&Referentie_2&" worden aangepast.","De brandstofprijs van brandstofprofiel "&Referentie&" worden aangepast.") -> De brandstofprijs van brandstofprofiel Diesel worden aangepast. | J47: =IF(Brandstofprijs1_2<>"n.v.t.","De brandstofprijzen van de brandstofprofielen "&Alternatief1&" en "&Alternatief1_2&" worden aangepast.","De brandstofprijs van brandstofprofiel "&Alternatief1&" worden aangepast.") -> De brandstofprijs van brandstofprofiel LNG worden aangepast. | L47: =IF(Brandstofprijs2_2<>"n.v.t.","De brandstofprijzen van de brandstofprofielen "&Alternatief2&" en "&Alternatief2_2&" worden aangepast.","De brandstofprijs van brandstofprofiel "&Alternatief2&" worden aangepast.") -> De brandstofprijs van brandstofprofiel LNG worden aangepast. | Q47: per uur | R47: =IF(R45=1,1,0) -> 0 | BA47: =Referentie!B272 -> Exploitatie hvt | BC47: =Switch_Alt1*ROUND('Alternatief 1'!G272,0) -> 0 | BD47: =Switch_Alt2*ROUND('Alternatief 2'!G272,0) -> 0
D48: =Brandstofprofielen!M30 -> 0 | E48: 6 | Q48: =IF(Per_uur=1,"EUR per uur","EUR per referentiekilometer") -> EUR per referentiekilometer | BA48: =Referentie!B273 -> Exploitatie svt | BC48: =Switch_Alt1*ROUND('Alternatief 1'!G273,0) -> 0 | BD48: =Switch_Alt2*ROUND('Alternatief 2'!G273,0) -> 0
D49: =Brandstofprofielen!N30 -> 0 | E49: 7 | G49: Aanvulling op partiële voertuigprofielen | Q49: =IF(Per_uur=1,"(EUR/uur):","(EUR/km):") -> (EUR/km): | BA49: =Referentie!B274 -> Δ Brandstofprijs | BC49: =Switch_Alt1*ROUND('Alternatief 1'!G274,0) -> 0 | BD49: =Switch_Alt2*ROUND('Alternatief 2'!G274,0) -> 0
D50: =Brandstofprofielen!O30 -> 0 | E50: 8 | G50: Br1: CO2 (g/kWh): | H50: =HLOOKUP(Referentie_Naam,Referentie_Totaal,M50,FALSE) -> 2.61 | J50: =HLOOKUP(Alternatief1_Naam,IF(J$91=Profielgroep2, Alternatief1_Totaal, Alternatief2_Totaal),M50,FALSE) -> 2.7 | L50: =HLOOKUP(Alternatief2_Naam,IF(L$91=Profielgroep2, Alternatief1_Totaal, Alternatief2_Totaal),M50,FALSE) -> 2.7 | M50: 16 | BA50: =Referentie!B275 -> Zachte leningen | BC50: =Switch_Alt1*ROUND('Alternatief 1'!G275,0) -> 0 | BD50: =Switch_Alt2*ROUND('Alternatief 2'!G275,0) -> 0
D51: =Brandstofprofielen!P30 -> 0 | E51: 9 | G51: Br1: NOx (g/kWh): | H51: 2.5 | J51: 0.45 | L51: 0.45 | M51: =M50+1 -> 17
D52: =Brandstofprofielen!Q30 -> 0 | E52: 10 | G52: Br1: PM (g/kWh): | H52: 0.33 | J52: 0.32 | L52: 0.32 | M52: 18 | Q52: Ladingtype en tijd modaliteitswissel | AW52: Omrekening gewichten en monteriseringsgetallen
G53: Br1: geluid (dB): | H53: =HLOOKUP(Referentie_Naam,Referentie_Totaal,M53,FALSE) -> 78 | J53: =HLOOKUP(Alternatief1_Naam,IF(J$91=Profielgroep2, Alternatief1_Totaal, Alternatief2_Totaal),M53,FALSE) -> 70 | L53: =HLOOKUP(Alternatief2_Naam,IF(L$91=Profielgroep2, Alternatief1_Totaal, Alternatief2_Totaal),M53,FALSE) -> 70 | M53: 19 | Q53: oplegger | R53: opleggers | S53: =IFERROR((wissel_per_oplegger*Lading_hoofdvoertuig)/60 + wissel_per_voertuig*(1+ROUNDUP(Lading_hoofdvoertuig/Capaciteit_stadsvoertuig,0))/60,0) -> 17.16666667 | AY53: gewichten | BB53: g | BC53: kg | BD53: geluid | BE53: kg | BF53: ton
D54: Overzicht namen | G54: Br2: CO2 (g/kWh): | H54: =HLOOKUP(Referentie_Naam,Referentie_Totaal,M54,FALSE) -> 0 | J54: =HLOOKUP(Alternatief1_Naam,IF(J$91=Profielgroep2, Alternatief1_Totaal, Alternatief2_Totaal),M54,FALSE) -> 0 | L54: =HLOOKUP(Alternatief2_Naam,IF(L$91=Profielgroep2, Alternatief1_Totaal, Alternatief2_Totaal),M54,FALSE) -> 0 | M54: 20 | Q54: wissellaadbak | R54: wissellaadbakken | S54: =IFERROR((wissel_per_wissellaadbak*Lading_hoofdvoertuig)/60 + wissel_per_voertuig*(1+ROUNDUP(Lading_hoofdvoertuig/Capaciteit_stadsvoertuig,0))/60,0) -> 17.16666667 | AY54: mg | BB54: =BB55*10 -> 1000 | BC54: =BC55*10 -> 1000000 | BD54: 0 | BE54: =BE55/10 -> 1e-06 | BF54: 1e-09
D55: Referentie | E55: =CONCATENATE("Referentie"&CHAR(10)&IF(Per_uur=0,"","("&TEXT(S135,"0")&" uren/jr)")) -> Referentie | G55: Br2: NOx (g/kWh): | H55: =HLOOKUP(Referentie_Naam,Referentie_Totaal,M55,FALSE) -> 0 | J55: =HLOOKUP(Alternatief1_Naam,IF(J$91=Profielgroep2, Alternatief1_Totaal, Alternatief2_Totaal),M55,FALSE) -> 0 | L55: =HLOOKUP(Alternatief2_Naam,IF(L$91=Profielgroep2, Alternatief1_Totaal, Alternatief2_Totaal),M55,FALSE) -> 0 | M55: 21 | Q55: rolcontainer | R55: rolcontainers | S55: =IFERROR((wissel_per_rolcontainer*Lading_hoofdvoertuig)/60 + wissel_per_voertuig*(1+ROUNDUP(Lading_hoofdvoertuig/Capaciteit_stadsvoertuig,0))/60,0) -> 1.333333333 | AY55: cg | BB55: 100 | BC55: 100000 | BD55: 1 | BE55: 1e-05 | BF55: 1e-08
D56: Alternatief 1 | E56: =CONCATENATE("Alternatief 1"&CHAR(10)&IF(Per_uur=0,"","("&TEXT(U135,"0")&" uren/jr)")) -> Alternatief 1 | G56: Br2: PM (g/kWh): | H56: =HLOOKUP(Referentie_Naam,Referentie_Totaal,M56,FALSE) -> 0 | J56: =HLOOKUP(Alternatief1_Naam,IF(J$91=Profielgroep2, Alternatief1_Totaal, Alternatief2_Totaal),M56,FALSE) -> 0 | L56: =HLOOKUP(Alternatief2_Naam,IF(L$91=Profielgroep2, Alternatief1_Totaal, Alternatief2_Totaal),M56,FALSE) -> 0 | M56: 22 | Q56: pallets | R56: pallets | S56: =IFERROR((wissel_per_pallet*Lading_hoofdvoertuig)/60 + wissel_per_voertuig*(1+ROUNDUP(Lading_hoofdvoertuig/Capaciteit_stadsvoertuig,0))/60,0) -> 1.333333333 | AY56: dg | BB56: =BB57*10 -> 10 | BC56: 10000 | BD56: 2 | BE56: 0.0001 | BF56: 1e-07
D57: Alternatief 2 | E57: =CONCATENATE("Alternatief 2"&CHAR(10)&IF(Per_uur=0,"","("&TEXT(W135,"0")&" uren/jr)")) -> Alternatief 2 | G57: Br2: Geluid (dB): | H57: =HLOOKUP(Referentie_Naam,Referentie_Totaal,M57,FALSE) -> 0 | J57: =HLOOKUP(Alternatief1_Naam,IF(J$91=Profielgroep2, Alternatief1_Totaal, Alternatief2_Totaal),M57,FALSE) -> 0 | L57: =HLOOKUP(Alternatief2_Naam,IF(L$91=Profielgroep2, Alternatief1_Totaal, Alternatief2_Totaal),M57,FALSE) -> 0 | M57: 23 | Q57: dozen | R57: dozen | S57: =IFERROR((wissel_per_doos*Lading_hoofdvoertuig)/60 + wissel_per_voertuig*(1+ROUNDUP(Lading_hoofdvoertuig/Capaciteit_stadsvoertuig,0))/60,0) -> 1.333333333 | AY57: g | BB57: 1 | BC57: 1000 | BD57: 3 | BE57: 0.001 | BF57: 1e-06
AY58: dag | BB58: =BB57/10 -> 0.1 | BC58: 100 | BD58: 4 | BE58: 0.01 | BF58: 1e-05
H59: Diesel | J59: LNG | L59: LNG | Q59: Type Emissie | AY59: hg | BB59: 0.01 | BC59: =BC60*10 -> 10 | BD59: 5 | BE59: 0.1 | BF59: 0.0001
Q60: Well-to-Wheel (WtW) | R60: WtW | S60: CO2 | AY60: kg | BB60: 0.001 | BC60: 1 | BD60: 6 | BE60: 1 | BF60: =BF61/1000 -> 0.001
H61: Check op onterecht lege cellen | Q61: Tank-to-Wheel (TtW) | R61: TtW | S61: =VLOOKUP(Dashboard!AI133,Emissietabel,2,FALSE) -> TtW | AY61: ton | BB61: =BB60/1000 -> 1e-06 | BC61: =BC60/1000 -> 0.001 | BD61: 7 | BE61: =BE60*1000 -> 1000 | BF61: 1
C62: H/B in Stedelijk gebied: | E62: buiten venstertijd (%): | H62: =IF(AND($AQ$42>0,H123=""),1,0) -> 0 | J62: =IF(AND(Switch_Alt1=1,$AQ$42>0,J123=""),1,0) -> 0 | L62: =IF(AND(Switch_Alt2=1,$AQ$42>0,L123=""),1,0) -> 0 | Q62: Tailpipe (Tp) | R62: Tp | S62: NOx | AY62: CO2 | BB62: =INDEX(weights_CO2,MATCH(CO2_weight,weights,0)) -> 0.001 | BD62: 8 | BE62: =INDEX(weights_CO2_EUR,MATCH(CO2_weight,weights,0)) -> 1
E63: in dagrand (%): | H63: =IF(AND($AQ$42>0,H124=""),1,0) -> 0 | J63: =IF(AND(Switch_Alt1=1,$AQ$42>0,J124=""),1,0) -> 0 | L63: =IF(AND(Switch_Alt2=1,$AQ$42>0,L124=""),1,0) -> 0 | Q63: Selected: | S63: =VLOOKUP(Dashboard!AI134,Emissietabel,2,FALSE) -> TtW | AW63: hvt | AY63: NOX | BB63: =INDEX(weights_NOx_PM,MATCH(NOx_weight,weights,0)) -> 0.001 | BD63: 9 | BE63: =INDEX(weights_NOx_PM_EUR,MATCH(NOx_weight,weights,0)) -> 1
E64: stadsvoertuig (%): | H64: =IF(AND($AQ$42>0,H125=""),1,0) -> 0 | J64: =IF(AND(Switch_Alt1=1,$AQ$42>0,J125=""),1,0) -> 0 | L64: =IF(AND(Switch_Alt2=1,$AQ$42>0,L125=""),1,0) -> 0 | S64: PM: | AY64: PM | BB64: =INDEX(weights_NOx_PM,MATCH(PM_weight,weights,0)) -> 0.01 | BD64: 10 | BE64: =INDEX(weights_NOx_PM_EUR,MATCH(PM_weight,weights,0)) -> 0.1
C65: per oplegger | H65: =IF(AND(inzet_svt=1,Ladingtype=Q53,AY125=""),1,0) -> 0 | Q65: ="Emissiereductie ten opzichte van referentie" -> Emissiereductie ten opzichte van referentie | S65: =VLOOKUP(Dashboard!AI135,Emissietabel,2,FALSE) -> TtW | AY65: Geluid | BB65: =noise_weight -> 4 | BE65: n.v.t.
C66: per wissellaadbak | H66: =IF(AND(inzet_svt=1,Ladingtype=Q54,AY126=""),1,0) -> 0 | AY66: CO2 | BB66: =INDEX(weights_sv,MATCH(CO2_weight,weights,0)) -> 1e-06
C67: per rolcont | H67: =IF(AND(inzet_svt=1,Ladingtype=Q55,AY127=""),1,0) -> 0 | AW67: sv | AY67: NOX | BB67: =INDEX(weights_sv,MATCH(NOx_weight,weights,0)) -> 0.001
C68: per pallet | H68: =IF(AND(inzet_svt=1,Ladingtype=Q56,AY128=""),1,0) -> 0 | AY68: PM | BB68: =INDEX(weights_sv,MATCH(PM_weight,weights,0)) -> 0.01
C69: per doos | H69: =IF(AND(inzet_svt=1,Ladingtype=Q57,AY129=""),1,0) -> 0
C70: lading hvt | H70: =IF(AND(inzet_svt=1,Lading_hoofdvoertuig=0),1,0) -> 0
C71: lading svt | H71: =IF(AND(inzet_svt=1,Capaciteit_stadsvoertuig=0),1,0) -> 0
H73: Check op geldige voertuig- en brandstofprofielnaam
H74: =COUNTIF(Cat1_Duiding,Referentie_Naam) -> 1 | J74: =IF(Profielgroep2=J91,COUNTIF(Cat2_Duiding,Alternatief1_Naam),IF(Profielgroep3=J91,COUNTIF(Cat3_Duiding,Alternatief1_Naam),0)) -> 1 | L74: =IF(Profielgroep2=L91,COUNTIF(Cat2_Duiding,Alternatief2_Naam),IF(Profielgroep3=L91,COUNTIF(Cat3_Duiding,Alternatief2_Naam),0)) -> 1
H75: =COUNTIF(Brandstof_Duiding,Referentie) -> 1 | J75: =COUNTIF(Brandstof_Duiding,Alternatief1) -> 1 | L75: =COUNTIF(Brandstof_Duiding,Alternatief2) -> 1
B78: DEFINITIE VOERTUIGEN EN DISTRIBUTIESCHEMA'S | O78: GRAFIEKEN
C80: AFSTAND EN LADING
C81: H/B afstand (km): | F81: 100
C82: # H/B ritten/jaar: | F82: 100
C83: Ladingtype: | F83: rolcontainer
C84: ="# "&VLOOKUP(Ladingtype,ladingtype2,2,FALSE)&" hvt:" -> # rolcontainers hvt: | F84: 50
C85: ="# "&VLOOKUP(Ladingtype,ladingtype2,2,FALSE)&" svt:" -> # rolcontainers svt: | F85: 25
C87: =IF(R6>0,"FOUTEN GEDECTEERD, CHECK GELE PIJLEN EN/OF GEELGEKLEURDE CELLEN",IF(R8>0,"VOORZIE GEEL GEKLEURDE CELLEN VAN INPUT",IF(R9>0,"SELECTEER EEN BESTAANDE CATEGORIE OF HERSTEL FOUT IN VOERTUIG_PROFIELEN",IF(R11>0,"HET WERKBLAD 'VOERTUIG_PROFIELEN' BEVAT FOUTEN!",IF(R12>0,"HET WERKBLAD 'BRANDSTOF-PROFIELEN' BEVAT FOUTEN!",IF(R7>0,"HET WERKBLAD 'STADSVOERTUIG' BEVAT FOUTEN!",IF(R14>0,"LET OP RENTE LAGER DAN INFLATIE, ZIE ORANJE GEKLEURDE PIJLEN EN/OF CELLEN",IF(R10>0,"SELECTEER EEN BESTAANDE VOERTUIGPROFIELNAAM, ZIE GEMARKEERDE CEL(LEN)","Status: ok")))))))) -> Status: ok
C89: SPECIFICATIE HOOFDVOERTUIG | H89: Referentie | J89: Alternatief 1 | L89: Alternatief 2
C91: KIES PROFIEL HOOFDVT→ | F91: Categorie: | H91: =Profielgroep1 -> REFERENTIE | I91: =IF(Switch_Alt1=0,"",IF(J91="","",IF(AND(COUNTIF(Profielgroep2,J91)=0,COUNTIF(Profielgroep3,J91)=0),"→",""))) ->  | J91: ALT1 | K91: =IF(Switch_Alt2=0,"",IF(L91="","",IF(AND(COUNTIF(Profielgroep2,L91)=0,COUNTIF(Profielgroep3,L91)=0),"→",""))) ->  | L91: ALT1
C93: ↓ PAS PROFIEL AAN ↓ | F93: Profielnaam: | G93: =IF(COUNTIF(Cat1_Duiding,Referentie_Naam)=0,"→","") ->  | H93: Diesel | I93: =IF(COUNTIF(Cat2_Duiding,Alternatief1_Naam)+COUNTIF(Cat3_Duiding,Alternatief1_Naam)=0,"→","") ->  | J93: LNG | K93: =IF(COUNTIF(Cat2_Duiding,Alternatief2_Naam)+COUNTIF(Cat3_Duiding,Alternatief2_Naam)=0,"→","") ->  | L93: LNG
C95: Brandstof 1: | E95: brandstofprofiel: | H95: Diesel | J95: LNG | L95: LNG
E96: aandeel (%) | G96: =IF(AND(H99>0,Referentie_2="N.v.t."),"→","") ->  | H96: 1 | I96: =IF(AND(Switch_Alt1=1,J99>0,Alternatief1_2="N.v.t."),"→","") ->  | J96: 1 | K96: =IF(AND(Switch_Alt2=1,L99>0,Alternatief2_2="N.v.t."),"→","") ->  | L96: 1
E97: basisverbruik (per 100 km): | H97: 28 | J97: 26 | L97: 26
C98: Brandstof 2: | E98: brandstofprofiel: | G98: =IF(AND(H99>0,Referentie_2="N.v.t."),"→","") ->  | H98: N.v.t. | I98: =IF(AND(Switch_Alt1=1,J99>0,Alternatief1_2="N.v.t."),"→","") ->  | J98: N.v.t. | K98: =IF(AND(Switch_Alt2=1,L99>0,Alternatief2_2="N.v.t."),"→","") ->  | L98: N.v.t. | V98: CO2: | X98: ton | AA98: NOx: | AB98: kg | AE98: PM: | AI98: hg | AJ98: dBh×10^: | AM98: 4
E99: aandeel (%) | G99: =IF(AND(H99>0,Referentie_2="N.v.t."),"→","") ->  | H99: =IF(H98="","",IF(H98="N.v.t.",0,1-H96)) -> 0 | I99: =IF(AND(Switch_Alt1=1,J99>0,Alternatief1_2="N.v.t."),"→","") ->  | J99: =IF(J98="","",IF(J98="N.v.t.",0,1-J96)) -> 0 | K99: =IF(AND(Switch_Alt2=1,L99>0,Alternatief2_2="N.v.t."),"→","") ->  | L99: 0
E100: basisverbruik (per 100 km):
C101: Aanschafprijs (EUR): | H101: 70000 | J101: 100000 | L101: 100000
C102: Gebruikstermijn (hele jaren): | H102: 7 | J102: 7 | L102: 7
C103: Restwaarde na gebruikstermijn (EUR): | H103: 0 | J103: 0 | L103: 0
C104: Onderhoud (EUR/kilometer): | H104: 0 | J104: 0 | L104: 0
C105: Verzekeringen (EUR/jaar): | H105: 0 | J105: 0 | L105: 0
C106: Voertuigbelasting (EUR/jaar): | G106: =IF(-H129>H106,"→","") ->  | H106: 0 | I106: =IF(AND(Switch_Alt1=1,-J129>J106),"→","") ->  | J106: 0 | K106: =IF(AND(Switch_Alt2=1,-L129>L106),"→","") ->  | L106: 0
C107: Overige kosten (EUR/jaar): | H107: 0 | J107: 0 | L107: 0
C108: UPDATE/BEWAAR PROFIEL HOOFDVOERTUIG →
C110: BRANDSTOFPRIJS | H110: Referentie | J110: Alternatief 1 | L110: Alternatief 2
C111: Prijs brandstof 1 (EUR per eenheid): | G111: =IF(-H130>H111,"→","") ->  | H111: 0.97 | I111: =IF(AND(Switch_Alt1=1,-J130>J111),"→","") ->  | J111: 0.82 | K111: =IF(AND(Switch_Alt2=1,-L130>L111),"→","") ->  | L111: 0.82
C112: Prijs brandstof 2 (EUR per eenheid): | G112: =IF(-H131>H112,"→","") ->  | H112: n.v.t. | I112: =IF(AND(Switch_Alt1=1,-J131>J112),"→","") ->  | J112: n.v.t. | K112: =IF(AND(Switch_Alt2=1,-L131>L112),"→","") ->  | L112: n.v.t.
C113: UPDATE / BEWAAR BRANDSTOFPRIJS → | H113: 50
H114: 3
C115: MAATREGELEN BEZIT | H115: Referentie | J115: Alternatief 1 | L115: Alternatief 2
C116: MIA (%): | H116: 0 | J116: 0 | L116: 0 | O116: OUTPUT IN KERNCIJFERS EN RATIO'S | AD116: INVOER ALGEMENE PARAMETERS
C117: VAMIL (%): | H117: 0 | J117: 0 | L117: 0 | S117: Referentie | U117: Alternatief 1 | W117: Alternatief 2 | AM117: Afstand | AQ117: Gem. snelheid
C118: Investeringssubsidie hoofdvoertuig (% aanschaf): | H118: 0 | J118: 0 | L118: 0 | P118: =BA15&" "&Duiding -> Personeelskosten (EUR/km): | S118: =BC15 -> 0.79 | U118: =IF(Switch_Alt1=0,"n.v.t.",BD15) -> 0.79 | W118: =IF(Switch_Alt2=0,"n.v.t.",BE15) -> 0.79 | AE118: Gebieden | AQ118: Normaal | AS118: Spits | AU118: indirecte uren hvt: | AY118: 0
P119: =BA16&" "&Duiding -> Brandstofkosten hvt (EUR/km): | S119: =BC16 -> 0.27 | U119: =IF(Switch_Alt1=0,"n.v.t.",BD16) -> 0.21 | W119: =IF(Switch_Alt2=0,"n.v.t.",BE16) -> 0.21 | AE119: Buitenstedelijk: | AM119: 0.85 | AQ119: 70 | AS119: 35 | AU119: indirecte uren svt: | AY119: 0
C120: (MAATREGELEN) GEBRUIK | H120: Referentie | J120: Alternatief 1 | L120: Alternatief 2 | P120: Afschrijving hvt (EUR/km): | S120: 0.105952381 | U120: 0.15 | W120: 0.15 | AE120: Stedelijk: | AM120: 0.15 | AQ120: 40 | AS120: 20 | AU120: Δ verbruik hvt stad: | AY120: 0
C121: ="De rit gaat door de volgende gebieden: "&IF(Buitenstedelijk>0,AK41&" ","")&IF(Overig_stedelijk>0,AK42&" ","")&IF(Kernwinkelgebied>0,AK43&" ","")&"(klantlocatie)" -> De rit gaat door de volgende gebieden: • buitenstedelijk • stedelijk (klantlocatie) | P121: Rente hvt (EUR/km): | S121: 0.01043865822 | U121: 0.01 | W121: 0.01 | AE121: Kernwinkelgebied | AM121: =1-Buitenstedelijk-Overig_stedelijk -> 0 | AQ121: 20 | AS121: 10 | AU121: Δ verbruik hvt spits: | AY121: 0
P122: Onderhoudskosten hvt (EUR/km): | S122: 0 | U122: 0 | W122: 0
C123: Ritten uitgevoerd buiten AMvB/APV-tijd (%): | G123: =IF(H124>1-H123,"→","") ->  | H123: 0 | I123: =IF(AND(Switch_Alt1=1,J124>1-J123),"→","") ->  | J123: 0 | K123: =IF(AND(Switch_Alt2=1,L124>1-L123),"→","") ->  | L123: 0 | P123: Verzekeringen hvt (EUR/km): | S123: 0 | U123: 0 | W123: 0 | AE123: Bezetting hoofd-/stadsvoert: | AQ123: 1 | AS123: 1 | AU123: Modaliteitswissel (minuten)
C124: Ritten uitgevoerd in de dagrand (%): | G124: =IF(H124>1-H123,"→","") ->  | H124: 0 | I124: =IF(AND(Switch_Alt1=1,J124>1-J123),"→","") ->  | J124: 0 | K124: =IF(AND(Switch_Alt2=1,L124>1-L123),"→","") ->  | L124: 0 | P124: Voertuigbelasting hvt (EUR/km): | S124: 0 | U124: 0 | W124: 0 | AE124: Uurtarief normaal/hoog (EUR): | AQ124: 25 | AS124: 30 | AU124: voertuig: | AY124: 10
C125: Inzet svt in stedelijk en kernwinkelgebied (%): | H125: 0 | J125: 0 | L125: 0 | P125: Ontheffing AMvB/APV tijden (EUR/km): | S125: 0 | U125: 0 | W125: 0 | AE125: Rente en inflatie (%): | AQ125: 0.04 | AR125: 0 | AS125: 0.015 | AU125: oplegger: | AY125: 20
C126: Inzetbaarheid hoofdvoertuig (uren/jaar): | H126: 3000 | I126: =IF(AND(Switch_Alt1=1,-J127>J126),"→","") ->  | J126: 3000 | K126: =IF(AND(Switch_Alt2=1,-L127>L126),"→","") ->  | L126: 3000 | P126: Overige kosten hvt (EUR/km): | S126: 0 | U126: 0 | W126: 0 | AE126: Effectieve VpB (%): | AQ126: 0.25 | AU126: wissellaadbak: | AY126: 20
C127: Kosten ontheffingAMvB/APV-tijden (EUR/jaar): | G127: =IF(-H128>H127,"→","") ->  | H127: 0 | I127: =IF(AND(Switch_Alt1=1,-J128>J127),"→","") ->  | J127: 0 | K127: =IF(AND(Switch_Alt2=1,-L128>L127),"→","") ->  | L127: 0 | P127: Inzet stadsvoertuigen (EUR/km): | S127: 0 | U127: 0 | W127: 0 | AE127: Maatsch. discontovoet (%): | AQ127: 0.04 | AU127: rolcontainer: | AY127: 1
C128: Δ Kosten ontheffing AMvB/APV-tijden (EUR/jr): | G128: =IF(-H128>H127,"→","") ->  | H128: 0 | I128: =IF(AND(Switch_Alt1=1,-J128>J127),"→","") ->  | J128: 0 | K128: =IF(AND(Switch_Alt2=1,-L128>L127),"→","") ->  | L128: 0 | P128: ="Totaal Kritische Distributiekosten "&Duiding -> Totaal Kritische Distributiekosten (EUR/km): | S128: =Referentie!G227 -> 1.182633896 | U128: =IF(Switch_Alt1=0,"n.v.t.",'Alternatief 1'!G227) -> 1.17411577 | W128: =IF(Switch_Alt2=0,"n.v.t.",'Alternatief 2'!G227) -> 1.17411577 | AE128: Stadsvoertuig uren: | AQ128: 3000 | AU128: pallet: | AY128: 1
C129: Δ Voertuigbelasting (EUR/jaar) | G129: =IF(-H129>H106,"→","") ->  | H129: 0 | I129: =IF(AND(Switch_Alt1=1,-J129>J106),"→","") ->  | J129: 0 | K129: =IF(AND(Switch_Alt2=1,-L129>L106),"→","") ->  | L129: 0 | P129: Kosten nieuwe maatregelen (EUR, reëel): | S129: =Referentie!H276 -> 0 | U129: =IF(Switch_Alt1=0,"n.v.t.",'Alternatief 1'!H276) -> 0 | W129: =IF(Switch_Alt2=0,"n.v.t.",'Alternatief 2'!H276) -> 0 | AE129: TCO stadsvoertuig vast/var: | AQ129: =TCO_sv_vast -> 0 | AS129: =TCO_sv_variabel -> 0 | AU129: doos: | AY129: 1
C130: Δ Prijs brandstof 1 (EUR per eenheid): | G130: =IF(-H130>H111,"→","") ->  | H130: 0 | I130: =IF(AND(Switch_Alt1=1,-J130>J111),"→","") ->  | J130: 0 | K130: =IF(AND(Switch_Alt2=1,-L130>L111),"→","") ->  | L130: 0 | P130: Kosten alle maatregelen (EUR, reëel): | S130: =Referentie!H278 -> 0 | U130: =IF(Switch_Alt1=0,"n.v.t.",'Alternatief 1'!H278) -> 0 | W130: =IF(Switch_Alt2=0,"n.v.t.",'Alternatief 2'!H278) -> 0 | AU130: aansluit. stadsdistr: | AY130: ja
C131: Δ Prijs brandstof 2 (EUR per eenheid): | G131: =IF(-H131>H112,"→","") ->  | H131: 1 | I131: =IF(AND(Switch_Alt1=1,-J131>J112),"→","") ->  | J131: 0.3 | K131: =IF(AND(Switch_Alt2=1,-L131>L112),"→","") ->  | L131: 0 | P131: Emissierendement reëel (%): | S131: n.v.t. | U131: =IFERROR(IF(Switch_Alt2=0,"n.v.t.",'Alternatief 1'!H363/-'Alternatief 1'!H362),"n.v.t.") -> n.v.t. | W131: =IFERROR(IF(Switch_Alt2=0,"n.v.t.",'Alternatief 2'!H363/-'Alternatief 2'!H362),"n.v.t.") -> n.v.t. | AU131: Δ afstand hvt (km) | AY131: 0
P132: Inzet hoofdvoertuig (aantal ftve en km per jaar): | S132: =CONCATENATE(ROUND(Referentie!J107,1)&"/"&TEXT(Referentie!J112,"0")) -> 0,1/10000 | U132: =IF(Switch_Alt1=0,"n.v.t.",CONCATENATE(ROUND('Alternatief 1'!J107,1)&"/"&TEXT('Alternatief 1'!J112,"0"))) -> 0,1/10000 | W132: =IF(Switch_Alt2=0,"n.v.t.",CONCATENATE(ROUND('Alternatief 2'!J107,1)&"/"&TEXT('Alternatief 2'!J112,"0"))) -> 0,1/10000 | AE132: Emissietypen | AQ132: Kosten emissies
C133: MAATREGELEN FINANCIERING HVT | H133: Referentie | J133: Alternatief 1 | L133: Alternatief 2 | P133: Inzet stadsvoertuig (aantal ftve en km per jaar): | S133: =CONCATENATE(ROUND(Referentie!J108,1)&"/"&TEXT(Referentie!J113,"0")) -> 0/0 | U133: =IF(Switch_Alt1=0,"n.v.t.",CONCATENATE(ROUND('Alternatief 1'!J108,1)&"/"&TEXT('Alternatief 1'!J113,"0"))) -> 0/0 | W133: =IF(Switch_Alt2=0,"n.v.t.",CONCATENATE(ROUND('Alternatief 2'!J108,1)&"/"&TEXT('Alternatief 2'!J113,"0"))) -> 0/0 | AE133: CO2: | AI133: Tank-to-Wheel (TtW) | AQ133: CO2 (EUR/ton): | AU133: 26 | AW133: Geluid (cent/km):
C134: Zachte leningen (% netto investering): | H134: 0 | J134: 0 | L134: 0 | P134: Modaliteitswissels (aantal/jaar): | S134: =Referentie!J119 -> 0 | U134: =IF(Switch_Alt1=0,"n.v.t.",'Alternatief 1'!J119) -> 0 | W134: =IF(Switch_Alt2=0,"n.v.t.",'Alternatief 2'!J119) -> 0 | AE134: NOx: | AI134: Tank-to-Wheel (TtW) | AQ134: NOx (EUR/kg): | AU134: 11 | AW134: bubk | AY134: bibk
C135: Rente op zachte leningen (%): | G135: =IF(AND(H134>0,H135<Inflatie),"→","") ->  | H135: 0.03 | I135: =IF(AND(Switch_Alt1=1,J134>0,J135<Inflatie),"→","") ->  | J135: 0.04 | K135: =IF(AND(Switch_Alt2=1,L134>0,L135<Inflatie),"→","") ->  | L135: 0.04 | P135: Totaal aantal personeelsuren per jaar: | S135: =Referentie!G212 -> 317.8571429 | U135: =IF(Switch_Alt1=0,"n.v.t.",'Alternatief 1'!G212) -> 317.8571429 | W135: =IF(Switch_Alt2=0,"n.v.t.",'Alternatief 2'!G212) -> 317.8571429 | AE135: PM: | AI135: Tank-to-Wheel (TtW) | AQ135: PM (EUR/kg): | AU135: 189 | AW135: 0.4 | AY135: =4.3 -> 4.3

Sheet Voertuigprofielen
H2: =Profielgroep1 -> REFERENTIE | J2: =Profielgroep2 -> ALT1 | L2: =Profielgroep3 -> ALT2 | O2: Dubbeltelling categorienamen
H3: Nummers | I3: Duiding | J3: Nummers | K3: Duiding | L3: Nummers | M3: Duiding | O3: =Profielgroep1 -> REFERENTIE | P3: =COUNTIF($O$3:$O$5,O3) -> 1
H4: =IFERROR(SMALL(Cat1_Nummers,1),"") -> 1 | I4: =IF(H4="","",INDEX(Cat1_Duiding,1,MATCH(H4,Cat1_Nummers,FALSE))) -> Diesel | J4: =IFERROR(SMALL(Cat2_Nummers,1),"") -> 1 | K4: =IF(J4="","",INDEX(Cat2_Duiding,1,MATCH(J4,Cat2_Nummers,FALSE))) -> LNG | L4: =IFERROR(SMALL(Cat3_Nummers,1),"") ->  | M4: =IF(L4="","",INDEX(Cat3_Duiding,1,MATCH(L4,Cat3_Nummers,FALSE))) ->  | O4: =Profielgroep2 -> ALT1 | P4: =COUNTIF($O$3:$O$5,O4) -> 1
H5: =IFERROR(SMALL(Cat1_Nummers,2),"") ->  | J5: =IFERROR(SMALL(Cat2_Nummers,2),"") ->  | L5: =IFERROR(SMALL(Cat3_Nummers,2),"") ->  | O5: =Profielgroep3 -> ALT2 | P5: =COUNTIF($O$3:$O$5,O5) -> 1
H6: =IFERROR(SMALL(Cat1_Nummers,3),"") ->  | J6: =IFERROR(SMALL(Cat2_Nummers,3),"") ->  | L6: =IFERROR(SMALL(Cat3_Nummers,3),"") ->  | O6: Fout | P6: =COUNTIF(P3:P5,">1") -> 0
H7: =IFERROR(SMALL(Cat1_Nummers,4),"") ->  | J7: =IFERROR(SMALL(Cat2_Nummers,4),"") ->  | L7: =IFERROR(SMALL(Cat3_Nummers,4),"") -> 
H8: =IFERROR(SMALL(Cat1_Nummers,5),"") ->  | J8: =IFERROR(SMALL(Cat2_Nummers,5),"") ->  | L8: =IFERROR(SMALL(Cat3_Nummers,5),"") -> 
H9: =IFERROR(SMALL(Cat1_Nummers,6),"") ->  | J9: =IFERROR(SMALL(Cat2_Nummers,6),"") ->  | L9: =IFERROR(SMALL(Cat3_Nummers,6),"") -> 
H10: =IFERROR(SMALL(Cat1_Nummers,7),"") ->  | J10: =IFERROR(SMALL(Cat2_Nummers,7),"") ->  | L10: =IFERROR(SMALL(Cat3_Nummers,7),"") -> 
H11: =IFERROR(SMALL(Cat1_Nummers,8),"") ->  | J11: =IFERROR(SMALL(Cat2_Nummers,8),"") ->  | L11: =IFERROR(SMALL(Cat3_Nummers,8),"") -> 
H12: =IFERROR(SMALL(Cat1_Nummers,9),"") ->  | J12: =IFERROR(SMALL(Cat2_Nummers,9),"") ->  | L12: =IFERROR(SMALL(Cat3_Nummers,9),"") -> 
H13: =IFERROR(SMALL(Cat1_Nummers,10),"") ->  | J13: =IFERROR(SMALL(Cat2_Nummers,10),"") ->  | L13: =IFERROR(SMALL(Cat3_Nummers,10),"") -> 
H14: =10-COUNTBLANK((H4:H13)) -> 1 | J14: =10-COUNTBLANK((J4:J13)) -> 1 | L14: =10-COUNTBLANK((L4:L13)) -> 0
H16: Check invullen brandstof2
H17: =IF(H$59="N.v.t.",1E+49,0) -> 1e+49 | I17: =IF(I$59="N.v.t.",1E+49,0) -> 0 | J17: 0 | K17: 0 | L17: 0 | M17: 0 | N17: 0 | O17: 0 | P17: 0 | Q17: 0
H18: =IF(H$90="N.v.t.",1E+49,0) -> 1e+49 | I18: =IF(I$90="N.v.t.",1E+49,0) -> 0 | J18: 0 | K18: 0 | L18: 0 | M18: 0 | N18: 0 | O18: 0 | P18: 0 | Q18: 0
H19: =IF(H$121="N.v.t.",1E+49,0) -> 0 | I19: =IF(I$121="N.v.t.",1E+49,0) -> 0 | J19: 0 | K19: 0 | L19: 0 | M19: 0 | N19: 0 | O19: 0 | P19: 0 | Q19: 0
H20: =IF(H$59="N.v.t.",1,0) -> 1 | I20: =IF(I$59="N.v.t.",1,0) -> 0 | J20: 0 | K20: 0 | L20: 0 | M20: 0 | N20: 0 | O20: 0 | P20: 0 | Q20: 0
H21: =IF(H$90="N.v.t.",1,0) -> 1 | I21: =IF(I$90="N.v.t.",1,0) -> 0 | J21: 0 | K21: 0 | L21: 0 | M21: 0 | N21: 0 | O21: 0 | P21: 0 | Q21: 0
H22: =IF(H$121="N.v.t.",1,0) -> 0 | I22: =IF(I$121="N.v.t.",1,0) -> 0 | J22: 0 | K22: 0 | L22: 0 | M22: 0 | N22: 0 | O22: 0 | P22: 0 | Q22: 0
D24: Dubbeltelling profielnamen | S24: Fout
D25: Referentie | H25: =COUNTIF(Cat1_Duiding,H54) -> 1 | I25: 0 | J25: 0 | K25: 0 | L25: 0 | M25: 0 | N25: 0 | O25: 0 | P25: 0 | Q25: 0 | S25: =COUNTIF(H25:Q25,">1") -> 0
D26: Alt1 | H26: =COUNTIF(Cat2_Duiding,H85) -> 1 | I26: 0 | J26: 0 | K26: 0 | L26: 0 | M26: 0 | N26: 0 | O26: 0 | P26: 0 | Q26: 0 | S26: =COUNTIF(H26:Q26,">1") -> 0
D27: Alt2 | H27: =COUNTIF(Cat3_Duiding,H116) -> 0 | I27: 0 | J27: 0 | K27: 0 | L27: 0 | M27: 0 | N27: 0 | O27: 0 | P27: 0 | Q27: 0 | S27: =COUNTIF(H27:Q27,">1") -> 0
D29: Incomplete profielen | S29: Fout
D30: Referentie | E30: =COUNTBLANK(Profielgroep1) -> 0 | H30: =IF(AND(COUNTBLANK(H54)=0,COUNTBLANK(H56:H58)+COUNTBLANK(H62:H64)+COUNTBLANK(H69:H72)>0),1,0)+IF(AND(Br2_Cat1_1<>"N.v.t.",COUNTBLANK(H54)=0,COUNTBLANK(H61)+COUNTBLANK(H73:H76)>0),1,0) -> 0 | I30: =IF(AND(COUNTBLANK(I54)=0,COUNTBLANK(I56:I58)+COUNTBLANK(I62:I64)+COUNTBLANK(I69:I72)>0),1,0)+IF(AND(Br2_Cat1_2<>"N.v.t.",COUNTBLANK(I54)=0,COUNTBLANK(I61)+COUNTBLANK(I73:I76)>0),1,0) -> 0 | J30: =IF(AND(COUNTBLANK(J54)=0,COUNTBLANK(J56:J58)+COUNTBLANK(J62:J64)+COUNTBLANK(J69:J72)>0),1,0)+IF(AND(Br2_Cat1_3<>"N.v.t.",COUNTBLANK(J54)=0,COUNTBLANK(J61)+COUNTBLANK(J73:J76)>0),1,0) -> 0 | K30: =IF(AND(COUNTBLANK(K54)=0,COUNTBLANK(K56:K58)+COUNTBLANK(K62:K64)+COUNTBLANK(K69:K72)>0),1,0)+IF(AND(Br2_Cat1_4<>"N.v.t.",COUNTBLANK(K54)=0,COUNTBLANK(K61)+COUNTBLANK(K73:K76)>0),1,0) -> 0 | L30: =IF(AND(COUNTBLANK(L54)=0,COUNTBLANK(L56:L58)+COUNTBLANK(L62:L64)+COUNTBLANK(L69:L72)>0),1,0)+IF(AND(Br2_Cat1_5<>"N.v.t.",COUNTBLANK(L54)=0,COUNTBLANK(L61)+COUNTBLANK(L73:L76)>0),1,0) -> 0 | M30: =IF(AND(COUNTBLANK(M54)=0,COUNTBLANK(M56:M58)+COUNTBLANK(M62:M64)+COUNTBLANK(M69:M72)>0),1,0)+IF(AND(Br2_Cat1_6<>"N.v.t.",COUNTBLANK(M54)=0,COUNTBLANK(M61)+COUNTBLANK(M73:M76)>0),1,0) -> 0 | N30: =IF(AND(COUNTBLANK(N54)=0,COUNTBLANK(N56:N58)+COUNTBLANK(N62:N64)+COUNTBLANK(N69:N72)>0),1,0)+IF(AND(Br2_Cat1_7<>"N.v.t.",COUNTBLANK(N54)=0,COUNTBLANK(N61)+COUNTBLANK(N73:N76)>0),1,0) -> 0 | O30: =IF(AND(COUNTBLANK(O54)=0,COUNTBLANK(O56:O58)+COUNTBLANK(O62:O64)+COUNTBLANK(O69:O72)>0),1,0)+IF(AND(Br2_Cat1_8<>"N.v.t.",COUNTBLANK(O54)=0,COUNTBLANK(O61)+COUNTBLANK(O73:O76)>0),1,0) -> 0 | P30: =IF(AND(COUNTBLANK(P54)=0,COUNTBLANK(P56:P58)+COUNTBLANK(P62:P64)+COUNTBLANK(P69:P72)>0),1,0)+IF(AND(Br2_Cat1_9<>"N.v.t.",COUNTBLANK(P54)=0,COUNTBLANK(P61)+COUNTBLANK(P73:P76)>0),1,0) -> 0 | Q30: =IF(AND(COUNTBLANK(Q54)=0,COUNTBLANK(Q56:Q58)+COUNTBLANK(Q62:Q64)+COUNTBLANK(Q69:Q72)>0),1,0)+IF(AND(Br2_Cat1_10<>"N.v.t.",COUNTBLANK(Q54)=0,COUNTBLANK(Q61)+COUNTBLANK(Q73:Q76)>0),1,0) -> 0 | R30: =COUNTBLANK(Cat1_1) -> 1 | S30: =SUM(H30:Q30) -> 0
D31: Alt1 | E31: =COUNTBLANK(Profielgroep2)*(10-COUNTBLANK(Cat2_Duiding)) -> 0 | H31: =IF(AND(COUNTBLANK(H85)=0,COUNTBLANK(H87:H89)+COUNTBLANK(H93:H95)+COUNTBLANK(H100:H103)>0),1,0)+IF(AND(Br2_Cat2_1<>"N.v.t.",COUNTBLANK(H85)=0,COUNTBLANK(H92)+COUNTBLANK(H104:H107)>0),1,0) -> 0 | I31: =IF(AND(COUNTBLANK(I85)=0,COUNTBLANK(I87:I89)+COUNTBLANK(I93:I95)+COUNTBLANK(I100:I103)>0),1,0)+IF(AND(Br2_Cat2_2<>"N.v.t.",COUNTBLANK(I85)=0,COUNTBLANK(I92)+COUNTBLANK(I104:I107)>0),1,0) -> 0 | J31: =IF(AND(COUNTBLANK(J85)=0,COUNTBLANK(J87:J89)+COUNTBLANK(J93:J95)+COUNTBLANK(J100:J103)>0),1,0)+IF(AND(Br2_Cat2_3<>"N.v.t.",COUNTBLANK(J85)=0,COUNTBLANK(J92)+COUNTBLANK(J104:J107)>0),1,0) -> 0 | K31: =IF(AND(COUNTBLANK(K85)=0,COUNTBLANK(K87:K89)+COUNTBLANK(K93:K95)+COUNTBLANK(K100:K103)>0),1,0)+IF(AND(Br2_Cat2_4<>"N.v.t.",COUNTBLANK(K85)=0,COUNTBLANK(K92)+COUNTBLANK(K104:K107)>0),1,0) -> 0 | L31: =IF(AND(COUNTBLANK(L85)=0,COUNTBLANK(L87:L89)+COUNTBLANK(L93:L95)+COUNTBLANK(L100:L103)>0),1,0)+IF(AND(Br2_Cat2_5<>"N.v.t.",COUNTBLANK(L85)=0,COUNTBLANK(L92)+COUNTBLANK(L104:L107)>0),1,0) -> 0 | M31: =IF(AND(COUNTBLANK(M85)=0,COUNTBLANK(M87:M89)+COUNTBLANK(M93:M95)+COUNTBLANK(M100:M103)>0),1,0)+IF(AND(Br2_Cat2_6<>"N.v.t.",COUNTBLANK(M85)=0,COUNTBLANK(M92)+COUNTBLANK(M104:M107)>0),1,0) -> 0 | N31: =IF(AND(COUNTBLANK(N85)=0,COUNTBLANK(N87:N89)+COUNTBLANK(N93:N95)+COUNTBLANK(N100:N103)>0),1,0)+IF(AND(Br2_Cat2_7<>"N.v.t.",COUNTBLANK(N85)=0,COUNTBLANK(N92)+COUNTBLANK(N104:N107)>0),1,0) -> 0 | O31: =IF(AND(COUNTBLANK(O85)=0,COUNTBLANK(O87:O89)+COUNTBLANK(O93:O95)+COUNTBLANK(O100:O103)>0),1,0)+IF(AND(Br2_Cat2_8<>"N.v.t.",COUNTBLANK(O85)=0,COUNTBLANK(O92)+COUNTBLANK(O104:O107)>0),1,0) -> 0 | P31: =IF(AND(COUNTBLANK(P85)=0,COUNTBLANK(P87:P89)+COUNTBLANK(P93:P95)+COUNTBLANK(P100:P103)>0),1,0)+IF(AND(Br2_Cat2_9<>"N.v.t.",COUNTBLANK(P85)=0,COUNTBLANK(P92)+COUNTBLANK(P104:P107)>0),1,0) -> 0 | Q31: =IF(AND(COUNTBLANK(Q85)=0,COUNTBLANK(Q87:Q89)+COUNTBLANK(Q93:Q95)+COUNTBLANK(Q100:Q103)>0),1,0)+IF(AND(Br2_Cat2_10<>"N.v.t.",COUNTBLANK(Q85)=0,COUNTBLANK(Q92)+COUNTBLANK(Q104:Q107)>0),1,0) -> 0 | S31: =SUM(H31:Q31) -> 0
A32: 1 | D32: Alt2 | E32: =COUNTBLANK(Profielgroep3)*(10-COUNTBLANK(Cat3_Duiding)) -> 0 | H32: =IF(AND(COUNTBLANK(H116)=0,COUNTBLANK(H118:H120)+COUNTBLANK(H124:H126)+COUNTBLANK(H131:H134)>0),1,0)+IF(AND(Br2_Cat3_1<>"N.v.t.",COUNTBLANK(H116)=0,COUNTBLANK(H123)+COUNTBLANK(H135:H138)>0),1,0) -> 0 | I32: =IF(AND(COUNTBLANK(I116)=0,COUNTBLANK(I118:I120)+COUNTBLANK(I124:I126)+COUNTBLANK(I131:I134)>0),1,0)+IF(AND(Br2_Cat3_2<>"N.v.t.",COUNTBLANK(I116)=0,COUNTBLANK(I123)+COUNTBLANK(I135:I138)>0),1,0) -> 0 | J32: =IF(AND(COUNTBLANK(J116)=0,COUNTBLANK(J118:J120)+COUNTBLANK(J124:J126)+COUNTBLANK(J131:J134)>0),1,0)+IF(AND(Br2_Cat3_3<>"N.v.t.",COUNTBLANK(J116)=0,COUNTBLANK(J123)+COUNTBLANK(J135:J138)>0),1,0) -> 0 | K32: =IF(AND(COUNTBLANK(K116)=0,COUNTBLANK(K118:K120)+COUNTBLANK(K124:K126)+COUNTBLANK(K131:K134)>0),1,0)+IF(AND(Br2_Cat3_4<>"N.v.t.",COUNTBLANK(K116)=0,COUNTBLANK(K123)+COUNTBLANK(K135:K138)>0),1,0) -> 0 | L32: =IF(AND(COUNTBLANK(L116)=0,COUNTBLANK(L118:L120)+COUNTBLANK(L124:L126)+COUNTBLANK(L131:L134)>0),1,0)+IF(AND(Br2_Cat3_5<>"N.v.t.",COUNTBLANK(L116)=0,COUNTBLANK(L123)+COUNTBLANK(L135:L138)>0),1,0) -> 0 | M32: =IF(AND(COUNTBLANK(M116)=0,COUNTBLANK(M118:M120)+COUNTBLANK(M124:M126)+COUNTBLANK(M131:M134)>0),1,0)+IF(AND(Br2_Cat3_6<>"N.v.t.",COUNTBLANK(M116)=0,COUNTBLANK(M123)+COUNTBLANK(M135:M138)>0),1,0) -> 0 | N32: =IF(AND(COUNTBLANK(N116)=0,COUNTBLANK(N118:N120)+COUNTBLANK(N124:N126)+COUNTBLANK(N131:N134)>0),1,0)+IF(AND(Br2_Cat3_7<>"N.v.t.",COUNTBLANK(N116)=0,COUNTBLANK(N123)+COUNTBLANK(N135:N138)>0),1,0) -> 0 | O32: =IF(AND(COUNTBLANK(O116)=0,COUNTBLANK(O118:O120)+COUNTBLANK(O124:O126)+COUNTBLANK(O131:O134)>0),1,0)+IF(AND(Br2_Cat3_8<>"N.v.t.",COUNTBLANK(O116)=0,COUNTBLANK(O123)+COUNTBLANK(O135:O138)>0),1,0) -> 0 | P32: =IF(AND(COUNTBLANK(P116)=0,COUNTBLANK(P118:P120)+COUNTBLANK(P124:P126)+COUNTBLANK(P131:P134)>0),1,0)+IF(AND(Br2_Cat3_9<>"N.v.t.",COUNTBLANK(P116)=0,COUNTBLANK(P123)+COUNTBLANK(P135:P138)>0),1,0) -> 0 | Q32: =IF(AND(COUNTBLANK(Q116)=0,COUNTBLANK(Q118:Q120)+COUNTBLANK(Q124:Q126)+COUNTBLANK(Q131:Q134)>0),1,0)+IF(AND(Br2_Cat3_10<>"N.v.t.",COUNTBLANK(Q116)=0,COUNTBLANK(Q123)+COUNTBLANK(Q135:Q138)>0),1,0) -> 0 | S32: =SUM(H32:Q32) -> 0
D34: Fouten in brandststof single fuel | S34: Fout
D35: Referentie | H35: =IF(AND(H59="N.v.t.",H57<>1),1,0) -> 0 | I35: =IF(AND(I59="N.v.t.",I57<>1),1,0) -> 0 | J35: 0 | K35: 0 | L35: 0 | M35: 0 | N35: 0 | O35: 0 | P35: 0 | Q35: 0 | R35: =COUNTBLANK(Cat1_1) -> 1 | S35: =SUM(H35:Q35) -> 0
D36: Alt1 | H36: =IF(AND(H90="N.v.t.",H88<>1),1,0) -> 0 | I36: =IF(AND(I90="N.v.t.",I88<>1),1,0) -> 0 | J36: 0 | K36: 0 | L36: 0 | M36: 0 | N36: 0 | O36: 0 | P36: 0 | Q36: 0 | S36: =SUM(H36:Q36) -> 0
D37: Alt2 | H37: =IF(AND(H121="N.v.t.",H119<>1),1,0) -> 0 | I37: =IF(AND(I121="N.v.t.",I119<>1),1,0) -> 0 | J37: 0 | K37: 0 | L37: 0 | M37: 0 | N37: 0 | O37: 0 | P37: 0 | Q37: 0 | S37: =SUM(H37:Q37) -> 0
D39: Fouten in brandststofnaam | S39: Fout
D40: Referentie | E40: brandstof1 | H40: =IF(AND(H56<>"",COUNTIF(Brandstof_Duiding,Voertuigprofielen!H56)=0),1,0) -> 0 | I40: =IF(AND(I56<>"",COUNTIF(Brandstof_Duiding,Voertuigprofielen!I56)=0),1,0) -> 0 | J40: =IF(AND(J56<>"",COUNTIF(Brandstof_Duiding,Voertuigprofielen!J56)=0),1,0) -> 0 | K40: =IF(AND(K56<>"",COUNTIF(Brandstof_Duiding,Voertuigprofielen!K56)=0),1,0) -> 0 | L40: =IF(AND(L56<>"",COUNTIF(Brandstof_Duiding,Voertuigprofielen!L56)=0),1,0) -> 0 | M40: =IF(AND(M56<>"",COUNTIF(Brandstof_Duiding,Voertuigprofielen!M56)=0),1,0) -> 0 | N40: =IF(AND(N56<>"",COUNTIF(Brandstof_Duiding,Voertuigprofielen!N56)=0),1,0) -> 0 | O40: =IF(AND(O56<>"",COUNTIF(Brandstof_Duiding,Voertuigprofielen!O56)=0),1,0) -> 0 | P40: =IF(AND(P56<>"",COUNTIF(Brandstof_Duiding,Voertuigprofielen!P56)=0),1,0) -> 0 | Q40: =IF(AND(Q56<>"",COUNTIF(Brandstof_Duiding,Voertuigprofielen!Q56)=0),1,0) -> 0 | R40: =COUNTBLANK(Cat1_1) -> 1 | S40: =SUM(H40:Q40) -> 0
E41: brandstof2 | H41: =IF(AND(H59<>"",H59<>"N.v.t.",COUNTIF(Brandstof_Duiding,Voertuigprofielen!H59)=0),1,0) -> 0 | I41: =IF(AND(I59<>"",I59<>"N.v.t.",COUNTIF(Brandstof_Duiding,Voertuigprofielen!I59)=0),1,0) -> 0 | J41: =IF(AND(J59<>"",J59<>"N.v.t.",COUNTIF(Brandstof_Duiding,Voertuigprofielen!J59)=0),1,0) -> 0 | K41: =IF(AND(K59<>"",K59<>"N.v.t.",COUNTIF(Brandstof_Duiding,Voertuigprofielen!K59)=0),1,0) -> 0 | L41: =IF(AND(L59<>"",L59<>"N.v.t.",COUNTIF(Brandstof_Duiding,Voertuigprofielen!L59)=0),1,0) -> 0 | M41: =IF(AND(M59<>"",M59<>"N.v.t.",COUNTIF(Brandstof_Duiding,Voertuigprofielen!M59)=0),1,0) -> 0 | N41: =IF(AND(N59<>"",N59<>"N.v.t.",COUNTIF(Brandstof_Duiding,Voertuigprofielen!N59)=0),1,0) -> 0 | O41: =IF(AND(O59<>"",O59<>"N.v.t.",COUNTIF(Brandstof_Duiding,Voertuigprofielen!O59)=0),1,0) -> 0 | P41: =IF(AND(P59<>"",P59<>"N.v.t.",COUNTIF(Brandstof_Duiding,Voertuigprofielen!P59)=0),1,0) -> 0 | Q41: =IF(AND(Q59<>"",Q59<>"N.v.t.",COUNTIF(Brandstof_Duiding,Voertuigprofielen!Q59)=0),1,0) -> 0 | S41: =SUM(H41:Q41) -> 0
D42: Alt1 | E42: brandstof1 | H42: =IF(AND(H87<>"",COUNTIF(Brandstof_Duiding,Voertuigprofielen!H87)=0),1,0) -> 0 | I42: =IF(AND(I87<>"",COUNTIF(Brandstof_Duiding,Voertuigprofielen!I87)=0),1,0) -> 0 | J42: =IF(AND(J87<>"",COUNTIF(Brandstof_Duiding,Voertuigprofielen!J87)=0),1,0) -> 0 | K42: =IF(AND(K87<>"",COUNTIF(Brandstof_Duiding,Voertuigprofielen!K87)=0),1,0) -> 0 | L42: =IF(AND(L87<>"",COUNTIF(Brandstof_Duiding,Voertuigprofielen!L87)=0),1,0) -> 0 | M42: =IF(AND(M87<>"",COUNTIF(Brandstof_Duiding,Voertuigprofielen!M87)=0),1,0) -> 0 | N42: =IF(AND(N87<>"",COUNTIF(Brandstof_Duiding,Voertuigprofielen!N87)=0),1,0) -> 0 | O42: =IF(AND(O87<>"",COUNTIF(Brandstof_Duiding,Voertuigprofielen!O87)=0),1,0) -> 0 | P42: =IF(AND(P87<>"",COUNTIF(Brandstof_Duiding,Voertuigprofielen!P87)=0),1,0) -> 0 | Q42: =IF(AND(Q87<>"",COUNTIF(Brandstof_Duiding,Voertuigprofielen!Q87)=0),1,0) -> 0 | S42: 0
E43: brandstof2 | H43: =IF(AND(H90<>"",H90<>"N.v.t.",COUNTIF(Brandstof_Duiding,Voertuigprofielen!H90)=0),1,0) -> 0 | I43: =IF(AND(I90<>"",I90<>"N.v.t.",COUNTIF(Brandstof_Duiding,Voertuigprofielen!I90)=0),1,0) -> 0 | J43: =IF(AND(J90<>"",J90<>"N.v.t.",COUNTIF(Brandstof_Duiding,Voertuigprofielen!J90)=0),1,0) -> 0 | K43: =IF(AND(K90<>"",K90<>"N.v.t.",COUNTIF(Brandstof_Duiding,Voertuigprofielen!K90)=0),1,0) -> 0 | L43: =IF(AND(L90<>"",L90<>"N.v.t.",COUNTIF(Brandstof_Duiding,Voertuigprofielen!L90)=0),1,0) -> 0 | M43: =IF(AND(M90<>"",M90<>"N.v.t.",COUNTIF(Brandstof_Duiding,Voertuigprofielen!M90)=0),1,0) -> 0 | N43: =IF(AND(N90<>"",N90<>"N.v.t.",COUNTIF(Brandstof_Duiding,Voertuigprofielen!N90)=0),1,0) -> 0 | O43: =IF(AND(O90<>"",O90<>"N.v.t.",COUNTIF(Brandstof_Duiding,Voertuigprofielen!O90)=0),1,0) -> 0 | P43: =IF(AND(P90<>"",P90<>"N.v.t.",COUNTIF(Brandstof_Duiding,Voertuigprofielen!P90)=0),1,0) -> 0 | Q43: =IF(AND(Q90<>"",Q90<>"N.v.t.",COUNTIF(Brandstof_Duiding,Voertuigprofielen!Q90)=0),1,0) -> 0 | S43: 0
D44: Alt2 | E44: brandstof1 | H44: =IF(AND(H118<>"",COUNTIF(Brandstof_Duiding,Voertuigprofielen!H118)=0),1,0) -> 0 | I44: =IF(AND(I118<>"",COUNTIF(Brandstof_Duiding,Voertuigprofielen!I118)=0),1,0) -> 0 | J44: =IF(AND(J118<>"",COUNTIF(Brandstof_Duiding,Voertuigprofielen!J118)=0),1,0) -> 0 | K44: =IF(AND(K118<>"",COUNTIF(Brandstof_Duiding,Voertuigprofielen!K118)=0),1,0) -> 0 | L44: =IF(AND(L118<>"",COUNTIF(Brandstof_Duiding,Voertuigprofielen!L118)=0),1,0) -> 0 | M44: =IF(AND(M118<>"",COUNTIF(Brandstof_Duiding,Voertuigprofielen!M118)=0),1,0) -> 0 | N44: =IF(AND(N118<>"",COUNTIF(Brandstof_Duiding,Voertuigprofielen!N118)=0),1,0) -> 0 | O44: =IF(AND(O118<>"",COUNTIF(Brandstof_Duiding,Voertuigprofielen!O118)=0),1,0) -> 0 | P44: =IF(AND(P118<>"",COUNTIF(Brandstof_Duiding,Voertuigprofielen!P118)=0),1,0) -> 0 | Q44: =IF(AND(Q118<>"",COUNTIF(Brandstof_Duiding,Voertuigprofielen!Q118)=0),1,0) -> 0 | S44: 0
E45: brandstof2 | H45: =IF(AND(H121<>"",H121<>"N.v.t.",COUNTIF(Brandstof_Duiding,Voertuigprofielen!H121)=0),1,0) -> 0 | I45: =IF(AND(I121<>"",I121<>"N.v.t.",COUNTIF(Brandstof_Duiding,Voertuigprofielen!I121)=0),1,0) -> 0 | J45: =IF(AND(J121<>"",J121<>"N.v.t.",COUNTIF(Brandstof_Duiding,Voertuigprofielen!J121)=0),1,0) -> 0 | K45: =IF(AND(K121<>"",K121<>"N.v.t.",COUNTIF(Brandstof_Duiding,Voertuigprofielen!K121)=0),1,0) -> 0 | L45: =IF(AND(L121<>"",L121<>"N.v.t.",COUNTIF(Brandstof_Duiding,Voertuigprofielen!L121)=0),1,0) -> 0 | M45: =IF(AND(M121<>"",M121<>"N.v.t.",COUNTIF(Brandstof_Duiding,Voertuigprofielen!M121)=0),1,0) -> 0 | N45: =IF(AND(N121<>"",N121<>"N.v.t.",COUNTIF(Brandstof_Duiding,Voertuigprofielen!N121)=0),1,0) -> 0 | O45: =IF(AND(O121<>"",O121<>"N.v.t.",COUNTIF(Brandstof_Duiding,Voertuigprofielen!O121)=0),1,0) -> 0 | P45: =IF(AND(P121<>"",P121<>"N.v.t.",COUNTIF(Brandstof_Duiding,Voertuigprofielen!P121)=0),1,0) -> 0 | Q45: =IF(AND(Q121<>"",Q121<>"N.v.t.",COUNTIF(Brandstof_Duiding,Voertuigprofielen!Q121)=0),1,0) -> 0 | S45: 0
F49: cat 0 | H49: =IF(OR(H30>=1,H25>1)," ↓ ↓","") -> 
D50: REFERENTIE
H53: =IF(H54<>"",1,"") -> 1 | I53: =IF(I54<>"",2,"") ->  | J53: =IF(J54<>"",3,"") ->  | K53: =IF(K54<>"",4,"") ->  | L53: =IF(L54<>"",5,"") ->  | M53: =IF(M54<>"",6,"") ->  | N53: =IF(N54<>"",7,"") ->  | O53: =IF(O54<>"",8,"") ->  | P53: =IF(P54<>"",9,"") ->  | Q53: =IF(Q54<>"",10,"") -> 
D54: Profielnaam: | H54: Diesel
D56: Brandstof 1: | E56: brandstofprofiel: | H56: Diesel
E57: aandeel (%): | H57: 1
E58: basisverbruik (per 100 km): | H58: 28
D59: Brandstof 2: | E59: brandstofprofiel: | H59: N.v.t.
E60: aandeel (%): | H60: =IF(H59="","",IF(H59="N.v.t.",0,1-H57)) -> 0 | I60: =IF(I59="","",IF(I59="N.v.t.",0,1-I57)) ->  | L60: =IF(L59="","",IF(L59="N.v.t.",0,1-L57)) -> 
E61: basisverbruik (per 100 km):
D62: Aanschafprijs (EUR): | H62: 70000
D63: Gebruikstermijn (hele jaren): | H63: 7
D64: Restwaarde na gebruikstermijn (EUR): | H64: 7000
D65: Onderhoud (EUR/km): | H65: 0
D66: Verzekeringen (EUR/jaar): | H66: 0
D67: Voertuigbelasting (EUR/jaar): | H67: 0
D68: Overige kosten (EUR/jaar): | H68: 0
D69: Brandstof 1: | E69: =Dashboard!S61&" emissie CO2 (kg/eh brandstof):" -> TtW emissie CO2 (kg/eh brandstof): | H69: 2.61
E70: =Dashboard!S63&" emissie NOx (g/eh brandstof):" -> TtW emissie NOx (g/eh brandstof): | H70: 2.5
E71: =Dashboard!S65&" emissie PM (g/eh brandstof):" -> TtW emissie PM (g/eh brandstof): | H71: 0.33
E72: =Dashboard!S65&" emissie geluid (dBA):" -> TtW emissie geluid (dBA): | H72: 78
D73: Brandstof 2: | E73: =E69 -> TtW emissie CO2 (kg/eh brandstof):
E74: =E70 -> TtW emissie NOx (g/eh brandstof):
E75: =E71 -> TtW emissie PM (g/eh brandstof):
E76: emissie geluid (dBA):
H78: 1 | I78: 1
F80: cat 1 | H80: =IF(OR(H31>=1,H26>1)," ↓ ↓","") -> 
D81: ALT1
H84: =IF(H85<>"",1,"") -> 1 | I84: =IF(I85<>"",2,"") ->  | J84: =IF(J85<>"",3,"") ->  | K84: =IF(K85<>"",4,"") ->  | L84: =IF(L85<>"",5,"") ->  | M84: =IF(M85<>"",6,"") ->  | N84: =IF(N85<>"",7,"") ->  | O84: =IF(O85<>"",8,"") ->  | P84: =IF(P85<>"",9,"") ->  | Q84: =IF(Q85<>"",10,"") -> 
D85: Profielnaam: | H85: LNG
D87: Brandstof 1: | E87: brandstofprofiel: | H87: LNG
E88: aandeel (%): | H88: 1
E89: basisverbruik (per 100 km): | H89: 26
D90: Brandstof 2: | E90: brandstofprofiel: | H90: N.v.t.
E91: aandeel (%): | H91: =IF(H90="","",IF(H90="N.v.t.",0,1-H88)) -> 0 | K91: =IF(K90="","",IF(K90="N.v.t.",0,1-K88)) -> 
E92: basisverbruik (per 100 km):
D93: Aanschafprijs (EUR): | H93: 100000
D94: Gebruikstermijn (hele jaren): | H94: 7 | T94: =IF(COUNTIF(G79,"←")+COUNTIF(G114,"←")>0,"ERRORS DETECTED! Check marked fields","") -> 
D95: Restwaarde na gebruikstermijn (EUR): | H95: 5000
D96: Onderhoud (EUR/km): | H96: 0
D97: Verzekeringen (EUR/jaar): | H97: 0
D98: Voertuigbelasting (EUR/jaar): | H98: 0
D99: Overige kosten (EUR/jaar): | H99: 0
D100: Brandstof 1: | E100: =E69 -> TtW emissie CO2 (kg/eh brandstof): | H100: 2.7
E101: =E70 -> TtW emissie NOx (g/eh brandstof): | H101: 0.45
E102: TtW emissie PM (g/eh brandstof): | H102: 0.32
E103: TtW emissie geluid (dBA): | H103: 70 | T103: =IF(P6>0,"DE CATEGORIENAMEN ZIJN NIET UNIEK! WIJZIG EEN OF MEER NAMEN",IF(SUM(E30:E32)>0,"VOORZIE DE GEMARKEERDE CATEGORIEËN VAN EEN NAAM",IF(SUM(S25:S27)>0,"NIET-UNIEKE PROFIELNAMEN! Check de met rode pijlen gemarkeerde profielen en pas een of meer namen aan.",IF(SUM(S35:S37)>0,"FOUT(EN) IN BRANDSTOF! Bij single fuel dient aandeel brandstof 1 100% te zijn! Zie de geel gemarkeerde velden.",IF(SUM(S40:S45)>0,"NIET BESTAANDE BRANDSTOFPROFIELEN! Voorzie de gemarkeerde velden van een bestaand brandstofprofiel.",IF(SUM(S30:S32)>0,"ER ZIJN INCOMPLETE PROFIELEN! Zorg dat minimaal alle geel gekleurde velden van de met rode pijlen gemarkeerde profielen ingevuld zijn!","Status: OK")))))) -> Status: OK
D104: Brandstof 2: | E104: TtW emissie CO2 (kg/eh brandstof):
E105: TtW emissie NOx (g/eh brandstof):
E106: TtW emissie PM (g/eh brandstof):
E107: emissie geluid (dBA):
F111: cat 2 | H111: =IF(OR(H32>=1,H27>1)," ↓ ↓","") ->  | I111: =IF(OR(I32>=1,I27>1)," ↓ ↓","") -> 
D112: ALT2
H115: =IF(H116<>"",1,"") ->  | I115: =IF(I116<>"",2,"") ->  | J115: =IF(J116<>"",3,"") ->  | K115: =IF(K116<>"",4,"") ->  | L115: =IF(L116<>"",5,"") ->  | M115: =IF(M116<>"",6,"") ->  | N115: =IF(N116<>"",7,"") ->  | O115: =IF(O116<>"",8,"") ->  | P115: =IF(P116<>"",9,"") ->  | Q115: =IF(Q116<>"",10,"") -> 
D116: Profielnaam:
D118: Brandstof 1: | E118: brandstofprofiel:
E119: aandeel (%):
E120: basisverbruik (per 100 km):
D121: Brandstof 2: | E121: brandstofprofiel:
E122: aandeel (%): | H122: =IF(H121="","",IF(H121="N.v.t.",0,1-H119)) -> 
E123: basisverbruik (per 100 km):
D124: Aanschafprijs (EUR):
D125: Gebruikstermijn (hele jaren):
D126: Restwaarde na gebruikstermijn (EUR):
D127: Onderhoud (EUR/km):
D128: Verzekeringen (EUR/jaar):
D129: Voertuigbelasting (EUR/jaar):
D130: Overige kosten (EUR/jaar):
D131: Brandstof 1: | E131: =E69 -> TtW emissie CO2 (kg/eh brandstof):
E132: =E70 -> TtW emissie NOx (g/eh brandstof):
E133: TtW emissie PM (g/eh brandstof):
E134: TtW emissie geluid (dBA):
D135: Brandstof 2: | E135: TtW emissie CO2 (kg/eh brandstof):
E136: TtW emissie NOx (g/eh brandstof):
E137: TtW emissie PM (g/eh brandstof):
E138: emissie geluid (dBA):
K140: u
K141: u
K142: u
K143: 0

Sheet Brandstofprofielen
H2: Verbruikseenheid | J2: Brandstofsoorten
H3: kilogram | J3: Nummers | K3: Duiding
H4: liter | K4: N.v.t.
H5: kWh | J5: =IFERROR(SMALL(Brandstof_Nummers,1),"") -> 1 | K5: =IF(J5="","",INDEX(Brandstof_Duiding,1,MATCH(J5,Brandstof_Nummers,FALSE))) -> Diesel
J6: =IFERROR(SMALL(Brandstof_Nummers,2),"") -> 2 | K6: LNG
J7: =IFERROR(SMALL(Brandstof_Nummers,3),"") -> 
J8: =IFERROR(SMALL(Brandstof_Nummers,4),"") -> 
J9: =IFERROR(SMALL(Brandstof_Nummers,5),"") -> 
J10: =IFERROR(SMALL(Brandstof_Nummers,6),"") -> 
J11: =IFERROR(SMALL(Brandstof_Nummers,7),"") -> 
J12: =IFERROR(SMALL(Brandstof_Nummers,8),"") -> 
J13: =IFERROR(SMALL(Brandstof_Nummers,9),"") -> 
J14: =IFERROR(SMALL(Brandstof_Nummers,10),"") -> 
J15: =10-COUNTBLANK((J5:J14)) -> 2
E17: Fouten | S17: FOUT
E18: Dubbeltelling | H18: =COUNTIF(Brandstof_Duiding,H30) -> 1 | I18: 1 | J18: 0 | K18: 0 | L18: 0 | M18: 0 | N18: 0 | O18: 0 | P18: 0 | Q18: 0 | S18: =COUNTIF(H18:Q18,">1") -> 0
E19: Incompleet | H19: =IF(AND(COUNTBLANK(H30)=0,COUNTBLANK(H32:H34)>0),1,0) -> 0 | I19: =IF(AND(COUNTBLANK(I30)=0,COUNTBLANK(I32:I34)>0),1,0) -> 0 | J19: 0 | K19: 0 | L19: 0 | M19: 0 | N19: 0 | O19: 0 | P19: 0 | Q19: 0 | S19: =SUM(H19:Q19) -> 0
H25: =IF(OR(H19>=1,H18>1)," ↓ ↓","") -> 
D26: Brandstofprofielen
H29: =IF(H32<>"",1,"") -> 1 | I29: =IF(I32<>"",2,"") -> 2 | J29: =IF(J32<>"",3,"") ->  | K29: =IF(K32<>"",4,"") ->  | L29: =IF(L32<>"",5,"") ->  | M29: =IF(M32<>"",6,"") ->  | N29: =IF(N32<>"",7,"") ->  | O29: =IF(O32<>"",8,"") ->  | P29: =IF(P32<>"",9,"") ->  | Q29: =IF(Q32<>"",10,"") -> 
D30: Profielnaam: | H30: Diesel | I30: LNG
D32: Brandstofsoort: | H32: Diesel | I32: LNG
D33: Verbruikseenheid: | H33: liter | I33: kilogram
D34: Brandstofprijs (EUR/eenheid): | H34: 0.97 | I34: 0.82
P37: =IF(S18>0,"NIET-UNIEKE PROFIELNAMEN! Check de met rode pijlen gemarkeerde profielen en pas een of meer namen aan.",IF(S19>0,"ER ZIJN INCOMPLETE PROFIELEN! Zorg dat alle velden van de met rode pijlen gemarkeerde profielen ingevuld zijn!","Status: OK")) -> Status: OK

Sheet Stadsvoertuig
E2: SPECIFICATIE STADSVOERTUIG
E4: Kosten | M4: Emissie
A6: Check | E6: VASTE VOERTUIGKOSTEN (PER VOERTUIG) | M6: EMISSIEWAARDEN
B7: =inzet_svt*COUNTBLANK(R7) -> 0 | E7: Post | H7: Eenheid | J7: Waarde | M7: =Dashboard!S61&" CO2 (gram/km):" -> TtW CO2 (gram/km): | R7: 0
A8: =inzet_svt*COUNTBLANK(J8) -> 0 | B8: =inzet_svt*COUNTBLANK(R8) -> 0 | E8: Gebruikstermijn | H8: jaren: | M8: =Dashboard!S63&" NOx (gram/km):" -> TtW NOx (gram/km): | R8: 0
A9: =inzet_svt*COUNTBLANK(J9) -> 0 | B9: =inzet_svt*COUNTBLANK(R9) -> 0 | E9: Aanschafprijs | H9: EUR: | M9: =Dashboard!S65&" PM (gram/km):" -> TtW PM (gram/km): | R9: 0.078
B10: =inzet_svt*COUNTBLANK(R10) -> 0 | E10: Investeringssubsidie | H10: EUR: | J10: 0 | K10: -/- | M10: Geluid (dB): | R10: 70
E11: MIA | F11: 0.27 | H11: EUR: | J11: =F11*VpB*(J9-investeringssubsidie_svt) -> 0 | K11: -/-
E12: Vamil | F12: 0.75 | H12: EUR: | J12: =IFERROR(((F12*VpB*(J9-investeringssubsidie_svt))-VpB*PV(Rente_reeel,J8,(J9-investeringssubsidie_svt)*(1-F12)/J8)) + VpB*PV(Rente_reeel,J8,(J9-investeringssubsidie_svt)/J8),0) -> 0 | K12: -/-
E13: Netto investering | H13: EUR: | J13: =J9-J10-J11-J12 -> 0
A14: =inzet_svt*COUNTBLANK(J14) -> 0 | E14: Restwaarde | H14: EUR: | J14: 0
E16: Afschrijving | H16: EUR/jaar: | J16: =IFERROR((J13-J14)/J8,0) -> 0
E17: Gemiddelde rente | H17: EUR/jaar: | J17: =(J13/2)*Rente_reeel -> 0
A18: =inzet_svt*COUNTBLANK(J18) -> 0 | E18: Verzekeringen | H18: EUR/jaar: | J18: 0
A19: =inzet_svt*COUNTBLANK(J19) -> 0 | E19: Voertuigbelastingen | H19: EUR/jaar: | J19: 0
E20: Vast onderhoud | H20: EUR/jaar:
H21: EUR/jaar: | M21: =IF(SUM(A40:B40)>0,"VOORZIE MINSTENS DE GEEL GEKLEURDE VELDEN VAN INPUT",IF(C40>0,"DE VASTE KOSTEN ZIJN NEGATIEF, CHECK DE SUBSIDIE","Status: OK")) -> Status: OK
H22: EUR/jaar:
H23: EUR/jaar:
E24: Exploitatiesubsidie | H24: EUR/jaar: | J24: 0 | K24: -/-
C27: =IF(TCO_sv_vast<0,1,0) -> 0 | E27: Totaal vaste voertuigkosten: | J27: =SUM(J16:J23)-J24 -> 0
E29: VARIABELE VOERTUIGKOSTEN
E30: Post | H30: Eenheid | J30: Waarde
A31: =inzet_svt*COUNTBLANK(J31) -> 0 | E31: Brandstof | H31: EUR/km:
E32: Variabel onderhoud | H32: EUR/km:
H33: EUR/km:
H34: EUR/km:
H35: EUR/km:
H36: EUR/km:
E39: Totaal variabele voertuigkosten: | H39: EUR/km: | J39: =SUM(J31:J36) -> 0
A40: =SUM(A8:A36) -> 0 | B40: =SUM(B8:B36) -> 0 | C40: =SUM(C8:C36) -> 0
A41: =A40+B40+C40 -> 0

Sheet Distributieschema's
B2: PRO FORMA DISTRIBUTIESCHEMA'S VOOR REFERENTIE EN ALTERNATIEVEN
B4: Klantlocatie | E4: Tijdstip | G4: Referentie | J4: Alternatief 1 | M4: Alternatief 2 | P4: Distibutieschema's: afstand, aantal voertuigen en totaal aantal vervoersbewegingen per type gebied per rit | BE4: Legenda
B5: ↓ | E5: ↓ | G5: ↓ | J5: ↓ | M5: ↓ | P5: Buitenstedelijk gebied | AC5: Stedelijk gebied | AP5: Kernwinkelgebied
BG6: Rit(deel) met hoofdvoertuig
P8: =Snelheid_buitenstedelijk -> 70 | BG8: Modaliteitswissel
B9: Klant-locatie buitenst. | C9: =Dashboard!AQ41 -> 0 | E9: Buiten spits | G9: =$C9 -> 0 | H9: =G9 -> 0 | J9: =$C9 -> 0 | K9: =J9 -> 0 | M9: =$C9 -> 0 | N9: =M9 -> 0
D10: → | F10: → | O10: → | P10: =Dashboard!F81 -> 100 | T10: 1 voertuig | Z10: 1 | BG10: Ritdeel met stadsvoertuig
BD13: Algemene toelichting:
P14: =Dashboard!AS119 -> 35 | AC14: =Dashboard!AS120 -> 20 | BD14: De percentages geven voor de referentie, alternatief 1 en alternatief 2 aan welk deel van de rit op welk moment van de dag wordt afgelegd in buitenstedelijk, stedelijk en kernwinkelgebied door het hoofdvoertuig (gele percentages) en het stadsvoertuig (groene percentages). De balken geven aan welke afstand wordt afgelegd per type gebied door het hoofdvoertuig (gele balken) en het stadsvoertuig (groene balken). De cijfers in de balken tonen respectievelijk de te rijden afstand in het betreffende gebied, het totaal aantal voertuigen dat per rit benodigd is en het aantal keren dat dit totaal aantal voertuigen de afstand in het betreffende gebied aflegt. De cursieve witgekleurde cijfers geven de snelheid aan die gemiddeld wordt gereden in het betreffende gebied in het betreffende tijdvak. Deze cijfers zijn berekend op basis van de in het werkblad 'Dashboard' ingevoerde parameters. N.B. U kunt op de verschillende onderdelen van het schema klikken, waarna een korte toelichting in het informatiepaneel verschijnt.
B15: Klant-locatie stedelijk | C15: =Dashboard!AQ42 -> 1 | E15: In spits / AMvB / APV tijden | G15: =$C15*(1-SUM(Dashboard!H123:H124)) -> 1 | H15: =G15 -> 1 | J15: =C15*(1-SUM(Dashboard!J123:J124)) -> 1 | K15: =J15 -> 1 | M15: =C15*(1-SUM(Dashboard!L123:L124)) -> 1 | N15: =M15 -> 1
D16: → | F16: → | O16: → | P16: =IFERROR(Dashboard!AM119/SUM(Dashboard!AM119:AM120)*OD_afstand,0) -> 85 | T16: 1 voertuig | Z16: 1 | AC16: =OD_afstand-P16 -> 15 | AG16: 1 voertuig | AM16: 1
P19: =Snelheid_buitenstedelijk -> 70 | AC19: =Dashboard!AQ120 -> 40
E20: Buiten spits / AMvB / APV tijden (geen dagrand) | G20: =$C15*Dashboard!H123 -> 0 | J20: =$C15*Dashboard!J123 -> 0 | M20: =$C15*Dashboard!L123 -> 0
H21: =G20*(1-Dashboard!H125) -> 0 | K21: =J20*(1-Dashboard!J125) -> 0 | N21: =M20*(1-Dashboard!L125) -> 0 | P21: =P16 -> 85 | T21: 1 voertuig | Z21: 1 | AC21: =AC16 -> 15 | AG21: 1 voertuig | AM21: 1
D22: → | F22: → | O22: →
H23: =G20*Dashboard!H125 -> 0 | K23: =J20*Dashboard!J125 -> 0 | N23: =M20*Dashboard!L125 -> 0 | P23: =P21+Omrijdafstand -> 85 | T23: 1 voertuig | Z23: 1 | AD23: =AC21 -> 15 | AG23: =IFERROR(ROUNDUP(IF(directe_aansluiting_stadsdistr*Lading_hoofdvoertuig<Capaciteit_stadsvoertuig,1,directe_aansluiting_stadsdistr*Lading_hoofdvoertuig/Capaciteit_stadsvoertuig),0),0) -> 2 | AM23: =IFERROR(prio_svt+2*ROUNDUP(((MAX(0,Lading_hoofdvoertuig-prio_svt*Capaciteit_stadsvoertuig))/Capaciteit_stadsvoertuig),0)-IF(prio_svt=0,1,0),0) -> 2
P26: =Snelheid_buitenstedelijk -> 70 | AC26: =Dashboard!AQ120 -> 40
E27: Buiten spits / in dagrand | G27: =$C15*Dashboard!H124 -> 0 | J27: =$C15*Dashboard!J124 -> 0 | M27: =$C15*Dashboard!L124 -> 0
H28: =G27*(1-Dashboard!H125) -> 0 | K28: =J27*(1-Dashboard!J125) -> 0 | N28: =M27*(1-Dashboard!L125) -> 0 | P28: =P21 -> 85 | T28: 1 voertuig | Z28: 1 | AC28: =AC21 -> 15 | AG28: 1 voertuig | AM28: 1
D29: → | F29: → | O29: →
H30: =G27*Dashboard!H125 -> 0 | K30: =J27*Dashboard!J125 -> 0 | N30: =M27*Dashboard!L125 -> 0 | P30: =P28+Omrijdafstand -> 85 | T30: 1 voertuig | Z30: 1 | AD30: =AD23 -> 15 | AG30: =aantal_stadsvoertuigen -> 2 | AM30: =Aantal_keer_HB_stadsvt -> 2
P34: =Dashboard!AS119 -> 35 | AC34: =Dashboard!AS120 -> 20 | AP34: =Dashboard!AS121 -> 10
B35: Klant-locatie kern-winkel-gebied | C35: =Dashboard!AQ43 -> 0 | E35: In spits / AMvB / APV tijden | G35: =$C35*(1-SUM(Dashboard!H123:H124)) -> 0 | H35: =G35 -> 0 | J35: =C35*(1-SUM(Dashboard!J123:J124)) -> 0 | K35: =J35 -> 0 | M35: =C35*(1-SUM(Dashboard!L123:L124)) -> 0 | N35: =M35 -> 0
D36: → | F36: → | O36: → | P36: =Dashboard!AM119*OD_afstand -> 85 | T36: 1 voertuig | Z36: 1 | AC36: =Dashboard!AM120*OD_afstand -> 15 | AG36: 1 voertuig | AM36: 1 | AP36: =Dashboard!AM121*OD_afstand -> 0 | AT36: 1 voertuig | AZ36: 1
P39: =Snelheid_buitenstedelijk -> 70 | AC39: =Dashboard!AQ120 -> 40 | AP39: =Dashboard!AQ121 -> 20
E40: Buiten spits / AMvB / APV tijden (geen dagrand) | G40: =$C35*Dashboard!H123 -> 0 | J40: =$C35*Dashboard!J123 -> 0 | M40: =$C35*Dashboard!L123 -> 0
H41: =G40*(1-Dashboard!H125) -> 0 | K41: =J40*(1-Dashboard!J125) -> 0 | N41: =M40*(1-Dashboard!L125) -> 0 | P41: =P36 -> 85 | T41: 1 voertuig | Z41: 1 | AC41: =AC36 -> 15 | AG41: 1 voertuig | AM41: 1 | AP41: =AP36 -> 0 | AT41: 1 voertuig | AZ41: 1
D42: → | F42: → | O42: →
H43: =G40*Dashboard!H125 -> 0 | K43: =J40*Dashboard!J125 -> 0 | N43: =M40*Dashboard!L125 -> 0 | P43: =P41+Omrijdafstand -> 85 | T43: 1 voertuig | Z43: 1 | AD43: =AC41 -> 15 | AG43: =aantal_stadsvoertuigen -> 2 | AM43: =Aantal_keer_HB_stadsvt -> 2 | AP43: =AP41 -> 0 | AT43: =aantal_stadsvoertuigen -> 2 | AZ43: =Aantal_keer_HB_stadsvt -> 2
P46: =Snelheid_buitenstedelijk -> 70 | AC46: =Dashboard!AQ120 -> 40 | AP46: =Dashboard!AQ121 -> 20
E47: Buiten spits / in dagrand | G47: =$C35*Dashboard!H124 -> 0 | J47: =$C35*Dashboard!J124 -> 0 | M47: =$C35*Dashboard!L124 -> 0
H48: =G47*(1-Dashboard!H125) -> 0 | K48: =J47*(1-Dashboard!J125) -> 0 | N48: =M47*(1-Dashboard!L125) -> 0 | P48: =P41 -> 85 | T48: 1 voertuig | Z48: 1 | AC48: =AC41 -> 15 | AG48: 1 voertuig | AM48: 1 | AP48: =AP41 -> 0 | AT48: 1 voertuig | AZ48: 1
D49: → | F49: → | O49: →
H50: =G47*Dashboard!H125 -> 0 | K50: =J47*Dashboard!J125 -> 0 | N50: =M47*Dashboard!L125 -> 0 | P50: =P48+Omrijdafstand -> 85 | T50: 1 voertuig | Z50: 1 | AD50: =AD43 -> 15 | AG50: =aantal_stadsvoertuigen -> 2 | AM50: =Aantal_keer_HB_stadsvt -> 2 | AP50: =AP43 -> 0 | AT50: =aantal_stadsvoertuigen -> 2 | AZ50: =Aantal_keer_HB_stadsvt -> 2

Sheet Referentie
I2: =I19 -> 0 | J2: =J19 -> 1 | K2: 2 | L2: 3 | M2: 4 | N2: 5 | O2: 6 | P2: 7 | Q2: 8 | R2: 9 | S2: 10 | T2: =T19 -> 11 | U2: =U19 -> 12 | V2: =V19 -> 13 | W2: =W19 -> 14 | X2: =X19 -> 15
B4: Jaar meetellen regulier | I4: 1 | J4: =IF(J2<=Dashboard!$H102,1,0) -> 1 | K4: =IF(K2<=Dashboard!$H102,1,0) -> 1 | L4: =IF(L2<=Dashboard!$H102,1,0) -> 1 | M4: =IF(M2<=Dashboard!$H102,1,0) -> 1 | N4: =IF(N2<=Dashboard!$H102,1,0) -> 1 | O4: =IF(O2<=Dashboard!$H102,1,0) -> 1 | P4: =IF(P2<=Dashboard!$H102,1,0) -> 1 | Q4: =IF(Q2<=Dashboard!$H102,1,0) -> 0 | R4: =IF(R2<=Dashboard!$H102,1,0) -> 0 | S4: =IF(S2<=Dashboard!$H102,1,0) -> 0 | T4: =IF(T2<=Dashboard!$H102,1,0) -> 0 | U4: =IF(U2<=Dashboard!$H102,1,0) -> 0 | V4: =IF(V2<=Dashboard!$H102,1,0) -> 0 | W4: =IF(W2<=Dashboard!$H102,1,0) -> 0 | X4: =IF(X2<=Dashboard!$H102,1,0) -> 0
B5: Jaar metellen financieringen | I5: =IF(I6=1,0,I4) -> 1 | J5: 1 | K5: 1 | L5: 1 | M5: 1 | N5: 1 | O5: 1 | P5: 0 | Q5: 0 | R5: 0 | S5: 0 | T5: 0 | U5: 0 | V5: 0 | W5: 0 | X5: 0
B6: Laatste jaar | I6: =IF(AND(I4=1,J4=0),1,0) -> 0 | J6: 0 | K6: 0 | L6: 0 | M6: 0 | N6: 0 | O6: 0 | P6: 1 | Q6: 0 | R6: 0 | S6: 0 | T6: 0 | U6: 0 | V6: 0 | W6: 0 | X6: 0
B7: Inzet hoofdvoertuig | J7: =IF(J19<=Dashboard!$H$102,1,0) -> 1 | K7: =IF(K19<=Dashboard!$H$102,1,0) -> 1 | L7: =IF(L19<=Dashboard!$H$102,1,0) -> 1 | M7: =IF(M19<=Dashboard!$H$102,1,0) -> 1 | N7: =IF(N19<=Dashboard!$H$102,1,0) -> 1 | O7: =IF(O19<=Dashboard!$H$102,1,0) -> 1 | P7: =IF(P19<=Dashboard!$H$102,1,0) -> 1 | Q7: =IF(Q19<=Dashboard!$H$102,1,0) -> 0 | R7: =IF(R19<=Dashboard!$H$102,1,0) -> 0 | S7: =IF(S19<=Dashboard!$H$102,1,0) -> 0 | T7: =IF(T19<=Dashboard!$H$102,1,0) -> 0 | U7: =IF(U19<=Dashboard!$H$102,1,0) -> 0 | V7: =IF(V19<=Dashboard!$H$102,1,0) -> 0 | W7: =IF(W19<=Dashboard!$H$102,1,0) -> 0 | X7: =IF(X19<=Dashboard!$H$102,1,0) -> 0
B9: Bedrijfseconomische afschrijving | I9: 0 | J9: =IFERROR(1/Dashboard!$H102*J4,0) -> 0.1428571429 | K9: =IFERROR(1/Dashboard!$H$102*K4,0) -> 0.1428571429 | L9: =IFERROR(1/Dashboard!$H$102*L4,0) -> 0.1428571429 | M9: =IFERROR(1/Dashboard!$H$102*M4,0) -> 0.1428571429 | N9: =IFERROR(1/Dashboard!$H$102*N4,0) -> 0.1428571429 | O9: =IFERROR(1/Dashboard!$H$102*O4,0) -> 0.1428571429 | P9: =IFERROR(1/Dashboard!$H$102*P4,0) -> 0.1428571429 | Q9: =IFERROR(1/Dashboard!$H$102*Q4,0) -> 0 | R9: =IFERROR(1/Dashboard!$H$102*R4,0) -> 0 | S9: =IFERROR(1/Dashboard!$H$102*S4,0) -> 0 | T9: =IFERROR(1/Dashboard!$H$102*T4,0) -> 0 | U9: =IFERROR(1/Dashboard!$H$102*U4,0) -> 0 | V9: =IFERROR(1/Dashboard!$H$102*V4,0) -> 0 | W9: =IFERROR(1/Dashboard!$H$102*W4,0) -> 0 | X9: =IFERROR(1/Dashboard!$H$102*X4,0) -> 0
B10: Fiscale afschrijving | I10: =MAX(Dashboard!H117,I9) -> 0 | J10: =IFERROR((1-I10)/SUM(J4:W4)*J4,0) -> 0.1428571429 | K10: =J10*K4 -> 0.1428571429 | L10: 0.1428571429 | M10: 0.1428571429 | N10: 0.1428571429 | O10: 0.1428571429 | P10: 0.1428571429 | Q10: 0 | R10: 0 | S10: 0 | T10: 0 | U10: 0 | V10: 0 | W10: 0 | X10: 0
B12: Aantal uren per modaliteitswissel | I12: 0 | J12: =VLOOKUP(Ladingtype,Modaliteitswissel,3,FALSE) -> 1.333333333 | K12: =J12 -> 1.333333333 | L12: =K12 -> 1.333333333 | M12: 1.333333333 | N12: 1.333333333 | O12: 1.333333333 | P12: 1.333333333 | Q12: 1.333333333 | R12: 1.333333333 | S12: 1.333333333 | T12: 1.333333333 | U12: 1.333333333 | V12: 1.333333333 | W12: 1.333333333 | X12: 1.333333333
J15: SPECIFICATIE REFERENTIE
B17: =Referentie_Naam &" "&IF(Dashboard!$H$125>0,"+ stadsvoertuig","") -> Diesel | I17: =IF(Dashboard!R13>0,"Dit overzicht is mogelijk niet correct als gevolg van incomplete of foutieve invoer, check de foutmeldingen op werkblad 'Dashboard'","") -> 
B19: Kerndata | H19: Totaal | I19: 0 | J19: 1 | K19: =J19+1 -> 2 | L19: 3 | M19: 4 | N19: 5 | O19: 6 | P19: 7 | Q19: 8 | R19: 9 | S19: 10 | T19: 11 | U19: 12 | V19: 13 | W19: 14 | X19: 15
B21: Gemiddelde afstand goederen (km) | H21: =SUM(I21:X21) -> 700 | I21: 0 | J21: =SUM(J22:J30) -> 100 | K21: =J21*K$4 -> 100 | L21: 100 | M21: 100 | N21: 100 | O21: 100 | P21: 100 | Q21: 0 | R21: 0 | S21: 0 | T21: 0 | U21: 0 | V21: 0 | W21: 0 | X21: 0
B22: - waarvan buitenstedelijk gebied tijdens spits | H22: =SUM(I22:X22) -> 595 | I22: 0 | J22: ='Distributieschema''s'!G15*'Distributieschema''s'!P16+'Distributieschema''s'!G35*'Distributieschema''s'!P36 -> 85 | K22: =J22*K$4 -> 85 | L22: =K22*L$4 -> 85 | M22: 85 | N22: 85 | O22: 85 | P22: 85 | Q22: 0 | R22: 0 | S22: 0 | T22: 0 | U22: 0 | V22: 0 | W22: 0 | X22: 0
B23: - waarvan buitenstedelijk gebied buiten spits | H23: 0 | I23: 0 | J23: ='Distributieschema''s'!G9*'Distributieschema''s'!P10+'Distributieschema''s'!G20*'Distributieschema''s'!P21+'Distributieschema''s'!G40*'Distributieschema''s'!P41 -> 0 | K23: =J23*K$4 -> 0 | L23: 0 | M23: 0 | N23: 0 | O23: 0 | P23: 0 | Q23: 0 | R23: 0 | S23: 0 | T23: 0 | U23: 0 | V23: 0 | W23: 0 | X23: 0
B24: - waarvan buitenstedelijk gebied tijdens dagrand | H24: 0 | I24: 0 | J24: ='Distributieschema''s'!G27*'Distributieschema''s'!P28+'Distributieschema''s'!G47*'Distributieschema''s'!P48 -> 0 | K24: 0 | L24: 0 | M24: 0 | N24: 0 | O24: 0 | P24: 0 | Q24: 0 | R24: 0 | S24: 0 | T24: 0 | U24: 0 | V24: 0 | W24: 0 | X24: 0
B25: - waarvan stedelijk gebied tijdens AMvB-tijden | H25: 105 | I25: 0 | J25: ='Distributieschema''s'!G15*'Distributieschema''s'!AC16+'Distributieschema''s'!G35*'Distributieschema''s'!AC36 -> 15 | K25: 15 | L25: 15 | M25: 15 | N25: 15 | O25: 15 | P25: 15 | Q25: 0 | R25: 0 | S25: 0 | T25: 0 | U25: 0 | V25: 0 | W25: 0 | X25: 0
B26: - waarvan stedelijk gebied buiten AMvB-tijden | H26: 0 | I26: 0 | J26: ='Distributieschema''s'!G20*'Distributieschema''s'!AC21+'Distributieschema''s'!G40*'Distributieschema''s'!AC41 -> 0 | K26: 0 | L26: 0 | M26: 0 | N26: 0 | O26: 0 | P26: 0 | Q26: 0 | R26: 0 | S26: 0 | T26: 0 | U26: 0 | V26: 0 | W26: 0 | X26: 0
B27: - waarvan stedelijk gebied dagrand | H27: 0 | I27: 0 | J27: ='Distributieschema''s'!G27*'Distributieschema''s'!AC28+'Distributieschema''s'!G47*'Distributieschema''s'!AC48 -> 0 | K27: 0 | L27: 0 | M27: 0 | N27: 0 | O27: 0 | P27: 0 | Q27: 0 | R27: 0 | S27: 0 | T27: 0 | U27: 0 | V27: 0 | W27: 0 | X27: 0
B28: - waarvan kernwinkelgebied tijdens AMvB-tijden | H28: 0 | I28: 0 | J28: ='Distributieschema''s'!G35*'Distributieschema''s'!AP36 -> 0 | K28: 0 | L28: 0 | M28: 0 | N28: 0 | O28: 0 | P28: 0 | Q28: 0 | R28: 0 | S28: 0 | T28: 0 | U28: 0 | V28: 0 | W28: 0 | X28: 0
B29: - waarvan kernwinkelgebied buiten AMvB-tijden | H29: 0 | I29: 0 | J29: ='Distributieschema''s'!G40*'Distributieschema''s'!AP41 -> 0 | K29: 0 | L29: 0 | M29: 0 | N29: 0 | O29: 0 | P29: 0 | Q29: 0 | R29: 0 | S29: 0 | T29: 0 | U29: 0 | V29: 0 | W29: 0 | X29: 0
B30: - waarvan kernwinkelgebied dagrand | H30: 0 | I30: 0 | J30: ='Distributieschema''s'!G47*'Distributieschema''s'!AP48 -> 0 | K30: 0 | L30: 0 | M30: 0 | N30: 0 | O30: 0 | P30: 0 | Q30: 0 | R30: 0 | S30: 0 | T30: 0 | U30: 0 | V30: 0 | W30: 0 | X30: 0
B33: Gemiddelde afstand hoofdvoertuig (km) | H33: =SUM(I33:X33) -> 700 | I33: 0 | J33: =J34+J38+J42+J46+J50+J54+SUM(J58:J60) -> 100 | K33: =J33*K$4 -> 100 | L33: =K33*L$4 -> 100 | M33: 100 | N33: 100 | O33: 100 | P33: 100 | Q33: 0 | R33: 0 | S33: 0 | T33: 0 | U33: 0 | V33: 0 | W33: 0 | X33: 0
B34: - waarvan buitenstedelijk gebied tijdens spits | H34: 595 | I34: 0 | J34: =SUM(J35:J36) -> 85 | K34: =J34*K$4 -> 85 | L34: 85 | M34: 85 | N34: 85 | O34: 85 | P34: 85 | Q34: 0 | R34: 0 | S34: 0 | T34: 0 | U34: 0 | V34: 0 | W34: 0 | X34: 0
C35: - waarvan klantlocatie in buitenstedelijk gebied | H35: 0 | I35: 0 | J35: 0 | K35: 0 | L35: 0 | M35: 0 | N35: 0 | O35: 0 | P35: 0 | Q35: 0 | R35: 0 | S35: 0 | T35: 0 | U35: 0 | V35: 0 | W35: 0 | X35: 0
C36: - waarvan klantlocatie in stedelijk of kernwinkelgebied | H36: 595 | I36: 0 | J36: ='Distributieschema''s'!G15*'Distributieschema''s'!P16+'Distributieschema''s'!G35*'Distributieschema''s'!P36 -> 85 | K36: 85 | L36: 85 | M36: 85 | N36: 85 | O36: 85 | P36: 85 | Q36: 0 | R36: 0 | S36: 0 | T36: 0 | U36: 0 | V36: 0 | W36: 0 | X36: 0
B38: - waarvan buitenstedelijk gebied buiten spits | H38: 0 | I38: 0 | J38: =SUM(J39:J40) -> 0 | K38: 0 | L38: 0 | M38: 0 | N38: 0 | O38: 0 | P38: 0 | Q38: 0 | R38: 0 | S38: 0 | T38: 0 | U38: 0 | V38: 0 | W38: 0 | X38: 0
C39: - waarvan klantlocatie in buitenstedelijk gebied | H39: 0 | I39: 0 | J39: ='Distributieschema''s'!G9*'Distributieschema''s'!P10 -> 0 | K39: 0 | L39: 0 | M39: 0 | N39: 0 | O39: 0 | P39: 0 | Q39: 0 | R39: 0 | S39: 0 | T39: 0 | U39: 0 | V39: 0 | W39: 0 | X39: 0
C40: - waarvan klantlocatie in stedelijk of kernwinkelgebied | H40: 0 | I40: 0 | J40: ='Distributieschema''s'!H21*'Distributieschema''s'!P21+'Distributieschema''s'!H23*'Distributieschema''s'!P23+'Distributieschema''s'!H41*'Distributieschema''s'!P41+'Distributieschema''s'!H43*'Distributieschema''s'!P43 -> 0 | K40: 0 | L40: 0 | M40: 0 | N40: 0 | O40: 0 | P40: 0 | Q40: 0 | R40: 0 | S40: 0 | T40: 0 | U40: 0 | V40: 0 | W40: 0 | X40: 0
B42: - waarvan buitenstedelijk gebied tijdens dagrand | H42: 0 | I42: 0 | J42: =SUM(J43:J44) -> 0 | K42: 0 | L42: 0 | M42: 0 | N42: 0 | O42: 0 | P42: 0 | Q42: 0 | R42: 0 | S42: 0 | T42: 0 | U42: 0 | V42: 0 | W42: 0 | X42: 0
C43: - waarvan klantlocatie in buitenstedelijk gebied | H43: 0 | I43: 0 | J43: 0 | K43: 0 | L43: 0 | M43: 0 | N43: 0 | O43: 0 | P43: 0 | Q43: 0 | R43: 0 | S43: 0 | T43: 0 | U43: 0 | V43: 0 | W43: 0 | X43: 0
C44: - waarvan klantlocatie in stedelijk of kernwinkelgebied | H44: 0 | I44: 0 | J44: ='Distributieschema''s'!H28*'Distributieschema''s'!P28+'Distributieschema''s'!H30*'Distributieschema''s'!P30+'Distributieschema''s'!H48*'Distributieschema''s'!P48+'Distributieschema''s'!H50*'Distributieschema''s'!P50 -> 0 | K44: 0 | L44: 0 | M44: 0 | N44: 0 | O44: 0 | P44: 0 | Q44: 0 | R44: 0 | S44: 0 | T44: 0 | U44: 0 | V44: 0 | W44: 0 | X44: 0
B46: - waarvan stedelijk gebied tijdens AMvB-tijden | H46: 105 | I46: 0 | J46: =SUM(J47:J48) -> 15 | K46: 15 | L46: 15 | M46: 15 | N46: 15 | O46: 15 | P46: 15 | Q46: 0 | R46: 0 | S46: 0 | T46: 0 | U46: 0 | V46: 0 | W46: 0 | X46: 0
C47: - waarvan klantlocatie in stedelijk gebied | H47: 105 | I47: 0 | J47: ='Distributieschema''s'!H15*'Distributieschema''s'!AC16 -> 15 | K47: 15 | L47: 15 | M47: 15 | N47: 15 | O47: 15 | P47: 15 | Q47: 0 | R47: 0 | S47: 0 | T47: 0 | U47: 0 | V47: 0 | W47: 0 | X47: 0
C48: - waarvan klantlocatie in kernwinkelgebied | H48: 0 | I48: 0 | J48: ='Distributieschema''s'!H35*'Distributieschema''s'!AC36 -> 0 | K48: 0 | L48: 0 | M48: 0 | N48: 0 | O48: 0 | P48: 0 | Q48: 0 | R48: 0 | S48: 0 | T48: 0 | U48: 0 | V48: 0 | W48: 0 | X48: 0
B50: - waarvan stedelijk gebied buiten AMvB-tijden | H50: 0 | I50: 0 | J50: =SUM(J51:J52) -> 0 | K50: 0 | L50: 0 | M50: 0 | N50: 0 | O50: 0 | P50: 0 | Q50: 0 | R50: 0 | S50: 0 | T50: 0 | U50: 0 | V50: 0 | W50: 0 | X50: 0
C51: - waarvan klantlocatie in stedelijk gebied | H51: 0 | I51: 0 | J51: ='Distributieschema''s'!H21*'Distributieschema''s'!AC21 -> 0 | K51: 0 | L51: 0 | M51: 0 | N51: 0 | O51: 0 | P51: 0 | Q51: 0 | R51: 0 | S51: 0 | T51: 0 | U51: 0 | V51: 0 | W51: 0 | X51: 0
C52: - waarvan klantlocatie in kernwinkelgebied | H52: 0 | I52: 0 | J52: ='Distributieschema''s'!H41*'Distributieschema''s'!AC41 -> 0 | K52: 0 | L52: 0 | M52: 0 | N52: 0 | O52: 0 | P52: 0 | Q52: 0 | R52: 0 | S52: 0 | T52: 0 | U52: 0 | V52: 0 | W52: 0 | X52: 0
B54: - waarvan stedelijk gebied dagrand | H54: 0 | I54: 0 | J54: =SUM(J55:J56) -> 0 | K54: 0 | L54: 0 | M54: 0 | N54: 0 | O54: 0 | P54: 0 | Q54: 0 | R54: 0 | S54: 0 | T54: 0 | U54: 0 | V54: 0 | W54: 0 | X54: 0
C55: - waarvan klantlocatie in stedelijk gebied | H55: 0 | I55: 0 | J55: ='Distributieschema''s'!H28*'Distributieschema''s'!AC28 -> 0 | K55: 0 | L55: 0 | M55: 0 | N55: 0 | O55: 0 | P55: 0 | Q55: 0 | R55: 0 | S55: 0 | T55: 0 | U55: 0 | V55: 0 | W55: 0 | X55: 0
C56: - waarvan klantlocatie in kernwinkelgebied | H56: 0 | I56: 0 | J56: ='Distributieschema''s'!H48*'Distributieschema''s'!AC48 -> 0 | K56: 0 | L56: 0 | M56: 0 | N56: 0 | O56: 0 | P56: 0 | Q56: 0 | R56: =Q56*R$4 -> 0 | S56: 0 | T56: 0 | U56: 0 | V56: 0 | W56: 0 | X56: 0
B58: - waarvan kernwinkelgebied tijdens AMvB-tijden | H58: 0 | I58: 0 | J58: ='Distributieschema''s'!H35*'Distributieschema''s'!AP36 -> 0 | K58: 0 | L58: 0 | M58: 0 | N58: 0 | O58: 0 | P58: 0 | Q58: 0 | R58: 0 | S58: 0 | T58: 0 | U58: 0 | V58: 0 | W58: 0 | X58: 0
B59: - waarvan kernwinkelgebied buiten AMvB-tijden | H59: 0 | I59: 0 | J59: ='Distributieschema''s'!H41*'Distributieschema''s'!AP41 -> 0 | K59: 0 | L59: 0 | M59: 0 | N59: 0 | O59: 0 | P59: 0 | Q59: 0 | R59: 0 | S59: 0 | T59: 0 | U59: 0 | V59: 0 | W59: 0 | X59: 0
B60: - waarvan kernwinkelgebied dagrand | H60: 0 | I60: 0 | J60: ='Distributieschema''s'!H48*'Distributieschema''s'!AP48 -> 0 | K60: 0 | L60: 0 | M60: 0 | N60: 0 | O60: 0 | P60: 0 | Q60: 0 | R60: 0 | S60: 0 | T60: 0 | U60: 0 | V60: 0 | W60: 0 | X60: 0
B63: Gemiddelde afstand stadsvoertuig (km) | H63: =SUM(I63:X63) -> 0 | I63: 0 | J63: =SUM(J64:J64)+J66+J70+J74+SUM(J78:J80) -> 0 | K63: =J63*K$4 -> 0 | L63: 0 | M63: 0 | N63: 0 | O63: 0 | P63: 0 | Q63: 0 | R63: 0 | S63: 0 | T63: 0 | U63: 0 | V63: 0 | W63: 0 | X63: 0
B64: - waarvan buitenstedelijk | H64: 0 | I64: 0 | J64: 0 | K64: 0 | L64: 0 | M64: 0 | N64: 0 | O64: 0 | P64: 0 | Q64: 0 | R64: 0 | S64: 0 | T64: 0 | U64: 0 | V64: 0 | W64: 0 | X64: 0
B66: - waarvan stedelijk gebied tijdens AMvB-tijden | H66: 0 | I66: 0 | J66: =SUM(J67:J68) -> 0 | K66: =J66*K$4 -> 0 | L66: 0 | M66: 0 | N66: 0 | O66: 0 | P66: 0 | Q66: 0 | R66: 0 | S66: 0 | T66: 0 | U66: 0 | V66: 0 | W66: 0 | X66: 0
C67: - waarvan klantlocatie in stedelijk gebied | H67: 0 | I67: 0 | J67: 0 | K67: =J67*K$4 -> 0 | L67: 0 | M67: 0 | N67: 0 | O67: 0 | P67: 0 | Q67: 0 | R67: 0 | S67: 0 | T67: 0 | U67: 0 | V67: 0 | W67: 0 | X67: 0
C68: - waarvan klantlocatie in kernwinkelgebied | H68: 0 | I68: 0 | J68: 0 | K68: =J68*K$4 -> 0 | L68: 0 | M68: 0 | N68: 0 | O68: 0 | P68: 0 | Q68: 0 | R68: 0 | S68: 0 | T68: 0 | U68: 0 | V68: 0 | W68: 0 | X68: 0
B70: - waarvan stedelijk gebied buiten AMvB-tijden | H70: 0 | I70: 0 | J70: =SUM(J71:J72) -> 0 | K70: =J70*K$4 -> 0 | L70: 0 | M70: 0 | N70: 0 | O70: 0 | P70: 0 | Q70: 0 | R70: 0 | S70: 0 | T70: 0 | U70: 0 | V70: 0 | W70: 0 | X70: 0
C71: - waarvan klantlocatie in stedelijk gebied | H71: 0 | I71: 0 | J71: ='Distributieschema''s'!H23*'Distributieschema''s'!AD23 -> 0 | K71: =J71*K$4 -> 0 | L71: 0 | M71: 0 | N71: 0 | O71: 0 | P71: 0 | Q71: 0 | R71: 0 | S71: 0 | T71: 0 | U71: 0 | V71: 0 | W71: 0 | X71: 0
C72: - waarvan klantlocatie in kernwinkelgebied | H72: 0 | I72: 0 | J72: ='Distributieschema''s'!H43*'Distributieschema''s'!AD43 -> 0 | K72: =J72*K$4 -> 0 | L72: 0 | M72: 0 | N72: 0 | O72: 0 | P72: 0 | Q72: 0 | R72: 0 | S72: 0 | T72: 0 | U72: 0 | V72: 0 | W72: 0 | X72: 0
B74: - waarvan stedelijk gebied dagrand | H74: 0 | I74: 0 | J74: =SUM(J75:J76) -> 0 | K74: =J74*K$4 -> 0 | L74: 0 | M74: 0 | N74: 0 | O74: 0 | P74: 0 | Q74: 0 | R74: 0 | S74: 0 | T74: 0 | U74: 0 | V74: 0 | W74: 0 | X74: 0
C75: - waarvan klantlocatie in stedelijk gebied | H75: 0 | I75: 0 | J75: ='Distributieschema''s'!H30*'Distributieschema''s'!AD30 -> 0 | K75: =J75*K$4 -> 0 | L75: 0 | M75: 0 | N75: 0 | O75: 0 | P75: 0 | Q75: 0 | R75: 0 | S75: 0 | T75: 0 | U75: 0 | V75: 0 | W75: 0 | X75: 0
C76: - waarvan klantlocatie in kernwinkelgebied | H76: 0 | I76: 0 | J76: ='Distributieschema''s'!H50*'Distributieschema''s'!AD50 -> 0 | K76: =J76*K$4 -> 0 | L76: 0 | M76: 0 | N76: 0 | O76: 0 | P76: 0 | Q76: 0 | R76: 0 | S76: 0 | T76: 0 | U76: 0 | V76: 0 | W76: 0 | X76: 0
B78: - waarvan kernwinkelgebied tijdens AMvB-tijden | H78: 0 | I78: 0 | J78: 0 | K78: =J78*K$4 -> 0 | L78: 0 | M78: 0 | N78: 0 | O78: 0 | P78: 0 | Q78: 0 | R78: 0 | S78: 0 | T78: 0 | U78: 0 | V78: 0 | W78: 0 | X78: 0
B79: - waarvan kernwinkelgebied buiten AMvB-tijden | H79: 0 | I79: 0 | J79: ='Distributieschema''s'!H43*'Distributieschema''s'!AP43 -> 0 | K79: =J79*K$4 -> 0 | L79: 0 | M79: 0 | N79: 0 | O79: 0 | P79: 0 | Q79: 0 | R79: 0 | S79: 0 | T79: 0 | U79: 0 | V79: 0 | W79: 0 | X79: 0
B80: - waarvan kernwinkelgebied dagrand | H80: 0 | I80: 0 | J80: ='Distributieschema''s'!H50*'Distributieschema''s'!AP50 -> 0 | K80: =J80*K$4 -> 0 | L80: 0 | M80: 0 | N80: 0 | O80: 0 | P80: 0 | Q80: 0 | R80: 0 | S80: 0 | T80: 0 | U80: 0 | V80: 0 | W80: 0 | X80: 0
B82: Aantal aanvullende ritten door stadsvoertuig(en) per rit | H82: =SUM(I82:X82) -> 0 | I82: 0 | J82: =IF(J63=0,0,Aantal_keer_HB_stadsvt) -> 0 | K82: 0 | L82: 0 | M82: 0 | N82: 0 | O82: 0 | P82: 0 | Q82: 0 | R82: 0 | S82: 0 | T82: 0 | U82: 0 | V82: 0 | W82: 0 | X82: 0
B84: Gem. gereden afstand stadsvoertuigen aansluitend op rit hoofdvoertuig (km) | H84: =SUM(I84:X84) -> 0 | I84: 0 | J84: =SUM(J85:J85)+J87+J91+J95+SUM(J99:J101) -> 0 | K84: =SUM(K85:K85)+K87+K91+K95+SUM(K99:K101) -> 0 | L84: 0 | M84: 0 | N84: 0 | O84: 0 | P84: 0 | Q84: 0 | R84: 0 | S84: 0 | T84: 0 | U84: 0 | V84: 0 | W84: 0 | X84: 0
B85: - waarvan buitenstedelijk | H85: =SUM(I85:X85) -> 0 | I85: 0 | J85: =J64*J$82 -> 0 | K85: =K64*K$82 -> 0 | L85: 0 | M85: 0 | N85: 0 | O85: 0 | P85: 0 | Q85: 0 | R85: 0 | S85: 0 | T85: 0 | U85: 0 | V85: 0 | W85: 0 | X85: 0
B87: - waarvan stedelijk gebied tijdens AMvB-tijden | H87: 0 | I87: 0 | J87: =J66*J$82 -> 0 | K87: =K66*K$82 -> 0 | L87: 0 | M87: 0 | N87: 0 | O87: 0 | P87: 0 | Q87: 0 | R87: 0 | S87: 0 | T87: 0 | U87: 0 | V87: 0 | W87: 0 | X87: 0
C88: - waarvan klantlocatie in stedelijk gebied | H88: 0 | I88: 0 | J88: =J67*J$82 -> 0 | K88: =K67*K$82 -> 0 | L88: 0 | M88: 0 | N88: 0 | O88: 0 | P88: 0 | Q88: 0 | R88: 0 | S88: 0 | T88: 0 | U88: 0 | V88: 0 | W88: 0 | X88: 0
C89: - waarvan klantlocatie in kernwinkelgebied | H89: 0 | I89: 0 | J89: =J68*J$82 -> 0 | K89: =K68*K$82 -> 0 | L89: 0 | M89: 0 | N89: 0 | O89: 0 | P89: 0 | Q89: 0 | R89: 0 | S89: 0 | T89: 0 | U89: 0 | V89: 0 | W89: 0 | X89: 0
B91: - waarvan stedelijk gebied buiten AMvB-tijden | H91: 0 | I91: 0 | J91: =J70*J$82 -> 0 | K91: =K70*K$82 -> 0 | L91: 0 | M91: 0 | N91: 0 | O91: 0 | P91: 0 | Q91: 0 | R91: 0 | S91: 0 | T91: 0 | U91: 0 | V91: 0 | W91: 0 | X91: 0
C92: - waarvan klantlocatie in stedelijk gebied | H92: 0 | I92: 0 | J92: =J71*J$82 -> 0 | K92: =K71*K$82 -> 0 | L92: 0 | M92: 0 | N92: 0 | O92: 0 | P92: 0 | Q92: 0 | R92: 0 | S92: 0 | T92: 0 | U92: 0 | V92: 0 | W92: 0 | X92: 0
C93: - waarvan klantlocatie in kernwinkelgebied | H93: 0 | I93: 0 | J93: =J72*J$82 -> 0 | K93: =K72*K$82 -> 0 | L93: 0 | M93: 0 | N93: 0 | O93: 0 | P93: 0 | Q93: 0 | R93: 0 | S93: 0 | T93: 0 | U93: 0 | V93: 0 | W93: 0 | X93: 0
B95: - waarvan stedelijk gebied dagrand | H95: 0 | I95: 0 | J95: =J74*J$82 -> 0 | K95: =K74*K$82 -> 0 | L95: 0 | M95: 0 | N95: 0 | O95: 0 | P95: 0 | Q95: 0 | R95: 0 | S95: 0 | T95: 0 | U95: 0 | V95: 0 | W95: 0 | X95: 0
C96: - waarvan klantlocatie in stedelijk gebied | H96: 0 | I96: 0 | J96: =J75*J$82 -> 0 | K96: =K75*K$82 -> 0 | L96: 0 | M96: 0 | N96: 0 | O96: 0 | P96: 0 | Q96: 0 | R96: 0 | S96: 0 | T96: 0 | U96: 0 | V96: 0 | W96: 0 | X96: 0
C97: - waarvan klantlocatie in kernwinkelgebied | H97: 0 | I97: 0 | J97: =J76*J$82 -> 0 | K97: =K76*K$82 -> 0 | L97: 0 | M97: 0 | N97: 0 | O97: 0 | P97: 0 | Q97: 0 | R97: 0 | S97: 0 | T97: 0 | U97: 0 | V97: 0 | W97: 0 | X97: 0
B99: - waarvan kernwinkelgebied tijdens AMvB-tijden | H99: 0 | I99: 0 | J99: =J78*J$82 -> 0 | K99: =K78*K$82 -> 0 | L99: 0 | M99: 0 | N99: 0 | O99: 0 | P99: 0 | Q99: 0 | R99: 0 | S99: 0 | T99: 0 | U99: 0 | V99: 0 | W99: 0 | X99: 0
B100: - waarvan kernwinkelgebied buiten AMvB-tijden | H100: 0 | I100: 0 | J100: =J79*J$82 -> 0 | K100: =K79*K$82 -> 0 | L100: 0 | M100: 0 | N100: 0 | O100: 0 | P100: 0 | Q100: 0 | R100: 0 | S100: 0 | T100: 0 | U100: 0 | V100: 0 | W100: 0 | X100: 0
B101: - waarvan kernwinkelgebied dagrand | H101: 0 | I101: 0 | J101: =J80*J$82 -> 0 | K101: =K80*K$82 -> 0 | L101: 0 | M101: 0 | N101: 0 | O101: 0 | P101: 0 | Q101: 0 | R101: 0 | S101: 0 | T101: 0 | U101: 0 | V101: 0 | W101: 0 | X101: 0
B104: Aantal ritten per jaar hvt | H104: =SUM(I104:X104) -> 700 | I104: 0 | J104: =HB_ritten -> 100 | K104: =J104*K$4 -> 100 | L104: 100 | M104: 100 | N104: 100 | O104: 100 | P104: 100 | Q104: 0 | R104: 0 | S104: 0 | T104: 0 | U104: 0 | V104: 0 | W104: 0 | X104: 0
B105: Aantal ritten per jaar svt | H105: =SUM(I105:X105) -> 0 | I105: 0 | J105: =J104*J82 -> 0 | K105: =K104*K82 -> 0 | L105: 0 | M105: 0 | N105: 0 | O105: 0 | P105: 0 | Q105: 0 | R105: 0 | S105: 0 | T105: 0 | U105: 0 | V105: 0 | W105: 0 | X105: 0
B107: Effectief aantal benodigde hoofdvoertuigen | I107: 0 | J107: =(J127+(J130+J104*'Distributieschema''s'!$H$9*Dashboard!$AY$118)+J131+J134+J135+(J138+J104*'Distributieschema''s'!$H$15*Dashboard!$AY$118)+J139+(J142+J104*'Distributieschema''s'!$H$21*Dashboard!$AY$118)+J143+(J146+J104*'Distributieschema''s'!$H$28*Dashboard!$AY$118)+J147+(J149+J104*'Distributieschema''s'!$H$35*Dashboard!$AY$118)+(J150+J104*'Distributieschema''s'!$H$41*Dashboard!$AY$118)+(J151+J104*'Distributieschema''s'!$H$48*Dashboard!$AY$118))/Uren_hvt_ref -> 0.105952381 | K107: =(K127+(K130+K104*'Distributieschema''s'!$H$9*Dashboard!$AY$118)+K131+K134+K135+(K138+K104*'Distributieschema''s'!$H$15*Dashboard!$AY$118)+K139+(K142+K104*'Distributieschema''s'!$H$21*Dashboard!$AY$118)+K143+(K146+K104*'Distributieschema''s'!$H$28*Dashboard!$AY$118)+K147+(K149+K104*'Distributieschema''s'!$H$35*Dashboard!$AY$118)+(K150+K104*'Distributieschema''s'!$H$41*Dashboard!$AY$118)+(K151+K104*'Distributieschema''s'!$H$48*Dashboard!$AY$118))/Uren_hvt_ref -> 0.105952381 | L107: =(L127+(L130+L104*'Distributieschema''s'!$H$9*Dashboard!$AY$118)+L131+L134+L135+(L138+L104*'Distributieschema''s'!$H$15*Dashboard!$AY$118)+L139+(L142+L104*'Distributieschema''s'!$H$21*Dashboard!$AY$118)+L143+(L146+L104*'Distributieschema''s'!$H$28*Dashboard!$AY$118)+L147+(L149+L104*'Distributieschema''s'!$H$35*Dashboard!$AY$118)+(L150+L104*'Distributieschema''s'!$H$41*Dashboard!$AY$118)+(L151+L104*'Distributieschema''s'!$H$48*Dashboard!$AY$118))/Uren_hvt_ref -> 0.105952381 | M107: =(M127+(M130+M104*'Distributieschema''s'!$H$9*Dashboard!$AY$118)+M131+M134+M135+(M138+M104*'Distributieschema''s'!$H$15*Dashboard!$AY$118)+M139+(M142+M104*'Distributieschema''s'!$H$21*Dashboard!$AY$118)+M143+(M146+M104*'Distributieschema''s'!$H$28*Dashboard!$AY$118)+M147+(M149+M104*'Distributieschema''s'!$H$35*Dashboard!$AY$118)+(M150+M104*'Distributieschema''s'!$H$41*Dashboard!$AY$118)+(M151+M104*'Distributieschema''s'!$H$48*Dashboard!$AY$118))/Uren_hvt_ref -> 0.105952381 | N107: =(N127+(N130+N104*'Distributieschema''s'!$H$9*Dashboard!$AY$118)+N131+N134+N135+(N138+N104*'Distributieschema''s'!$H$15*Dashboard!$AY$118)+N139+(N142+N104*'Distributieschema''s'!$H$21*Dashboard!$AY$118)+N143+(N146+N104*'Distributieschema''s'!$H$28*Dashboard!$AY$118)+N147+(N149+N104*'Distributieschema''s'!$H$35*Dashboard!$AY$118)+(N150+N104*'Distributieschema''s'!$H$41*Dashboard!$AY$118)+(N151+N104*'Distributieschema''s'!$H$48*Dashboard!$AY$118))/Uren_hvt_ref -> 0.105952381 | O107: =(O127+(O130+O104*'Distributieschema''s'!$H$9*Dashboard!$AY$118)+O131+O134+O135+(O138+O104*'Distributieschema''s'!$H$15*Dashboard!$AY$118)+O139+(O142+O104*'Distributieschema''s'!$H$21*Dashboard!$AY$118)+O143+(O146+O104*'Distributieschema''s'!$H$28*Dashboard!$AY$118)+O147+(O149+O104*'Distributieschema''s'!$H$35*Dashboard!$AY$118)+(O150+O104*'Distributieschema''s'!$H$41*Dashboard!$AY$118)+(O151+O104*'Distributieschema''s'!$H$48*Dashboard!$AY$118))/Uren_hvt_ref -> 0.105952381 | P107: =(P127+(P130+P104*'Distributieschema''s'!$H$9*Dashboard!$AY$118)+P131+P134+P135+(P138+P104*'Distributieschema''s'!$H$15*Dashboard!$AY$118)+P139+(P142+P104*'Distributieschema''s'!$H$21*Dashboard!$AY$118)+P143+(P146+P104*'Distributieschema''s'!$H$28*Dashboard!$AY$118)+P147+(P149+P104*'Distributieschema''s'!$H$35*Dashboard!$AY$118)+(P150+P104*'Distributieschema''s'!$H$41*Dashboard!$AY$118)+(P151+P104*'Distributieschema''s'!$H$48*Dashboard!$AY$118))/Uren_hvt_ref -> 0.105952381 | Q107: =(Q127+(Q130+Q104*'Distributieschema''s'!$H$9*Dashboard!$AY$118)+Q131+Q134+Q135+(Q138+Q104*'Distributieschema''s'!$H$15*Dashboard!$AY$118)+Q139+(Q142+Q104*'Distributieschema''s'!$H$21*Dashboard!$AY$118)+Q143+(Q146+Q104*'Distributieschema''s'!$H$28*Dashboard!$AY$118)+Q147+(Q149+Q104*'Distributieschema''s'!$H$35*Dashboard!$AY$118)+(Q150+Q104*'Distributieschema''s'!$H$41*Dashboard!$AY$118)+(Q151+Q104*'Distributieschema''s'!$H$48*Dashboard!$AY$118))/Uren_hvt_ref -> 0 | R107: =(R127+(R130+R104*'Distributieschema''s'!$H$9*Dashboard!$AY$118)+R131+R134+R135+(R138+R104*'Distributieschema''s'!$H$15*Dashboard!$AY$118)+R139+(R142+R104*'Distributieschema''s'!$H$21*Dashboard!$AY$118)+R143+(R146+R104*'Distributieschema''s'!$H$28*Dashboard!$AY$118)+R147+(R149+R104*'Distributieschema''s'!$H$35*Dashboard!$AY$118)+(R150+R104*'Distributieschema''s'!$H$41*Dashboard!$AY$118)+(R151+R104*'Distributieschema''s'!$H$48*Dashboard!$AY$118))/Uren_hvt_ref -> 0 | S107: =(S127+(S130+S104*'Distributieschema''s'!$H$9*Dashboard!$AY$118)+S131+S134+S135+(S138+S104*'Distributieschema''s'!$H$15*Dashboard!$AY$118)+S139+(S142+S104*'Distributieschema''s'!$H$21*Dashboard!$AY$118)+S143+(S146+S104*'Distributieschema''s'!$H$28*Dashboard!$AY$118)+S147+(S149+S104*'Distributieschema''s'!$H$35*Dashboard!$AY$118)+(S150+S104*'Distributieschema''s'!$H$41*Dashboard!$AY$118)+(S151+S104*'Distributieschema''s'!$H$48*Dashboard!$AY$118))/Uren_hvt_ref -> 0 | T107: =(T127+(T130+T104*'Distributieschema''s'!$H$9*Dashboard!$AY$118)+T131+T134+T135+(T138+T104*'Distributieschema''s'!$H$15*Dashboard!$AY$118)+T139+(T142+T104*'Distributieschema''s'!$H$21*Dashboard!$AY$118)+T143+(T146+T104*'Distributieschema''s'!$H$28*Dashboard!$AY$118)+T147+(T149+T104*'Distributieschema''s'!$H$35*Dashboard!$AY$118)+(T150+T104*'Distributieschema''s'!$H$41*Dashboard!$AY$118)+(T151+T104*'Distributieschema''s'!$H$48*Dashboard!$AY$118))/Uren_hvt_ref -> 0 | U107: =(U127+(U130+U104*'Distributieschema''s'!$H$9*Dashboard!$AY$118)+U131+U134+U135+(U138+U104*'Distributieschema''s'!$H$15*Dashboard!$AY$118)+U139+(U142+U104*'Distributieschema''s'!$H$21*Dashboard!$AY$118)+U143+(U146+U104*'Distributieschema''s'!$H$28*Dashboard!$AY$118)+U147+(U149+U104*'Distributieschema''s'!$H$35*Dashboard!$AY$118)+(U150+U104*'Distributieschema''s'!$H$41*Dashboard!$AY$118)+(U151+U104*'Distributieschema''s'!$H$48*Dashboard!$AY$118))/Uren_hvt_ref -> 0 | V107: =(V127+(V130+V104*'Distributieschema''s'!$H$9*Dashboard!$AY$118)+V131+V134+V135+(V138+V104*'Distributieschema''s'!$H$15*Dashboard!$AY$118)+V139+(V142+V104*'Distributieschema''s'!$H$21*Dashboard!$AY$118)+V143+(V146+V104*'Distributieschema''s'!$H$28*Dashboard!$AY$118)+V147+(V149+V104*'Distributieschema''s'!$H$35*Dashboard!$AY$118)+(V150+V104*'Distributieschema''s'!$H$41*Dashboard!$AY$118)+(V151+V104*'Distributieschema''s'!$H$48*Dashboard!$AY$118))/Uren_hvt_ref -> 0 | W107: =(W127+(W130+W104*'Distributieschema''s'!$H$9*Dashboard!$AY$118)+W131+W134+W135+(W138+W104*'Distributieschema''s'!$H$15*Dashboard!$AY$118)+W139+(W142+W104*'Distributieschema''s'!$H$21*Dashboard!$AY$118)+W143+(W146+W104*'Distributieschema''s'!$H$28*Dashboard!$AY$118)+W147+(W149+W104*'Distributieschema''s'!$H$35*Dashboard!$AY$118)+(W150+W104*'Distributieschema''s'!$H$41*Dashboard!$AY$118)+(W151+W104*'Distributieschema''s'!$H$48*Dashboard!$AY$118))/Uren_hvt_ref -> 0 | X107: =(X127+(X130+X104*'Distributieschema''s'!$H$9*Dashboard!$AY$118)+X131+X134+X135+(X138+X104*'Distributieschema''s'!$H$15*Dashboard!$AY$118)+X139+(X142+X104*'Distributieschema''s'!$H$21*Dashboard!$AY$118)+X143+(X146+X104*'Distributieschema''s'!$H$28*Dashboard!$AY$118)+X147+(X149+X104*'Distributieschema''s'!$H$35*Dashboard!$AY$118)+(X150+X104*'Distributieschema''s'!$H$41*Dashboard!$AY$118)+(X151+X104*'Distributieschema''s'!$H$48*Dashboard!$AY$118))/Uren_hvt_ref -> 0
B108: Effectief aantal benodigde stadsvoertuigen | I108: 0 | J108: =(J161+(J164+J104*'Distributieschema''s'!$H23*Aantal_keer_HB_stadsvt*Dashboard!$AY$119)+J165+(J168+J104*'Distributieschema''s'!$H30*Aantal_keer_HB_stadsvt*Dashboard!$AY$119)+J169+(J172+J104*'Distributieschema''s'!$H43*Aantal_keer_HB_stadsvt*Dashboard!$AY$119)+(J173+J104*'Distributieschema''s'!$H50*Aantal_keer_HB_stadsvt*Dashboard!$AY$119))/Uren_svt -> 0 | K108: =(K161+(K164+K104*'Distributieschema''s'!$H23*Aantal_keer_HB_stadsvt*Dashboard!$AY$119)+K165+(K168+K104*'Distributieschema''s'!$H30*Aantal_keer_HB_stadsvt*Dashboard!$AY$119)+K169+(K172+K104*'Distributieschema''s'!$H43*Aantal_keer_HB_stadsvt*Dashboard!$AY$119)+(K173+K104*'Distributieschema''s'!$H50*Aantal_keer_HB_stadsvt*Dashboard!$AY$119))/Uren_svt -> 0 | L108: =(L161+(L164+L104*'Distributieschema''s'!$H23*Aantal_keer_HB_stadsvt*Dashboard!$AY$119)+L165+(L168+L104*'Distributieschema''s'!$H30*Aantal_keer_HB_stadsvt*Dashboard!$AY$119)+L169+(L172+L104*'Distributieschema''s'!$H43*Aantal_keer_HB_stadsvt*Dashboard!$AY$119)+(L173+L104*'Distributieschema''s'!$H50*Aantal_keer_HB_stadsvt*Dashboard!$AY$119))/Uren_svt -> 0 | M108: =(M161+(M164+M104*'Distributieschema''s'!$H23*Aantal_keer_HB_stadsvt*Dashboard!$AY$119)+M165+(M168+M104*'Distributieschema''s'!$H30*Aantal_keer_HB_stadsvt*Dashboard!$AY$119)+M169+(M172+M104*'Distributieschema''s'!$H43*Aantal_keer_HB_stadsvt*Dashboard!$AY$119)+(M173+M104*'Distributieschema''s'!$H50*Aantal_keer_HB_stadsvt*Dashboard!$AY$119))/Uren_svt -> 0 | N108: =(N161+(N164+N104*'Distributieschema''s'!$H23*Aantal_keer_HB_stadsvt*Dashboard!$AY$119)+N165+(N168+N104*'Distributieschema''s'!$H30*Aantal_keer_HB_stadsvt*Dashboard!$AY$119)+N169+(N172+N104*'Distributieschema''s'!$H43*Aantal_keer_HB_stadsvt*Dashboard!$AY$119)+(N173+N104*'Distributieschema''s'!$H50*Aantal_keer_HB_stadsvt*Dashboard!$AY$119))/Uren_svt -> 0 | O108: =(O161+(O164+O104*'Distributieschema''s'!$H23*Aantal_keer_HB_stadsvt*Dashboard!$AY$119)+O165+(O168+O104*'Distributieschema''s'!$H30*Aantal_keer_HB_stadsvt*Dashboard!$AY$119)+O169+(O172+O104*'Distributieschema''s'!$H43*Aantal_keer_HB_stadsvt*Dashboard!$AY$119)+(O173+O104*'Distributieschema''s'!$H50*Aantal_keer_HB_stadsvt*Dashboard!$AY$119))/Uren_svt -> 0 | P108: =(P161+(P164+P104*'Distributieschema''s'!$H23*Aantal_keer_HB_stadsvt*Dashboard!$AY$119)+P165+(P168+P104*'Distributieschema''s'!$H30*Aantal_keer_HB_stadsvt*Dashboard!$AY$119)+P169+(P172+P104*'Distributieschema''s'!$H43*Aantal_keer_HB_stadsvt*Dashboard!$AY$119)+(P173+P104*'Distributieschema''s'!$H50*Aantal_keer_HB_stadsvt*Dashboard!$AY$119))/Uren_svt -> 0 | Q108: =(Q161+(Q164+Q104*'Distributieschema''s'!$H23*Aantal_keer_HB_stadsvt*Dashboard!$AY$119)+Q165+(Q168+Q104*'Distributieschema''s'!$H30*Aantal_keer_HB_stadsvt*Dashboard!$AY$119)+Q169+(Q172+Q104*'Distributieschema''s'!$H43*Aantal_keer_HB_stadsvt*Dashboard!$AY$119)+(Q173+Q104*'Distributieschema''s'!$H50*Aantal_keer_HB_stadsvt*Dashboard!$AY$119))/Uren_svt -> 0 | R108: =(R161+(R164+R104*'Distributieschema''s'!$H23*Aantal_keer_HB_stadsvt*Dashboard!$AY$119)+R165+(R168+R104*'Distributieschema''s'!$H30*Aantal_keer_HB_stadsvt*Dashboard!$AY$119)+R169+(R172+R104*'Distributieschema''s'!$H43*Aantal_keer_HB_stadsvt*Dashboard!$AY$119)+(R173+R104*'Distributieschema''s'!$H50*Aantal_keer_HB_stadsvt*Dashboard!$AY$119))/Uren_svt -> 0 | S108: =(S161+(S164+S104*'Distributieschema''s'!$H23*Aantal_keer_HB_stadsvt*Dashboard!$AY$119)+S165+(S168+S104*'Distributieschema''s'!$H30*Aantal_keer_HB_stadsvt*Dashboard!$AY$119)+S169+(S172+S104*'Distributieschema''s'!$H43*Aantal_keer_HB_stadsvt*Dashboard!$AY$119)+(S173+S104*'Distributieschema''s'!$H50*Aantal_keer_HB_stadsvt*Dashboard!$AY$119))/Uren_svt -> 0 | T108: =(T161+(T164+T104*'Distributieschema''s'!$H23*Aantal_keer_HB_stadsvt*Dashboard!$AY$119)+T165+(T168+T104*'Distributieschema''s'!$H30*Aantal_keer_HB_stadsvt*Dashboard!$AY$119)+T169+(T172+T104*'Distributieschema''s'!$H43*Aantal_keer_HB_stadsvt*Dashboard!$AY$119)+(T173+T104*'Distributieschema''s'!$H50*Aantal_keer_HB_stadsvt*Dashboard!$AY$119))/Uren_svt -> 0 | U108: =(U161+(U164+U104*'Distributieschema''s'!$H23*Aantal_keer_HB_stadsvt*Dashboard!$AY$119)+U165+(U168+U104*'Distributieschema''s'!$H30*Aantal_keer_HB_stadsvt*Dashboard!$AY$119)+U169+(U172+U104*'Distributieschema''s'!$H43*Aantal_keer_HB_stadsvt*Dashboard!$AY$119)+(U173+U104*'Distributieschema''s'!$H50*Aantal_keer_HB_stadsvt*Dashboard!$AY$119))/Uren_svt -> 0 | V108: =(V161+(V164+V104*'Distributieschema''s'!$H23*Aantal_keer_HB_stadsvt*Dashboard!$AY$119)+V165+(V168+V104*'Distributieschema''s'!$H30*Aantal_keer_HB_stadsvt*Dashboard!$AY$119)+V169+(V172+V104*'Distributieschema''s'!$H43*Aantal_keer_HB_stadsvt*Dashboard!$AY$119)+(V173+V104*'Distributieschema''s'!$H50*Aantal_keer_HB_stadsvt*Dashboard!$AY$119))/Uren_svt -> 0 | W108: =(W161+(W164+W104*'Distributieschema''s'!$H23*Aantal_keer_HB_stadsvt*Dashboard!$AY$119)+W165+(W168+W104*'Distributieschema''s'!$H30*Aantal_keer_HB_stadsvt*Dashboard!$AY$119)+W169+(W172+W104*'Distributieschema''s'!$H43*Aantal_keer_HB_stadsvt*Dashboard!$AY$119)+(W173+W104*'Distributieschema''s'!$H50*Aantal_keer_HB_stadsvt*Dashboard!$AY$119))/Uren_svt -> 0 | X108: =(X161+(X164+X104*'Distributieschema''s'!$H23*Aantal_keer_HB_stadsvt*Dashboard!$AY$119)+X165+(X168+X104*'Distributieschema''s'!$H30*Aantal_keer_HB_stadsvt*Dashboard!$AY$119)+X169+(X172+X104*'Distributieschema''s'!$H43*Aantal_keer_HB_stadsvt*Dashboard!$AY$119)+(X173+X104*'Distributieschema''s'!$H50*Aantal_keer_HB_stadsvt*Dashboard!$AY$119))/Uren_svt -> 0
B111: Werkelijk aantal gereden kilometers | H111: =SUM(I111:X111) -> 70000 | I111: 0 | J111: =SUM(J112:J113) -> 10000 | K111: =SUM(K112:K113) -> 10000 | L111: 10000 | M111: 10000 | N111: 10000 | O111: 10000 | P111: 10000 | Q111: 0 | R111: 0 | S111: 0 | T111: 0 | U111: 0 | V111: 0 | W111: 0 | X111: 0
B112: - waarvan hoofdvoertuig(en) | H112: =SUM(I112:X112) -> 70000 | I112: 0 | J112: =J33*J104 -> 10000 | K112: 10000 | L112: 10000 | M112: 10000 | N112: 10000 | O112: 10000 | P112: 10000 | Q112: 0 | R112: 0 | S112: 0 | T112: 0 | U112: 0 | V112: 0 | W112: 0 | X112: 0
B113: - waarvan stadsvoertuig(en) | H113: =SUM(I113:X113) -> 0 | I113: 0 | J113: =J84*J104 -> 0 | K113: =J113*K$4 -> 0 | L113: 0 | M113: 0 | N113: 0 | O113: 0 | P113: 0 | Q113: 0 | R113: 0 | S113: 0 | T113: 0 | U113: 0 | V113: 0 | W113: 0 | X113: 0
B114: \
B116: Referentiekilometers | H116: =SUM(I116:X116) -> 70000 | I116: 0 | J116: =J104*OD_afstand -> 10000 | K116: 10000 | L116: 10000 | M116: 10000 | N116: 10000 | O116: 10000 | P116: 10000 | Q116: 0 | R116: 0 | S116: 0 | T116: 0 | U116: 0 | V116: 0 | W116: 0 | X116: 0
B117: \
B119: Totaal aantal modaliteitswissels | H119: =SUM(I119:X119) -> 0 | I119: 0 | J119: =SUM(J120:J121) -> 0 | K119: =SUM(K120:K121) -> 0 | L119: =SUM(L120:L121) -> 0 | M119: 0 | N119: 0 | O119: 0 | P119: 0 | Q119: 0 | R119: 0 | S119: 0 | T119: 0 | U119: 0 | V119: 0 | W119: 0 | X119: 0
B120: - waarvan wissels tijdens normale werkuren | H120: =SUM(I120:X120) -> 0 | I120: 0 | J120: =('Distributieschema''s'!H23+'Distributieschema''s'!H43)*J104 -> 0 | K120: =J120*K$4 -> 0 | L120: =K120*L$4 -> 0 | M120: 0 | N120: 0 | O120: 0 | P120: 0 | Q120: 0 | R120: 0 | S120: 0 | T120: 0 | U120: 0 | V120: 0 | W120: 0 | X120: 0
B121: - waarvan wissels tijdens dagrand | H121: =SUM(I121:X121) -> 0 | I121: 0 | J121: =('Distributieschema''s'!H30+'Distributieschema''s'!H50)*J104 -> 0 | K121: =J121*K$4 -> 0 | L121: 0 | M121: 0 | N121: 0 | O121: 0 | P121: 0 | Q121: 0 | R121: 0 | S121: 0 | T121: 0 | U121: 0 | V121: 0 | W121: 0 | X121: 0
B124: Aantal uren hoofdvoertuig per jaar (uren) | H124: =SUM(I124:X124) -> 2225 | I124: 0 | J124: =J125+J129+J133+J137+J141+J145+SUM(J149:J151) -> 317.8571429 | K124: =J124*K$4 -> 317.8571429 | L124: =K124*L$4 -> 317.8571429 | M124: 317.8571429 | N124: 317.8571429 | O124: 317.8571429 | P124: 317.8571429 | Q124: 0 | R124: 0 | S124: 0 | T124: 0 | U124: 0 | V124: 0 | W124: 0 | X124: 0
B125: - waarvan buitenstedelijk gebied tijdens spits | H125: 1700 | I125: 0 | J125: =SUM(J126:J127) -> 242.8571429 | K125: =J125*K$4 -> 242.8571429 | L125: 242.8571429 | M125: 242.8571429 | N125: 242.8571429 | O125: 242.8571429 | P125: 242.8571429 | Q125: 0 | R125: 0 | S125: 0 | T125: 0 | U125: 0 | V125: 0 | W125: 0 | X125: 0
C126: - waarvan klantlocatie in buitenstedelijk gebied | H126: 0 | I126: 0 | J126: =IFERROR(J$104*J35/Snelheid_buitenstedelijk_spits,0) -> 0 | K126: =J126*K$4 -> 0 | L126: 0 | M126: 0 | N126: 0 | O126: 0 | P126: 0 | Q126: 0 | R126: 0 | S126: 0 | T126: 0 | U126: 0 | V126: 0 | W126: 0 | X126: 0
C127: - waarvan klantlocatie in stedelijk of kernwinkelgebied | H127: 1700 | I127: 0 | J127: =IFERROR(J$104*J36/Snelheid_buitenstedelijk_spits,0) -> 242.8571429 | K127: =J127*K$4 -> 242.8571429 | L127: 242.8571429 | M127: 242.8571429 | N127: 242.8571429 | O127: 242.8571429 | P127: 242.8571429 | Q127: 0 | R127: 0 | S127: 0 | T127: 0 | U127: 0 | V127: 0 | W127: 0 | X127: 0
B129: - waarvan buitenstedelijk gebied buiten spits | H129: 0 | I129: 0 | J129: =SUM(J130:J131) -> 0 | K129: =J129*K$4 -> 0 | L129: 0 | M129: 0 | N129: 0 | O129: 0 | P129: 0 | Q129: 0 | R129: 0 | S129: 0 | T129: 0 | U129: 0 | V129: 0 | W129: 0 | X129: 0
C130: - waarvan klantlocatie in buitenstedelijk gebied | H130: 0 | I130: 0 | J130: =IFERROR(J$104*J39/Snelheid_buitenstedelijk,0) -> 0 | K130: =J130*K$4 -> 0 | L130: 0 | M130: 0 | N130: 0 | O130: 0 | P130: 0 | Q130: 0 | R130: 0 | S130: 0 | T130: 0 | U130: 0 | V130: 0 | W130: 0 | X130: 0
C131: - waarvan klantlocatie in stedelijk of kernwinkelgebied | H131: 0 | I131: 0 | J131: =IFERROR(J$104*J40/Snelheid_buitenstedelijk,0) -> 0 | K131: =J131*K$4 -> 0 | L131: 0 | M131: 0 | N131: 0 | O131: 0 | P131: 0 | Q131: 0 | R131: 0 | S131: 0 | T131: 0 | U131: 0 | V131: 0 | W131: 0 | X131: 0
B133: - waarvan buitenstedelijk gebied tijdens dagrand | H133: 0 | I133: 0 | J133: =SUM(J134:J135) -> 0 | K133: =J133*K$4 -> 0 | L133: 0 | M133: 0 | N133: 0 | O133: 0 | P133: 0 | Q133: 0 | R133: 0 | S133: 0 | T133: 0 | U133: 0 | V133: 0 | W133: 0 | X133: 0
C134: - waarvan klantlocatie in buitenstedelijk gebied | H134: 0 | I134: 0 | J134: =IFERROR(J$104*J43/Snelheid_buitenstedelijk,0) -> 0 | K134: =J134*K$4 -> 0 | L134: 0 | M134: 0 | N134: 0 | O134: 0 | P134: 0 | Q134: 0 | R134: 0 | S134: 0 | T134: 0 | U134: 0 | V134: 0 | W134: 0 | X134: 0
C135: - waarvan klantlocatie in stedelijk of kernwinkelgebied | H135: 0 | I135: 0 | J135: =IFERROR(J$104*J44/Snelheid_buitenstedelijk,0) -> 0 | K135: =J135*K$4 -> 0 | L135: 0 | M135: 0 | N135: 0 | O135: 0 | P135: 0 | Q135: 0 | R135: 0 | S135: 0 | T135: 0 | U135: 0 | V135: 0 | W135: 0 | X135: 0
B137: - waarvan stedelijk gebied tijdens AMvB-tijden | H137: 525 | I137: 0 | J137: =SUM(J138:J139) -> 75 | K137: =J137*K$4 -> 75 | L137: 75 | M137: 75 | N137: 75 | O137: 75 | P137: 75 | Q137: 0 | R137: 0 | S137: 0 | T137: 0 | U137: 0 | V137: 0 | W137: 0 | X137: 0
C138: - waarvan klantlocatie in stedelijk gebied | H138: 525 | I138: 0 | J138: =IFERROR(J$104*J47/Snelheid_stedelijk_spits,0) -> 75 | K138: =J138*K$4 -> 75 | L138: 75 | M138: 75 | N138: 75 | O138: 75 | P138: 75 | Q138: 0 | R138: 0 | S138: 0 | T138: 0 | U138: 0 | V138: 0 | W138: 0 | X138: 0
C139: - waarvan klantlocatie in kernwinkelgebied | H139: 0 | I139: 0 | J139: =IFERROR(J$104*J48/Snelheid_stedelijk_spits,0) -> 0 | K139: =J139*K$4 -> 0 | L139: 0 | M139: 0 | N139: 0 | O139: 0 | P139: 0 | Q139: 0 | R139: 0 | S139: 0 | T139: 0 | U139: 0 | V139: 0 | W139: 0 | X139: 0
B141: - waarvan stedelijk gebied buiten AMvB-tijden | H141: 0 | I141: 0 | J141: =SUM(J142:J143) -> 0 | K141: =J141*K$4 -> 0 | L141: 0 | M141: 0 | N141: 0 | O141: 0 | P141: 0 | Q141: 0 | R141: 0 | S141: 0 | T141: 0 | U141: 0 | V141: 0 | W141: 0 | X141: 0
C142: - waarvan klantlocatie in stedelijk gebied | H142: 0 | I142: 0 | J142: =IFERROR(J$104*J51/Snelheid_stedelijk,0) -> 0 | K142: =J142*K$4 -> 0 | L142: 0 | M142: 0 | N142: 0 | O142: 0 | P142: 0 | Q142: 0 | R142: 0 | S142: 0 | T142: 0 | U142: 0 | V142: 0 | W142: 0 | X142: 0
C143: - waarvan klantlocatie in kernwinkelgebied | H143: 0 | I143: 0 | J143: =IFERROR(J$104*J52/Snelheid_stedelijk,0) -> 0 | K143: =J143*K$4 -> 0 | L143: 0 | M143: 0 | N143: 0 | O143: 0 | P143: 0 | Q143: 0 | R143: 0 | S143: 0 | T143: 0 | U143: 0 | V143: 0 | W143: 0 | X143: 0
B145: - waarvan stedelijk gebied dagrand | H145: 0 | I145: 0 | J145: =SUM(J146:J147) -> 0 | K145: =J145*K$4 -> 0 | L145: 0 | M145: 0 | N145: 0 | O145: 0 | P145: 0 | Q145: 0 | R145: 0 | S145: 0 | T145: 0 | U145: 0 | V145: 0 | W145: 0 | X145: 0
C146: - waarvan klantlocatie in stedelijk gebied | H146: 0 | I146: 0 | J146: =IFERROR(J$104*J55/Snelheid_stedelijk,0) -> 0 | K146: =J146*K$4 -> 0 | L146: 0 | M146: 0 | N146: 0 | O146: 0 | P146: 0 | Q146: 0 | R146: 0 | S146: 0 | T146: 0 | U146: 0 | V146: 0 | W146: 0 | X146: 0
C147: - waarvan klantlocatie in kernwinkelgebied | H147: 0 | I147: 0 | J147: =IFERROR(J$104*J56/Snelheid_stedelijk,0) -> 0 | K147: =J147*K$4 -> 0 | L147: 0 | M147: 0 | N147: 0 | O147: 0 | P147: 0 | Q147: 0 | R147: 0 | S147: 0 | T147: 0 | U147: 0 | V147: 0 | W147: 0 | X147: 0
B149: - waarvan kernwinkelgebied tijdens AMvB-tijden | H149: 0 | I149: 0 | J149: =IFERROR(J$104*J58/Snelheid_kwg_spits,0) -> 0 | K149: =J149*K$4 -> 0 | L149: 0 | M149: 0 | N149: 0 | O149: 0 | P149: 0 | Q149: 0 | R149: 0 | S149: 0 | T149: 0 | U149: 0 | V149: 0 | W149: 0 | X149: 0
B150: - waarvan kernwinkelgebied buiten AMvB-tijden | H150: 0 | I150: 0 | J150: =IFERROR(J$104*J59/Snelheid_kwg,0) -> 0 | K150: =J150*K$4 -> 0 | L150: 0 | M150: 0 | N150: 0 | O150: 0 | P150: 0 | Q150: 0 | R150: 0 | S150: 0 | T150: 0 | U150: 0 | V150: 0 | W150: 0 | X150: 0
B151: - waarvan kernwinkelgebied dagrand | H151: 0 | I151: 0 | J151: =IFERROR(J$104*J60/Snelheid_kwg,0) -> 0 | K151: =J151*K$4 -> 0 | L151: 0 | M151: 0 | N151: 0 | O151: 0 | P151: 0 | Q151: 0 | R151: 0 | S151: 0 | T151: 0 | U151: 0 | V151: 0 | W151: 0 | X151: 0
B154: Aantal uren stadsvoertuig per jaar (uren) | H154: =SUM(I154:X154) -> 0 | I154: 0 | J154: =SUM(J155:J157)+J159+J163+J167+SUM(J171:J173) -> 0 | K154: =J154*K$4 -> 0 | L154: 0 | M154: 0 | N154: 0 | O154: 0 | P154: 0 | Q154: 0 | R154: 0 | S154: 0 | T154: 0 | U154: 0 | V154: 0 | W154: 0 | X154: 0
B155: - waarvan buitenstedelijk gebied tijdens spits | H155: 0 | I155: 0 | J155: 0 | K155: 0 | L155: 0 | M155: 0 | N155: 0 | O155: 0 | P155: 0 | Q155: 0 | R155: 0 | S155: 0 | T155: 0 | U155: 0 | V155: 0 | W155: 0 | X155: 0
B156: - waarvan buitenstedelijk gebied buiten spits | H156: 0 | I156: 0 | J156: 0 | K156: =J156*K$4 -> 0 | L156: 0 | M156: 0 | N156: 0 | O156: 0 | P156: 0 | Q156: 0 | R156: 0 | S156: 0 | T156: 0 | U156: 0 | V156: 0 | W156: 0 | X156: 0
B157: - waarvan buitenstedelijk gebied tijdens dagrand | H157: 0 | I157: 0 | J157: 0 | K157: =J157*K$4 -> 0 | L157: 0 | M157: 0 | N157: 0 | O157: 0 | P157: 0 | Q157: 0 | R157: 0 | S157: 0 | T157: 0 | U157: 0 | V157: 0 | W157: 0 | X157: 0
B159: - waarvan stedelijk gebied tijdens AMvB-tijden | H159: 0 | I159: 0 | J159: =SUM(J160:J161) -> 0 | K159: =J159*K$4 -> 0 | L159: 0 | M159: 0 | N159: 0 | O159: 0 | P159: 0 | Q159: 0 | R159: 0 | S159: 0 | T159: 0 | U159: 0 | V159: 0 | W159: 0 | X159: 0
C160: - waarvan klantlocatie in stedelijk gebied | H160: 0 | I160: 0 | J160: =IFERROR(J$105*J88/Snelheid_stedelijk_spits,0) -> 0 | K160: =J160*K$4 -> 0 | L160: 0 | M160: 0 | N160: 0 | O160: 0 | P160: 0 | Q160: 0 | R160: 0 | S160: 0 | T160: 0 | U160: 0 | V160: 0 | W160: 0 | X160: 0
C161: - waarvan klantlocatie in kernwinkelgebied | H161: 0 | I161: 0 | J161: =IFERROR(J$105*J89/Snelheid_stedelijk_spits,0) -> 0 | K161: =J161*K$4 -> 0 | L161: 0 | M161: 0 | N161: 0 | O161: 0 | P161: 0 | Q161: 0 | R161: 0 | S161: 0 | T161: 0 | U161: 0 | V161: 0 | W161: 0 | X161: 0
B163: - waarvan stedelijk gebied buiten AMvB-tijden | H163: 0 | I163: 0 | J163: =SUM(J164:J165) -> 0 | K163: =J163*K$4 -> 0 | L163: 0 | M163: 0 | N163: 0 | O163: 0 | P163: 0 | Q163: 0 | R163: 0 | S163: 0 | T163: 0 | U163: 0 | V163: 0 | W163: 0 | X163: 0
C164: - waarvan klantlocatie in stedelijk gebied | H164: 0 | I164: 0 | J164: =IFERROR(J$105*J71/Snelheid_stedelijk,0) -> 0 | K164: =J164*K$4 -> 0 | L164: 0 | M164: 0 | N164: 0 | O164: 0 | P164: 0 | Q164: 0 | R164: 0 | S164: 0 | T164: 0 | U164: 0 | V164: 0 | W164: 0 | X164: 0
C165: - waarvan klantlocatie in kernwinkelgebied | H165: 0 | I165: 0 | J165: =IFERROR(J$105*J72/Snelheid_stedelijk,0) -> 0 | K165: =J165*K$4 -> 0 | L165: 0 | M165: 0 | N165: 0 | O165: 0 | P165: 0 | Q165: 0 | R165: 0 | S165: 0 | T165: 0 | U165: 0 | V165: 0 | W165: 0 | X165: 0
B167: - waarvan stedelijk gebied dagrand | H167: 0 | I167: 0 | J167: =SUM(J168:J169) -> 0 | K167: =J167*K$4 -> 0 | L167: 0 | M167: 0 | N167: 0 | O167: 0 | P167: 0 | Q167: 0 | R167: 0 | S167: 0 | T167: 0 | U167: 0 | V167: 0 | W167: 0 | X167: 0
C168: - waarvan klantlocatie in stedelijk gebied | H168: 0 | I168: 0 | J168: =IFERROR(J$105*J75/Snelheid_stedelijk,0) -> 0 | K168: =J168*K$4 -> 0 | L168: 0 | M168: 0 | N168: 0 | O168: 0 | P168: 0 | Q168: 0 | R168: 0 | S168: 0 | T168: 0 | U168: 0 | V168: 0 | W168: 0 | X168: 0
C169: - waarvan klantlocatie in kernwinkelgebied | H169: 0 | I169: 0 | J169: =IFERROR(J$105*J76/Snelheid_stedelijk,0) -> 0 | K169: =J169*K$4 -> 0 | L169: 0 | M169: 0 | N169: 0 | O169: 0 | P169: 0 | Q169: 0 | R169: 0 | S169: 0 | T169: 0 | U169: 0 | V169: 0 | W169: 0 | X169: 0
B171: - waarvan kernwinkelgebied tijdens AMvB-tijden | H171: 0 | I171: 0 | J171: =IFERROR(J$105*J78/Snelheid_kwg_spits,0) -> 0 | K171: =J171*K$4 -> 0 | L171: 0 | M171: 0 | N171: 0 | O171: 0 | P171: 0 | Q171: 0 | R171: 0 | S171: 0 | T171: 0 | U171: 0 | V171: 0 | W171: 0 | X171: 0
B172: - waarvan kernwinkelgebied buiten AMvB-tijden | H172: 0 | I172: 0 | J172: =IFERROR(J$105*J79/Snelheid_kwg,0) -> 0 | K172: =J172*K$4 -> 0 | L172: 0 | M172: 0 | N172: 0 | O172: 0 | P172: 0 | Q172: 0 | R172: 0 | S172: 0 | T172: 0 | U172: 0 | V172: 0 | W172: 0 | X172: 0
B173: - waarvan kernwinkelgebied dagrand | H173: 0 | I173: 0 | J173: =IFERROR(J$105*J80/Snelheid_kwg,0) -> 0 | K173: =J173*K$4 -> 0 | L173: 0 | M173: 0 | N173: 0 | O173: 0 | P173: 0 | Q173: 0 | R173: 0 | S173: 0 | T173: 0 | U173: 0 | V173: 0 | W173: 0 | X173: 0
B176: Personeelsinzet hoofd- en stadsvoertuig (uren) | H176: =SUM(I176:X176) -> 2225 | I176: 0 | J176: =J177+J181+J185+J189+J193+J197+SUM(J201:J203) -> 317.8571429 | K176: =J176*K$4 -> 317.8571429 | L176: =K176*L$4 -> 317.8571429 | M176: 317.8571429 | N176: 317.8571429 | O176: 317.8571429 | P176: 317.8571429 | Q176: 0 | R176: 0 | S176: 0 | T176: 0 | U176: 0 | V176: 0 | W176: 0 | X176: 0
B177: - waarvan buitenstedelijk gebied tijdens spits | H177: 1700 | I177: 0 | J177: =SUM(J178:J179) -> 242.8571429 | K177: =J177*K$4 -> 242.8571429 | L177: 242.8571429 | M177: 242.8571429 | N177: 242.8571429 | O177: 242.8571429 | P177: 242.8571429 | Q177: 0 | R177: 0 | S177: 0 | T177: 0 | U177: 0 | V177: 0 | W177: 0 | X177: 0
C178: - waarvan klantlocatie in buitenstedelijk gebied | H178: 0 | I178: 0 | J178: 0 | K178: 0 | L178: 0 | M178: 0 | N178: 0 | O178: 0 | P178: 0 | Q178: 0 | R178: 0 | S178: 0 | T178: 0 | U178: 0 | V178: 0 | W178: 0 | X178: 0
C179: - waarvan klantlocatie in stedelijk of kernwinkelgebied | H179: 1700 | I179: 0 | J179: =Bezetting_hvt*J127 -> 242.8571429 | K179: =J179*K$4 -> 242.8571429 | L179: 242.8571429 | M179: 242.8571429 | N179: 242.8571429 | O179: 242.8571429 | P179: 242.8571429 | Q179: 0 | R179: 0 | S179: 0 | T179: 0 | U179: 0 | V179: 0 | W179: 0 | X179: 0
B181: - waarvan buitenstedelijk gebied buiten spits | H181: 0 | I181: 0 | J181: =SUM(J182:J183) -> 0 | K181: =J181*K$4 -> 0 | L181: 0 | M181: 0 | N181: 0 | O181: 0 | P181: 0 | Q181: 0 | R181: 0 | S181: 0 | T181: 0 | U181: 0 | V181: 0 | W181: 0 | X181: 0
C182: - waarvan klantlocatie in buitenstedelijk gebied | H182: 0 | I182: 0 | J182: =Bezetting_hvt*(J130+J104*'Distributieschema''s'!H9*Dashboard!$AY$118) -> 0 | K182: =J182*K$4 -> 0 | L182: 0 | M182: 0 | N182: 0 | O182: 0 | P182: 0 | Q182: 0 | R182: 0 | S182: 0 | T182: 0 | U182: 0 | V182: 0 | W182: 0 | X182: 0
C183: - waarvan klantlocatie in stedelijk of kernwinkelgebied | H183: 0 | I183: 0 | J183: =Bezetting_hvt*J131 -> 0 | K183: =J183*K$4 -> 0 | L183: 0 | M183: 0 | N183: 0 | O183: 0 | P183: 0 | Q183: 0 | R183: 0 | S183: 0 | T183: 0 | U183: 0 | V183: 0 | W183: 0 | X183: 0
B185: - waarvan buitenstedelijk gebied tijdens dagrand | H185: 0 | I185: 0 | J185: =SUM(J186:J187) -> 0 | K185: =J185*K$4 -> 0 | L185: 0 | M185: 0 | N185: 0 | O185: 0 | P185: 0 | Q185: 0 | R185: 0 | S185: 0 | T185: 0 | U185: 0 | V185: 0 | W185: 0 | X185: 0
C186: - waarvan klantlocatie in buitenstedelijk gebied | H186: 0 | I186: 0 | J186: =Bezetting_hvt*(J134+J104*0*Dashboard!$AY$118) -> 0 | K186: =J186*K$4 -> 0 | L186: 0 | M186: 0 | N186: 0 | O186: 0 | P186: 0 | Q186: 0 | R186: 0 | S186: 0 | T186: 0 | U186: 0 | V186: 0 | W186: 0 | X186: 0
C187: - waarvan klantlocatie in stedelijk of kernwinkelgebied | H187: 0 | I187: 0 | J187: =Bezetting_hvt*J135 -> 0 | K187: =J187*K$4 -> 0 | L187: 0 | M187: 0 | N187: 0 | O187: 0 | P187: 0 | Q187: 0 | R187: 0 | S187: 0 | T187: 0 | U187: 0 | V187: 0 | W187: 0 | X187: 0
B189: - waarvan stedelijk gebied tijdens AMvB-tijden | H189: 525 | I189: 0 | J189: =SUM(J190:J191) -> 75 | K189: =J189*K$4 -> 75 | L189: 75 | M189: 75 | N189: 75 | O189: 75 | P189: 75 | Q189: 0 | R189: 0 | S189: 0 | T189: 0 | U189: 0 | V189: 0 | W189: 0 | X189: 0
C190: - waarvan klantlocatie in stedelijk gebied | H190: 525 | I190: 0 | J190: =Bezetting_hvt*(J138+J104*'Distributieschema''s'!H15*Dashboard!$AY$118)+Bezetting_svt*(J160+J104*0*Aantal_keer_HB_stadsvt*Dashboard!$AY$119) -> 75 | K190: =J190*K$4 -> 75 | L190: 75 | M190: 75 | N190: 75 | O190: 75 | P190: 75 | Q190: 0 | R190: 0 | S190: 0 | T190: 0 | U190: 0 | V190: 0 | W190: 0 | X190: 0
C191: - waarvan klantlocatie in kernwinkelgebied | H191: 0 | I191: 0 | J191: =Bezetting_hvt*J139+Bezetting_svt*J161 -> 0 | K191: =J191*K$4 -> 0 | L191: 0 | M191: 0 | N191: 0 | O191: 0 | P191: 0 | Q191: 0 | R191: 0 | S191: 0 | T191: 0 | U191: 0 | V191: 0 | W191: 0 | X191: 0
B193: - waarvan stedelijk gebied buiten AMvB-tijden | H193: 0 | I193: 0 | J193: =SUM(J194:J195) -> 0 | K193: =J193*K$4 -> 0 | L193: 0 | M193: 0 | N193: 0 | O193: 0 | P193: 0 | Q193: 0 | R193: 0 | S193: 0 | T193: 0 | U193: 0 | V193: 0 | W193: 0 | X193: 0
C194: - waarvan klantlocatie in stedelijk gebied | H194: 0 | I194: 0 | J194: =Bezetting_hvt*(J142+J104*'Distributieschema''s'!H21*Dashboard!$AY$118)+Bezetting_svt*(J164+J104*'Distributieschema''s'!H23*Aantal_keer_HB_stadsvt*Dashboard!$AY$119) -> 0 | K194: =J194*K$4 -> 0 | L194: 0 | M194: 0 | N194: 0 | O194: 0 | P194: 0 | Q194: 0 | R194: 0 | S194: 0 | T194: 0 | U194: 0 | V194: 0 | W194: 0 | X194: 0
C195: - waarvan klantlocatie in kernwinkelgebied | H195: 0 | I195: 0 | J195: =Bezetting_hvt*J143+Bezetting_svt*J165 -> 0 | K195: =J195*K$4 -> 0 | L195: 0 | M195: 0 | N195: 0 | O195: 0 | P195: 0 | Q195: 0 | R195: 0 | S195: 0 | T195: 0 | U195: 0 | V195: 0 | W195: 0 | X195: 0
H196: 0
B197: - waarvan stedelijk gebied dagrand | H197: 0 | I197: 0 | J197: =SUM(J198:J199) -> 0 | K197: =J197*K$4 -> 0 | L197: 0 | M197: 0 | N197: 0 | O197: 0 | P197: 0 | Q197: 0 | R197: 0 | S197: 0 | T197: 0 | U197: 0 | V197: 0 | W197: 0 | X197: 0
C198: - waarvan klantlocatie in stedelijk gebied | H198: 0 | I198: 0 | J198: =Bezetting_hvt*(J146+J104*'Distributieschema''s'!H28*Dashboard!$AY$118)+Bezetting_svt*(J168+J104*'Distributieschema''s'!H30*Aantal_keer_HB_stadsvt*Dashboard!$AY$119) -> 0 | K198: =J198*K$4 -> 0 | L198: 0 | M198: 0 | N198: 0 | O198: 0 | P198: 0 | Q198: 0 | R198: 0 | S198: 0 | T198: 0 | U198: 0 | V198: 0 | W198: 0 | X198: 0
C199: - waarvan klantlocatie in kernwinkelgebied | H199: 0 | I199: 0 | J199: =Bezetting_hvt*J147+Bezetting_svt*J169 -> 0 | K199: =J199*K$4 -> 0 | L199: 0 | M199: 0 | N199: 0 | O199: 0 | P199: 0 | Q199: 0 | R199: 0 | S199: 0 | T199: 0 | U199: 0 | V199: 0 | W199: 0 | X199: 0
B201: - waarvan kernwinkelgebied tijdens AMvB-tijden | H201: 0 | I201: 0 | J201: =Bezetting_hvt*(J149+J104*'Distributieschema''s'!H35*Dashboard!$AY$118)+Bezetting_svt*(J171+J104*0*Aantal_keer_HB_stadsvt*Dashboard!$AY$119) -> 0 | K201: =J201*K$4 -> 0 | L201: 0 | M201: 0 | N201: 0 | O201: 0 | P201: 0 | Q201: 0 | R201: 0 | S201: 0 | T201: 0 | U201: 0 | V201: 0 | W201: 0 | X201: 0
B202: - waarvan kernwinkelgebied buiten AMvB-tijden | H202: 0 | I202: 0 | J202: =Bezetting_hvt*(J150+J104*'Distributieschema''s'!H41*Dashboard!$AY$118)+Bezetting_svt*(J172+J104*'Distributieschema''s'!H43*Aantal_keer_HB_stadsvt*Dashboard!$AY$119) -> 0 | K202: =J202*K$4 -> 0 | L202: 0 | M202: 0 | N202: 0 | O202: 0 | P202: 0 | Q202: 0 | R202: 0 | S202: 0 | T202: 0 | U202: 0 | V202: 0 | W202: 0 | X202: 0
B203: - waarvan kernwinkelgebied dagrand | H203: 0 | I203: 0 | J203: =Bezetting_hvt*(J151+J104*'Distributieschema''s'!H48*Dashboard!$AY$118)+Bezetting_svt*(J173+J104*'Distributieschema''s'!H50*Aantal_keer_HB_stadsvt*Dashboard!$AY$119) -> 0 | K203: =J203*K$4 -> 0 | L203: 0 | M203: 0 | N203: 0 | O203: 0 | P203: 0 | Q203: 0 | R203: 0 | S203: 0 | T203: 0 | U203: 0 | V203: 0 | W203: 0 | X203: 0
B206: Brandstofprijs en - verbruik hoofdvoertuig
B207: ="Brandstof 1: "&Dashboard!H37&" ("&Dashboard!H38&")" -> Brandstof 1: Diesel (liter) | G207: =BrandstofprijsR+Dashboard!H130 -> 0.97 | I207: 0 | J207: =J104*((J38+J42)+(J50+J54+J59+J60)*(1+Extra_verbruik_stad)+(J34)*(1+Extra_verbruik_spits)+(J46+J58)*(1+Extra_verbruik_spits)*(1+Extra_verbruik_stad))/100*Dashboard!$H$96*Dashboard!$H$97 -> 2800 | K207: =K104*((K38+K42)+(K50+K54+K59+K60)*(1+Extra_verbruik_stad)+(K34)*(1+Extra_verbruik_spits)+(K46+K58)*(1+Extra_verbruik_spits)*(1+Extra_verbruik_stad))/100*Dashboard!$H$96*Dashboard!$H$97 -> 2800 | L207: =L104*((L38+L42)+(L50+L54+L59+L60)*(1+Extra_verbruik_stad)+(L34)*(1+Extra_verbruik_spits)+(L46+L58)*(1+Extra_verbruik_spits)*(1+Extra_verbruik_stad))/100*Dashboard!$H$96*Dashboard!$H$97 -> 2800 | M207: =M104*((M38+M42)+(M50+M54+M59+M60)*(1+Extra_verbruik_stad)+(M34)*(1+Extra_verbruik_spits)+(M46+M58)*(1+Extra_verbruik_spits)*(1+Extra_verbruik_stad))/100*Dashboard!$H$96*Dashboard!$H$97 -> 2800 | N207: =N104*((N38+N42)+(N50+N54+N59+N60)*(1+Extra_verbruik_stad)+(N34)*(1+Extra_verbruik_spits)+(N46+N58)*(1+Extra_verbruik_spits)*(1+Extra_verbruik_stad))/100*Dashboard!$H$96*Dashboard!$H$97 -> 2800 | O207: =O104*((O38+O42)+(O50+O54+O59+O60)*(1+Extra_verbruik_stad)+(O34)*(1+Extra_verbruik_spits)+(O46+O58)*(1+Extra_verbruik_spits)*(1+Extra_verbruik_stad))/100*Dashboard!$H$96*Dashboard!$H$97 -> 2800 | P207: =P104*((P38+P42)+(P50+P54+P59+P60)*(1+Extra_verbruik_stad)+(P34)*(1+Extra_verbruik_spits)+(P46+P58)*(1+Extra_verbruik_spits)*(1+Extra_verbruik_stad))/100*Dashboard!$H$96*Dashboard!$H$97 -> 2800 | Q207: =Q104*((Q38+Q42)+(Q50+Q54+Q59+Q60)*(1+Extra_verbruik_stad)+(Q34)*(1+Extra_verbruik_spits)+(Q46+Q58)*(1+Extra_verbruik_spits)*(1+Extra_verbruik_stad))/100*Dashboard!$H$96*Dashboard!$H$97 -> 0 | R207: =R104*((R38+R42)+(R50+R54+R59+R60)*(1+Extra_verbruik_stad)+(R34)*(1+Extra_verbruik_spits)+(R46+R58)*(1+Extra_verbruik_spits)*(1+Extra_verbruik_stad))/100*Dashboard!$H$96*Dashboard!$H$97 -> 0 | S207: =S104*((S38+S42)+(S50+S54+S59+S60)*(1+Extra_verbruik_stad)+(S34)*(1+Extra_verbruik_spits)+(S46+S58)*(1+Extra_verbruik_spits)*(1+Extra_verbruik_stad))/100*Dashboard!$H$96*Dashboard!$H$97 -> 0 | T207: =T104*((T38+T42)+(T50+T54+T59+T60)*(1+Extra_verbruik_stad)+(T34)*(1+Extra_verbruik_spits)+(T46+T58)*(1+Extra_verbruik_spits)*(1+Extra_verbruik_stad))/100*Dashboard!$H$96*Dashboard!$H$97 -> 0 | U207: =U104*((U38+U42)+(U50+U54+U59+U60)*(1+Extra_verbruik_stad)+(U34)*(1+Extra_verbruik_spits)+(U46+U58)*(1+Extra_verbruik_spits)*(1+Extra_verbruik_stad))/100*Dashboard!$H$96*Dashboard!$H$97 -> 0 | V207: =V104*((V38+V42)+(V50+V54+V59+V60)*(1+Extra_verbruik_stad)+(V34)*(1+Extra_verbruik_spits)+(V46+V58)*(1+Extra_verbruik_spits)*(1+Extra_verbruik_stad))/100*Dashboard!$H$96*Dashboard!$H$97 -> 0 | W207: =W104*((W38+W42)+(W50+W54+W59+W60)*(1+Extra_verbruik_stad)+(W34)*(1+Extra_verbruik_spits)+(W46+W58)*(1+Extra_verbruik_spits)*(1+Extra_verbruik_stad))/100*Dashboard!$H$96*Dashboard!$H$97 -> 0 | X207: =X104*((X38+X42)+(X50+X54+X59+X60)*(1+Extra_verbruik_stad)+(X34)*(1+Extra_verbruik_spits)+(X46+X58)*(1+Extra_verbruik_spits)*(1+Extra_verbruik_stad))/100*Dashboard!$H$96*Dashboard!$H$97 -> 0
B208: ="Brandstof 2: "&IFERROR(Dashboard!H39&" ("&Dashboard!H40&")","n.v.t.") -> Brandstof 2: n.v.t. | G208: =IF(switch_ref_br2=1,BrandstofprijsR_2+Dashboard!H131,"n.v.t.") -> n.v.t. | I208: 0 | J208: =J104*((J38+J42+J50+J54+J59+J60)+(J34+J46+J58)*(1+Extra_verbruik_spits))/100*Dashboard!$H$99*Dashboard!$H$100 -> 0 | K208: =K104*((K38+K42+K50+K54+K59+K60)+(K34+K46+K58)*(1+Extra_verbruik_spits))/100*Dashboard!$H$99*Dashboard!$H$100 -> 0 | L208: =L104*((L38+L42+L50+L54+L59+L60)+(L34+L46+L58)*(1+Extra_verbruik_spits))/100*Dashboard!$H$99*Dashboard!$H$100 -> 0 | M208: =M104*((M38+M42+M50+M54+M59+M60)+(M34+M46+M58)*(1+Extra_verbruik_spits))/100*Dashboard!$H$99*Dashboard!$H$100 -> 0 | N208: =N104*((N38+N42+N50+N54+N59+N60)+(N34+N46+N58)*(1+Extra_verbruik_spits))/100*Dashboard!$H$99*Dashboard!$H$100 -> 0 | O208: =O104*((O38+O42+O50+O54+O59+O60)+(O34+O46+O58)*(1+Extra_verbruik_spits))/100*Dashboard!$H$99*Dashboard!$H$100 -> 0 | P208: =P104*((P38+P42+P50+P54+P59+P60)+(P34+P46+P58)*(1+Extra_verbruik_spits))/100*Dashboard!$H$99*Dashboard!$H$100 -> 0 | Q208: =Q104*((Q38+Q42+Q50+Q54+Q59+Q60)+(Q34+Q46+Q58)*(1+Extra_verbruik_spits))/100*Dashboard!$H$99*Dashboard!$H$100 -> 0 | R208: =R104*((R38+R42+R50+R54+R59+R60)+(R34+R46+R58)*(1+Extra_verbruik_spits))/100*Dashboard!$H$99*Dashboard!$H$100 -> 0 | S208: =S104*((S38+S42+S50+S54+S59+S60)+(S34+S46+S58)*(1+Extra_verbruik_spits))/100*Dashboard!$H$99*Dashboard!$H$100 -> 0 | T208: =T104*((T38+T42+T50+T54+T59+T60)+(T34+T46+T58)*(1+Extra_verbruik_spits))/100*Dashboard!$H$99*Dashboard!$H$100 -> 0 | U208: =U104*((U38+U42+U50+U54+U59+U60)+(U34+U46+U58)*(1+Extra_verbruik_spits))/100*Dashboard!$H$99*Dashboard!$H$100 -> 0 | V208: =V104*((V38+V42+V50+V54+V59+V60)+(V34+V46+V58)*(1+Extra_verbruik_spits))/100*Dashboard!$H$99*Dashboard!$H$100 -> 0 | W208: =W104*((W38+W42+W50+W54+W59+W60)+(W34+W46+W58)*(1+Extra_verbruik_spits))/100*Dashboard!$H$99*Dashboard!$H$100 -> 0 | X208: =X104*((X38+X42+X50+X54+X59+X60)+(X34+X46+X58)*(1+Extra_verbruik_spits))/100*Dashboard!$H$99*Dashboard!$H$100 -> 0
B211: Aantal uren
B212: Werkelijk aantal uren/jaar | G212: =J176+J119*J12 -> 317.8571429
B214: Overzicht kosten | D214: EUR | G214: =IF(Per_uur=1,"Per uur","Per H/B km") -> Per H/B km | H214: Totaal | I214: =I19 -> 0 | J214: 1 | K214: 2 | L214: 3 | M214: 4 | N214: 5 | O214: 6 | P214: 7 | Q214: 8 | R214: 9 | S214: 10 | T214: 11 | U214: 12 | V214: 13 | W214: 14 | X214: 15
B216: Brandstofkosten hoofdvoertuig | G216: =IFERROR(H216/($H$116*Per_km+Dashboard!H$102*Uren_Referentie*Per_uur),0) -> 0.2716 | H216: =SUM(I216:X216) -> 19012 | I216: 0 | J216: =J207*SUM($G$207)+J208*SUM($G$208) -> 2716 | K216: 2716 | L216: 2716 | M216: 2716 | N216: 2716 | O216: 2716 | P216: 2716 | Q216: 0 | R216: 0 | S216: 0 | T216: 0 | U216: 0 | V216: 0 | W216: 0 | X216: 0
B217: Onderhoudskosten | G217: =IFERROR(H217/($H$116*Per_km+Dashboard!H$102*Uren_Referentie*Per_uur),0) -> 0 | H217: 0 | I217: 0 | J217: =Dashboard!$H104*J112*J4 -> 0 | K217: =Dashboard!$H104*K112*K4 -> 0 | L217: =Dashboard!$H104*L112*L4 -> 0 | M217: =Dashboard!$H104*M112*M4 -> 0 | N217: =Dashboard!$H104*N112*N4 -> 0 | O217: =Dashboard!$H104*O112*O4 -> 0 | P217: =Dashboard!$H104*P112*P4 -> 0 | Q217: =Dashboard!$H104*Q112*Q4 -> 0 | R217: =Dashboard!$H104*R112*R4 -> 0 | S217: =Dashboard!$H104*S112*S4 -> 0 | T217: =Dashboard!$H104*T112*T4 -> 0 | U217: =Dashboard!$H104*U112*U4 -> 0 | V217: =Dashboard!$H104*V112*V4 -> 0 | W217: =Dashboard!$H104*W112*W4 -> 0 | X217: =Dashboard!$H104*X112*X4 -> 0
B218: Verzekeringen | G218: =IFERROR(H218/($H$116*Per_km+Dashboard!H$102*Uren_Referentie*Per_uur),0) -> 0 | H218: 0 | I218: 0 | J218: =Dashboard!$H105*J107*J4 -> 0 | K218: =Dashboard!$H105*K107*K4 -> 0 | L218: =Dashboard!$H105*L107*L4 -> 0 | M218: =Dashboard!$H105*M107*M4 -> 0 | N218: =Dashboard!$H105*N107*N4 -> 0 | O218: =Dashboard!$H105*O107*O4 -> 0 | P218: =Dashboard!$H105*P107*P4 -> 0 | Q218: =Dashboard!$H105*Q107*Q4 -> 0 | R218: =Dashboard!$H105*R107*R4 -> 0 | S218: =Dashboard!$H105*S107*S4 -> 0 | T218: =Dashboard!$H105*T107*T4 -> 0 | U218: =Dashboard!$H105*U107*U4 -> 0 | V218: =Dashboard!$H105*V107*V4 -> 0 | W218: =Dashboard!$H105*W107*W4 -> 0 | X218: =Dashboard!$H105*X107*X4 -> 0
B219: Voertuigbelasting | G219: =IFERROR(H219/($H$116*Per_km+Dashboard!H$102*Uren_Referentie*Per_uur),0) -> 0 | H219: 0 | I219: 0 | J219: =(Dashboard!$H106+Dashboard!$H129)*J107*J4 -> 0 | K219: =(Dashboard!$H106+Dashboard!$H129)*K107*K4 -> 0 | L219: =(Dashboard!$H106+Dashboard!$H129)*L107*L4 -> 0 | M219: =(Dashboard!$H106+Dashboard!$H129)*M107*M4 -> 0 | N219: =(Dashboard!$H106+Dashboard!$H129)*N107*N4 -> 0 | O219: =(Dashboard!$H106+Dashboard!$H129)*O107*O4 -> 0 | P219: =(Dashboard!$H106+Dashboard!$H129)*P107*P4 -> 0 | Q219: =(Dashboard!$H106+Dashboard!$H129)*Q107*Q4 -> 0 | R219: =(Dashboard!$H106+Dashboard!$H129)*R107*R4 -> 0 | S219: =(Dashboard!$H106+Dashboard!$H129)*S107*S4 -> 0 | T219: =(Dashboard!$H106+Dashboard!$H129)*T107*T4 -> 0 | U219: =(Dashboard!$H106+Dashboard!$H129)*U107*U4 -> 0 | V219: =(Dashboard!$H106+Dashboard!$H129)*V107*V4 -> 0 | W219: =(Dashboard!$H106+Dashboard!$H129)*W107*W4 -> 0 | X219: =(Dashboard!$H106+Dashboard!$H129)*X107*X4 -> 0
B220: Kosten ontheffing AMvB-tijden | G220: =IFERROR(H220/($H$116*Per_km+Dashboard!H$102*Uren_Referentie*Per_uur),0) -> 0 | H220: 0 | I220: 0 | J220: =(Dashboard!$H127+Dashboard!$H128)*J4 -> 0 | K220: =(Dashboard!$H127+Dashboard!$H128)*K4 -> 0 | L220: =(Dashboard!$H127+Dashboard!$H128)*L4 -> 0 | M220: =(Dashboard!$H127+Dashboard!$H128)*M4 -> 0 | N220: =(Dashboard!$H127+Dashboard!$H128)*N4 -> 0 | O220: =(Dashboard!$H127+Dashboard!$H128)*O4 -> 0 | P220: =(Dashboard!$H127+Dashboard!$H128)*P4 -> 0 | Q220: =(Dashboard!$H127+Dashboard!$H128)*Q4 -> 0 | R220: =(Dashboard!$H127+Dashboard!$H128)*R4 -> 0 | S220: =(Dashboard!$H127+Dashboard!$H128)*S4 -> 0 | T220: =(Dashboard!$H127+Dashboard!$H128)*T4 -> 0 | U220: =(Dashboard!$H127+Dashboard!$H128)*U4 -> 0 | V220: =(Dashboard!$H127+Dashboard!$H128)*V4 -> 0 | W220: =(Dashboard!$H127+Dashboard!$H128)*W4 -> 0 | X220: =(Dashboard!$H127+Dashboard!$H128)*X4 -> 0
B221: Overige kosten | G221: =IFERROR(H221/($H$116*Per_km+Dashboard!H$102*Uren_Referentie*Per_uur),0) -> 0 | H221: 0 | I221: 0 | J221: =Dashboard!$H$107*J107*J4 -> 0 | K221: =Dashboard!$H$107*K107*K4 -> 0 | L221: =Dashboard!$H$107*L107*L4 -> 0 | M221: =Dashboard!$H$107*M107*M4 -> 0 | N221: =Dashboard!$H$107*N107*N4 -> 0 | O221: =Dashboard!$H$107*O107*O4 -> 0 | P221: =Dashboard!$H$107*P107*P4 -> 0 | Q221: =Dashboard!$H$107*Q107*Q4 -> 0 | R221: =Dashboard!$H$107*R107*R4 -> 0 | S221: =Dashboard!$H$107*S107*S4 -> 0 | T221: =Dashboard!$H$107*T107*T4 -> 0 | U221: =Dashboard!$H$107*U107*U4 -> 0 | V221: =Dashboard!$H$107*V107*V4 -> 0 | W221: =Dashboard!$H$107*W107*W4 -> 0 | X221: =Dashboard!$H$107*X107*X4 -> 0
B222: TCO inzet stadsvoertuigen | G222: =IFERROR(H222/($H$116*Per_km+Dashboard!H$102*Uren_Referentie*Per_uur),0) -> 0 | H222: 0 | I222: 0 | J222: =J4*(J108*TCO_stadsvoertuig_vast)+J113*TCO_stadsvoertuig_variabel -> 0 | K222: 0 | L222: 0 | M222: 0 | N222: 0 | O222: 0 | P222: 0 | Q222: 0 | R222: 0 | S222: 0 | T222: 0 | U222: 0 | V222: 0 | W222: 0 | X222: 0
B223: Personeelskosten hoofd- en stadsvoertuigen | G223: =IFERROR(H223/($H$116*Per_km+Dashboard!H$102*Uren_Referentie*Per_uur),0) -> 0.7946428571 | H223: 55625 | I223: 0 | J223: =(J177+J181+J189+J193+J201+J202)*Uurtarief_normaal+(J185+J197+J203)*Uurtarief_hoog -> 7946.428571 | K223: 7946.428571 | L223: 7946.428571 | M223: 7946.428571 | N223: 7946.428571 | O223: 7946.428571 | P223: 7946.428571 | Q223: 0 | R223: 0 | S223: 0 | T223: 0 | U223: 0 | V223: 0 | W223: 0 | X223: 0
B224: Personeelskosten modaliteitswissels | G224: =IFERROR(H224/($H$116*Per_km+Dashboard!H$102*Uren_Referentie*Per_uur),0) -> 0 | H224: 0 | I224: 0 | J224: =J120*J12*Uurtarief_normaal+J121*J12*Uurtarief_hoog -> 0 | K224: 0 | L224: 0 | M224: 0 | N224: 0 | O224: 0 | P224: 0 | Q224: 0 | R224: 0 | S224: 0 | T224: 0 | U224: 0 | V224: 0 | W224: 0 | X224: 0
B225: Rente | G225: =IFERROR(H225/($H$116*Per_km+Dashboard!H$102*Uren_Referentie*Per_uur),0) -> 0.01043865822 | H225: 730.7060755 | I225: 0 | J225: =I257*Rente_reeel+I256*zachte_rente_reeelR -> 182.6765189 | K225: 156.5798733 | L225: 130.4832278 | M225: 104.3865822 | N225: 78.28993666 | O225: 52.19329111 | P225: 26.09664555 | Q225: 0 | R225: 0 | S225: 0 | T225: 0 | U225: 0 | V225: 0 | W225: 0 | X225: 0
B226: Bedrijfseconomische afschrijving | G226: =IFERROR(H226/($H$116*Per_km+Dashboard!H$102*Uren_Referentie*Per_uur),0) -> 0.105952381 | H226: 7416.666667 | I226: 0 | J226: =IFERROR((-$H241-Dashboard!$H103*J107)/Dashboard!$H102*J4,0) -> 1059.52381 | K226: =IFERROR((-$H241-Dashboard!$H103*K107)/Dashboard!$H102*K4,0) -> 1059.52381 | L226: =IFERROR((-$H241-Dashboard!$H103*L107)/Dashboard!$H102*L4,0) -> 1059.52381 | M226: =IFERROR((-$H241-Dashboard!$H103*M107)/Dashboard!$H102*M4,0) -> 1059.52381 | N226: =IFERROR((-$H241-Dashboard!$H103*N107)/Dashboard!$H102*N4,0) -> 1059.52381 | O226: =IFERROR((-$H241-Dashboard!$H103*O107)/Dashboard!$H102*O4,0) -> 1059.52381 | P226: =IFERROR((-$H241-Dashboard!$H103*P107)/Dashboard!$H102*P4,0) -> 1059.52381 | Q226: =IFERROR((-$H241-Dashboard!$H103*Q107)/Dashboard!$H102*Q4,0) -> 0 | R226: =IFERROR((-$H241-Dashboard!$H103*R107)/Dashboard!$H102*R4,0) -> 0 | S226: =IFERROR((-$H241-Dashboard!$H103*S107)/Dashboard!$H102*S4,0) -> 0 | T226: =IFERROR((-$H241-Dashboard!$H103*T107)/Dashboard!$H102*T4,0) -> 0 | U226: =IFERROR((-$H241-Dashboard!$H103*U107)/Dashboard!$H102*U4,0) -> 0 | V226: =IFERROR((-$H241-Dashboard!$H103*V107)/Dashboard!$H102*V4,0) -> 0 | W226: =IFERROR((-$H241-Dashboard!$H103*W107)/Dashboard!$H102*W4,0) -> 0 | X226: =IFERROR((-$H241-Dashboard!$H103*X107)/Dashboard!$H102*X4,0) -> 0
B227: Totaal Kritische Distributie Kosten | G227: =SUM(G216:G226) -> 1.182633896 | H227: 82784.37274 | I227: =SUM(I216:I226) -> 0 | J227: 11904.6289 | K227: 11878.53225 | L227: 11852.43561 | M227: 11826.33896 | N227: 11800.24232 | O227: 11774.14567 | P227: 11748.04903 | Q227: 0 | R227: 0 | S227: 0 | T227: 0 | U227: 0 | V227: 0 | W227: 0 | X227: 0
B229: Overzicht kasstromen | D229: EUR | H229: Totaal | I229: =I214 -> 0 | J229: 1 | K229: 2 | L229: 3 | M229: 4 | N229: 5 | O229: 6 | P229: 7 | Q229: 8 | R229: 9 | S229: 10 | T229: 11 | U229: 12 | V229: 13 | W229: 14 | X229: 15
B230: negatieve cijfers = cash out, positieve cijfers = cash in
B231: Operationele kasstroom | H231: =SUM(I231:X231) -> -75367.70608 | I231: =-I227+I226 -> 0 | J231: -10845.10509 | K231: -10819.00844 | L231: -10792.9118 | M231: -10766.81515 | N231: -10740.71851 | O231: =-O227+O226 -> -10714.62186 | P231: -10688.52522 | Q231: 0 | R231: 0 | S231: 0 | T231: 0 | U231: 0 | V231: 0 | W231: 0 | X231: 0
B232: (totaal kritische distributiekosten excl. afschrijving)
B234: =CONCATENATE("Investering in "&ROUND(J107,1)&" effectief in te zetten hoofdvoertuig(en)") -> Investering in 0,1 effectief in te zetten hoofdvoertuig(en) | H234: =SUM(I234:X234) -> -7416.666667 | I234: =-Dashboard!$H$101*J107 -> -7416.666667 | J234: 0 | K234: 0 | L234: 0 | M234: 0 | N234: 0 | O234: 0 | P234: 0 | Q234: 0 | R234: 0 | S234: 0 | T234: 0 | U234: 0 | V234: 0 | W234: 0 | X234: 0
B235: Investeringssubsidie | H235: =SUM(I235:X235) -> 0 | I235: =-Dashboard!$H118*I234 -> 0 | J235: 0 | K235: 0 | L235: 0 | M235: 0 | N235: 0 | O235: 0 | P235: 0 | Q235: 0 | R235: 0 | S235: 0 | T235: 0 | U235: 0 | V235: 0 | W235: 0 | X235: 0
B236: Netto Investering | H236: =SUM(I236:X236) -> -7416.666667 | I236: =I234+I235 -> -7416.666667 | J236: 0 | K236: 0 | L236: 0 | M236: 0 | N236: 0 | O236: 0 | P236: 0 | Q236: 0 | R236: 0 | S236: 0 | T236: 0 | U236: 0 | V236: 0 | W236: 0 | X236: 0
B238: Kasstroomeffect MIA | H238: =SUM(I238:X238) -> 0 | I238: =-I236*Dashboard!$H116*VpB -> 0 | J238: =-J236*Dashboard!$H116*VpB -> 0 | K238: =-K236*Dashboard!$H116*VpB -> 0 | L238: =-L236*Dashboard!$H116*VpB -> 0 | M238: =-M236*Dashboard!$H116*VpB -> 0 | N238: =-N236*Dashboard!$H116*VpB -> 0 | O238: =-O236*Dashboard!$H116*VpB -> 0 | P238: =-P236*Dashboard!$H116*VpB -> 0 | Q238: =-Q236*Dashboard!$H116*VpB -> 0 | R238: =-R236*Dashboard!$H116*VpB -> 0 | S238: =-S236*Dashboard!$H116*VpB -> 0 | T238: =-T236*Dashboard!$H116*VpB -> 0 | U238: =-U236*Dashboard!$H116*VpB -> 0 | V238: =-V236*Dashboard!$H116*VpB -> 0 | W238: =-W236*Dashboard!$H116*VpB -> 0 | X238: =-X236*Dashboard!$H116*VpB -> 0
B239: Kasstroomeffect VAMIL | H239: =SUM(I239:X239) -> 0 | I239: =(I10-I9)*-$H236*VpB -> 0 | J239: 0 | K239: 0 | L239: 0 | M239: 0 | N239: 0 | O239: 0 | P239: 0 | Q239: 0 | R239: 0 | S239: 0 | T239: 0 | U239: 0 | V239: 0 | W239: 0 | X239: 0
B241: Netto investeringsgerelateerde kassstroom | H241: =SUM(I241:X241) -> -7416.666667 | I241: =SUM(I236:I239) -> -7416.666667 | J241: 0 | K241: 0 | L241: 0 | M241: 0 | N241: 0 | O241: =SUM(O236:O239) -> 0 | P241: 0 | Q241: 0 | R241: 0 | S241: 0 | T241: 0 | U241: 0 | V241: 0 | W241: 0 | X241: 0
B243: Opname zachte leningen | H243: =SUM(I243:X243) -> 0 | I243: =Dashboard!$H134*-I236 -> 0 | J243: 0 | K243: 0 | L243: 0 | M243: 0 | N243: 0 | O243: 0 | P243: 0 | Q243: 0 | R243: 0 | S243: 0 | T243: 0 | U243: 0 | V243: 0 | W243: 0 | X243: 0
B244: Opname reguliere leningen | H244: =SUM(I244:X244) -> 7416.666667 | I244: =(1-Dashboard!$H134)*-I236 -> 7416.666667 | J244: =(1-Dashboard!$H134)*-J236 -> 0 | K244: =(1-Dashboard!$H134)*-K236 -> 0 | L244: =(1-Dashboard!$H134)*-L236 -> 0 | M244: =(1-Dashboard!$H134)*-M236 -> 0 | N244: =(1-Dashboard!$H134)*-N236 -> 0 | O244: =(1-Dashboard!$H134)*-O236 -> 0 | P244: =(1-Dashboard!$H134)*-P236 -> 0 | Q244: =(1-Dashboard!$H134)*-Q236 -> 0 | R244: =(1-Dashboard!$H134)*-R236 -> 0 | S244: =(1-Dashboard!$H134)*-S236 -> 0 | T244: =(1-Dashboard!$H134)*-T236 -> 0 | U244: =(1-Dashboard!$H134)*-U236 -> 0 | V244: =(1-Dashboard!$H134)*-V236 -> 0 | W244: =(1-Dashboard!$H134)*-W236 -> 0 | X244: =(1-Dashboard!$H134)*-X236 -> 0
B245: Aflossing reguliere leningen | H245: =SUM(I245:X245) -> -7416.666667 | I245: 0 | J245: =IFERROR(-(-$H236-Dashboard!$H103)/Dashboard!$H102*(1-Dashboard!$H134)*J5-(I257+J244)*J6,0) -> -1059.52381 | K245: =IFERROR(-(-$H236-Dashboard!$H103)/Dashboard!$H102*(1-Dashboard!$H134)*K5-(J257+K244)*K6,0) -> -1059.52381 | L245: =IFERROR(-(-$H236-Dashboard!$H103)/Dashboard!$H102*(1-Dashboard!$H134)*L5-(K257+L244)*L6,0) -> -1059.52381 | M245: =IFERROR(-(-$H236-Dashboard!$H103)/Dashboard!$H102*(1-Dashboard!$H134)*M5-(L257+M244)*M6,0) -> -1059.52381 | N245: =IFERROR(-(-$H236-Dashboard!$H103)/Dashboard!$H102*(1-Dashboard!$H134)*N5-(M257+N244)*N6,0) -> -1059.52381 | O245: =IFERROR(-(-$H236-Dashboard!$H103)/Dashboard!$H102*(1-Dashboard!$H134)*O5-(N257+O244)*O6,0) -> -1059.52381 | P245: =IFERROR(-(-$H236-Dashboard!$H103)/Dashboard!$H102*(1-Dashboard!$H134)*P5-(O257+P244)*P6,0) -> -1059.52381 | Q245: =IFERROR(-(-$H236-Dashboard!$H103)/Dashboard!$H102*(1-Dashboard!$H134)*Q5-(P257+Q244)*Q6,0) -> 0 | R245: =IFERROR(-(-$H236-Dashboard!$H103)/Dashboard!$H102*(1-Dashboard!$H134)*R5-(Q257+R244)*R6,0) -> 0 | S245: =IFERROR(-(-$H236-Dashboard!$H103)/Dashboard!$H102*(1-Dashboard!$H134)*S5-(R257+S244)*S6,0) -> 0 | T245: =IFERROR(-(-$H236-Dashboard!$H103)/Dashboard!$H102*(1-Dashboard!$H134)*T5-(S257+T244)*T6,0) -> 0 | U245: =IFERROR(-(-$H236-Dashboard!$H103)/Dashboard!$H102*(1-Dashboard!$H134)*U5-(T257+U244)*U6,0) -> 0 | V245: =IFERROR(-(-$H236-Dashboard!$H103)/Dashboard!$H102*(1-Dashboard!$H134)*V5-(U257+V244)*V6,0) -> 0 | W245: =IFERROR(-(-$H236-Dashboard!$H103)/Dashboard!$H102*(1-Dashboard!$H134)*W5-(V257+W244)*W6,0) -> 0 | X245: =IFERROR(-(-$H236-Dashboard!$H103)/Dashboard!$H102*(1-Dashboard!$H134)*X5-(W257+X244)*X6,0) -> 0
B246: Aflossing zachte leningen | H246: =SUM(I246:X246) -> 0 | J246: =IFERROR(-(-$H236-Dashboard!$H103)/Dashboard!$H102*Dashboard!$H134*J5-(I256+J243)*J6,0) -> 0 | K246: =IFERROR(-(-$H236-Dashboard!$H103)/Dashboard!$H102*Dashboard!$H134*K5-(J256+K243)*K6,0) -> 0 | L246: =IFERROR(-(-$H236-Dashboard!$H103)/Dashboard!$H102*Dashboard!$H134*L5-(K256+L243)*L6,0) -> 0 | M246: =IFERROR(-(-$H236-Dashboard!$H103)/Dashboard!$H102*Dashboard!$H134*M5-(L256+M243)*M6,0) -> 0 | N246: =IFERROR(-(-$H236-Dashboard!$H103)/Dashboard!$H102*Dashboard!$H134*N5-(M256+N243)*N6,0) -> 0 | O246: =IFERROR(-(-$H236-Dashboard!$H103)/Dashboard!$H102*Dashboard!$H134*O5-(N256+O243)*O6,0) -> 0 | P246: =IFERROR(-(-$H236-Dashboard!$H103)/Dashboard!$H102*Dashboard!$H134*P5-(O256+P243)*P6,0) -> 0 | Q246: =IFERROR(-(-$H236-Dashboard!$H103)/Dashboard!$H102*Dashboard!$H134*Q5-(P256+Q243)*Q6,0) -> 0 | R246: =IFERROR(-(-$H236-Dashboard!$H103)/Dashboard!$H102*Dashboard!$H134*R5-(Q256+R243)*R6,0) -> 0 | S246: =IFERROR(-(-$H236-Dashboard!$H103)/Dashboard!$H102*Dashboard!$H134*S5-(R256+S243)*S6,0) -> 0 | T246: =IFERROR(-(-$H236-Dashboard!$H103)/Dashboard!$H102*Dashboard!$H134*T5-(S256+T243)*T6,0) -> 0 | U246: =IFERROR(-(-$H236-Dashboard!$H103)/Dashboard!$H102*Dashboard!$H134*U5-(T256+U243)*U6,0) -> 0 | V246: =IFERROR(-(-$H236-Dashboard!$H103)/Dashboard!$H102*Dashboard!$H134*V5-(U256+V243)*V6,0) -> 0 | W246: =IFERROR(-(-$H236-Dashboard!$H103)/Dashboard!$H102*Dashboard!$H134*W5-(V256+W243)*W6,0) -> 0 | X246: =IFERROR(-(-$H236-Dashboard!$H103)/Dashboard!$H102*Dashboard!$H134*X5-(W256+X243)*X6,0) -> 0
B248: Financieringskasstroom | H248: =SUM(I248:X248) -> 0 | I248: =SUM(I243:I246) -> 7416.666667 | J248: -1059.52381 | K248: -1059.52381 | L248: -1059.52381 | M248: -1059.52381 | N248: -1059.52381 | O248: =SUM(O243:O246) -> -1059.52381 | P248: -1059.52381 | Q248: 0 | R248: 0 | S248: 0 | T248: 0 | U248: 0 | V248: 0 | W248: 0 | X248: 0
B250: Totaal Kritische Distributie Kasstroom | H250: =SUM(I250:X250) -> -82784.37274 | I250: =I231+I241+I248 -> 0 | J250: -11904.6289 | K250: -11878.53225 | L250: -11852.43561 | M250: -11826.33896 | N250: -11800.24232 | O250: =O231+O241+O248 -> -11774.14567 | P250: -11748.04903 | Q250: 0 | R250: 0 | S250: 0 | T250: 0 | U250: 0 | V250: 0 | W250: 0 | X250: 0
B252: Balansposities | D252: EUR | I252: =I214 -> 0 | J252: 1 | K252: 2 | L252: 3 | M252: 4 | N252: 5 | O252: 6 | P252: 7 | Q252: 8 | R252: 9 | S252: 10 | T252: 11 | U252: 12 | V252: 13 | W252: 14 | X252: 15
B254: Hoofdvoertuig(en) (boekwaarde) | I254: =(H254-I236-I238-I226)*J4 -> 7416.666667 | J254: 6357.142857 | K254: 5297.619048 | L254: 4238.095238 | M254: 3178.571429 | N254: 2119.047619 | O254: 1059.52381 | P254: 0 | Q254: 0 | R254: 0 | S254: 0 | T254: 0 | U254: 0 | V254: 0 | W254: 0 | X254: 0
B256: Zachte leningen | I256: =H256+I243+I246 -> 0 | J256: 0 | K256: 0 | L256: 0 | M256: 0 | N256: 0 | O256: =N256+O243+O246 -> 0 | P256: 0 | Q256: 0 | R256: 0 | S256: 0 | T256: 0 | U256: 0 | V256: 0 | W256: 0 | X256: 0
B257: Reguliere leningen | I257: =H257+I244+I245 -> 7416.666667 | J257: 6357.142857 | K257: 5297.619048 | L257: 4238.095238 | M257: 3178.571429 | N257: 2119.047619 | O257: =N257+O244+O245 -> 1059.52381 | P257: 0 | Q257: 0 | R257: 0 | S257: 0 | T257: 0 | U257: 0 | V257: 0 | W257: 0 | X257: 0
B258: Totaal leningen | I258: =SUM(I256:I257) -> 7416.666667 | J258: 6357.142857 | K258: 5297.619048 | L258: 4238.095238 | M258: 3178.571429 | N258: 2119.047619 | O258: =SUM(O256:O257) -> 1059.52381 | P258: 0 | Q258: 0 | R258: 0 | S258: 0 | T258: 0 | U258: 0 | V258: 0 | W258: 0 | X258: 0
B260: Kasstroom maatregelen | D260: EUR | G260: Contant | H260: Totaal | I260: =I214 -> 0 | J260: 1 | K260: 2 | L260: 3 | M260: 4 | N260: 5 | O260: 6 | P260: 7 | Q260: 8 | R260: 9 | S260: 10 | T260: 11 | U260: 12 | V260: 13 | W260: 14 | X260: 15
B262: MIA hoofdvoertuig(en) | G262: =NPV(Discontovoet,J262:X262)+I262 -> 0 | H262: =SUM(I262:X262) -> 0 | I262: =I238 -> 0 | J262: 0 | K262: 0 | L262: 0 | M262: 0 | N262: 0 | O262: =O238 -> 0 | P262: 0 | Q262: 0 | R262: 0 | S262: 0 | T262: 0 | U262: 0 | V262: 0 | W262: 0 | X262: 0
B263: VAMIL hoofdvoertuig(en) | G263: =NPV(Discontovoet,J263:X263)+I263 -> 0 | H263: =SUM(I263:X263) -> 0 | I263: 0 | J263: 0 | K263: 0 | L263: 0 | M263: 0 | N263: 0 | O263: =O239 -> 0 | P263: 0 | Q263: 0 | R263: 0 | S263: 0 | T263: 0 | U263: 0 | V263: 0 | W263: 0 | X263: 0
B264: MIA stadsvoertuig(en) | G264: =NPV(Discontovoet,J264:X264)+I264 -> 0 | H264: =SUM(I264:X264) -> 0 | I264: =IFERROR(J108 * (Dashboard!$H$102/Stadsvoertuig!J8) *Stadsvoertuig!J11,0) -> 0 | J264: 0 | K264: 0 | L264: 0 | M264: 0 | N264: 0 | O264: 0 | P264: 0 | Q264: 0 | R264: 0 | S264: 0 | T264: 0 | U264: 0 | V264: 0 | W264: 0 | X264: 0
B265: VAMIL stadsvoertuig(en) | G265: =IFERROR(J108 * (Dashboard!$H$102/Stadsvoertuig!J8) * (((Stadsvoertuig!F12*VpB*(Stadsvoertuig!J9-investeringssubsidie_svt))-VpB*PV(Discontovoet,Stadsvoertuig!J8,(Stadsvoertuig!J9-investeringssubsidie_svt)*(1-Stadsvoertuig!F12)/Stadsvoertuig!J8)) + VpB*PV(Discontovoet,Stadsvoertuig!J8,(Stadsvoertuig!J9-investeringssubsidie_svt)/Stadsvoertuig!J8)),0) -> 0 | H265: =SUM(I265:X265) -> 0 | I265: 0 | J265: 0 | K265: 0 | L265: 0 | M265: 0 | N265: 0 | O265: 0 | P265: 0 | Q265: 0 | R265: 0 | S265: 0 | T265: 0 | U265: 0 | V265: 0 | W265: 0 | X265: 0
B266: Kasstroom bestaande maatregelen | G266: =NPV(Discontovoet,J266:X266)+I266 -> 0 | H266: =SUM(I266:X266) -> 0 | I266: =SUM(I262:I265) -> 0 | J266: =SUM(J262:J265) -> 0 | K266: 0 | L266: 0 | M266: 0 | N266: 0 | O266: 0 | P266: 0 | Q266: 0 | R266: 0 | S266: 0 | T266: 0 | U266: 0 | V266: 0 | W266: 0 | X266: 0
B268: Investeringssubsidies hoofdvoertuigen | G268: =NPV(Discontovoet,J268:X268)+I268 -> 0 | H268: =SUM(I268:X268) -> 0 | I268: =I235 -> 0 | J268: =J235 -> 0 | K268: 0 | L268: 0 | M268: 0 | N268: 0 | O268: 0 | P268: 0 | Q268: 0 | R268: 0 | S268: 0 | T268: 0 | U268: 0 | V268: 0 | W268: 0 | X268: 0
B269: Investeringssubsidie stadsvoertuigen | G269: =NPV(Discontovoet,J269:X269)+I269 -> 0 | H269: =SUM(I269:X269) -> 0 | I269: =I4*I108*investeringssubsidie_svt -> 0 | J269: 0 | K269: 0 | L269: 0 | M269: 0 | N269: 0 | O269: 0 | P269: 0 | Q269: 0 | R269: 0 | S269: 0 | T269: 0 | U269: 0 | V269: 0 | W269: 0 | X269: 0
B270: Investeringssubsidies | G270: =SUM(G268:G269) -> 0 | H270: 0 | I270: =SUM(I268:I269) -> 0 | J270: =J235 -> 0 | K270: 0 | L270: 0 | M270: 0 | N270: 0 | O270: 0 | P270: 0 | Q270: 0 | R270: 0 | S270: 0 | T270: 0 | U270: 0 | V270: 0 | W270: 0 | X270: 0
B272: Exploitatie hvt | G272: =NPV(Discontovoet,J272:X272)+I272 -> 0 | H272: =SUM(I272:X272) -> 0 | I272: 0 | J272: =(-Dashboard!$H129-Dashboard!$H128)*J7 -> 0 | K272: =(-Dashboard!$H129-Dashboard!$H128)*K7 -> 0 | L272: =(-Dashboard!$H129-Dashboard!$H128)*L7 -> 0 | M272: =(-Dashboard!$H129-Dashboard!$H128)*M7 -> 0 | N272: =(-Dashboard!$H129-Dashboard!$H128)*N7 -> 0 | O272: =(-Dashboard!$H129-Dashboard!$H128)*O7 -> 0 | P272: =(-Dashboard!$H129-Dashboard!$H128)*P7 -> 0 | Q272: =(-Dashboard!$H129-Dashboard!$H128)*Q7 -> 0 | R272: =(-Dashboard!$H129-Dashboard!$H128)*R7 -> 0 | S272: =(-Dashboard!$H129-Dashboard!$H128)*S7 -> 0 | T272: =(-Dashboard!$H129-Dashboard!$H128)*T7 -> 0 | U272: =(-Dashboard!$H129-Dashboard!$H128)*U7 -> 0 | V272: =(-Dashboard!$H129-Dashboard!$H128)*V7 -> 0 | W272: =(-Dashboard!$H129-Dashboard!$H128)*W7 -> 0 | X272: =(-Dashboard!$H129-Dashboard!$H128)*X7 -> 0
B273: Exploitatie svt | G273: 0 | H273: 0 | I273: 0 | J273: =exploitatiesubsidie_svt*J108 -> 0 | K273: 0 | L273: 0 | M273: 0 | N273: 0 | O273: 0 | P273: 0 | Q273: 0 | R273: 0 | S273: 0 | T273: 0 | U273: 0 | V273: 0 | W273: 0 | X273: 0
B274: Δ Brandstofprijs | G274: 0 | H274: 0 | I274: 0 | J274: =-J207*Dashboard!$H$130-J208*Dashboard!$H$131 -> 0 | K274: =-K207*Dashboard!$H$130-K208*Dashboard!$H$131 -> 0 | L274: =-L207*Dashboard!$H$130-L208*Dashboard!$H$131 -> 0 | M274: =-M207*Dashboard!$H$130-M208*Dashboard!$H$131 -> 0 | N274: =-N207*Dashboard!$H$130-N208*Dashboard!$H$131 -> 0 | O274: =-O207*Dashboard!$H$130-O208*Dashboard!$H$131 -> 0 | P274: =-P207*Dashboard!$H$130-P208*Dashboard!$H$131 -> 0 | Q274: =-Q207*Dashboard!$H$130-Q208*Dashboard!$H$131 -> 0 | R274: =-R207*Dashboard!$H$130-R208*Dashboard!$H$131 -> 0 | S274: =-S207*Dashboard!$H$130-S208*Dashboard!$H$131 -> 0 | T274: =-T207*Dashboard!$H$130-T208*Dashboard!$H$131 -> 0 | U274: =-U207*Dashboard!$H$130-U208*Dashboard!$H$131 -> 0 | V274: =-V207*Dashboard!$H$130-V208*Dashboard!$H$131 -> 0 | W274: =-W207*Dashboard!$H$130-W208*Dashboard!$H$131 -> 0 | X274: =-X207*Dashboard!$H$130-X208*Dashboard!$H$131 -> 0
B275: Zachte leningen | G275: 0 | H275: 0 | I275: 0 | J275: =I256*(Rente_reeel-zachte_rente_reeelR) -> 0 | K275: 0 | L275: 0 | M275: 0 | N275: 0 | O275: 0 | P275: 0 | Q275: 0 | R275: 0 | S275: 0 | T275: 0 | U275: 0 | V275: 0 | W275: 0 | X275: 0
B276: Kasstroom nieuwe maatregelen | G276: 0 | H276: 0 | I276: =SUM(I270:I275) -> 0 | J276: 0 | K276: 0 | L276: 0 | M276: 0 | N276: 0 | O276: 0 | P276: 0 | Q276: 0 | R276: 0 | S276: 0 | T276: 0 | U276: 0 | V276: 0 | W276: 0 | X276: 0
B278: Totaal kasstroom maatregelen | G278: =NPV(Discontovoet,J278:X278)+I278 -> 0 | H278: =SUM(I278:X278) -> 0 | I278: =I266+I276 -> 0 | J278: 0 | K278: 0 | L278: 0 | M278: 0 | N278: 0 | O278: 0 | P278: 0 | Q278: 0 | R278: 0 | S278: 0 | T278: 0 | U278: 0 | V278: 0 | W278: 0 | X278: 0
... 48 more rows

Sheet Alternatief 1
I2: =I19 -> 0 | J2: =J19 -> 1 | K2: 2 | L2: 3 | M2: 4 | N2: 5 | O2: 6 | P2: 7 | Q2: 8 | R2: 9 | S2: 10 | T2: 11 | U2: 12 | V2: 13 | W2: 14 | X2: 15
B4: Jaar meetellen regulier | H4: =SUM(I4:X4)-1 -> 7 | I4: 1 | J4: =IF(J2<=Dashboard!$J102,1,0) -> 1 | K4: =IF(K2<=Dashboard!$J102,1,0) -> 1 | L4: =IF(L2<=Dashboard!$J102,1,0) -> 1 | M4: =IF(M2<=Dashboard!$J102,1,0) -> 1 | N4: =IF(N2<=Dashboard!$J102,1,0) -> 1 | O4: =IF(O2<=Dashboard!$J102,1,0) -> 1 | P4: =IF(P2<=Dashboard!$J102,1,0) -> 1 | Q4: =IF(Q2<=Dashboard!$J102,1,0) -> 0 | R4: =IF(R2<=Dashboard!$J102,1,0) -> 0 | S4: =IF(S2<=Dashboard!$J102,1,0) -> 0 | T4: =IF(T2<=Dashboard!$J102,1,0) -> 0 | U4: =IF(U2<=Dashboard!$J102,1,0) -> 0 | V4: =IF(V2<=Dashboard!$J102,1,0) -> 0 | W4: =IF(W2<=Dashboard!$J102,1,0) -> 0 | X4: =IF(X2<=Dashboard!$J102,1,0) -> 0
B5: Jaar metellen financieringen | I5: =IF(I6=1,0,I4) -> 1 | J5: =IF(J6=1,0,J4) -> 1 | K5: 1 | L5: 1 | M5: 1 | N5: 1 | O5: 1 | P5: 0 | Q5: 0 | R5: 0 | S5: 0 | T5: 0 | U5: 0 | V5: 0 | W5: 0 | X5: 0
B6: Laatste jaar | I6: =IF(AND(I4=1,J4=0),1,0) -> 0 | J6: =IF(AND(J4=1,K4=0),1,0) -> 0 | K6: 0 | L6: 0 | M6: 0 | N6: 0 | O6: 0 | P6: 1 | Q6: 0 | R6: 0 | S6: 0 | T6: 0 | U6: 0 | V6: 0 | W6: 0 | X6: 0
B7: Inzet hoofdvoertuig | J7: =IF(J19<=Dashboard!$J$102,1,0) -> 1 | K7: =IF(K19<=Dashboard!$J$102,1,0) -> 1 | L7: =IF(L19<=Dashboard!$J$102,1,0) -> 1 | M7: =IF(M19<=Dashboard!$J$102,1,0) -> 1 | N7: =IF(N19<=Dashboard!$J$102,1,0) -> 1 | O7: =IF(O19<=Dashboard!$J$102,1,0) -> 1 | P7: =IF(P19<=Dashboard!$J$102,1,0) -> 1 | Q7: =IF(Q19<=Dashboard!$J$102,1,0) -> 0 | R7: =IF(R19<=Dashboard!$J$102,1,0) -> 0 | S7: =IF(S19<=Dashboard!$J$102,1,0) -> 0 | T7: =IF(T19<=Dashboard!$J$102,1,0) -> 0 | U7: =IF(U19<=Dashboard!$J$102,1,0) -> 0 | V7: =IF(V19<=Dashboard!$J$102,1,0) -> 0 | W7: =IF(W19<=Dashboard!$J$102,1,0) -> 0 | X7: =IF(X19<=Dashboard!$J$102,1,0) -> 0
B9: Bedrijfseconomische afschrijving | I9: 0 | J9: =IFERROR(1/Dashboard!$J102*J4,0) -> 0.1428571429 | K9: =IFERROR(1/Dashboard!$J$102*K4,0) -> 0.1428571429 | L9: =IFERROR(1/Dashboard!$J$102*L4,0) -> 0.1428571429 | M9: =IFERROR(1/Dashboard!$J$102*M4,0) -> 0.1428571429 | N9: =IFERROR(1/Dashboard!$J$102*N4,0) -> 0.1428571429 | O9: =IFERROR(1/Dashboard!$J$102*O4,0) -> 0.1428571429 | P9: =IFERROR(1/Dashboard!$J$102*P4,0) -> 0.1428571429 | Q9: =IFERROR(1/Dashboard!$J$102*Q4,0) -> 0 | R9: =IFERROR(1/Dashboard!$J$102*R4,0) -> 0 | S9: =IFERROR(1/Dashboard!$J$102*S4,0) -> 0 | T9: =IFERROR(1/Dashboard!$J$102*T4,0) -> 0 | U9: =IFERROR(1/Dashboard!$J$102*U4,0) -> 0 | V9: =IFERROR(1/Dashboard!$J$102*V4,0) -> 0 | W9: =IFERROR(1/Dashboard!$J$102*W4,0) -> 0 | X9: =IFERROR(1/Dashboard!$J$102*X4,0) -> 0
B10: Fiscale afschrijving | I10: =MAX(Dashboard!J117,I9) -> 0 | J10: =IFERROR((1-I10)/SUM(J4:W4)*J4,0) -> 0.1428571429 | K10: =J10*K4 -> 0.1428571429 | L10: 0.1428571429 | M10: 0.1428571429 | N10: 0.1428571429 | O10: 0.1428571429 | P10: 0.1428571429 | Q10: 0 | R10: 0 | S10: 0 | T10: 0 | U10: 0 | V10: 0 | W10: 0 | X10: 0
B12: Aantal uren per modaliteitswissel | I12: 0 | J12: =VLOOKUP(Ladingtype,Modaliteitswissel,3,FALSE) -> 1.333333333 | K12: =J12 -> 1.333333333 | L12: =K12 -> 1.333333333 | M12: 1.333333333 | N12: 1.333333333 | O12: 1.333333333 | P12: 1.333333333 | Q12: 1.333333333 | R12: 1.333333333 | S12: 1.333333333 | T12: 1.333333333 | U12: 1.333333333 | V12: 1.333333333 | W12: 1.333333333 | X12: 1.333333333
J15: SPECIFICATIE ALTERNATIEF 1
B17: =Alternatief1_Naam &" "&IF(Dashboard!$J$125>0,"+ stadsvoertuig","") -> LNG | I17: =IF(Switch_Alt1=0,"Dit profiel is in het werkblad 'Dashboard' gedeactiveerd waardoor de foutencontrole is uitgeschakeld en dit overzicht mogelijk niet correct is",IF(Dashboard!R13>0,"Dit overzicht is mogelijk niet correct als gevolg van incomplete of foutieve invoer, check de foutmeldingen op werkblad 'Dashboard'","")) -> 
B19: Kerndata | H19: Totaal | I19: 0 | J19: 1 | K19: =J19+1 -> 2 | L19: 3 | M19: 4 | N19: 5 | O19: 6 | P19: 7 | Q19: 8 | R19: 9 | S19: 10 | T19: 11 | U19: 12 | V19: 13 | W19: 14 | X19: 15
B21: Gemiddelde afstand goederen (km) | H21: =SUM(I21:X21) -> 700 | I21: 0 | J21: =SUM(J22:J30) -> 100 | K21: =J21*K$4 -> 100 | L21: 100 | M21: 100 | N21: 100 | O21: 100 | P21: 100 | Q21: 0 | R21: 0 | S21: 0 | T21: 0 | U21: 0 | V21: 0 | W21: 0 | X21: 0
B22: - waarvan buitenstedelijk gebied tijdens spits | H22: =SUM(I22:X22) -> 595 | I22: 0 | J22: =Switch_Alt1*('Distributieschema''s'!J15*'Distributieschema''s'!P16+'Distributieschema''s'!J35*'Distributieschema''s'!P36) -> 85 | K22: =J22*K$4 -> 85 | L22: 85 | M22: 85 | N22: 85 | O22: 85 | P22: 85 | Q22: 0 | R22: 0 | S22: 0 | T22: 0 | U22: 0 | V22: 0 | W22: 0 | X22: 0
B23: - waarvan buitenstedelijk gebied buiten spits | H23: 0 | I23: 0 | J23: =Switch_Alt1*('Distributieschema''s'!J9*'Distributieschema''s'!P10+'Distributieschema''s'!J20*'Distributieschema''s'!P21+'Distributieschema''s'!J40*'Distributieschema''s'!P41) -> 0 | K23: =J23*K$4 -> 0 | L23: 0 | M23: 0 | N23: 0 | O23: 0 | P23: 0 | Q23: 0 | R23: 0 | S23: 0 | T23: 0 | U23: 0 | V23: 0 | W23: 0 | X23: 0
B24: - waarvan buitenstedelijk gebied tijdens dagrand | H24: 0 | I24: 0 | J24: =Switch_Alt1*('Distributieschema''s'!J27*'Distributieschema''s'!P28+'Distributieschema''s'!J47*'Distributieschema''s'!P48) -> 0 | K24: 0 | L24: 0 | M24: 0 | N24: 0 | O24: 0 | P24: 0 | Q24: 0 | R24: 0 | S24: 0 | T24: 0 | U24: 0 | V24: 0 | W24: 0 | X24: 0
B25: - waarvan stedelijk gebied tijdens AMvB-tijden | H25: 105 | I25: 0 | J25: =Switch_Alt1*('Distributieschema''s'!J15*'Distributieschema''s'!AC16+'Distributieschema''s'!J35*'Distributieschema''s'!AC36) -> 15 | K25: 15 | L25: 15 | M25: 15 | N25: 15 | O25: 15 | P25: 15 | Q25: 0 | R25: 0 | S25: 0 | T25: 0 | U25: 0 | V25: 0 | W25: 0 | X25: 0
B26: - waarvan stedelijk gebied buiten AMvB-tijden | H26: 0 | I26: 0 | J26: =Switch_Alt1*('Distributieschema''s'!J20*'Distributieschema''s'!AC21+'Distributieschema''s'!J40*'Distributieschema''s'!AC41) -> 0 | K26: 0 | L26: 0 | M26: 0 | N26: 0 | O26: 0 | P26: 0 | Q26: 0 | R26: 0 | S26: 0 | T26: 0 | U26: 0 | V26: 0 | W26: 0 | X26: 0
B27: - waarvan stedelijk gebied dagrand | H27: 0 | I27: 0 | J27: =Switch_Alt1*('Distributieschema''s'!J27*'Distributieschema''s'!AC28+'Distributieschema''s'!J47*'Distributieschema''s'!AC48) -> 0 | K27: 0 | L27: 0 | M27: 0 | N27: 0 | O27: 0 | P27: 0 | Q27: 0 | R27: 0 | S27: 0 | T27: 0 | U27: 0 | V27: 0 | W27: 0 | X27: 0
B28: - waarvan kernwinkelgebied tijdens AMvB-tijden | H28: 0 | I28: 0 | J28: =Switch_Alt1*('Distributieschema''s'!J35*'Distributieschema''s'!AP36) -> 0 | K28: 0 | L28: 0 | M28: 0 | N28: 0 | O28: 0 | P28: 0 | Q28: 0 | R28: 0 | S28: 0 | T28: 0 | U28: 0 | V28: 0 | W28: 0 | X28: 0
B29: - waarvan kernwinkelgebied buiten AMvB-tijden | H29: 0 | I29: 0 | J29: =Switch_Alt1*('Distributieschema''s'!J40*'Distributieschema''s'!AP41) -> 0 | K29: 0 | L29: 0 | M29: 0 | N29: 0 | O29: 0 | P29: 0 | Q29: 0 | R29: 0 | S29: 0 | T29: 0 | U29: 0 | V29: 0 | W29: 0 | X29: 0
B30: - waarvan kernwinkelgebied dagrand | H30: 0 | I30: 0 | J30: =Switch_Alt1*('Distributieschema''s'!J47*'Distributieschema''s'!AP48) -> 0 | K30: 0 | L30: 0 | M30: 0 | N30: 0 | O30: 0 | P30: 0 | Q30: 0 | R30: 0 | S30: 0 | T30: 0 | U30: 0 | V30: 0 | W30: 0 | X30: 0
B33: Gemiddelde afstand hoofdvoertuig (km) | H33: =SUM(I33:X33) -> 700 | I33: 0 | J33: =J34+J38+J42+J46+J50+J54+SUM(J58:J60) -> 100 | K33: =J33*K$4 -> 100 | L33: =K33*L$4 -> 100 | M33: 100 | N33: 100 | O33: 100 | P33: 100 | Q33: 0 | R33: 0 | S33: 0 | T33: 0 | U33: 0 | V33: 0 | W33: 0 | X33: 0
B34: - waarvan buitenstedelijk gebied tijdens spits | H34: 595 | I34: 0 | J34: =SUM(J35:J36) -> 85 | K34: =J34*K$4 -> 85 | L34: 85 | M34: 85 | N34: 85 | O34: 85 | P34: 85 | Q34: 0 | R34: 0 | S34: 0 | T34: 0 | U34: 0 | V34: 0 | W34: 0 | X34: 0
C35: - waarvan klantlocatie in buitenstedelijk gebied | H35: 0 | I35: 0 | J35: 0 | K35: 0 | L35: 0 | M35: 0 | N35: 0 | O35: 0 | P35: 0 | Q35: 0 | R35: 0 | S35: 0 | T35: 0 | U35: 0 | V35: 0 | W35: 0 | X35: 0
C36: - waarvan klantlocatie in stedelijk of kernwinkelgebied | H36: 595 | I36: 0 | J36: =Switch_Alt1*('Distributieschema''s'!J15*'Distributieschema''s'!P16+'Distributieschema''s'!J35*'Distributieschema''s'!P36) -> 85 | K36: 85 | L36: 85 | M36: 85 | N36: 85 | O36: 85 | P36: 85 | Q36: 0 | R36: 0 | S36: 0 | T36: 0 | U36: 0 | V36: 0 | W36: 0 | X36: 0
B38: - waarvan buitenstedelijk gebied buiten spits | H38: 0 | I38: 0 | J38: =SUM(J39:J40) -> 0 | K38: 0 | L38: 0 | M38: 0 | N38: 0 | O38: 0 | P38: 0 | Q38: 0 | R38: 0 | S38: 0 | T38: 0 | U38: 0 | V38: 0 | W38: 0 | X38: 0
C39: - waarvan klantlocatie in buitenstedelijk gebied | H39: 0 | I39: 0 | J39: =Switch_Alt1*('Distributieschema''s'!J9*'Distributieschema''s'!P10) -> 0 | K39: 0 | L39: 0 | M39: 0 | N39: 0 | O39: 0 | P39: 0 | Q39: 0 | R39: 0 | S39: 0 | T39: 0 | U39: 0 | V39: 0 | W39: 0 | X39: 0
C40: - waarvan klantlocatie in stedelijk of kernwinkelgebied | H40: 0 | I40: 0 | J40: =Switch_Alt1*('Distributieschema''s'!K21*'Distributieschema''s'!P21+'Distributieschema''s'!K23*'Distributieschema''s'!P23+'Distributieschema''s'!K41*'Distributieschema''s'!P41+'Distributieschema''s'!K43*'Distributieschema''s'!P43) -> 0 | K40: 0 | L40: 0 | M40: 0 | N40: 0 | O40: 0 | P40: 0 | Q40: 0 | R40: 0 | S40: 0 | T40: 0 | U40: 0 | V40: 0 | W40: 0 | X40: 0
B42: - waarvan buitenstedelijk gebied tijdens dagrand | H42: 0 | I42: 0 | J42: =SUM(J43:J44) -> 0 | K42: 0 | L42: 0 | M42: 0 | N42: 0 | O42: 0 | P42: 0 | Q42: 0 | R42: 0 | S42: 0 | T42: 0 | U42: 0 | V42: 0 | W42: 0 | X42: 0
C43: - waarvan klantlocatie in buitenstedelijk gebied | H43: 0 | I43: 0 | J43: 0 | K43: 0 | L43: 0 | M43: 0 | N43: 0 | O43: 0 | P43: 0 | Q43: 0 | R43: 0 | S43: 0 | T43: 0 | U43: 0 | V43: 0 | W43: 0 | X43: 0
C44: - waarvan klantlocatie in stedelijk of kernwinkelgebied | H44: 0 | I44: 0 | J44: =Switch_Alt1*('Distributieschema''s'!K28*'Distributieschema''s'!P28+'Distributieschema''s'!K30*'Distributieschema''s'!P30+'Distributieschema''s'!K48*'Distributieschema''s'!P48+'Distributieschema''s'!K50*'Distributieschema''s'!P50) -> 0 | K44: 0 | L44: 0 | M44: 0 | N44: 0 | O44: 0 | P44: 0 | Q44: 0 | R44: 0 | S44: 0 | T44: 0 | U44: 0 | V44: 0 | W44: 0 | X44: 0
B46: - waarvan stedelijk gebied tijdens AMvB-tijden | H46: 105 | I46: 0 | J46: =SUM(J47:J48) -> 15 | K46: 15 | L46: 15 | M46: 15 | N46: 15 | O46: 15 | P46: 15 | Q46: 0 | R46: 0 | S46: 0 | T46: 0 | U46: 0 | V46: 0 | W46: 0 | X46: 0
C47: - waarvan klantlocatie in stedelijk gebied | H47: 105 | I47: 0 | J47: =Switch_Alt1*('Distributieschema''s'!K15*'Distributieschema''s'!AC16) -> 15 | K47: 15 | L47: 15 | M47: 15 | N47: 15 | O47: 15 | P47: 15 | Q47: 0 | R47: 0 | S47: 0 | T47: 0 | U47: 0 | V47: 0 | W47: 0 | X47: 0
C48: - waarvan klantlocatie in kernwinkelgebied | H48: 0 | I48: 0 | J48: =Switch_Alt1*('Distributieschema''s'!K35*'Distributieschema''s'!AC36) -> 0 | K48: 0 | L48: 0 | M48: 0 | N48: 0 | O48: 0 | P48: 0 | Q48: 0 | R48: 0 | S48: 0 | T48: 0 | U48: 0 | V48: 0 | W48: 0 | X48: 0
B50: - waarvan stedelijk gebied buiten AMvB-tijden | H50: 0 | I50: 0 | J50: =SUM(J51:J52) -> 0 | K50: =J50*K$4 -> 0 | L50: 0 | M50: 0 | N50: 0 | O50: 0 | P50: 0 | Q50: 0 | R50: 0 | S50: 0 | T50: 0 | U50: 0 | V50: 0 | W50: 0 | X50: 0
C51: - waarvan klantlocatie in stedelijk gebied | H51: 0 | I51: 0 | J51: =Switch_Alt1*('Distributieschema''s'!K21*'Distributieschema''s'!AC21) -> 0 | K51: 0 | L51: 0 | M51: 0 | N51: 0 | O51: 0 | P51: 0 | Q51: 0 | R51: 0 | S51: 0 | T51: 0 | U51: 0 | V51: 0 | W51: 0 | X51: 0
C52: - waarvan klantlocatie in kernwinkelgebied | H52: 0 | I52: 0 | J52: =Switch_Alt1*('Distributieschema''s'!K41*'Distributieschema''s'!AC41) -> 0 | K52: 0 | L52: 0 | M52: 0 | N52: 0 | O52: 0 | P52: 0 | Q52: 0 | R52: 0 | S52: 0 | T52: 0 | U52: 0 | V52: 0 | W52: 0 | X52: 0
B54: - waarvan stedelijk gebied dagrand | H54: 0 | I54: 0 | J54: =SUM(J55:J56) -> 0 | K54: 0 | L54: 0 | M54: 0 | N54: 0 | O54: 0 | P54: 0 | Q54: 0 | R54: 0 | S54: 0 | T54: 0 | U54: 0 | V54: 0 | W54: 0 | X54: 0
C55: - waarvan klantlocatie in stedelijk gebied | H55: 0 | I55: 0 | J55: =Switch_Alt1*('Distributieschema''s'!K28*'Distributieschema''s'!AC28) -> 0 | K55: 0 | L55: 0 | M55: 0 | N55: 0 | O55: 0 | P55: 0 | Q55: 0 | R55: 0 | S55: 0 | T55: 0 | U55: 0 | V55: 0 | W55: 0 | X55: 0
C56: - waarvan klantlocatie in kernwinkelgebied | H56: 0 | I56: 0 | J56: =Switch_Alt1*('Distributieschema''s'!K48*'Distributieschema''s'!AC48) -> 0 | K56: 0 | L56: 0 | M56: 0 | N56: 0 | O56: 0 | P56: 0 | Q56: 0 | R56: 0 | S56: 0 | T56: 0 | U56: 0 | V56: 0 | W56: 0 | X56: 0
B58: - waarvan kernwinkelgebied tijdens AMvB-tijden | H58: 0 | I58: 0 | J58: =Switch_Alt1*('Distributieschema''s'!K35*'Distributieschema''s'!AP36) -> 0 | K58: 0 | L58: 0 | M58: 0 | N58: 0 | O58: 0 | P58: 0 | Q58: 0 | R58: 0 | S58: 0 | T58: 0 | U58: 0 | V58: 0 | W58: 0 | X58: 0
B59: - waarvan kernwinkelgebied buiten AMvB-tijden | H59: 0 | I59: 0 | J59: =Switch_Alt1*('Distributieschema''s'!K41*'Distributieschema''s'!AP41) -> 0 | K59: 0 | L59: 0 | M59: 0 | N59: 0 | O59: 0 | P59: 0 | Q59: 0 | R59: 0 | S59: 0 | T59: 0 | U59: 0 | V59: 0 | W59: 0 | X59: 0
B60: - waarvan kernwinkelgebied dagrand | H60: 0 | I60: 0 | J60: =Switch_Alt1*('Distributieschema''s'!K48*'Distributieschema''s'!AP48) -> 0 | K60: 0 | L60: 0 | M60: 0 | N60: 0 | O60: 0 | P60: 0 | Q60: 0 | R60: 0 | S60: 0 | T60: 0 | U60: 0 | V60: 0 | W60: 0 | X60: 0
B63: Gemiddelde afstand stadsvoertuig (km) | H63: =SUM(I63:X63) -> 0 | I63: 0 | J63: =SUM(J64:J64)+J66+J70+J74+SUM(J78:J80) -> 0 | K63: =J63*K$4 -> 0 | L63: 0 | M63: 0 | N63: 0 | O63: 0 | P63: 0 | Q63: 0 | R63: 0 | S63: 0 | T63: 0 | U63: 0 | V63: 0 | W63: 0 | X63: 0
B64: - waarvan buitenstedelijk | H64: 0 | I64: 0 | J64: 0 | K64: 0 | L64: 0 | M64: 0 | N64: 0 | O64: 0 | P64: 0 | Q64: 0 | R64: 0 | S64: 0 | T64: 0 | U64: 0 | V64: 0 | W64: 0 | X64: 0
B66: - waarvan stedelijk gebied tijdens AMvB-tijden | H66: 0 | I66: 0 | J66: =SUM(J67:J68) -> 0 | K66: =J66*K$4 -> 0 | L66: 0 | M66: 0 | N66: 0 | O66: 0 | P66: 0 | Q66: 0 | R66: 0 | S66: 0 | T66: 0 | U66: 0 | V66: 0 | W66: 0 | X66: 0
C67: - waarvan klantlocatie in stedelijk gebied | H67: 0 | I67: 0 | J67: 0 | K67: 0 | L67: 0 | M67: 0 | N67: 0 | O67: 0 | P67: 0 | Q67: 0 | R67: 0 | S67: 0 | T67: 0 | U67: 0 | V67: 0 | W67: 0 | X67: 0
C68: - waarvan klantlocatie in kernwinkelgebied | H68: 0 | I68: 0 | J68: 0 | K68: 0 | L68: 0 | M68: 0 | N68: 0 | O68: 0 | P68: 0 | Q68: 0 | R68: 0 | S68: 0 | T68: 0 | U68: 0 | V68: 0 | W68: 0 | X68: 0
B70: - waarvan stedelijk gebied buiten AMvB-tijden | H70: 0 | I70: 0 | J70: =SUM(J71:J72) -> 0 | K70: =J70*K$4 -> 0 | L70: 0 | M70: 0 | N70: 0 | O70: 0 | P70: 0 | Q70: 0 | R70: 0 | S70: 0 | T70: 0 | U70: 0 | V70: 0 | W70: 0 | X70: 0
C71: - waarvan klantlocatie in stedelijk gebied | H71: 0 | I71: 0 | J71: =Switch_Alt1*('Distributieschema''s'!K23*'Distributieschema''s'!AD23) -> 0 | K71: 0 | L71: 0 | M71: 0 | N71: 0 | O71: 0 | P71: 0 | Q71: 0 | R71: 0 | S71: 0 | T71: 0 | U71: 0 | V71: 0 | W71: 0 | X71: 0
C72: - waarvan klantlocatie in kernwinkelgebied | H72: 0 | I72: 0 | J72: =Switch_Alt1*('Distributieschema''s'!K43*'Distributieschema''s'!AD43) -> 0 | K72: 0 | L72: 0 | M72: 0 | N72: 0 | O72: 0 | P72: 0 | Q72: 0 | R72: 0 | S72: 0 | T72: 0 | U72: 0 | V72: 0 | W72: 0 | X72: 0
B74: - waarvan stedelijk gebied dagrand | H74: 0 | I74: 0 | J74: =SUM(J75:J76) -> 0 | K74: =J74*K$4 -> 0 | L74: 0 | M74: 0 | N74: 0 | O74: 0 | P74: 0 | Q74: 0 | R74: 0 | S74: 0 | T74: 0 | U74: 0 | V74: 0 | W74: 0 | X74: 0
C75: - waarvan klantlocatie in stedelijk gebied | H75: 0 | I75: 0 | J75: =Switch_Alt1*('Distributieschema''s'!K30*'Distributieschema''s'!AD30) -> 0 | K75: 0 | L75: 0 | M75: 0 | N75: 0 | O75: 0 | P75: 0 | Q75: 0 | R75: 0 | S75: 0 | T75: 0 | U75: 0 | V75: 0 | W75: 0 | X75: 0
C76: - waarvan klantlocatie in kernwinkelgebied | H76: 0 | I76: 0 | J76: =Switch_Alt1*('Distributieschema''s'!K50*'Distributieschema''s'!AD50) -> 0 | K76: 0 | L76: 0 | M76: 0 | N76: 0 | O76: 0 | P76: 0 | Q76: 0 | R76: 0 | S76: 0 | T76: 0 | U76: 0 | V76: 0 | W76: 0 | X76: 0
B78: - waarvan kernwinkelgebied tijdens AMvB-tijden | H78: 0 | I78: 0 | J78: 0 | K78: =J78*K$4 -> 0 | L78: 0 | M78: 0 | N78: 0 | O78: 0 | P78: 0 | Q78: 0 | R78: 0 | S78: 0 | T78: 0 | U78: 0 | V78: 0 | W78: 0 | X78: 0
B79: - waarvan kernwinkelgebied buiten AMvB-tijden | H79: 0 | I79: 0 | J79: =Switch_Alt1*('Distributieschema''s'!K43*'Distributieschema''s'!AP43) -> 0 | K79: 0 | L79: 0 | M79: 0 | N79: 0 | O79: 0 | P79: 0 | Q79: 0 | R79: 0 | S79: 0 | T79: 0 | U79: 0 | V79: 0 | W79: 0 | X79: 0
B80: - waarvan kernwinkelgebied dagrand | H80: 0 | I80: 0 | J80: =Switch_Alt1*('Distributieschema''s'!K50*'Distributieschema''s'!AP50) -> 0 | K80: 0 | L80: 0 | M80: 0 | N80: 0 | O80: 0 | P80: 0 | Q80: 0 | R80: 0 | S80: 0 | T80: 0 | U80: 0 | V80: 0 | W80: 0 | X80: 0
B82: Aantal aanvullende ritten door stadsvoertuig(en) per rit | H82: =SUM(I82:X82) -> 0 | I82: 0 | J82: =IF(J63=0,0,Aantal_keer_HB_stadsvt) -> 0 | K82: 0 | L82: 0 | M82: 0 | N82: 0 | O82: 0 | P82: 0 | Q82: 0 | R82: 0 | S82: 0 | T82: 0 | U82: 0 | V82: 0 | W82: 0 | X82: 0
B84: Gem. gereden afstand stadsvoertuigen aansluitend op rit hoofdvoertuig (km) | H84: =SUM(I84:X84) -> 0 | I84: 0 | J84: =SUM(J85:J85)+J87+J91+J95+SUM(J99:J101) -> 0 | K84: =SUM(K85:K85)+K87+K91+K95+SUM(K99:K101) -> 0 | L84: 0 | M84: 0 | N84: 0 | O84: 0 | P84: 0 | Q84: 0 | R84: 0 | S84: 0 | T84: 0 | U84: 0 | V84: 0 | W84: 0 | X84: 0
B85: - waarvan buitenstedelijk | H85: =SUM(I85:X85) -> 0 | I85: 0 | J85: =J64*J$82 -> 0 | K85: =K64*K$82 -> 0 | L85: 0 | M85: 0 | N85: 0 | O85: 0 | P85: 0 | Q85: 0 | R85: 0 | S85: 0 | T85: 0 | U85: 0 | V85: 0 | W85: 0 | X85: 0
B87: - waarvan stedelijk gebied tijdens AMvB-tijden | H87: 0 | I87: 0 | J87: =J66*J$82 -> 0 | K87: =K66*K$82 -> 0 | L87: 0 | M87: 0 | N87: 0 | O87: 0 | P87: 0 | Q87: 0 | R87: 0 | S87: 0 | T87: 0 | U87: 0 | V87: 0 | W87: 0 | X87: 0
C88: - waarvan klantlocatie in stedelijk gebied | H88: 0 | I88: 0 | J88: =J67*J$82 -> 0 | K88: 0 | L88: 0 | M88: 0 | N88: 0 | O88: 0 | P88: 0 | Q88: 0 | R88: 0 | S88: 0 | T88: 0 | U88: 0 | V88: 0 | W88: 0 | X88: 0
C89: - waarvan klantlocatie in kernwinkelgebied | H89: 0 | I89: 0 | J89: =J68*J$82 -> 0 | K89: 0 | L89: 0 | M89: 0 | N89: 0 | O89: 0 | P89: 0 | Q89: 0 | R89: 0 | S89: 0 | T89: 0 | U89: 0 | V89: 0 | W89: 0 | X89: 0
B91: - waarvan stedelijk gebied buiten AMvB-tijden | H91: 0 | I91: 0 | J91: =J70*J$82 -> 0 | K91: =K70*K$82 -> 0 | L91: 0 | M91: 0 | N91: 0 | O91: 0 | P91: 0 | Q91: 0 | R91: 0 | S91: 0 | T91: 0 | U91: 0 | V91: 0 | W91: 0 | X91: 0
C92: - waarvan klantlocatie in stedelijk gebied | H92: 0 | I92: 0 | J92: =J71*J$82 -> 0 | K92: 0 | L92: 0 | M92: 0 | N92: 0 | O92: 0 | P92: 0 | Q92: 0 | R92: 0 | S92: 0 | T92: 0 | U92: 0 | V92: 0 | W92: 0 | X92: 0
C93: - waarvan klantlocatie in kernwinkelgebied | H93: 0 | I93: 0 | J93: =J72*J$82 -> 0 | K93: 0 | L93: 0 | M93: 0 | N93: 0 | O93: 0 | P93: 0 | Q93: 0 | R93: 0 | S93: 0 | T93: 0 | U93: 0 | V93: 0 | W93: 0 | X93: 0
B95: - waarvan stedelijk gebied dagrand | H95: 0 | I95: 0 | J95: =J74*J$82 -> 0 | K95: =K74*K$82 -> 0 | L95: 0 | M95: 0 | N95: 0 | O95: 0 | P95: 0 | Q95: 0 | R95: 0 | S95: 0 | T95: 0 | U95: 0 | V95: 0 | W95: 0 | X95: 0
C96: - waarvan klantlocatie in stedelijk gebied | H96: 0 | I96: 0 | J96: =J75*J$82 -> 0 | K96: 0 | L96: 0 | M96: 0 | N96: 0 | O96: 0 | P96: 0 | Q96: 0 | R96: 0 | S96: 0 | T96: 0 | U96: 0 | V96: 0 | W96: 0 | X96: 0
C97: - waarvan klantlocatie in kernwinkelgebied | H97: 0 | I97: 0 | J97: =J76*J$82 -> 0 | K97: 0 | L97: 0 | M97: 0 | N97: 0 | O97: 0 | P97: 0 | Q97: 0 | R97: 0 | S97: 0 | T97: 0 | U97: 0 | V97: 0 | W97: 0 | X97: 0
B99: - waarvan kernwinkelgebied tijdens AMvB-tijden | H99: 0 | I99: 0 | J99: =J78*J$82 -> 0 | K99: =K78*K$82 -> 0 | L99: 0 | M99: 0 | N99: 0 | O99: 0 | P99: 0 | Q99: 0 | R99: 0 | S99: 0 | T99: 0 | U99: 0 | V99: 0 | W99: 0 | X99: 0
B100: - waarvan kernwinkelgebied buiten AMvB-tijden | H100: 0 | I100: 0 | J100: =J79*J$82 -> 0 | K100: 0 | L100: 0 | M100: 0 | N100: 0 | O100: 0 | P100: 0 | Q100: 0 | R100: 0 | S100: 0 | T100: 0 | U100: 0 | V100: 0 | W100: 0 | X100: 0
B101: - waarvan kernwinkelgebied dagrand | H101: 0 | I101: 0 | J101: =J80*J$82 -> 0 | K101: 0 | L101: 0 | M101: 0 | N101: 0 | O101: 0 | P101: 0 | Q101: 0 | R101: 0 | S101: 0 | T101: 0 | U101: 0 | V101: 0 | W101: 0 | X101: 0
B104: Aantal ritten per jaar hvt | H104: =SUM(I104:X104) -> 700 | I104: 0 | J104: =HB_ritten -> 100 | K104: =J104*K$4 -> 100 | L104: 100 | M104: 100 | N104: 100 | O104: 100 | P104: 100 | Q104: 0 | R104: 0 | S104: 0 | T104: 0 | U104: 0 | V104: 0 | W104: 0 | X104: 0
B105: Aantal ritten per jaar svt | H105: =SUM(I105:X105) -> 0 | I105: 0 | J105: =J104*J82 -> 0 | K105: =K104*K82 -> 0 | L105: 0 | M105: 0 | N105: 0 | O105: 0 | P105: 0 | Q105: 0 | R105: 0 | S105: 0 | T105: 0 | U105: 0 | V105: 0 | W105: 0 | X105: 0
B107: Effectief aantal benodigde hoofdvoertuigen | I107: 0 | J107: =(J127+(J130+J104*'Distributieschema''s'!$K$9*Dashboard!$AY$118)+J131+J134+J135+(J138+J104*'Distributieschema''s'!$K$15*Dashboard!$AY$118)+J139+(J142+J104*'Distributieschema''s'!$K$21*Dashboard!$AY$118)+J143+(J146+J104*'Distributieschema''s'!$K$28*Dashboard!$AY$118)+J147+(J149+J104*'Distributieschema''s'!$K$35*Dashboard!$AY$118)+(J150+J104*'Distributieschema''s'!$K$41*Dashboard!$AY$118)+(J151+J104*'Distributieschema''s'!$K$48*Dashboard!$AY$118))/Uren_hvt_alt1 -> 0.105952381 | K107: =(K127+(K130+K104*'Distributieschema''s'!$K$9*Dashboard!$AY$118)+K131+K134+K135+(K138+K104*'Distributieschema''s'!$K$15*Dashboard!$AY$118)+K139+(K142+K104*'Distributieschema''s'!$K$21*Dashboard!$AY$118)+K143+(K146+K104*'Distributieschema''s'!$K$28*Dashboard!$AY$118)+K147+(K149+K104*'Distributieschema''s'!$K$35*Dashboard!$AY$118)+(K150+K104*'Distributieschema''s'!$K$41*Dashboard!$AY$118)+(K151+K104*'Distributieschema''s'!$K$48*Dashboard!$AY$118))/Uren_hvt_alt1 -> 0.105952381 | L107: =(L127+(L130+L104*'Distributieschema''s'!$K$9*Dashboard!$AY$118)+L131+L134+L135+(L138+L104*'Distributieschema''s'!$K$15*Dashboard!$AY$118)+L139+(L142+L104*'Distributieschema''s'!$K$21*Dashboard!$AY$118)+L143+(L146+L104*'Distributieschema''s'!$K$28*Dashboard!$AY$118)+L147+(L149+L104*'Distributieschema''s'!$K$35*Dashboard!$AY$118)+(L150+L104*'Distributieschema''s'!$K$41*Dashboard!$AY$118)+(L151+L104*'Distributieschema''s'!$K$48*Dashboard!$AY$118))/Uren_hvt_alt1 -> 0.105952381 | M107: =(M127+(M130+M104*'Distributieschema''s'!$K$9*Dashboard!$AY$118)+M131+M134+M135+(M138+M104*'Distributieschema''s'!$K$15*Dashboard!$AY$118)+M139+(M142+M104*'Distributieschema''s'!$K$21*Dashboard!$AY$118)+M143+(M146+M104*'Distributieschema''s'!$K$28*Dashboard!$AY$118)+M147+(M149+M104*'Distributieschema''s'!$K$35*Dashboard!$AY$118)+(M150+M104*'Distributieschema''s'!$K$41*Dashboard!$AY$118)+(M151+M104*'Distributieschema''s'!$K$48*Dashboard!$AY$118))/Uren_hvt_alt1 -> 0.105952381 | N107: =(N127+(N130+N104*'Distributieschema''s'!$K$9*Dashboard!$AY$118)+N131+N134+N135+(N138+N104*'Distributieschema''s'!$K$15*Dashboard!$AY$118)+N139+(N142+N104*'Distributieschema''s'!$K$21*Dashboard!$AY$118)+N143+(N146+N104*'Distributieschema''s'!$K$28*Dashboard!$AY$118)+N147+(N149+N104*'Distributieschema''s'!$K$35*Dashboard!$AY$118)+(N150+N104*'Distributieschema''s'!$K$41*Dashboard!$AY$118)+(N151+N104*'Distributieschema''s'!$K$48*Dashboard!$AY$118))/Uren_hvt_alt1 -> 0.105952381 | O107: =(O127+(O130+O104*'Distributieschema''s'!$K$9*Dashboard!$AY$118)+O131+O134+O135+(O138+O104*'Distributieschema''s'!$K$15*Dashboard!$AY$118)+O139+(O142+O104*'Distributieschema''s'!$K$21*Dashboard!$AY$118)+O143+(O146+O104*'Distributieschema''s'!$K$28*Dashboard!$AY$118)+O147+(O149+O104*'Distributieschema''s'!$K$35*Dashboard!$AY$118)+(O150+O104*'Distributieschema''s'!$K$41*Dashboard!$AY$118)+(O151+O104*'Distributieschema''s'!$K$48*Dashboard!$AY$118))/Uren_hvt_alt1 -> 0.105952381 | P107: =(P127+(P130+P104*'Distributieschema''s'!$K$9*Dashboard!$AY$118)+P131+P134+P135+(P138+P104*'Distributieschema''s'!$K$15*Dashboard!$AY$118)+P139+(P142+P104*'Distributieschema''s'!$K$21*Dashboard!$AY$118)+P143+(P146+P104*'Distributieschema''s'!$K$28*Dashboard!$AY$118)+P147+(P149+P104*'Distributieschema''s'!$K$35*Dashboard!$AY$118)+(P150+P104*'Distributieschema''s'!$K$41*Dashboard!$AY$118)+(P151+P104*'Distributieschema''s'!$K$48*Dashboard!$AY$118))/Uren_hvt_alt1 -> 0.105952381 | Q107: =(Q127+(Q130+Q104*'Distributieschema''s'!$K$9*Dashboard!$AY$118)+Q131+Q134+Q135+(Q138+Q104*'Distributieschema''s'!$K$15*Dashboard!$AY$118)+Q139+(Q142+Q104*'Distributieschema''s'!$K$21*Dashboard!$AY$118)+Q143+(Q146+Q104*'Distributieschema''s'!$K$28*Dashboard!$AY$118)+Q147+(Q149+Q104*'Distributieschema''s'!$K$35*Dashboard!$AY$118)+(Q150+Q104*'Distributieschema''s'!$K$41*Dashboard!$AY$118)+(Q151+Q104*'Distributieschema''s'!$K$48*Dashboard!$AY$118))/Uren_hvt_alt1 -> 0 | R107: =(R127+(R130+R104*'Distributieschema''s'!$K$9*Dashboard!$AY$118)+R131+R134+R135+(R138+R104*'Distributieschema''s'!$K$15*Dashboard!$AY$118)+R139+(R142+R104*'Distributieschema''s'!$K$21*Dashboard!$AY$118)+R143+(R146+R104*'Distributieschema''s'!$K$28*Dashboard!$AY$118)+R147+(R149+R104*'Distributieschema''s'!$K$35*Dashboard!$AY$118)+(R150+R104*'Distributieschema''s'!$K$41*Dashboard!$AY$118)+(R151+R104*'Distributieschema''s'!$K$48*Dashboard!$AY$118))/Uren_hvt_alt1 -> 0 | S107: =(S127+(S130+S104*'Distributieschema''s'!$K$9*Dashboard!$AY$118)+S131+S134+S135+(S138+S104*'Distributieschema''s'!$K$15*Dashboard!$AY$118)+S139+(S142+S104*'Distributieschema''s'!$K$21*Dashboard!$AY$118)+S143+(S146+S104*'Distributieschema''s'!$K$28*Dashboard!$AY$118)+S147+(S149+S104*'Distributieschema''s'!$K$35*Dashboard!$AY$118)+(S150+S104*'Distributieschema''s'!$K$41*Dashboard!$AY$118)+(S151+S104*'Distributieschema''s'!$K$48*Dashboard!$AY$118))/Uren_hvt_alt1 -> 0 | T107: =(T127+(T130+T104*'Distributieschema''s'!$K$9*Dashboard!$AY$118)+T131+T134+T135+(T138+T104*'Distributieschema''s'!$K$15*Dashboard!$AY$118)+T139+(T142+T104*'Distributieschema''s'!$K$21*Dashboard!$AY$118)+T143+(T146+T104*'Distributieschema''s'!$K$28*Dashboard!$AY$118)+T147+(T149+T104*'Distributieschema''s'!$K$35*Dashboard!$AY$118)+(T150+T104*'Distributieschema''s'!$K$41*Dashboard!$AY$118)+(T151+T104*'Distributieschema''s'!$K$48*Dashboard!$AY$118))/Uren_hvt_alt1 -> 0 | U107: =(U127+(U130+U104*'Distributieschema''s'!$K$9*Dashboard!$AY$118)+U131+U134+U135+(U138+U104*'Distributieschema''s'!$K$15*Dashboard!$AY$118)+U139+(U142+U104*'Distributieschema''s'!$K$21*Dashboard!$AY$118)+U143+(U146+U104*'Distributieschema''s'!$K$28*Dashboard!$AY$118)+U147+(U149+U104*'Distributieschema''s'!$K$35*Dashboard!$AY$118)+(U150+U104*'Distributieschema''s'!$K$41*Dashboard!$AY$118)+(U151+U104*'Distributieschema''s'!$K$48*Dashboard!$AY$118))/Uren_hvt_alt1 -> 0 | V107: =(V127+(V130+V104*'Distributieschema''s'!$K$9*Dashboard!$AY$118)+V131+V134+V135+(V138+V104*'Distributieschema''s'!$K$15*Dashboard!$AY$118)+V139+(V142+V104*'Distributieschema''s'!$K$21*Dashboard!$AY$118)+V143+(V146+V104*'Distributieschema''s'!$K$28*Dashboard!$AY$118)+V147+(V149+V104*'Distributieschema''s'!$K$35*Dashboard!$AY$118)+(V150+V104*'Distributieschema''s'!$K$41*Dashboard!$AY$118)+(V151+V104*'Distributieschema''s'!$K$48*Dashboard!$AY$118))/Uren_hvt_alt1 -> 0 | W107: =(W127+(W130+W104*'Distributieschema''s'!$K$9*Dashboard!$AY$118)+W131+W134+W135+(W138+W104*'Distributieschema''s'!$K$15*Dashboard!$AY$118)+W139+(W142+W104*'Distributieschema''s'!$K$21*Dashboard!$AY$118)+W143+(W146+W104*'Distributieschema''s'!$K$28*Dashboard!$AY$118)+W147+(W149+W104*'Distributieschema''s'!$K$35*Dashboard!$AY$118)+(W150+W104*'Distributieschema''s'!$K$41*Dashboard!$AY$118)+(W151+W104*'Distributieschema''s'!$K$48*Dashboard!$AY$118))/Uren_hvt_alt1 -> 0 | X107: =(X127+(X130+X104*'Distributieschema''s'!$K$9*Dashboard!$AY$118)+X131+X134+X135+(X138+X104*'Distributieschema''s'!$K$15*Dashboard!$AY$118)+X139+(X142+X104*'Distributieschema''s'!$K$21*Dashboard!$AY$118)+X143+(X146+X104*'Distributieschema''s'!$K$28*Dashboard!$AY$118)+X147+(X149+X104*'Distributieschema''s'!$K$35*Dashboard!$AY$118)+(X150+X104*'Distributieschema''s'!$K$41*Dashboard!$AY$118)+(X151+X104*'Distributieschema''s'!$K$48*Dashboard!$AY$118))/Uren_hvt_alt1 -> 0
B108: Effectief aantal benodigde stadsvoertuigen | I108: 0 | J108: =(J161+(J164+J104*'Distributieschema''s'!$K23*Aantal_keer_HB_stadsvt*Dashboard!$AY$119)+J165+(J168+J104*'Distributieschema''s'!$K30*Aantal_keer_HB_stadsvt*Dashboard!$AY$119)+J169+(J172+J104*'Distributieschema''s'!$K43*Aantal_keer_HB_stadsvt*Dashboard!$AY$119)+(J173+J104*'Distributieschema''s'!$K50*Aantal_keer_HB_stadsvt*Dashboard!$AY$119))/Uren_svt -> 0 | K108: =(K161+(K164+K104*'Distributieschema''s'!$K23*Aantal_keer_HB_stadsvt*Dashboard!$AY$119)+K165+(K168+K104*'Distributieschema''s'!$K30*Aantal_keer_HB_stadsvt*Dashboard!$AY$119)+K169+(K172+K104*'Distributieschema''s'!$K43*Aantal_keer_HB_stadsvt*Dashboard!$AY$119)+(K173+K104*'Distributieschema''s'!$K50*Aantal_keer_HB_stadsvt*Dashboard!$AY$119))/Uren_svt -> 0 | L108: =(L161+(L164+L104*'Distributieschema''s'!$K23*Aantal_keer_HB_stadsvt*Dashboard!$AY$119)+L165+(L168+L104*'Distributieschema''s'!$K30*Aantal_keer_HB_stadsvt*Dashboard!$AY$119)+L169+(L172+L104*'Distributieschema''s'!$K43*Aantal_keer_HB_stadsvt*Dashboard!$AY$119)+(L173+L104*'Distributieschema''s'!$K50*Aantal_keer_HB_stadsvt*Dashboard!$AY$119))/Uren_svt -> 0 | M108: =(M161+(M164+M104*'Distributieschema''s'!$K23*Aantal_keer_HB_stadsvt*Dashboard!$AY$119)+M165+(M168+M104*'Distributieschema''s'!$K30*Aantal_keer_HB_stadsvt*Dashboard!$AY$119)+M169+(M172+M104*'Distributieschema''s'!$K43*Aantal_keer_HB_stadsvt*Dashboard!$AY$119)+(M173+M104*'Distributieschema''s'!$K50*Aantal_keer_HB_stadsvt*Dashboard!$AY$119))/Uren_svt -> 0 | N108: =(N161+(N164+N104*'Distributieschema''s'!$K23*Aantal_keer_HB_stadsvt*Dashboard!$AY$119)+N165+(N168+N104*'Distributieschema''s'!$K30*Aantal_keer_HB_stadsvt*Dashboard!$AY$119)+N169+(N172+N104*'Distributieschema''s'!$K43*Aantal_keer_HB_stadsvt*Dashboard!$AY$119)+(N173+N104*'Distributieschema''s'!$K50*Aantal_keer_HB_stadsvt*Dashboard!$AY$119))/Uren_svt -> 0 | O108: =(O161+(O164+O104*'Distributieschema''s'!$K23*Aantal_keer_HB_stadsvt*Dashboard!$AY$119)+O165+(O168+O104*'Distributieschema''s'!$K30*Aantal_keer_HB_stadsvt*Dashboard!$AY$119)+O169+(O172+O104*'Distributieschema''s'!$K43*Aantal_keer_HB_stadsvt*Dashboard!$AY$119)+(O173+O104*'Distributieschema''s'!$K50*Aantal_keer_HB_stadsvt*Dashboard!$AY$119))/Uren_svt -> 0 | P108: =(P161+(P164+P104*'Distributieschema''s'!$K23*Aantal_keer_HB_stadsvt*Dashboard!$AY$119)+P165+(P168+P104*'Distributieschema''s'!$K30*Aantal_keer_HB_stadsvt*Dashboard!$AY$119)+P169+(P172+P104*'Distributieschema''s'!$K43*Aantal_keer_HB_stadsvt*Dashboard!$AY$119)+(P173+P104*'Distributieschema''s'!$K50*Aantal_keer_HB_stadsvt*Dashboard!$AY$119))/Uren_svt -> 0 | Q108: =(Q161+(Q164+Q104*'Distributieschema''s'!$K23*Aantal_keer_HB_stadsvt*Dashboard!$AY$119)+Q165+(Q168+Q104*'Distributieschema''s'!$K30*Aantal_keer_HB_stadsvt*Dashboard!$AY$119)+Q169+(Q172+Q104*'Distributieschema''s'!$K43*Aantal_keer_HB_stadsvt*Dashboard!$AY$119)+(Q173+Q104*'Distributieschema''s'!$K50*Aantal_keer_HB_stadsvt*Dashboard!$AY$119))/Uren_svt -> 0 | R108: =(R161+(R164+R104*'Distributieschema''s'!$K23*Aantal_keer_HB_stadsvt*Dashboard!$AY$119)+R165+(R168+R104*'Distributieschema''s'!$K30*Aantal_keer_HB_stadsvt*Dashboard!$AY$119)+R169+(R172+R104*'Distributieschema''s'!$K43*Aantal_keer_HB_stadsvt*Dashboard!$AY$119)+(R173+R104*'Distributieschema''s'!$K50*Aantal_keer_HB_stadsvt*Dashboard!$AY$119))/Uren_svt -> 0 | S108: =(S161+(S164+S104*'Distributieschema''s'!$K23*Aantal_keer_HB_stadsvt*Dashboard!$AY$119)+S165+(S168+S104*'Distributieschema''s'!$K30*Aantal_keer_HB_stadsvt*Dashboard!$AY$119)+S169+(S172+S104*'Distributieschema''s'!$K43*Aantal_keer_HB_stadsvt*Dashboard!$AY$119)+(S173+S104*'Distributieschema''s'!$K50*Aantal_keer_HB_stadsvt*Dashboard!$AY$119))/Uren_svt -> 0 | T108: =(T161+(T164+T104*'Distributieschema''s'!$K23*Aantal_keer_HB_stadsvt*Dashboard!$AY$119)+T165+(T168+T104*'Distributieschema''s'!$K30*Aantal_keer_HB_stadsvt*Dashboard!$AY$119)+T169+(T172+T104*'Distributieschema''s'!$K43*Aantal_keer_HB_stadsvt*Dashboard!$AY$119)+(T173+T104*'Distributieschema''s'!$K50*Aantal_keer_HB_stadsvt*Dashboard!$AY$119))/Uren_svt -> 0 | U108: =(U161+(U164+U104*'Distributieschema''s'!$K23*Aantal_keer_HB_stadsvt*Dashboard!$AY$119)+U165+(U168+U104*'Distributieschema''s'!$K30*Aantal_keer_HB_stadsvt*Dashboard!$AY$119)+U169+(U172+U104*'Distributieschema''s'!$K43*Aantal_keer_HB_stadsvt*Dashboard!$AY$119)+(U173+U104*'Distributieschema''s'!$K50*Aantal_keer_HB_stadsvt*Dashboard!$AY$119))/Uren_svt -> 0 | V108: =(V161+(V164+V104*'Distributieschema''s'!$K23*Aantal_keer_HB_stadsvt*Dashboard!$AY$119)+V165+(V168+V104*'Distributieschema''s'!$K30*Aantal_keer_HB_stadsvt*Dashboard!$AY$119)+V169+(V172+V104*'Distributieschema''s'!$K43*Aantal_keer_HB_stadsvt*Dashboard!$AY$119)+(V173+V104*'Distributieschema''s'!$K50*Aantal_keer_HB_stadsvt*Dashboard!$AY$119))/Uren_svt -> 0 | W108: =(W161+(W164+W104*'Distributieschema''s'!$K23*Aantal_keer_HB_stadsvt*Dashboard!$AY$119)+W165+(W168+W104*'Distributieschema''s'!$K30*Aantal_keer_HB_stadsvt*Dashboard!$AY$119)+W169+(W172+W104*'Distributieschema''s'!$K43*Aantal_keer_HB_stadsvt*Dashboard!$AY$119)+(W173+W104*'Distributieschema''s'!$K50*Aantal_keer_HB_stadsvt*Dashboard!$AY$119))/Uren_svt -> 0 | X108: =(X161+(X164+X104*'Distributieschema''s'!$K23*Aantal_keer_HB_stadsvt*Dashboard!$AY$119)+X165+(X168+X104*'Distributieschema''s'!$K30*Aantal_keer_HB_stadsvt*Dashboard!$AY$119)+X169+(X172+X104*'Distributieschema''s'!$K43*Aantal_keer_HB_stadsvt*Dashboard!$AY$119)+(X173+X104*'Distributieschema''s'!$K50*Aantal_keer_HB_stadsvt*Dashboard!$AY$119))/Uren_svt -> 0
B111: Werkelijk aantal gereden kilometers | H111: =SUM(I111:X111) -> 70000 | I111: 0 | J111: =SUM(J112:J113) -> 10000 | K111: =SUM(K112:K113) -> 10000 | L111: 10000 | M111: 10000 | N111: 10000 | O111: 10000 | P111: 10000 | Q111: 0 | R111: 0 | S111: 0 | T111: 0 | U111: 0 | V111: 0 | W111: 0 | X111: 0
B112: - waarvan hoofdvoertuig(en) | H112: =SUM(I112:X112) -> 70000 | I112: 0 | J112: =J33*J104 -> 10000 | K112: 10000 | L112: 10000 | M112: 10000 | N112: 10000 | O112: 10000 | P112: 10000 | Q112: 0 | R112: 0 | S112: 0 | T112: 0 | U112: 0 | V112: 0 | W112: 0 | X112: 0
B113: - waarvan stadsvoertuig(en) | H113: =SUM(I113:X113) -> 0 | I113: 0 | J113: =J84*J104 -> 0 | K113: =J113*K$4 -> 0 | L113: 0 | M113: 0 | N113: 0 | O113: 0 | P113: 0 | Q113: 0 | R113: 0 | S113: 0 | T113: 0 | U113: 0 | V113: 0 | W113: 0 | X113: 0
B116: Referentiekilometers | H116: =SUM(I116:X116) -> 70000 | I116: 0 | J116: =J104*OD_afstand -> 10000 | K116: 10000 | L116: 10000 | M116: 10000 | N116: 10000 | O116: 10000 | P116: 10000 | Q116: 0 | R116: 0 | S116: 0 | T116: 0 | U116: 0 | V116: 0 | W116: 0 | X116: 0
B119: Totaal aantal modaliteitswissels | H119: =SUM(I119:X119) -> 0 | I119: 0 | J119: =SUM(J120:J121) -> 0 | K119: =SUM(K120:K121) -> 0 | L119: =SUM(L120:L121) -> 0 | M119: 0 | N119: 0 | O119: 0 | P119: 0 | Q119: 0 | R119: 0 | S119: 0 | T119: 0 | U119: 0 | V119: 0 | W119: 0 | X119: 0
B120: - waarvan wissels tijdens normale werkuren | H120: =SUM(I120:X120) -> 0 | I120: 0 | J120: =('Distributieschema''s'!K23+'Distributieschema''s'!K43)*J104 -> 0 | K120: =J120*K$4 -> 0 | L120: =K120*L$4 -> 0 | M120: 0 | N120: 0 | O120: 0 | P120: 0 | Q120: 0 | R120: 0 | S120: 0 | T120: 0 | U120: 0 | V120: 0 | W120: 0 | X120: 0
B121: - waarvan wissels tijdens dagrand | H121: =SUM(I121:X121) -> 0 | I121: 0 | J121: =('Distributieschema''s'!K30+'Distributieschema''s'!K50)*J104 -> 0 | K121: =J121*K$4 -> 0 | L121: 0 | M121: 0 | N121: 0 | O121: 0 | P121: 0 | Q121: 0 | R121: 0 | S121: 0 | T121: 0 | U121: 0 | V121: 0 | W121: 0 | X121: 0
B124: Aantal uren hoofdvoertuig per jaar (uren) | H124: =SUM(I124:X124) -> 2225 | I124: 0 | J124: =J125+J129+J133+J137+J141+J145+SUM(J149:J151) -> 317.8571429 | K124: =J124*K$4 -> 317.8571429 | L124: =K124*L$4 -> 317.8571429 | M124: 317.8571429 | N124: 317.8571429 | O124: 317.8571429 | P124: 317.8571429 | Q124: 0 | R124: 0 | S124: 0 | T124: 0 | U124: 0 | V124: 0 | W124: 0 | X124: 0
B125: - waarvan buitenstedelijk gebied tijdens spits | H125: 1700 | I125: 0 | J125: =SUM(J126:J127) -> 242.8571429 | K125: =J125*K$4 -> 242.8571429 | L125: 242.8571429 | M125: 242.8571429 | N125: 242.8571429 | O125: 242.8571429 | P125: 242.8571429 | Q125: 0 | R125: 0 | S125: 0 | T125: 0 | U125: 0 | V125: 0 | W125: 0 | X125: 0
C126: - waarvan klantlocatie in buitenstedelijk gebied | H126: 0 | I126: 0 | J126: =IFERROR(J$104*J35/Snelheid_buitenstedelijk_spits,0) -> 0 | K126: 0 | L126: 0 | M126: 0 | N126: 0 | O126: 0 | P126: 0 | Q126: 0 | R126: 0 | S126: 0 | T126: 0 | U126: 0 | V126: 0 | W126: 0 | X126: 0
C127: - waarvan klantlocatie in stedelijk of kernwinkelgebied | H127: 1700 | I127: 0 | J127: =IFERROR(J$104*J36/Snelheid_buitenstedelijk_spits,0) -> 242.8571429 | K127: 242.8571429 | L127: 242.8571429 | M127: 242.8571429 | N127: 242.8571429 | O127: 242.8571429 | P127: 242.8571429 | Q127: 0 | R127: 0 | S127: 0 | T127: 0 | U127: 0 | V127: 0 | W127: 0 | X127: 0
B129: - waarvan buitenstedelijk gebied buiten spits | H129: 0 | I129: 0 | J129: =SUM(J130:J131) -> 0 | K129: =J129*K$4 -> 0 | L129: 0 | M129: 0 | N129: 0 | O129: 0 | P129: 0 | Q129: 0 | R129: 0 | S129: 0 | T129: 0 | U129: 0 | V129: 0 | W129: 0 | X129: 0
C130: - waarvan klantlocatie in buitenstedelijk gebied | H130: 0 | I130: 0 | J130: =IFERROR(J$104*J39/Snelheid_buitenstedelijk,0) -> 0 | K130: 0 | L130: 0 | M130: 0 | N130: 0 | O130: 0 | P130: 0 | Q130: 0 | R130: 0 | S130: 0 | T130: 0 | U130: 0 | V130: 0 | W130: 0 | X130: 0
C131: - waarvan klantlocatie in stedelijk of kernwinkelgebied | H131: 0 | I131: 0 | J131: =IFERROR(J$104*J40/Snelheid_buitenstedelijk,0) -> 0 | K131: 0 | L131: 0 | M131: 0 | N131: 0 | O131: 0 | P131: 0 | Q131: 0 | R131: 0 | S131: 0 | T131: 0 | U131: 0 | V131: 0 | W131: 0 | X131: 0
B133: - waarvan buitenstedelijk gebied tijdens dagrand | H133: 0 | I133: 0 | J133: =SUM(J134:J135) -> 0 | K133: =J133*K$4 -> 0 | L133: 0 | M133: 0 | N133: 0 | O133: 0 | P133: 0 | Q133: 0 | R133: 0 | S133: 0 | T133: 0 | U133: 0 | V133: 0 | W133: 0 | X133: 0
C134: - waarvan klantlocatie in buitenstedelijk gebied | H134: 0 | I134: 0 | J134: =IFERROR(J$104*J43/Snelheid_buitenstedelijk,0) -> 0 | K134: 0 | L134: 0 | M134: 0 | N134: 0 | O134: 0 | P134: 0 | Q134: 0 | R134: 0 | S134: 0 | T134: 0 | U134: 0 | V134: 0 | W134: 0 | X134: 0
C135: - waarvan klantlocatie in stedelijk of kernwinkelgebied | H135: 0 | I135: 0 | J135: =IFERROR(J$104*J44/Snelheid_buitenstedelijk,0) -> 0 | K135: 0 | L135: 0 | M135: 0 | N135: 0 | O135: 0 | P135: 0 | Q135: 0 | R135: 0 | S135: 0 | T135: 0 | U135: 0 | V135: 0 | W135: 0 | X135: 0
B137: - waarvan stedelijk gebied tijdens AMvB-tijden | H137: 525 | I137: 0 | J137: =SUM(J138:J139) -> 75 | K137: =J137*K$4 -> 75 | L137: 75 | M137: 75 | N137: 75 | O137: 75 | P137: 75 | Q137: 0 | R137: 0 | S137: 0 | T137: 0 | U137: 0 | V137: 0 | W137: 0 | X137: 0
C138: - waarvan klantlocatie in stedelijk gebied | H138: 525 | I138: 0 | J138: =IFERROR(J$104*J47/Snelheid_stedelijk_spits,0) -> 75 | K138: 75 | L138: 75 | M138: 75 | N138: 75 | O138: 75 | P138: 75 | Q138: 0 | R138: 0 | S138: 0 | T138: 0 | U138: 0 | V138: 0 | W138: 0 | X138: 0
C139: - waarvan klantlocatie in kernwinkelgebied | H139: 0 | I139: 0 | J139: =IFERROR(J$104*J48/Snelheid_stedelijk_spits,0) -> 0 | K139: 0 | L139: 0 | M139: 0 | N139: 0 | O139: 0 | P139: 0 | Q139: 0 | R139: 0 | S139: 0 | T139: 0 | U139: 0 | V139: 0 | W139: 0 | X139: 0
B141: - waarvan stedelijk gebied buiten AMvB-tijden | H141: 0 | I141: 0 | J141: =SUM(J142:J143) -> 0 | K141: =J141*K$4 -> 0 | L141: 0 | M141: 0 | N141: 0 | O141: 0 | P141: 0 | Q141: 0 | R141: 0 | S141: 0 | T141: 0 | U141: 0 | V141: 0 | W141: 0 | X141: 0
C142: - waarvan klantlocatie in stedelijk gebied | H142: 0 | I142: 0 | J142: =IFERROR(J$104*J51/Snelheid_stedelijk,0) -> 0 | K142: 0 | L142: 0 | M142: 0 | N142: 0 | O142: 0 | P142: 0 | Q142: 0 | R142: 0 | S142: 0 | T142: 0 | U142: 0 | V142: 0 | W142: 0 | X142: 0
C143: - waarvan klantlocatie in kernwinkelgebied | H143: 0 | I143: 0 | J143: =IFERROR(J$104*J52/Snelheid_stedelijk,0) -> 0 | K143: 0 | L143: 0 | M143: 0 | N143: 0 | O143: 0 | P143: 0 | Q143: 0 | R143: 0 | S143: 0 | T143: 0 | U143: 0 | V143: 0 | W143: 0 | X143: 0
B145: - waarvan stedelijk gebied dagrand | H145: 0 | I145: 0 | J145: =SUM(J146:J147) -> 0 | K145: =J145*K$4 -> 0 | L145: 0 | M145: 0 | N145: 0 | O145: 0 | P145: 0 | Q145: 0 | R145: 0 | S145: 0 | T145: 0 | U145: 0 | V145: 0 | W145: 0 | X145: 0
C146: - waarvan klantlocatie in stedelijk gebied | H146: 0 | I146: 0 | J146: =IFERROR(J$104*J55/Snelheid_stedelijk,0) -> 0 | K146: 0 | L146: 0 | M146: 0 | N146: 0 | O146: 0 | P146: 0 | Q146: 0 | R146: 0 | S146: 0 | T146: 0 | U146: 0 | V146: 0 | W146: 0 | X146: 0
C147: - waarvan klantlocatie in kernwinkelgebied | H147: 0 | I147: 0 | J147: =IFERROR(J$104*J56/Snelheid_stedelijk,0) -> 0 | K147: 0 | L147: 0 | M147: 0 | N147: 0 | O147: 0 | P147: 0 | Q147: 0 | R147: 0 | S147: 0 | T147: 0 | U147: 0 | V147: 0 | W147: 0 | X147: 0
B149: - waarvan kernwinkelgebied tijdens AMvB-tijden | H149: 0 | I149: 0 | J149: =IFERROR(J$104*J58/Snelheid_kwg_spits,0) -> 0 | K149: =J149*K$4 -> 0 | L149: 0 | M149: 0 | N149: 0 | O149: 0 | P149: 0 | Q149: 0 | R149: 0 | S149: 0 | T149: 0 | U149: 0 | V149: 0 | W149: 0 | X149: 0
B150: - waarvan kernwinkelgebied buiten AMvB-tijden | H150: 0 | I150: 0 | J150: =IFERROR(J$104*J59/Snelheid_kwg,0) -> 0 | K150: 0 | L150: 0 | M150: 0 | N150: 0 | O150: 0 | P150: 0 | Q150: 0 | R150: 0 | S150: 0 | T150: 0 | U150: 0 | V150: 0 | W150: 0 | X150: 0
B151: - waarvan kernwinkelgebied dagrand | H151: 0 | I151: 0 | J151: =IFERROR(J$104*J60/Snelheid_kwg,0) -> 0 | K151: 0 | L151: 0 | M151: 0 | N151: 0 | O151: 0 | P151: 0 | Q151: 0 | R151: 0 | S151: 0 | T151: 0 | U151: 0 | V151: 0 | W151: 0 | X151: 0
B154: Aantal uren stadsvoertuig per jaar (uren) | H154: =SUM(I154:X154) -> 0 | I154: 0 | J154: =SUM(J155:J157)+J159+J163+J167+SUM(J171:J173) -> 0 | K154: =J154*K$4 -> 0 | L154: 0 | M154: 0 | N154: 0 | O154: 0 | P154: 0 | Q154: 0 | R154: 0 | S154: 0 | T154: 0 | U154: 0 | V154: 0 | W154: 0 | X154: 0
B155: - waarvan buitenstedelijk gebied tijdens spits | H155: 0 | I155: 0 | J155: 0 | K155: 0 | L155: 0 | M155: 0 | N155: 0 | O155: 0 | P155: 0 | Q155: 0 | R155: 0 | S155: 0 | T155: 0 | U155: 0 | V155: 0 | W155: 0 | X155: 0
B156: - waarvan buitenstedelijk gebied buiten spits | H156: 0 | I156: 0 | J156: 0 | K156: 0 | L156: 0 | M156: 0 | N156: 0 | O156: 0 | P156: 0 | Q156: 0 | R156: 0 | S156: 0 | T156: 0 | U156: 0 | V156: 0 | W156: 0 | X156: 0
B157: - waarvan buitenstedelijk gebied tijdens dagrand | H157: 0 | I157: 0 | J157: 0 | K157: 0 | L157: 0 | M157: 0 | N157: 0 | O157: 0 | P157: 0 | Q157: 0 | R157: 0 | S157: 0 | T157: 0 | U157: 0 | V157: 0 | W157: 0 | X157: 0
B159: - waarvan stedelijk gebied tijdens AMvB-tijden | H159: 0 | I159: 0 | J159: =SUM(J160:J161) -> 0 | K159: =J159*K$4 -> 0 | L159: 0 | M159: 0 | N159: 0 | O159: 0 | P159: 0 | Q159: 0 | R159: 0 | S159: 0 | T159: 0 | U159: 0 | V159: 0 | W159: 0 | X159: 0
C160: - waarvan klantlocatie in stedelijk gebied | H160: 0 | I160: 0 | J160: =IFERROR(J$105*J88/Snelheid_stedelijk_spits,0) -> 0 | K160: 0 | L160: 0 | M160: 0 | N160: 0 | O160: 0 | P160: 0 | Q160: 0 | R160: 0 | S160: 0 | T160: 0 | U160: 0 | V160: 0 | W160: 0 | X160: 0
C161: - waarvan klantlocatie in kernwinkelgebied | H161: 0 | I161: 0 | J161: =IFERROR(J$105*J89/Snelheid_stedelijk_spits,0) -> 0 | K161: 0 | L161: 0 | M161: 0 | N161: 0 | O161: 0 | P161: 0 | Q161: 0 | R161: 0 | S161: 0 | T161: 0 | U161: 0 | V161: 0 | W161: 0 | X161: 0
B163: - waarvan stedelijk gebied buiten AMvB-tijden | H163: 0 | I163: 0 | J163: =SUM(J164:J165) -> 0 | K163: =J163*K$4 -> 0 | L163: 0 | M163: 0 | N163: 0 | O163: 0 | P163: 0 | Q163: 0 | R163: 0 | S163: 0 | T163: 0 | U163: 0 | V163: 0 | W163: 0 | X163: 0
C164: - waarvan klantlocatie in stedelijk gebied | H164: 0 | I164: 0 | J164: =IFERROR(J$105*J71/Snelheid_stedelijk,0) -> 0 | K164: 0 | L164: 0 | M164: 0 | N164: 0 | O164: 0 | P164: 0 | Q164: 0 | R164: 0 | S164: 0 | T164: 0 | U164: 0 | V164: 0 | W164: 0 | X164: 0
C165: - waarvan klantlocatie in kernwinkelgebied | H165: 0 | I165: 0 | J165: =IFERROR(J$105*J72/Snelheid_stedelijk,0) -> 0 | K165: 0 | L165: 0 | M165: 0 | N165: 0 | O165: 0 | P165: 0 | Q165: 0 | R165: 0 | S165: 0 | T165: 0 | U165: 0 | V165: 0 | W165: 0 | X165: 0
B167: - waarvan stedelijk gebied dagrand | H167: 0 | I167: 0 | J167: =SUM(J168:J169) -> 0 | K167: =J167*K$4 -> 0 | L167: 0 | M167: 0 | N167: 0 | O167: 0 | P167: 0 | Q167: 0 | R167: 0 | S167: 0 | T167: 0 | U167: 0 | V167: 0 | W167: 0 | X167: 0
C168: - waarvan klantlocatie in stedelijk gebied | H168: 0 | I168: 0 | J168: =IFERROR(J$105*J75/Snelheid_stedelijk,0) -> 0 | K168: 0 | L168: 0 | M168: 0 | N168: 0 | O168: 0 | P168: 0 | Q168: 0 | R168: 0 | S168: 0 | T168: 0 | U168: 0 | V168: 0 | W168: 0 | X168: 0
C169: - waarvan klantlocatie in kernwinkelgebied | H169: 0 | I169: 0 | J169: =IFERROR(J$105*J76/Snelheid_stedelijk,0) -> 0 | K169: 0 | L169: 0 | M169: 0 | N169: 0 | O169: 0 | P169: 0 | Q169: 0 | R169: 0 | S169: 0 | T169: 0 | U169: 0 | V169: 0 | W169: 0 | X169: 0
B171: - waarvan kernwinkelgebied tijdens AMvB-tijden | H171: 0 | I171: 0 | J171: =IFERROR(J$105*J78/Snelheid_kwg_spits,0) -> 0 | K171: =J171*K$4 -> 0 | L171: 0 | M171: 0 | N171: 0 | O171: 0 | P171: 0 | Q171: 0 | R171: 0 | S171: 0 | T171: 0 | U171: 0 | V171: 0 | W171: 0 | X171: 0
B172: - waarvan kernwinkelgebied buiten AMvB-tijden | H172: 0 | I172: 0 | J172: =IFERROR(J$105*J79/Snelheid_kwg,0) -> 0 | K172: 0 | L172: 0 | M172: 0 | N172: 0 | O172: 0 | P172: 0 | Q172: 0 | R172: 0 | S172: 0 | T172: 0 | U172: 0 | V172: 0 | W172: 0 | X172: 0
B173: - waarvan kernwinkelgebied dagrand | H173: 0 | I173: 0 | J173: =IFERROR(J$105*J80/Snelheid_kwg,0) -> 0 | K173: 0 | L173: 0 | M173: 0 | N173: 0 | O173: 0 | P173: 0 | Q173: 0 | R173: 0 | S173: 0 | T173: 0 | U173: 0 | V173: 0 | W173: 0 | X173: 0
B176: Personeelsinzet hoofd- en stadsvoertuig (uren) | H176: =SUM(I176:X176) -> 2225 | I176: 0 | J176: =J177+J181+J185+J189+J193+J197+SUM(J201:J203) -> 317.8571429 | K176: =J176*K$4 -> 317.8571429 | L176: =K176*L$4 -> 317.8571429 | M176: 317.8571429 | N176: 317.8571429 | O176: 317.8571429 | P176: 317.8571429 | Q176: 0 | R176: 0 | S176: 0 | T176: 0 | U176: 0 | V176: 0 | W176: 0 | X176: 0
B177: - waarvan buitenstedelijk gebied tijdens spits | H177: 1700 | I177: 0 | J177: =SUM(J178:J179) -> 242.8571429 | K177: =J177*K$4 -> 242.8571429 | L177: 242.8571429 | M177: 242.8571429 | N177: 242.8571429 | O177: 242.8571429 | P177: 242.8571429 | Q177: 0 | R177: 0 | S177: 0 | T177: 0 | U177: 0 | V177: 0 | W177: 0 | X177: 0
C178: - waarvan klantlocatie in buitenstedelijk gebied | H178: 0 | I178: 0 | J178: 0 | K178: 0 | L178: 0 | M178: 0 | N178: 0 | O178: 0 | P178: 0 | Q178: 0 | R178: 0 | S178: 0 | T178: 0 | U178: 0 | V178: 0 | W178: 0 | X178: 0
C179: - waarvan klantlocatie in stedelijk of kernwinkelgebied | H179: 1700 | I179: 0 | J179: =Bezetting_hvt*J127 -> 242.8571429 | K179: 242.8571429 | L179: 242.8571429 | M179: 242.8571429 | N179: 242.8571429 | O179: 242.8571429 | P179: 242.8571429 | Q179: 0 | R179: 0 | S179: 0 | T179: 0 | U179: 0 | V179: 0 | W179: 0 | X179: 0
B181: - waarvan buitenstedelijk gebied buiten spits | H181: 0 | I181: 0 | J181: =SUM(J182:J183) -> 0 | K181: =J181*K$4 -> 0 | L181: 0 | M181: 0 | N181: 0 | O181: 0 | P181: 0 | Q181: 0 | R181: 0 | S181: 0 | T181: 0 | U181: 0 | V181: 0 | W181: 0 | X181: 0
C182: - waarvan klantlocatie in buitenstedelijk gebied | H182: 0 | I182: 0 | J182: =Bezetting_hvt*(J130+J104*'Distributieschema''s'!K9*Dashboard!$AY$118) -> 0 | K182: 0 | L182: 0 | M182: 0 | N182: 0 | O182: 0 | P182: 0 | Q182: 0 | R182: 0 | S182: 0 | T182: 0 | U182: 0 | V182: 0 | W182: 0 | X182: 0
C183: - waarvan klantlocatie in stedelijk of kernwinkelgebied | H183: 0 | I183: 0 | J183: =Bezetting_hvt*J131 -> 0 | K183: 0 | L183: 0 | M183: 0 | N183: 0 | O183: 0 | P183: 0 | Q183: 0 | R183: 0 | S183: 0 | T183: 0 | U183: 0 | V183: 0 | W183: 0 | X183: 0
B185: - waarvan buitenstedelijk gebied tijdens dagrand | H185: 0 | I185: 0 | J185: =SUM(J186:J187) -> 0 | K185: =J185*K$4 -> 0 | L185: 0 | M185: 0 | N185: 0 | O185: 0 | P185: 0 | Q185: 0 | R185: 0 | S185: 0 | T185: 0 | U185: 0 | V185: 0 | W185: 0 | X185: 0
C186: - waarvan klantlocatie in buitenstedelijk gebied | H186: 0 | I186: 0 | J186: =Bezetting_hvt*(J134+J104*0*Dashboard!$AY$118) -> 0 | K186: 0 | L186: 0 | M186: 0 | N186: 0 | O186: 0 | P186: 0 | Q186: 0 | R186: 0 | S186: 0 | T186: 0 | U186: 0 | V186: 0 | W186: 0 | X186: 0
C187: - waarvan klantlocatie in stedelijk of kernwinkelgebied | H187: 0 | I187: 0 | J187: =Bezetting_hvt*J135 -> 0 | K187: 0 | L187: 0 | M187: 0 | N187: 0 | O187: 0 | P187: 0 | Q187: 0 | R187: 0 | S187: 0 | T187: 0 | U187: 0 | V187: 0 | W187: 0 | X187: 0
B189: - waarvan stedelijk gebied tijdens AMvB-tijden | H189: 525 | I189: 0 | J189: =SUM(J190:J191) -> 75 | K189: =J189*K$4 -> 75 | L189: 75 | M189: 75 | N189: 75 | O189: 75 | P189: 75 | Q189: 0 | R189: 0 | S189: 0 | T189: 0 | U189: 0 | V189: 0 | W189: 0 | X189: 0
C190: - waarvan klantlocatie in stedelijk gebied | H190: 525 | I190: 0 | J190: =Bezetting_hvt*(J138+J104*'Distributieschema''s'!K15*Dashboard!$AY$118)+Bezetting_svt*(J160+J104*0*Aantal_keer_HB_stadsvt*Dashboard!$AY$119) -> 75 | K190: 75 | L190: 75 | M190: 75 | N190: 75 | O190: 75 | P190: 75 | Q190: 0 | R190: 0 | S190: 0 | T190: 0 | U190: 0 | V190: 0 | W190: 0 | X190: 0
C191: - waarvan klantlocatie in kernwinkelgebied | H191: 0 | I191: 0 | J191: =Bezetting_hvt*J139+Bezetting_svt*J161 -> 0 | K191: 0 | L191: 0 | M191: 0 | N191: 0 | O191: 0 | P191: 0 | Q191: 0 | R191: 0 | S191: 0 | T191: 0 | U191: 0 | V191: 0 | W191: 0 | X191: 0
B193: - waarvan stedelijk gebied buiten AMvB-tijden | H193: 0 | I193: 0 | J193: =SUM(J194:J195) -> 0 | K193: =J193*K$4 -> 0 | L193: 0 | M193: 0 | N193: 0 | O193: 0 | P193: 0 | Q193: 0 | R193: 0 | S193: 0 | T193: 0 | U193: 0 | V193: 0 | W193: 0 | X193: 0
C194: - waarvan klantlocatie in stedelijk gebied | H194: 0 | I194: 0 | J194: =Bezetting_hvt*(J142+J104*'Distributieschema''s'!K21*Dashboard!$AY$118)+Bezetting_svt*(J164+J104*'Distributieschema''s'!K23*Aantal_keer_HB_stadsvt*Dashboard!$AY$119) -> 0 | K194: 0 | L194: 0 | M194: 0 | N194: 0 | O194: 0 | P194: 0 | Q194: 0 | R194: 0 | S194: 0 | T194: 0 | U194: 0 | V194: 0 | W194: 0 | X194: 0
C195: - waarvan klantlocatie in kernwinkelgebied | H195: 0 | I195: 0 | J195: =Bezetting_hvt*J143+Bezetting_svt*J165 -> 0 | K195: 0 | L195: 0 | M195: 0 | N195: 0 | O195: 0 | P195: 0 | Q195: 0 | R195: 0 | S195: 0 | T195: 0 | U195: 0 | V195: 0 | W195: 0 | X195: 0
H196: 0
B197: - waarvan stedelijk gebied dagrand | H197: 0 | I197: 0 | J197: =SUM(J198:J199) -> 0 | K197: =J197*K$4 -> 0 | L197: 0 | M197: 0 | N197: 0 | O197: 0 | P197: 0 | Q197: 0 | R197: 0 | S197: 0 | T197: 0 | U197: 0 | V197: 0 | W197: 0 | X197: 0
C198: - waarvan klantlocatie in stedelijk gebied | H198: 0 | I198: 0 | J198: =Bezetting_hvt*(J146+J104*'Distributieschema''s'!K28*Dashboard!$AY$118)+Bezetting_svt*(J168+J104*'Distributieschema''s'!K30*Aantal_keer_HB_stadsvt*Dashboard!$AY$119) -> 0 | K198: 0 | L198: 0 | M198: 0 | N198: 0 | O198: 0 | P198: 0 | Q198: 0 | R198: 0 | S198: 0 | T198: 0 | U198: 0 | V198: 0 | W198: 0 | X198: 0
C199: - waarvan klantlocatie in kernwinkelgebied | H199: 0 | I199: 0 | J199: =Bezetting_hvt*J147+Bezetting_svt*J169 -> 0 | K199: 0 | L199: 0 | M199: 0 | N199: 0 | O199: 0 | P199: 0 | Q199: 0 | R199: 0 | S199: 0 | T199: 0 | U199: 0 | V199: 0 | W199: 0 | X199: 0
B201: - waarvan kernwinkelgebied tijdens AMvB-tijden | H201: 0 | I201: 0 | J201: =Bezetting_hvt*(J149+J104*'Distributieschema''s'!K35*Dashboard!$AY$118)+Bezetting_svt*(J171+J104*0*Aantal_keer_HB_stadsvt*Dashboard!$AY$119) -> 0 | K201: =J201*K$4 -> 0 | L201: 0 | M201: 0 | N201: 0 | O201: 0 | P201: 0 | Q201: 0 | R201: 0 | S201: 0 | T201: 0 | U201: 0 | V201: 0 | W201: 0 | X201: 0
B202: - waarvan kernwinkelgebied buiten AMvB-tijden | H202: 0 | I202: 0 | J202: =Bezetting_hvt*(J150+J104*'Distributieschema''s'!K41*Dashboard!$AY$118)+Bezetting_svt*(J172+J104*'Distributieschema''s'!K43*Aantal_keer_HB_stadsvt*Dashboard!$AY$119) -> 0 | K202: 0 | L202: 0 | M202: 0 | N202: 0 | O202: 0 | P202: 0 | Q202: 0 | R202: 0 | S202: 0 | T202: 0 | U202: 0 | V202: 0 | W202: 0 | X202: 0
B203: - waarvan kernwinkelgebied dagrand | H203: 0 | I203: 0 | J203: =Bezetting_hvt*(J151+J104*'Distributieschema''s'!K48*Dashboard!$AY$118)+Bezetting_svt*(J173+J104*'Distributieschema''s'!K50*Aantal_keer_HB_stadsvt*Dashboard!$AY$119) -> 0 | K203: 0 | L203: 0 | M203: 0 | N203: 0 | O203: 0 | P203: 0 | Q203: 0 | R203: 0 | S203: 0 | T203: 0 | U203: 0 | V203: 0 | W203: 0 | X203: 0
B206: Brandstofprijs en - verbruik hoofdvoertuig
B207: ="Brandstof 1: "&Dashboard!J37&" ("&Dashboard!J38&")" -> Brandstof 1: LNG (kilogram) | G207: =Brandstofprijs1+Dashboard!J130 -> 0.82 | I207: 0 | J207: =J104*((J38+J42)+(J50+J54+J59+J60)*(1+Extra_verbruik_stad)+(J34)*(1+Extra_verbruik_spits)+(J46+J58)*(1+Extra_verbruik_spits)*(1+Extra_verbruik_stad))/100*Dashboard!$J$96*Dashboard!$J$97 -> 2600 | K207: =K104*((K38+K42)+(K50+K54+K59+K60)*(1+Extra_verbruik_stad)+(K34)*(1+Extra_verbruik_spits)+(K46+K58)*(1+Extra_verbruik_spits)*(1+Extra_verbruik_stad))/100*Dashboard!$J$96*Dashboard!$J$97 -> 2600 | L207: =L104*((L38+L42)+(L50+L54+L59+L60)*(1+Extra_verbruik_stad)+(L34)*(1+Extra_verbruik_spits)+(L46+L58)*(1+Extra_verbruik_spits)*(1+Extra_verbruik_stad))/100*Dashboard!$J$96*Dashboard!$J$97 -> 2600 | M207: =M104*((M38+M42)+(M50+M54+M59+M60)*(1+Extra_verbruik_stad)+(M34)*(1+Extra_verbruik_spits)+(M46+M58)*(1+Extra_verbruik_spits)*(1+Extra_verbruik_stad))/100*Dashboard!$J$96*Dashboard!$J$97 -> 2600 | N207: =N104*((N38+N42)+(N50+N54+N59+N60)*(1+Extra_verbruik_stad)+(N34)*(1+Extra_verbruik_spits)+(N46+N58)*(1+Extra_verbruik_spits)*(1+Extra_verbruik_stad))/100*Dashboard!$J$96*Dashboard!$J$97 -> 2600 | O207: =O104*((O38+O42)+(O50+O54+O59+O60)*(1+Extra_verbruik_stad)+(O34)*(1+Extra_verbruik_spits)+(O46+O58)*(1+Extra_verbruik_spits)*(1+Extra_verbruik_stad))/100*Dashboard!$J$96*Dashboard!$J$97 -> 2600 | P207: =P104*((P38+P42)+(P50+P54+P59+P60)*(1+Extra_verbruik_stad)+(P34)*(1+Extra_verbruik_spits)+(P46+P58)*(1+Extra_verbruik_spits)*(1+Extra_verbruik_stad))/100*Dashboard!$J$96*Dashboard!$J$97 -> 2600 | Q207: =Q104*((Q38+Q42)+(Q50+Q54+Q59+Q60)*(1+Extra_verbruik_stad)+(Q34)*(1+Extra_verbruik_spits)+(Q46+Q58)*(1+Extra_verbruik_spits)*(1+Extra_verbruik_stad))/100*Dashboard!$J$96*Dashboard!$J$97 -> 0 | R207: =R104*((R38+R42)+(R50+R54+R59+R60)*(1+Extra_verbruik_stad)+(R34)*(1+Extra_verbruik_spits)+(R46+R58)*(1+Extra_verbruik_spits)*(1+Extra_verbruik_stad))/100*Dashboard!$J$96*Dashboard!$J$97 -> 0 | S207: =S104*((S38+S42)+(S50+S54+S59+S60)*(1+Extra_verbruik_stad)+(S34)*(1+Extra_verbruik_spits)+(S46+S58)*(1+Extra_verbruik_spits)*(1+Extra_verbruik_stad))/100*Dashboard!$J$96*Dashboard!$J$97 -> 0 | T207: =T104*((T38+T42)+(T50+T54+T59+T60)*(1+Extra_verbruik_stad)+(T34)*(1+Extra_verbruik_spits)+(T46+T58)*(1+Extra_verbruik_spits)*(1+Extra_verbruik_stad))/100*Dashboard!$J$96*Dashboard!$J$97 -> 0 | U207: =U104*((U38+U42)+(U50+U54+U59+U60)*(1+Extra_verbruik_stad)+(U34)*(1+Extra_verbruik_spits)+(U46+U58)*(1+Extra_verbruik_spits)*(1+Extra_verbruik_stad))/100*Dashboard!$J$96*Dashboard!$J$97 -> 0 | V207: =V104*((V38+V42)+(V50+V54+V59+V60)*(1+Extra_verbruik_stad)+(V34)*(1+Extra_verbruik_spits)+(V46+V58)*(1+Extra_verbruik_spits)*(1+Extra_verbruik_stad))/100*Dashboard!$J$96*Dashboard!$J$97 -> 0 | W207: =W104*((W38+W42)+(W50+W54+W59+W60)*(1+Extra_verbruik_stad)+(W34)*(1+Extra_verbruik_spits)+(W46+W58)*(1+Extra_verbruik_spits)*(1+Extra_verbruik_stad))/100*Dashboard!$J$96*Dashboard!$J$97 -> 0 | X207: =X104*((X38+X42)+(X50+X54+X59+X60)*(1+Extra_verbruik_stad)+(X34)*(1+Extra_verbruik_spits)+(X46+X58)*(1+Extra_verbruik_spits)*(1+Extra_verbruik_stad))/100*Dashboard!$J$96*Dashboard!$J$97 -> 0
B208: ="Brandstof 2: "&IFERROR(Dashboard!J39&" ("&Dashboard!J40&")","n.v.t.") -> Brandstof 2: n.v.t. | G208: =IF(switch_Alt1_br2=1,Brandstofprijs1_2+Dashboard!J131,"n.v.t.") -> n.v.t. | I208: 0 | J208: =J104*((J38+J42+J50+J54+J59+J60)+(J34+J46+J58)*(1+Extra_verbruik_spits))/100*Dashboard!$J$99*Dashboard!$J$100 -> 0 | K208: =K104*((K38+K42+K50+K54+K59+K60)+(K34+K46+K58)*(1+Extra_verbruik_spits))/100*Dashboard!$J$99*Dashboard!$J$100 -> 0 | L208: =L104*((L38+L42+L50+L54+L59+L60)+(L34+L46+L58)*(1+Extra_verbruik_spits))/100*Dashboard!$J$99*Dashboard!$J$100 -> 0 | M208: =M104*((M38+M42+M50+M54+M59+M60)+(M34+M46+M58)*(1+Extra_verbruik_spits))/100*Dashboard!$J$99*Dashboard!$J$100 -> 0 | N208: =N104*((N38+N42+N50+N54+N59+N60)+(N34+N46+N58)*(1+Extra_verbruik_spits))/100*Dashboard!$J$99*Dashboard!$J$100 -> 0 | O208: =O104*((O38+O42+O50+O54+O59+O60)+(O34+O46+O58)*(1+Extra_verbruik_spits))/100*Dashboard!$J$99*Dashboard!$J$100 -> 0 | P208: =P104*((P38+P42+P50+P54+P59+P60)+(P34+P46+P58)*(1+Extra_verbruik_spits))/100*Dashboard!$J$99*Dashboard!$J$100 -> 0 | Q208: =Q104*((Q38+Q42+Q50+Q54+Q59+Q60)+(Q34+Q46+Q58)*(1+Extra_verbruik_spits))/100*Dashboard!$J$99*Dashboard!$J$100 -> 0 | R208: =R104*((R38+R42+R50+R54+R59+R60)+(R34+R46+R58)*(1+Extra_verbruik_spits))/100*Dashboard!$J$99*Dashboard!$J$100 -> 0 | S208: =S104*((S38+S42+S50+S54+S59+S60)+(S34+S46+S58)*(1+Extra_verbruik_spits))/100*Dashboard!$J$99*Dashboard!$J$100 -> 0 | T208: =T104*((T38+T42+T50+T54+T59+T60)+(T34+T46+T58)*(1+Extra_verbruik_spits))/100*Dashboard!$J$99*Dashboard!$J$100 -> 0 | U208: =U104*((U38+U42+U50+U54+U59+U60)+(U34+U46+U58)*(1+Extra_verbruik_spits))/100*Dashboard!$J$99*Dashboard!$J$100 -> 0 | V208: =V104*((V38+V42+V50+V54+V59+V60)+(V34+V46+V58)*(1+Extra_verbruik_spits))/100*Dashboard!$J$99*Dashboard!$J$100 -> 0 | W208: =W104*((W38+W42+W50+W54+W59+W60)+(W34+W46+W58)*(1+Extra_verbruik_spits))/100*Dashboard!$J$99*Dashboard!$J$100 -> 0 | X208: =X104*((X38+X42+X50+X54+X59+X60)+(X34+X46+X58)*(1+Extra_verbruik_spits))/100*Dashboard!$J$99*Dashboard!$J$100 -> 0
B211: Aantal uren | J211: =J127+(J130+J104*'Distributieschema''s'!K9*Dashboard!$AY$118)+J131+J134+J135+(J138+J104*'Distributieschema''s'!K15*Dashboard!$AY$118)+J139+(J142+J104*'Distributieschema''s'!K21*Dashboard!$AY$118)+J143+(J146+J104*'Distributieschema''s'!K28*Dashboard!$AY$118)+J147+(J149+J104*'Distributieschema''s'!K35*Dashboard!$AY$118)+(J150+J104*'Distributieschema''s'!K41*Dashboard!$AY$118)+(J151+J104*'Distributieschema''s'!K48*Dashboard!$AY$118) -> 317.8571429
B212: Werkelijk aantal uren/jaar | G212: =J176+J119*J12 -> 317.8571429 | J212: =Bezetting_svt*(J161+(J164+J104*'Distributieschema''s'!$K23*Aantal_keer_HB_stadsvt*Dashboard!$AY$119)+J165+(J168+J104*'Distributieschema''s'!$K30*Aantal_keer_HB_stadsvt*Dashboard!$AY$119)+J169+(J172+J104*'Distributieschema''s'!$K43*Aantal_keer_HB_stadsvt*Dashboard!$AY$119)+(J173+J104*'Distributieschema''s'!$K50*Aantal_keer_HB_stadsvt*Dashboard!$AY$119)) -> 0 | K212: =Bezetting_svt*(K161+(K164+K104*'Distributieschema''s'!$K23*Aantal_keer_HB_stadsvt*Dashboard!$AY$119)+K165+(K168+K104*'Distributieschema''s'!$K30*Aantal_keer_HB_stadsvt*Dashboard!$AY$119)+K169+(K172+K104*'Distributieschema''s'!$K43*Aantal_keer_HB_stadsvt*Dashboard!$AY$119)+(K173+K104*'Distributieschema''s'!$K50*Aantal_keer_HB_stadsvt*Dashboard!$AY$119)) -> 0 | L212: =Bezetting_svt*(L161+(L164+L104*'Distributieschema''s'!$K23*Aantal_keer_HB_stadsvt*Dashboard!$AY$119)+L165+(L168+L104*'Distributieschema''s'!$K30*Aantal_keer_HB_stadsvt*Dashboard!$AY$119)+L169+(L172+L104*'Distributieschema''s'!$K43*Aantal_keer_HB_stadsvt*Dashboard!$AY$119)+(L173+L104*'Distributieschema''s'!$K50*Aantal_keer_HB_stadsvt*Dashboard!$AY$119)) -> 0 | M212: =Bezetting_svt*(M161+(M164+M104*'Distributieschema''s'!$K23*Aantal_keer_HB_stadsvt*Dashboard!$AY$119)+M165+(M168+M104*'Distributieschema''s'!$K30*Aantal_keer_HB_stadsvt*Dashboard!$AY$119)+M169+(M172+M104*'Distributieschema''s'!$K43*Aantal_keer_HB_stadsvt*Dashboard!$AY$119)+(M173+M104*'Distributieschema''s'!$K50*Aantal_keer_HB_stadsvt*Dashboard!$AY$119)) -> 0 | N212: =Bezetting_svt*(N161+(N164+N104*'Distributieschema''s'!$K23*Aantal_keer_HB_stadsvt*Dashboard!$AY$119)+N165+(N168+N104*'Distributieschema''s'!$K30*Aantal_keer_HB_stadsvt*Dashboard!$AY$119)+N169+(N172+N104*'Distributieschema''s'!$K43*Aantal_keer_HB_stadsvt*Dashboard!$AY$119)+(N173+N104*'Distributieschema''s'!$K50*Aantal_keer_HB_stadsvt*Dashboard!$AY$119)) -> 0 | O212: =Bezetting_svt*(O161+(O164+O104*'Distributieschema''s'!$K23*Aantal_keer_HB_stadsvt*Dashboard!$AY$119)+O165+(O168+O104*'Distributieschema''s'!$K30*Aantal_keer_HB_stadsvt*Dashboard!$AY$119)+O169+(O172+O104*'Distributieschema''s'!$K43*Aantal_keer_HB_stadsvt*Dashboard!$AY$119)+(O173+O104*'Distributieschema''s'!$K50*Aantal_keer_HB_stadsvt*Dashboard!$AY$119)) -> 0 | P212: =Bezetting_svt*(P161+(P164+P104*'Distributieschema''s'!$K23*Aantal_keer_HB_stadsvt*Dashboard!$AY$119)+P165+(P168+P104*'Distributieschema''s'!$K30*Aantal_keer_HB_stadsvt*Dashboard!$AY$119)+P169+(P172+P104*'Distributieschema''s'!$K43*Aantal_keer_HB_stadsvt*Dashboard!$AY$119)+(P173+P104*'Distributieschema''s'!$K50*Aantal_keer_HB_stadsvt*Dashboard!$AY$119)) -> 0 | Q212: =Bezetting_svt*(Q161+(Q164+Q104*'Distributieschema''s'!$K23*Aantal_keer_HB_stadsvt*Dashboard!$AY$119)+Q165+(Q168+Q104*'Distributieschema''s'!$K30*Aantal_keer_HB_stadsvt*Dashboard!$AY$119)+Q169+(Q172+Q104*'Distributieschema''s'!$K43*Aantal_keer_HB_stadsvt*Dashboard!$AY$119)+(Q173+Q104*'Distributieschema''s'!$K50*Aantal_keer_HB_stadsvt*Dashboard!$AY$119)) -> 0 | R212: =Bezetting_svt*(R161+(R164+R104*'Distributieschema''s'!$K23*Aantal_keer_HB_stadsvt*Dashboard!$AY$119)+R165+(R168+R104*'Distributieschema''s'!$K30*Aantal_keer_HB_stadsvt*Dashboard!$AY$119)+R169+(R172+R104*'Distributieschema''s'!$K43*Aantal_keer_HB_stadsvt*Dashboard!$AY$119)+(R173+R104*'Distributieschema''s'!$K50*Aantal_keer_HB_stadsvt*Dashboard!$AY$119)) -> 0 | S212: =Bezetting_svt*(S161+(S164+S104*'Distributieschema''s'!$K23*Aantal_keer_HB_stadsvt*Dashboard!$AY$119)+S165+(S168+S104*'Distributieschema''s'!$K30*Aantal_keer_HB_stadsvt*Dashboard!$AY$119)+S169+(S172+S104*'Distributieschema''s'!$K43*Aantal_keer_HB_stadsvt*Dashboard!$AY$119)+(S173+S104*'Distributieschema''s'!$K50*Aantal_keer_HB_stadsvt*Dashboard!$AY$119)) -> 0 | T212: =Bezetting_svt*(T161+(T164+T104*'Distributieschema''s'!$K23*Aantal_keer_HB_stadsvt*Dashboard!$AY$119)+T165+(T168+T104*'Distributieschema''s'!$K30*Aantal_keer_HB_stadsvt*Dashboard!$AY$119)+T169+(T172+T104*'Distributieschema''s'!$K43*Aantal_keer_HB_stadsvt*Dashboard!$AY$119)+(T173+T104*'Distributieschema''s'!$K50*Aantal_keer_HB_stadsvt*Dashboard!$AY$119)) -> 0 | U212: =Bezetting_svt*(U161+(U164+U104*'Distributieschema''s'!$K23*Aantal_keer_HB_stadsvt*Dashboard!$AY$119)+U165+(U168+U104*'Distributieschema''s'!$K30*Aantal_keer_HB_stadsvt*Dashboard!$AY$119)+U169+(U172+U104*'Distributieschema''s'!$K43*Aantal_keer_HB_stadsvt*Dashboard!$AY$119)+(U173+U104*'Distributieschema''s'!$K50*Aantal_keer_HB_stadsvt*Dashboard!$AY$119)) -> 0 | V212: =Bezetting_svt*(V161+(V164+V104*'Distributieschema''s'!$K23*Aantal_keer_HB_stadsvt*Dashboard!$AY$119)+V165+(V168+V104*'Distributieschema''s'!$K30*Aantal_keer_HB_stadsvt*Dashboard!$AY$119)+V169+(V172+V104*'Distributieschema''s'!$K43*Aantal_keer_HB_stadsvt*Dashboard!$AY$119)+(V173+V104*'Distributieschema''s'!$K50*Aantal_keer_HB_stadsvt*Dashboard!$AY$119)) -> 0 | W212: =Bezetting_svt*(W161+(W164+W104*'Distributieschema''s'!$K23*Aantal_keer_HB_stadsvt*Dashboard!$AY$119)+W165+(W168+W104*'Distributieschema''s'!$K30*Aantal_keer_HB_stadsvt*Dashboard!$AY$119)+W169+(W172+W104*'Distributieschema''s'!$K43*Aantal_keer_HB_stadsvt*Dashboard!$AY$119)+(W173+W104*'Distributieschema''s'!$K50*Aantal_keer_HB_stadsvt*Dashboard!$AY$119)) -> 0 | X212: =Bezetting_svt*(X161+(X164+X104*'Distributieschema''s'!$K23*Aantal_keer_HB_stadsvt*Dashboard!$AY$119)+X165+(X168+X104*'Distributieschema''s'!$K30*Aantal_keer_HB_stadsvt*Dashboard!$AY$119)+X169+(X172+X104*'Distributieschema''s'!$K43*Aantal_keer_HB_stadsvt*Dashboard!$AY$119)+(X173+X104*'Distributieschema''s'!$K50*Aantal_keer_HB_stadsvt*Dashboard!$AY$119)) -> 0
B214: Overzicht kosten | D214: EUR | G214: =IF(Per_uur=1,"Per uur","Per H/B km") -> Per H/B km | H214: Totaal | I214: =I19 -> 0 | J214: 1 | K214: 2 | L214: 3 | M214: 4 | N214: 5 | O214: 6 | P214: 7 | Q214: 8 | R214: 9 | S214: 10 | T214: 11 | U214: 12 | V214: 13 | W214: 14 | X214: 15
B216: Brandstofkosten hoofdvoertuig | G216: =IFERROR(H216/($H$116*Per_km+Dashboard!J$102*Uren_Alternatief1*Per_uur),0) -> 0.2132 | H216: =SUM(I216:X216) -> 14924 | I216: 0 | J216: =J207*SUM($G$207)+J208*SUM($G$208) -> 2132 | K216: 2132 | L216: 2132 | M216: 2132 | N216: 2132 | O216: 2132 | P216: 2132 | Q216: 0 | R216: 0 | S216: 0 | T216: 0 | U216: 0 | V216: 0 | W216: 0 | X216: 0
B217: Onderhoudskosten | G217: =IFERROR(H217/($H$116*Per_km+Dashboard!J$102*Uren_Alternatief1*Per_uur),0) -> 0 | H217: 0 | I217: 0 | J217: =Dashboard!$J104*J112*J4 -> 0 | K217: =Dashboard!$J104*K112*K4 -> 0 | L217: =Dashboard!$J104*L112*L4 -> 0 | M217: =Dashboard!$J104*M112*M4 -> 0 | N217: =Dashboard!$J104*N112*N4 -> 0 | O217: =Dashboard!$J104*O112*O4 -> 0 | P217: =Dashboard!$J104*P112*P4 -> 0 | Q217: =Dashboard!$J104*Q112*Q4 -> 0 | R217: =Dashboard!$J104*R112*R4 -> 0 | S217: =Dashboard!$J104*S112*S4 -> 0 | T217: =Dashboard!$J104*T112*T4 -> 0 | U217: =Dashboard!$J104*U112*U4 -> 0 | V217: =Dashboard!$J104*V112*V4 -> 0 | W217: =Dashboard!$J104*W112*W4 -> 0 | X217: =Dashboard!$J104*X112*X4 -> 0
B218: Verzekeringen | G218: =IFERROR(H218/($H$116*Per_km+Dashboard!J$102*Uren_Alternatief1*Per_uur),0) -> 0 | H218: 0 | I218: 0 | J218: =Dashboard!$J105*J107*J4 -> 0 | K218: =Dashboard!$J105*K107*K4 -> 0 | L218: =Dashboard!$J105*L107*L4 -> 0 | M218: =Dashboard!$J105*M107*M4 -> 0 | N218: =Dashboard!$J105*N107*N4 -> 0 | O218: =Dashboard!$J105*O107*O4 -> 0 | P218: =Dashboard!$J105*P107*P4 -> 0 | Q218: =Dashboard!$J105*Q107*Q4 -> 0 | R218: =Dashboard!$J105*R107*R4 -> 0 | S218: =Dashboard!$J105*S107*S4 -> 0 | T218: =Dashboard!$J105*T107*T4 -> 0 | U218: =Dashboard!$J105*U107*U4 -> 0 | V218: =Dashboard!$J105*V107*V4 -> 0 | W218: =Dashboard!$J105*W107*W4 -> 0 | X218: =Dashboard!$J105*X107*X4 -> 0
B219: Voertuigbelasting | G219: =IFERROR(H219/($H$116*Per_km+Dashboard!J$102*Uren_Alternatief1*Per_uur),0) -> 0 | H219: 0 | I219: 0 | J219: =(Dashboard!$J106+Dashboard!$J129)*J107*J4 -> 0 | K219: =(Dashboard!$J106+Dashboard!$J129)*K107*K4 -> 0 | L219: =(Dashboard!$J106+Dashboard!$J129)*L107*L4 -> 0 | M219: =(Dashboard!$J106+Dashboard!$J129)*M107*M4 -> 0 | N219: =(Dashboard!$J106+Dashboard!$J129)*N107*N4 -> 0 | O219: =(Dashboard!$J106+Dashboard!$J129)*O107*O4 -> 0 | P219: =(Dashboard!$J106+Dashboard!$J129)*P107*P4 -> 0 | Q219: =(Dashboard!$J106+Dashboard!$J129)*Q107*Q4 -> 0 | R219: =(Dashboard!$J106+Dashboard!$J129)*R107*R4 -> 0 | S219: =(Dashboard!$J106+Dashboard!$J129)*S107*S4 -> 0 | T219: =(Dashboard!$J106+Dashboard!$J129)*T107*T4 -> 0 | U219: =(Dashboard!$J106+Dashboard!$J129)*U107*U4 -> 0 | V219: =(Dashboard!$J106+Dashboard!$J129)*V107*V4 -> 0 | W219: =(Dashboard!$J106+Dashboard!$J129)*W107*W4 -> 0 | X219: =(Dashboard!$J106+Dashboard!$J129)*X107*X4 -> 0
B220: Kosten ontheffing AMvB-tijden | G220: =IFERROR(H220/($H$116*Per_km+Dashboard!J$102*Uren_Alternatief1*Per_uur),0) -> 0 | H220: 0 | I220: 0 | J220: =(Dashboard!$J127+Dashboard!$J128)*J4 -> 0 | K220: =(Dashboard!$J127+Dashboard!$J128)*K4 -> 0 | L220: =(Dashboard!$J127+Dashboard!$J128)*L4 -> 0 | M220: =(Dashboard!$J127+Dashboard!$J128)*M4 -> 0 | N220: =(Dashboard!$J127+Dashboard!$J128)*N4 -> 0 | O220: =(Dashboard!$J127+Dashboard!$J128)*O4 -> 0 | P220: =(Dashboard!$J127+Dashboard!$J128)*P4 -> 0 | Q220: =(Dashboard!$J127+Dashboard!$J128)*Q4 -> 0 | R220: =(Dashboard!$J127+Dashboard!$J128)*R4 -> 0 | S220: =(Dashboard!$J127+Dashboard!$J128)*S4 -> 0 | T220: =(Dashboard!$J127+Dashboard!$J128)*T4 -> 0 | U220: =(Dashboard!$J127+Dashboard!$J128)*U4 -> 0 | V220: =(Dashboard!$J127+Dashboard!$J128)*V4 -> 0 | W220: =(Dashboard!$J127+Dashboard!$J128)*W4 -> 0 | X220: =(Dashboard!$J127+Dashboard!$J128)*X4 -> 0
B221: Overige kosten | G221: =IFERROR(H221/($H$116*Per_km+Dashboard!J$102*Uren_Alternatief1*Per_uur),0) -> 0 | H221: 0 | I221: 0 | J221: =Dashboard!$J$107*J107*J4 -> 0 | K221: =Dashboard!$J$107*K107*K4 -> 0 | L221: =Dashboard!$J$107*L107*L4 -> 0 | M221: =Dashboard!$J$107*M107*M4 -> 0 | N221: =Dashboard!$J$107*N107*N4 -> 0 | O221: =Dashboard!$J$107*O107*O4 -> 0 | P221: =Dashboard!$J$107*P107*P4 -> 0 | Q221: =Dashboard!$J$107*Q107*Q4 -> 0 | R221: =Dashboard!$J$107*R107*R4 -> 0 | S221: =Dashboard!$J$107*S107*S4 -> 0 | T221: =Dashboard!$J$107*T107*T4 -> 0 | U221: =Dashboard!$J$107*U107*U4 -> 0 | V221: =Dashboard!$J$107*V107*V4 -> 0 | W221: =Dashboard!$J$107*W107*W4 -> 0 | X221: =Dashboard!$J$107*X107*X4 -> 0
B222: TCO inzet stadsvoertuigen | G222: =IFERROR(H222/($H$116*Per_km+Dashboard!J$102*Uren_Alternatief1*Per_uur),0) -> 0 | H222: 0 | I222: 0 | J222: =J4*(J108*TCO_stadsvoertuig_vast)+J113*TCO_stadsvoertuig_variabel -> 0 | K222: 0 | L222: 0 | M222: 0 | N222: 0 | O222: 0 | P222: 0 | Q222: 0 | R222: 0 | S222: 0 | T222: 0 | U222: 0 | V222: 0 | W222: 0 | X222: 0
B223: Personeelskosten hoofd- en stadsvoertuigen | G223: =IFERROR(H223/($H$116*Per_km+Dashboard!J$102*Uren_Alternatief1*Per_uur),0) -> 0.7946428571 | H223: 55625 | I223: 0 | J223: =(J177+J181+J189+J193+J201+J202)*Uurtarief_normaal+(J185+J197+J203)*Uurtarief_hoog -> 7946.428571 | K223: 7946.428571 | L223: 7946.428571 | M223: 7946.428571 | N223: 7946.428571 | O223: 7946.428571 | P223: 7946.428571 | Q223: 0 | R223: 0 | S223: 0 | T223: 0 | U223: 0 | V223: 0 | W223: 0 | X223: 0
B224: Personeelskosten modaliteitswissels | G224: =IFERROR(H224/($H$116*Per_km+Dashboard!J$102*Uren_Alternatief1*Per_uur),0) -> 0 | H224: 0 | I224: 0 | J224: =J120*J12*Uurtarief_normaal+J121*J12*Uurtarief_hoog -> 0 | K224: 0 | L224: 0 | M224: 0 | N224: 0 | O224: 0 | P224: 0 | Q224: 0 | R224: 0 | S224: 0 | T224: 0 | U224: 0 | V224: 0 | W224: 0 | X224: 0
B225: Rente | G225: =IFERROR(H225/($H$116*Per_km+Dashboard!J$102*Uren_Alternatief1*Per_uur),0) -> 0.01491236889 | H225: 1043.865822 | I225: 0 | J225: =I257*Rente_reeel+I256*zachte_rente_reeel1 -> 260.9664555 | K225: 223.6855333 | L225: 186.4046111 | M225: 149.1236889 | N225: 111.8427667 | O225: 74.56184444 | P225: 37.28092222 | Q225: 0 | R225: 0 | S225: 0 | T225: 0 | U225: 0 | V225: 0 | W225: 0 | X225: 0
B226: Bedrijfseconomische afschrijving | G226: =IFERROR(H226/($H$116*Per_km+Dashboard!J$102*Uren_Alternatief1*Per_uur),0) -> 0.1513605442 | H226: 10595.2381 | I226: 0 | J226: =IFERROR((-$H241-Dashboard!$J103*J107)/Dashboard!$J102*J4,0) -> 1513.605442 | K226: =IFERROR((-$H241-Dashboard!$J103*K107)/Dashboard!$J102*K4,0) -> 1513.605442 | L226: =IFERROR((-$H241-Dashboard!$J103*L107)/Dashboard!$J102*L4,0) -> 1513.605442 | M226: =IFERROR((-$H241-Dashboard!$J103*M107)/Dashboard!$J102*M4,0) -> 1513.605442 | N226: =IFERROR((-$H241-Dashboard!$J103*N107)/Dashboard!$J102*N4,0) -> 1513.605442 | O226: =IFERROR((-$H241-Dashboard!$J103*O107)/Dashboard!$J102*O4,0) -> 1513.605442 | P226: =IFERROR((-$H241-Dashboard!$J103*P107)/Dashboard!$J102*P4,0) -> 1513.605442 | Q226: =IFERROR((-$H241-Dashboard!$J103*Q107)/Dashboard!$J102*Q4,0) -> 0 | R226: =IFERROR((-$H241-Dashboard!$J103*R107)/Dashboard!$J102*R4,0) -> 0 | S226: =IFERROR((-$H241-Dashboard!$J103*S107)/Dashboard!$J102*S4,0) -> 0 | T226: =IFERROR((-$H241-Dashboard!$J103*T107)/Dashboard!$J102*T4,0) -> 0 | U226: =IFERROR((-$H241-Dashboard!$J103*U107)/Dashboard!$J102*U4,0) -> 0 | V226: =IFERROR((-$H241-Dashboard!$J103*V107)/Dashboard!$J102*V4,0) -> 0 | W226: =IFERROR((-$H241-Dashboard!$J103*W107)/Dashboard!$J102*W4,0) -> 0 | X226: =IFERROR((-$H241-Dashboard!$J103*X107)/Dashboard!$J102*X4,0) -> 0
B227: Totaal Kritische Distributie Kosten | G227: =SUM(G216:G226) -> 1.17411577 | H227: 82188.10392 | I227: =SUM(I216:I226) -> 0 | J227: 11853.00047 | K227: 11815.71955 | L227: 11778.43862 | M227: 11741.1577 | N227: 11703.87678 | O227: 11666.59586 | P227: 11629.31494 | Q227: 0 | R227: 0 | S227: 0 | T227: 0 | U227: 0 | V227: 0 | W227: 0 | X227: 0
B229: Overzicht kasstromen | D229: EUR | H229: Totaal | I229: =I214 -> 0 | J229: 1 | K229: 2 | L229: 3 | M229: 4 | N229: 5 | O229: 6 | P229: 7 | Q229: 8 | R229: 9 | S229: 10 | T229: 11 | U229: 12 | V229: 13 | W229: 14 | X229: 15
B230: negatieve cijfers = cash out, positieve cijfers = cash in
B231: Operationele kasstroom | H231: =SUM(I231:X231) -> -71592.86582 | I231: =-I227+I226 -> 0 | J231: -10339.39503 | K231: -10302.1141 | L231: -10264.83318 | M231: -10227.55226 | N231: -10190.27134 | O231: -10152.99042 | P231: -10115.70949 | Q231: 0 | R231: 0 | S231: 0 | T231: 0 | U231: 0 | V231: 0 | W231: 0 | X231: 0
B232: (totaal kritische distributiekosten excl. afschrijving)
B234: =CONCATENATE("Investering in "&ROUND(J107,1)&" effectief in te zetten hoofdvoertuig(en)") -> Investering in 0,1 effectief in te zetten hoofdvoertuig(en) | H234: =SUM(I234:X234) -> -10595.2381 | I234: =-Dashboard!$J$101*J107 -> -10595.2381 | J234: 0 | K234: 0 | L234: 0 | M234: 0 | N234: 0 | O234: 0 | P234: 0 | Q234: 0 | R234: 0 | S234: 0 | T234: 0 | U234: 0 | V234: 0 | W234: 0 | X234: 0
B235: Investeringssubsidie | H235: =SUM(I235:X235) -> 0 | I235: =-Dashboard!$J118*I234 -> 0 | J235: 0 | K235: 0 | L235: 0 | M235: 0 | N235: 0 | O235: 0 | P235: 0 | Q235: 0 | R235: 0 | S235: 0 | T235: 0 | U235: 0 | V235: 0 | W235: 0 | X235: 0
B236: Investering in hoofdvoertuig | H236: =SUM(I236:X236) -> -10595.2381 | I236: =I234+I235 -> -10595.2381 | J236: 0 | K236: 0 | L236: 0 | M236: 0 | N236: 0 | O236: 0 | P236: 0 | Q236: 0 | R236: 0 | S236: 0 | T236: 0 | U236: 0 | V236: 0 | W236: 0 | X236: 0
B238: Kasstroomeffect MIA | H238: =SUM(I238:X238) -> 0 | I238: =-I236*Dashboard!$J116*VpB -> 0 | J238: =-J236*Dashboard!$J116*VpB -> 0 | K238: =-K236*Dashboard!$J116*VpB -> 0 | L238: =-L236*Dashboard!$J116*VpB -> 0 | M238: =-M236*Dashboard!$J116*VpB -> 0 | N238: =-N236*Dashboard!$J116*VpB -> 0 | O238: =-O236*Dashboard!$J116*VpB -> 0 | P238: =-P236*Dashboard!$J116*VpB -> 0 | Q238: =-Q236*Dashboard!$J116*VpB -> 0 | R238: =-R236*Dashboard!$J116*VpB -> 0 | S238: =-S236*Dashboard!$J116*VpB -> 0 | T238: =-T236*Dashboard!$J116*VpB -> 0 | U238: =-U236*Dashboard!$J116*VpB -> 0 | V238: =-V236*Dashboard!$J116*VpB -> 0 | W238: =-W236*Dashboard!$J116*VpB -> 0 | X238: =-X236*Dashboard!$J116*VpB -> 0
B239: Kasstroomeffect VAMIL | H239: =SUM(I239:X239) -> 0 | I239: =(I10-I9)*-$H236*VpB -> 0 | J239: 0 | K239: 0 | L239: 0 | M239: 0 | N239: 0 | O239: 0 | P239: 0 | Q239: 0 | R239: 0 | S239: 0 | T239: 0 | U239: 0 | V239: 0 | W239: 0 | X239: 0
B241: Netto investeringsgerelateerde kassstroom | H241: =SUM(I241:X241) -> -10595.2381 | I241: =SUM(I236:I239) -> -10595.2381 | J241: 0 | K241: 0 | L241: 0 | M241: 0 | N241: 0 | O241: 0 | P241: 0 | Q241: 0 | R241: 0 | S241: 0 | T241: 0 | U241: 0 | V241: 0 | W241: 0 | X241: 0
B243: Opname zachte leningen | H243: =SUM(I243:X243) -> 0 | I243: =Dashboard!$J134*-I241 -> 0 | J243: =Dashboard!$J134*-J241 -> 0 | K243: =Dashboard!$J134*-K241 -> 0 | L243: =Dashboard!$J134*-L241 -> 0 | M243: =Dashboard!$J134*-M241 -> 0 | N243: =Dashboard!$J134*-N241 -> 0 | O243: =Dashboard!$J134*-O241 -> 0 | P243: =Dashboard!$J134*-P241 -> 0 | Q243: =Dashboard!$J134*-Q241 -> 0 | R243: =Dashboard!$J134*-R241 -> 0 | S243: =Dashboard!$J134*-S241 -> 0 | T243: =Dashboard!$J134*-T241 -> 0 | U243: =Dashboard!$J134*-U241 -> 0 | V243: =Dashboard!$J134*-V241 -> 0 | W243: =Dashboard!$J134*-W241 -> 0 | X243: =Dashboard!$J134*-X241 -> 0
B244: Opname reguliere leningen | H244: =SUM(I244:X244) -> 10595.2381 | I244: =(1-Dashboard!$J134)*-I241 -> 10595.2381 | J244: =(1-Dashboard!$J134)*-J241 -> 0 | K244: =(1-Dashboard!$J134)*-K241 -> 0 | L244: =(1-Dashboard!$J134)*-L241 -> 0 | M244: =(1-Dashboard!$J134)*-M241 -> 0 | N244: =(1-Dashboard!$J134)*-N241 -> 0 | O244: =(1-Dashboard!$J134)*-O241 -> 0 | P244: =(1-Dashboard!$J134)*-P241 -> 0 | Q244: =(1-Dashboard!$J134)*-Q241 -> 0 | R244: =(1-Dashboard!$J134)*-R241 -> 0 | S244: =(1-Dashboard!$J134)*-S241 -> 0 | T244: =(1-Dashboard!$J134)*-T241 -> 0 | U244: =(1-Dashboard!$J134)*-U241 -> 0 | V244: =(1-Dashboard!$J134)*-V241 -> 0 | W244: =(1-Dashboard!$J134)*-W241 -> 0 | X244: =(1-Dashboard!$J134)*-X241 -> 0
B245: Aflossing zachte leningen | H245: =SUM(I245:X245) -> 0 | I245: 0 | J245: =IFERROR(-I256/(Dashboard!$J102-I229)*J5-(I256+J243)*J6,0) -> 0 | K245: =IFERROR(-J256/(Dashboard!$J102-J229)*K5-(J256+K243)*K6,0) -> 0 | L245: =IFERROR(-K256/(Dashboard!$J102-K229)*L5-(K256+L243)*L6,0) -> 0 | M245: =IFERROR(-L256/(Dashboard!$J102-L229)*M5-(L256+M243)*M6,0) -> 0 | N245: =IFERROR(-M256/(Dashboard!$J102-M229)*N5-(M256+N243)*N6,0) -> 0 | O245: =IFERROR(-N256/(Dashboard!$J102-N229)*O5-(N256+O243)*O6,0) -> 0 | P245: =IFERROR(-O256/(Dashboard!$J102-O229)*P5-(O256+P243)*P6,0) -> 0 | Q245: =IFERROR(-P256/(Dashboard!$J102-P229)*Q5-(P256+Q243)*Q6,0) -> 0 | R245: =IFERROR(-Q256/(Dashboard!$J102-Q229)*R5-(Q256+R243)*R6,0) -> 0 | S245: =IFERROR(-R256/(Dashboard!$J102-R229)*S5-(R256+S243)*S6,0) -> 0 | T245: =IFERROR(-S256/(Dashboard!$J102-S229)*T5-(S256+T243)*T6,0) -> 0 | U245: =IFERROR(-T256/(Dashboard!$J102-T229)*U5-(T256+U243)*U6,0) -> 0 | V245: =IFERROR(-U256/(Dashboard!$J102-U229)*V5-(U256+V243)*V6,0) -> 0 | W245: =IFERROR(-V256/(Dashboard!$J102-V229)*W5-(V256+W243)*W6,0) -> 0 | X245: =IFERROR(-W256/(Dashboard!$J102-W229)*X5-(W256+X243)*X6,0) -> 0
B246: Aflossing reguliere leningen | H246: =SUM(I246:X246) -> -10595.2381 | I246: 0 | J246: =IFERROR(-I257/(Dashboard!$J102-I229)*J5-(I257+J244)*J6,0) -> -1513.605442 | K246: =IFERROR(-J257/(Dashboard!$J102-J229)*K5-(J257+K244)*K6,0) -> -1513.605442 | L246: =IFERROR(-K257/(Dashboard!$J102-K229)*L5-(K257+L244)*L6,0) -> -1513.605442 | M246: =IFERROR(-L257/(Dashboard!$J102-L229)*M5-(L257+M244)*M6,0) -> -1513.605442 | N246: =IFERROR(-M257/(Dashboard!$J102-M229)*N5-(M257+N244)*N6,0) -> -1513.605442 | O246: =IFERROR(-N257/(Dashboard!$J102-N229)*O5-(N257+O244)*O6,0) -> -1513.605442 | P246: =IFERROR(-O257/(Dashboard!$J102-O229)*P5-(O257+P244)*P6,0) -> -1513.605442 | Q246: =IFERROR(-P257/(Dashboard!$J102-P229)*Q5-(P257+Q244)*Q6,0) -> 0 | R246: =IFERROR(-Q257/(Dashboard!$J102-Q229)*R5-(Q257+R244)*R6,0) -> 0 | S246: =IFERROR(-R257/(Dashboard!$J102-R229)*S5-(R257+S244)*S6,0) -> 0 | T246: =IFERROR(-S257/(Dashboard!$J102-S229)*T5-(S257+T244)*T6,0) -> 0 | U246: =IFERROR(-T257/(Dashboard!$J102-T229)*U5-(T257+U244)*U6,0) -> 0 | V246: =IFERROR(-U257/(Dashboard!$J102-U229)*V5-(U257+V244)*V6,0) -> 0 | W246: =IFERROR(-V257/(Dashboard!$J102-V229)*W5-(V257+W244)*W6,0) -> 0 | X246: =IFERROR(-W257/(Dashboard!$J102-W229)*X5-(W257+X244)*X6,0) -> 0
B248: Financieringskasstroom | H248: =SUM(I248:X248) -> 0 | I248: =SUM(I243:I246) -> 10595.2381 | J248: -1513.605442 | K248: -1513.605442 | L248: -1513.605442 | M248: -1513.605442 | N248: -1513.605442 | O248: -1513.605442 | P248: -1513.605442 | Q248: 0 | R248: 0 | S248: 0 | T248: 0 | U248: 0 | V248: 0 | W248: 0 | X248: 0
B250: Totaal Kritische Distributie Kasstroom | H250: =SUM(I250:X250) -> -82188.10392 | I250: =I231+I241+I248 -> 0 | J250: -11853.00047 | K250: -11815.71955 | L250: -11778.43862 | M250: -11741.1577 | N250: -11703.87678 | O250: -11666.59586 | P250: -11629.31494 | Q250: 0 | R250: 0 | S250: 0 | T250: 0 | U250: 0 | V250: 0 | W250: 0 | X250: 0
B252: Balansposities | D252: EUR | I252: =I229 -> 0 | J252: 1 | K252: 2 | L252: 3 | M252: 4 | N252: 5 | O252: 6 | P252: 7 | Q252: 8 | R252: 9 | S252: 10 | T252: 11 | U252: 12 | V252: 13 | W252: 14 | X252: 15
B254: Hoofdvoertuig(en) (boekwaarde) | I254: =(H254-I236-I238-I226)*J4 -> 10595.2381 | J254: 9081.632653 | K254: 7568.027211 | L254: 6054.421769 | M254: 4540.816327 | N254: 3027.210884 | O254: 1513.605442 | P254: 0 | Q254: 0 | R254: 0 | S254: 0 | T254: 0 | U254: 0 | V254: 0 | W254: 0 | X254: 0
B256: Zachte leningen | I256: =H256+I243+I245 -> 0 | J256: 0 | K256: 0 | L256: 0 | M256: 0 | N256: 0 | O256: 0 | P256: 0 | Q256: 0 | R256: 0 | S256: 0 | T256: 0 | U256: 0 | V256: 0 | W256: 0 | X256: 0
B257: Reguliere leningen | I257: =H257+I244+I246 -> 10595.2381 | J257: 9081.632653 | K257: 7568.027211 | L257: 6054.421769 | M257: 4540.816327 | N257: 3027.210884 | O257: 1513.605442 | P257: 0 | Q257: 0 | R257: 0 | S257: 0 | T257: 0 | U257: 0 | V257: 0 | W257: 0 | X257: 0
B258: Totaal leningen | I258: =SUM(I256:I257) -> 10595.2381 | J258: 9081.632653 | K258: 7568.027211 | L258: 6054.421769 | M258: 4540.816327 | N258: 3027.210884 | O258: =SUM(O256:O257) -> 1513.605442 | P258: 0 | Q258: 0 | R258: 0 | S258: 0 | T258: 0 | U258: 0 | V258: 0 | W258: 0 | X258: 0
B260: Kasstroom maatregelen | D260: EUR | G260: Contant | H260: Totaal | I260: =I229 -> 0 | J260: 1 | K260: 2 | L260: 3 | M260: 4 | N260: 5 | O260: 6 | P260: 7 | Q260: 8 | R260: 9 | S260: 10 | T260: 11 | U260: 12 | V260: 13 | W260: 14 | X260: 15
B262: MIA hoofdvoertuig(en) | G262: =NPV(Discontovoet,J262:X262)+I262 -> 0 | H262: =SUM(I262:X262) -> 0 | I262: =I238* (Dashboard!$H$102/Dashboard!$J$102) -> 0 | J262: =J238* (Dashboard!$H$102/Dashboard!$J$102) -> 0 | K262: =K238* (Dashboard!$H$102/Dashboard!$J$102) -> 0 | L262: =L238* (Dashboard!$H$102/Dashboard!$J$102) -> 0 | M262: =M238* (Dashboard!$H$102/Dashboard!$J$102) -> 0 | N262: =N238* (Dashboard!$H$102/Dashboard!$J$102) -> 0 | O262: =O238* (Dashboard!$H$102/Dashboard!$J$102) -> 0 | P262: =P238* (Dashboard!$H$102/Dashboard!$J$102) -> 0 | Q262: =Q238* (Dashboard!$H$102/Dashboard!$J$102) -> 0 | R262: =R238* (Dashboard!$H$102/Dashboard!$J$102) -> 0 | S262: =S238* (Dashboard!$H$102/Dashboard!$J$102) -> 0 | T262: =T238* (Dashboard!$H$102/Dashboard!$J$102) -> 0 | U262: =U238* (Dashboard!$H$102/Dashboard!$J$102) -> 0 | V262: =V238* (Dashboard!$H$102/Dashboard!$J$102) -> 0 | W262: =W238* (Dashboard!$H$102/Dashboard!$J$102) -> 0 | X262: =X238* (Dashboard!$H$102/Dashboard!$J$102) -> 0
B263: VAMIL hoofdvoertuig(en) | G263: =NPV(Discontovoet,J263:X263)+I263 -> 0 | H263: =SUM(I263:X263) -> 0 | I263: =I239* (Dashboard!$H$102/Dashboard!$J$102) -> 0 | J263: =J239* (Dashboard!$H$102/Dashboard!$J$102) -> 0 | K263: =K239* (Dashboard!$H$102/Dashboard!$J$102) -> 0 | L263: =L239* (Dashboard!$H$102/Dashboard!$J$102) -> 0 | M263: =M239* (Dashboard!$H$102/Dashboard!$J$102) -> 0 | N263: =N239* (Dashboard!$H$102/Dashboard!$J$102) -> 0 | O263: =O239* (Dashboard!$H$102/Dashboard!$J$102) -> 0 | P263: =P239* (Dashboard!$H$102/Dashboard!$J$102) -> 0 | Q263: =Q239* (Dashboard!$H$102/Dashboard!$J$102) -> 0 | R263: =R239* (Dashboard!$H$102/Dashboard!$J$102) -> 0 | S263: =S239* (Dashboard!$H$102/Dashboard!$J$102) -> 0 | T263: =T239* (Dashboard!$H$102/Dashboard!$J$102) -> 0 | U263: =U239* (Dashboard!$H$102/Dashboard!$J$102) -> 0 | V263: =V239* (Dashboard!$H$102/Dashboard!$J$102) -> 0 | W263: =W239* (Dashboard!$H$102/Dashboard!$J$102) -> 0 | X263: =X239* (Dashboard!$H$102/Dashboard!$J$102) -> 0
B264: MIA stadsvoertuig(en) | G264: =NPV(Discontovoet,J264:X264)+I264 -> 0 | H264: =SUM(I264:X264) -> 0 | I264: =IFERROR(J108 * (Dashboard!$H$102/Stadsvoertuig!J8) *Stadsvoertuig!J11,0) -> 0 | J264: 0 | K264: 0 | L264: 0 | M264: 0 | N264: 0 | O264: 0 | P264: 0 | Q264: 0 | R264: 0 | S264: 0 | T264: 0 | U264: 0 | V264: 0 | W264: 0 | X264: 0
B265: VAMIL stadsvoertuig(en) | G265: =IFERROR(J108 * (Dashboard!$H$102/Stadsvoertuig!J8) * (((Stadsvoertuig!F12*VpB*(Stadsvoertuig!J9-investeringssubsidie_svt))-VpB*PV(Discontovoet,Stadsvoertuig!J8,(Stadsvoertuig!J9-investeringssubsidie_svt)*(1-Stadsvoertuig!F12)/Stadsvoertuig!J8)) + VpB*PV(Discontovoet,Stadsvoertuig!J8,(Stadsvoertuig!J9-investeringssubsidie_svt)/Stadsvoertuig!J8)),0) -> 0 | H265: =SUM(I265:X265) -> 0 | I265: 0 | J265: 0 | K265: 0 | L265: 0 | M265: 0 | N265: 0 | O265: 0 | P265: 0 | Q265: 0 | R265: 0 | S265: 0 | T265: 0 | U265: 0 | V265: 0 | W265: 0 | X265: 0
B266: Kasstroom bestaande maatregelen | G266: =NPV(Discontovoet,J266:X266)+I266 -> 0 | H266: =SUM(I266:X266) -> 0 | I266: =SUM(I262:I265) -> 0 | J266: =SUM(J262:J265) -> 0 | K266: 0 | L266: 0 | M266: 0 | N266: 0 | O266: 0 | P266: 0 | Q266: 0 | R266: 0 | S266: 0 | T266: 0 | U266: 0 | V266: 0 | W266: 0 | X266: 0
B268: Investeringssubsidies hoofdvoertuigen | G268: =NPV(Discontovoet,J268:X268)+I268 -> 0 | H268: =SUM(I268:X268) -> 0 | I268: =I235 -> 0 | J268: =J235 -> 0 | K268: 0 | L268: 0 | M268: 0 | N268: 0 | O268: 0 | P268: 0 | Q268: 0 | R268: 0 | S268: 0 | T268: 0 | U268: 0 | V268: 0 | W268: 0 | X268: 0
B269: Investeringssubsidie stadsvoertuigen | G269: =NPV(Discontovoet,J269:X269)+I269 -> 0 | H269: =SUM(I269:X269) -> 0 | I269: =I4*I108*investeringssubsidie_svt -> 0 | J269: 0 | K269: 0 | L269: 0 | M269: 0 | N269: 0 | O269: 0 | P269: 0 | Q269: 0 | R269: 0 | S269: 0 | T269: 0 | U269: 0 | V269: 0 | W269: 0 | X269: 0
B270: Investeringssubsidies | G270: =SUM(G268:G269) -> 0 | H270: 0 | I270: =SUM(I268:I269) -> 0 | J270: =J235 -> 0 | K270: 0 | L270: 0 | M270: 0 | N270: 0 | O270: 0 | P270: 0 | Q270: 0 | R270: 0 | S270: 0 | T270: 0 | U270: 0 | V270: 0 | W270: 0 | X270: 0
B272: Exploitatie hvt | G272: =NPV(Discontovoet,J272:X272)+I272 -> 0 | H272: =SUM(I272:X272) -> 0 | I272: 0 | J272: =(-Dashboard!$J129-Dashboard!$J128)*J7 -> 0 | K272: =(-Dashboard!$J129-Dashboard!$J128)*K7 -> 0 | L272: =(-Dashboard!$J129-Dashboard!$J128)*L7 -> 0 | M272: =(-Dashboard!$J129-Dashboard!$J128)*M7 -> 0 | N272: =(-Dashboard!$J129-Dashboard!$J128)*N7 -> 0 | O272: =(-Dashboard!$J129-Dashboard!$J128)*O7 -> 0 | P272: =(-Dashboard!$J129-Dashboard!$J128)*P7 -> 0 | Q272: =(-Dashboard!$J129-Dashboard!$J128)*Q7 -> 0 | R272: =(-Dashboard!$J129-Dashboard!$J128)*R7 -> 0 | S272: =(-Dashboard!$J129-Dashboard!$J128)*S7 -> 0 | T272: =(-Dashboard!$J129-Dashboard!$J128)*T7 -> 0 | U272: =(-Dashboard!$J129-Dashboard!$J128)*U7 -> 0 | V272: =(-Dashboard!$J129-Dashboard!$J128)*V7 -> 0 | W272: =(-Dashboard!$J129-Dashboard!$J128)*W7 -> 0 | X272: =(-Dashboard!$J129-Dashboard!$J128)*X7 -> 0
B273: Exploitatie svt | G273: 0 | H273: 0 | I273: 0 | J273: =exploitatiesubsidie_svt*J108 -> 0 | K273: 0 | L273: 0 | M273: 0 | N273: 0 | O273: 0 | P273: 0 | Q273: 0 | R273: 0 | S273: 0 | T273: 0 | U273: 0 | V273: 0 | W273: 0 | X273: 0
B274: Δ Brandstofprijs | G274: 0 | H274: 0 | I274: 0 | J274: =-J207*Dashboard!$J$130-J208*Dashboard!$J$131 -> 0 | K274: =-K207*Dashboard!$J$130-K208*Dashboard!$J$131 -> 0 | L274: =-L207*Dashboard!$J$130-L208*Dashboard!$J$131 -> 0 | M274: =-M207*Dashboard!$J$130-M208*Dashboard!$J$131 -> 0 | N274: =-N207*Dashboard!$J$130-N208*Dashboard!$J$131 -> 0 | O274: =-O207*Dashboard!$J$130-O208*Dashboard!$J$131 -> 0 | P274: =-P207*Dashboard!$J$130-P208*Dashboard!$J$131 -> 0 | Q274: =-Q207*Dashboard!$J$130-Q208*Dashboard!$J$131 -> 0 | R274: =-R207*Dashboard!$J$130-R208*Dashboard!$J$131 -> 0 | S274: =-S207*Dashboard!$J$130-S208*Dashboard!$J$131 -> 0 | T274: =-T207*Dashboard!$J$130-T208*Dashboard!$J$131 -> 0 | U274: =-U207*Dashboard!$J$130-U208*Dashboard!$J$131 -> 0 | V274: =-V207*Dashboard!$J$130-V208*Dashboard!$J$131 -> 0 | W274: =-W207*Dashboard!$J$130-W208*Dashboard!$J$131 -> 0 | X274: =-X207*Dashboard!$J$130-X208*Dashboard!$J$131 -> 0
B275: Zachte leningen | G275: 0 | H275: 0 | I275: 0 | J275: =I256*(Rente_reeel-zachte_rente_reeel1) -> 0 | K275: 0 | L275: 0 | M275: 0 | N275: 0 | O275: 0 | P275: 0 | Q275: 0 | R275: 0 | S275: 0 | T275: 0 | U275: 0 | V275: 0 | W275: 0 | X275: 0
B276: Kasstroom nieuwe maatregelen | G276: 0 | H276: 0 | I276: =SUM(I270:I275) -> 0 | J276: 0 | K276: 0 | L276: 0 | M276: 0 | N276: 0 | O276: 0 | P276: 0 | Q276: 0 | R276: 0 | S276: 0 | T276: 0 | U276: 0 | V276: 0 | W276: 0 | X276: 0
B278: Totaal kasstroom maatregelen | G278: =NPV(Discontovoet,J278:X278)+I278 -> 0 | H278: =SUM(I278:X278) -> 0 | I278: =I266+I276 -> 0 | J278: 0 | K278: 0 | L278: 0 | M278: 0 | N278: 0 | O278: 0 | P278: 0 | Q278: 0 | R278: 0 | S278: 0 | T278: 0 | U278: 0 | V278: 0 | W278: 0 | X278: 0
B280: Emissies | G280: Contant | H280: Totaal | I280: =I229 -> 0 | J280: 1 | K280: 2 | L280: 3 | M280: 4 | N280: 5 | O280: 6 | P280: 7 | Q280: 8 | R280: 9 | S280: 10 | T280: 11 | U280: 12 | V280: 13 | W280: 14 | X280: 15
B282: Hoofdvoertuig
... 61 more rows

Sheet Alternatief 2
I2: =I19 -> 0 | J2: =J19 -> 1 | K2: 2 | L2: 3 | M2: 4 | N2: 5 | O2: 6 | P2: 7 | Q2: 8 | R2: 9 | S2: 10 | T2: 11 | U2: 12 | V2: 13 | W2: 14 | X2: 15
B4: Jaar meetellen regulier | H4: =SUM(I4:X4)-1 -> 7 | I4: 1 | J4: =IF(J2<=Dashboard!$L102,1,0) -> 1 | K4: =IF(K2<=Dashboard!$L102,1,0) -> 1 | L4: =IF(L2<=Dashboard!$L102,1,0) -> 1 | M4: =IF(M2<=Dashboard!$L102,1,0) -> 1 | N4: =IF(N2<=Dashboard!$L102,1,0) -> 1 | O4: =IF(O2<=Dashboard!$L102,1,0) -> 1 | P4: =IF(P2<=Dashboard!$L102,1,0) -> 1 | Q4: =IF(Q2<=Dashboard!$L102,1,0) -> 0 | R4: =IF(R2<=Dashboard!$L102,1,0) -> 0 | S4: =IF(S2<=Dashboard!$L102,1,0) -> 0 | T4: =IF(T2<=Dashboard!$L102,1,0) -> 0 | U4: =IF(U2<=Dashboard!$L102,1,0) -> 0 | V4: =IF(V2<=Dashboard!$L102,1,0) -> 0 | W4: =IF(W2<=Dashboard!$L102,1,0) -> 0 | X4: =IF(X2<=Dashboard!$L102,1,0) -> 0
B5: Jaar metellen financieringen | I5: =IF(I6=1,0,I4) -> 1 | J5: =IF(J6=1,0,J4) -> 1 | K5: 1 | L5: 1 | M5: 1 | N5: 1 | O5: 1 | P5: 0 | Q5: 0 | R5: 0 | S5: 0 | T5: 0 | U5: 0 | V5: 0 | W5: =IF(W6=1,0,W4) -> 0 | X5: =IF(X6=1,0,X4) -> 0
B6: Laatste jaar | I6: =IF(AND(I4=1,J4=0),1,0) -> 0 | J6: =IF(AND(J4=1,K4=0),1,0) -> 0 | K6: 0 | L6: 0 | M6: 0 | N6: 0 | O6: 0 | P6: 1 | Q6: 0 | R6: 0 | S6: 0 | T6: 0 | U6: 0 | V6: 0 | W6: =IF(AND(W4=1,X4=0),1,0) -> 0 | X6: =IF(AND(X4=1,Y4=0),1,0) -> 0
B7: Inzet hoofdvoertuig | J7: =IF(J19<=Dashboard!$L$102,1,0) -> 1 | K7: =IF(K19<=Dashboard!$L$102,1,0) -> 1 | L7: =IF(L19<=Dashboard!$L$102,1,0) -> 1 | M7: =IF(M19<=Dashboard!$L$102,1,0) -> 1 | N7: =IF(N19<=Dashboard!$L$102,1,0) -> 1 | O7: =IF(O19<=Dashboard!$L$102,1,0) -> 1 | P7: =IF(P19<=Dashboard!$L$102,1,0) -> 1 | Q7: =IF(Q19<=Dashboard!$L$102,1,0) -> 0 | R7: =IF(R19<=Dashboard!$L$102,1,0) -> 0 | S7: =IF(S19<=Dashboard!$L$102,1,0) -> 0 | T7: =IF(T19<=Dashboard!$L$102,1,0) -> 0 | U7: =IF(U19<=Dashboard!$L$102,1,0) -> 0 | V7: =IF(V19<=Dashboard!$L$102,1,0) -> 0 | W7: =IF(W19<=Dashboard!$L$102,1,0) -> 0 | X7: =IF(X19<=Dashboard!$L$102,1,0) -> 0
B9: Bedrijfseconomische afschrijving | I9: 0 | J9: =IFERROR(1/Dashboard!$L102*J4,0) -> 0.1428571429 | K9: =IFERROR(1/Dashboard!$L$102*K4,0) -> 0.1428571429 | L9: =IFERROR(1/Dashboard!$L$102*L4,0) -> 0.1428571429 | M9: =IFERROR(1/Dashboard!$L$102*M4,0) -> 0.1428571429 | N9: =IFERROR(1/Dashboard!$L$102*N4,0) -> 0.1428571429 | O9: =IFERROR(1/Dashboard!$L$102*O4,0) -> 0.1428571429 | P9: =IFERROR(1/Dashboard!$L$102*P4,0) -> 0.1428571429 | Q9: =IFERROR(1/Dashboard!$L$102*Q4,0) -> 0 | R9: =IFERROR(1/Dashboard!$L$102*R4,0) -> 0 | S9: =IFERROR(1/Dashboard!$L$102*S4,0) -> 0 | T9: =IFERROR(1/Dashboard!$L$102*T4,0) -> 0 | U9: =IFERROR(1/Dashboard!$L$102*U4,0) -> 0 | V9: =IFERROR(1/Dashboard!$L$102*V4,0) -> 0 | W9: =IFERROR(1/Dashboard!$L$102*W4,0) -> 0 | X9: =IFERROR(1/Dashboard!$L$102*X4,0) -> 0
B10: Fiscale afschrijving | I10: =MAX(Dashboard!L117,I9) -> 0 | J10: =IFERROR((1-I10)/SUM(J4:W4)*J4,0) -> 0.1428571429 | K10: =J10*K4 -> 0.1428571429 | L10: 0.1428571429 | M10: 0.1428571429 | N10: 0.1428571429 | O10: 0.1428571429 | P10: 0.1428571429 | Q10: 0 | R10: 0 | S10: 0 | T10: 0 | U10: 0 | V10: 0 | W10: 0 | X10: 0
B12: Aantal uren per modaliteitswissel | I12: 0 | J12: =VLOOKUP(Ladingtype,Modaliteitswissel,3,FALSE) -> 1.333333333 | K12: =J12 -> 1.333333333 | L12: =K12 -> 1.333333333 | M12: 1.333333333 | N12: 1.333333333 | O12: 1.333333333 | P12: 1.333333333 | Q12: 1.333333333 | R12: 1.333333333 | S12: 1.333333333 | T12: 1.333333333 | U12: 1.333333333 | V12: 1.333333333 | W12: 1.333333333 | X12: 1.333333333
J15: SPECIFICATIE ALTERNATIEF 2
B17: =Alternatief2_Naam &" "&IF(Dashboard!$L$125>0,"+ stadsvoertuig","") -> LNG | I17: =IF(Switch_Alt2=0,"Dit profiel is in het werkblad 'Dashboard' gedeactiveerd waardoor de foutencontrole is uitgeschakeld en dit overzicht mogelijk niet correct is",IF(Dashboard!R13>0,"Dit overzicht is mogelijk niet correct als gevolg van incomplete of foutieve invoer, check de foutmeldingen op werkblad 'Dashboard'","")) -> 
B19: Kerndata | H19: Totaal | I19: 0 | J19: 1 | K19: =J19+1 -> 2 | L19: 3 | M19: 4 | N19: 5 | O19: 6 | P19: 7 | Q19: 8 | R19: 9 | S19: 10 | T19: 11 | U19: 12 | V19: 13 | W19: 14 | X19: 15
B21: Gemiddelde afstand goederen (km) | H21: =SUM(I21:X21) -> 700 | I21: 0 | J21: =SUM(J22:J30) -> 100 | K21: =J21*K$4 -> 100 | L21: 100 | M21: 100 | N21: 100 | O21: 100 | P21: 100 | Q21: 0 | R21: 0 | S21: 0 | T21: 0 | U21: 0 | V21: 0 | W21: 0 | X21: 0
B22: - waarvan buitenstedelijk gebied tijdens spits | H22: =SUM(I22:X22) -> 595 | I22: 0 | J22: =Switch_Alt2*('Distributieschema''s'!M15*'Distributieschema''s'!P16+'Distributieschema''s'!M35*'Distributieschema''s'!P36) -> 85 | K22: =J22*K$4 -> 85 | L22: 85 | M22: 85 | N22: 85 | O22: 85 | P22: 85 | Q22: 0 | R22: 0 | S22: 0 | T22: 0 | U22: 0 | V22: 0 | W22: 0 | X22: 0
B23: - waarvan buitenstedelijk gebied buiten spits | H23: 0 | I23: 0 | J23: =Switch_Alt2*('Distributieschema''s'!M9*'Distributieschema''s'!P10+'Distributieschema''s'!M20*'Distributieschema''s'!P21+'Distributieschema''s'!M40*'Distributieschema''s'!P41) -> 0 | K23: =J23*K$4 -> 0 | L23: 0 | M23: 0 | N23: 0 | O23: 0 | P23: 0 | Q23: 0 | R23: 0 | S23: 0 | T23: 0 | U23: 0 | V23: 0 | W23: 0 | X23: 0
B24: - waarvan buitenstedelijk gebied tijdens dagrand | H24: 0 | I24: 0 | J24: =Switch_Alt2*('Distributieschema''s'!M27*'Distributieschema''s'!P28+'Distributieschema''s'!M47*'Distributieschema''s'!P48) -> 0 | K24: 0 | L24: 0 | M24: 0 | N24: 0 | O24: 0 | P24: 0 | Q24: 0 | R24: 0 | S24: 0 | T24: 0 | U24: 0 | V24: 0 | W24: 0 | X24: 0
B25: - waarvan stedelijk gebied tijdens AMvB-tijden | H25: 105 | I25: 0 | J25: =Switch_Alt2*('Distributieschema''s'!M15*'Distributieschema''s'!AC16+'Distributieschema''s'!M35*'Distributieschema''s'!AC36) -> 15 | K25: 15 | L25: 15 | M25: 15 | N25: 15 | O25: 15 | P25: 15 | Q25: 0 | R25: 0 | S25: 0 | T25: 0 | U25: 0 | V25: 0 | W25: 0 | X25: 0
B26: - waarvan stedelijk gebied buiten AMvB-tijden | H26: 0 | I26: 0 | J26: =Switch_Alt2*('Distributieschema''s'!M20*'Distributieschema''s'!AC21+'Distributieschema''s'!M40*'Distributieschema''s'!AC41) -> 0 | K26: 0 | L26: 0 | M26: 0 | N26: 0 | O26: 0 | P26: 0 | Q26: 0 | R26: 0 | S26: 0 | T26: 0 | U26: 0 | V26: 0 | W26: 0 | X26: 0
B27: - waarvan stedelijk gebied dagrand | H27: 0 | I27: 0 | J27: =Switch_Alt2*('Distributieschema''s'!M27*'Distributieschema''s'!AC28+'Distributieschema''s'!M47*'Distributieschema''s'!AC48) -> 0 | K27: 0 | L27: 0 | M27: 0 | N27: 0 | O27: 0 | P27: 0 | Q27: 0 | R27: 0 | S27: 0 | T27: 0 | U27: 0 | V27: 0 | W27: 0 | X27: 0
B28: - waarvan kernwinkelgebied tijdens AMvB-tijden | H28: 0 | I28: 0 | J28: =Switch_Alt2*('Distributieschema''s'!M35*'Distributieschema''s'!AP36) -> 0 | K28: 0 | L28: 0 | M28: 0 | N28: 0 | O28: 0 | P28: 0 | Q28: 0 | R28: 0 | S28: 0 | T28: 0 | U28: 0 | V28: 0 | W28: 0 | X28: 0
B29: - waarvan kernwinkelgebied buiten AMvB-tijden | H29: 0 | I29: 0 | J29: =Switch_Alt2*('Distributieschema''s'!M40*'Distributieschema''s'!AP41) -> 0 | K29: 0 | L29: 0 | M29: 0 | N29: 0 | O29: 0 | P29: 0 | Q29: 0 | R29: 0 | S29: 0 | T29: 0 | U29: 0 | V29: 0 | W29: 0 | X29: 0
B30: - waarvan kernwinkelgebied dagrand | H30: 0 | I30: 0 | J30: =Switch_Alt2*('Distributieschema''s'!M47*'Distributieschema''s'!AP48) -> 0 | K30: 0 | L30: 0 | M30: 0 | N30: 0 | O30: 0 | P30: 0 | Q30: 0 | R30: 0 | S30: 0 | T30: 0 | U30: 0 | V30: 0 | W30: 0 | X30: 0
B33: Gemiddelde afstand hoofdvoertuig (km) | H33: =SUM(I33:X33) -> 700 | I33: 0 | J33: =J34+J38+J42+J46+J50+J54+SUM(J58:J60) -> 100 | K33: =J33*K$4 -> 100 | L33: =K33*L$4 -> 100 | M33: 100 | N33: 100 | O33: 100 | P33: 100 | Q33: 0 | R33: 0 | S33: 0 | T33: 0 | U33: 0 | V33: 0 | W33: 0 | X33: 0
B34: - waarvan buitenstedelijk gebied tijdens spits | H34: 595 | I34: 0 | J34: =SUM(J35:J36) -> 85 | K34: =J34*K$4 -> 85 | L34: 85 | M34: 85 | N34: 85 | O34: 85 | P34: 85 | Q34: 0 | R34: 0 | S34: 0 | T34: 0 | U34: 0 | V34: 0 | W34: 0 | X34: 0
C35: - waarvan klantlocatie in buitenstedelijk gebied | H35: 0 | I35: 0 | J35: 0 | K35: 0 | L35: 0 | M35: 0 | N35: 0 | O35: 0 | P35: 0 | Q35: 0 | R35: 0 | S35: 0 | T35: 0 | U35: 0 | V35: 0 | W35: 0 | X35: 0
C36: - waarvan klantlocatie in stedelijk of kernwinkelgebied | H36: 595 | I36: 0 | J36: =Switch_Alt2*('Distributieschema''s'!M15*'Distributieschema''s'!P16+'Distributieschema''s'!M35*'Distributieschema''s'!P36) -> 85 | K36: 85 | L36: 85 | M36: 85 | N36: 85 | O36: 85 | P36: 85 | Q36: 0 | R36: 0 | S36: 0 | T36: 0 | U36: 0 | V36: 0 | W36: 0 | X36: 0
B38: - waarvan buitenstedelijk gebied buiten spits | H38: 0 | I38: 0 | J38: =SUM(J39:J40) -> 0 | K38: 0 | L38: 0 | M38: 0 | N38: 0 | O38: 0 | P38: 0 | Q38: 0 | R38: 0 | S38: 0 | T38: 0 | U38: 0 | V38: 0 | W38: 0 | X38: 0
C39: - waarvan klantlocatie in buitenstedelijk gebied | H39: 0 | I39: 0 | J39: =Switch_Alt2*('Distributieschema''s'!M9*'Distributieschema''s'!P10) -> 0 | K39: 0 | L39: 0 | M39: 0 | N39: 0 | O39: 0 | P39: 0 | Q39: 0 | R39: 0 | S39: 0 | T39: 0 | U39: 0 | V39: 0 | W39: 0 | X39: 0
C40: - waarvan klantlocatie in stedelijk of kernwinkelgebied | H40: 0 | I40: 0 | J40: =Switch_Alt2*('Distributieschema''s'!N21*'Distributieschema''s'!P21+'Distributieschema''s'!N23*'Distributieschema''s'!P23+'Distributieschema''s'!N41*'Distributieschema''s'!P41+'Distributieschema''s'!N43*'Distributieschema''s'!P43) -> 0 | K40: 0 | L40: 0 | M40: 0 | N40: 0 | O40: 0 | P40: 0 | Q40: 0 | R40: 0 | S40: 0 | T40: 0 | U40: 0 | V40: 0 | W40: 0 | X40: 0
B42: - waarvan buitenstedelijk gebied tijdens dagrand | H42: 0 | I42: 0 | J42: =SUM(J43:J44) -> 0 | K42: 0 | L42: 0 | M42: 0 | N42: 0 | O42: 0 | P42: 0 | Q42: 0 | R42: 0 | S42: 0 | T42: 0 | U42: 0 | V42: 0 | W42: 0 | X42: 0
C43: - waarvan klantlocatie in buitenstedelijk gebied | H43: 0 | I43: 0 | J43: 0 | K43: 0 | L43: 0 | M43: 0 | N43: 0 | O43: 0 | P43: 0 | Q43: 0 | R43: 0 | S43: 0 | T43: 0 | U43: 0 | V43: 0 | W43: 0 | X43: 0
C44: - waarvan klantlocatie in stedelijk of kernwinkelgebied | H44: 0 | I44: 0 | J44: =Switch_Alt2*('Distributieschema''s'!N28*'Distributieschema''s'!P28+'Distributieschema''s'!N30*'Distributieschema''s'!P30+'Distributieschema''s'!N48*'Distributieschema''s'!P48+'Distributieschema''s'!N50*'Distributieschema''s'!P50) -> 0 | K44: 0 | L44: 0 | M44: 0 | N44: 0 | O44: 0 | P44: 0 | Q44: 0 | R44: 0 | S44: 0 | T44: 0 | U44: 0 | V44: 0 | W44: 0 | X44: 0
B46: - waarvan stedelijk gebied tijdens AMvB-tijden | H46: 105 | I46: 0 | J46: =SUM(J47:J48) -> 15 | K46: 15 | L46: 15 | M46: 15 | N46: 15 | O46: 15 | P46: 15 | Q46: 0 | R46: 0 | S46: 0 | T46: 0 | U46: 0 | V46: 0 | W46: 0 | X46: 0
C47: - waarvan klantlocatie in stedelijk gebied | H47: 105 | I47: 0 | J47: =Switch_Alt2*('Distributieschema''s'!N15*'Distributieschema''s'!AC16) -> 15 | K47: 15 | L47: 15 | M47: 15 | N47: 15 | O47: 15 | P47: 15 | Q47: 0 | R47: 0 | S47: 0 | T47: 0 | U47: 0 | V47: 0 | W47: 0 | X47: 0
C48: - waarvan klantlocatie in kernwinkelgebied | H48: 0 | I48: 0 | J48: =Switch_Alt2*('Distributieschema''s'!N35*'Distributieschema''s'!AC36) -> 0 | K48: 0 | L48: 0 | M48: 0 | N48: 0 | O48: 0 | P48: 0 | Q48: 0 | R48: 0 | S48: 0 | T48: 0 | U48: 0 | V48: 0 | W48: 0 | X48: 0
B50: - waarvan stedelijk gebied buiten AMvB-tijden | H50: 0 | I50: 0 | J50: =SUM(J51:J52) -> 0 | K50: =J50*K$4 -> 0 | L50: 0 | M50: 0 | N50: 0 | O50: 0 | P50: 0 | Q50: 0 | R50: 0 | S50: 0 | T50: 0 | U50: 0 | V50: 0 | W50: 0 | X50: 0
C51: - waarvan klantlocatie in stedelijk gebied | H51: 0 | I51: 0 | J51: =Switch_Alt2*('Distributieschema''s'!N21*'Distributieschema''s'!AC21) -> 0 | K51: 0 | L51: 0 | M51: 0 | N51: 0 | O51: 0 | P51: 0 | Q51: 0 | R51: 0 | S51: 0 | T51: 0 | U51: 0 | V51: 0 | W51: 0 | X51: 0
C52: - waarvan klantlocatie in kernwinkelgebied | H52: 0 | I52: 0 | J52: =Switch_Alt2*('Distributieschema''s'!N41*'Distributieschema''s'!AC41) -> 0 | K52: 0 | L52: 0 | M52: 0 | N52: 0 | O52: 0 | P52: 0 | Q52: 0 | R52: 0 | S52: 0 | T52: 0 | U52: 0 | V52: 0 | W52: 0 | X52: 0
B54: - waarvan stedelijk gebied dagrand | H54: 0 | I54: 0 | J54: =SUM(J55:J56) -> 0 | K54: 0 | L54: 0 | M54: 0 | N54: 0 | O54: 0 | P54: 0 | Q54: 0 | R54: 0 | S54: 0 | T54: 0 | U54: 0 | V54: 0 | W54: 0 | X54: 0
C55: - waarvan klantlocatie in stedelijk gebied | H55: 0 | I55: 0 | J55: =Switch_Alt2*('Distributieschema''s'!N28*'Distributieschema''s'!AC28) -> 0 | K55: 0 | L55: 0 | M55: 0 | N55: 0 | O55: 0 | P55: 0 | Q55: 0 | R55: 0 | S55: 0 | T55: 0 | U55: 0 | V55: 0 | W55: 0 | X55: 0
C56: - waarvan klantlocatie in kernwinkelgebied | H56: 0 | I56: 0 | J56: =Switch_Alt2*('Distributieschema''s'!N48*'Distributieschema''s'!AC48) -> 0 | K56: 0 | L56: 0 | M56: 0 | N56: 0 | O56: 0 | P56: 0 | Q56: 0 | R56: 0 | S56: 0 | T56: 0 | U56: 0 | V56: 0 | W56: 0 | X56: 0
B58: - waarvan kernwinkelgebied tijdens AMvB-tijden | H58: 0 | I58: 0 | J58: =Switch_Alt2*('Distributieschema''s'!N35*'Distributieschema''s'!AP36) -> 0 | K58: 0 | L58: 0 | M58: 0 | N58: 0 | O58: 0 | P58: 0 | Q58: 0 | R58: 0 | S58: 0 | T58: 0 | U58: 0 | V58: 0 | W58: 0 | X58: 0
B59: - waarvan kernwinkelgebied buiten AMvB-tijden | H59: 0 | I59: 0 | J59: =Switch_Alt2*('Distributieschema''s'!N41*'Distributieschema''s'!AP41) -> 0 | K59: 0 | L59: 0 | M59: 0 | N59: 0 | O59: 0 | P59: 0 | Q59: 0 | R59: 0 | S59: 0 | T59: 0 | U59: 0 | V59: 0 | W59: 0 | X59: 0
B60: - waarvan kernwinkelgebied dagrand | H60: 0 | I60: 0 | J60: =Switch_Alt2*('Distributieschema''s'!N48*'Distributieschema''s'!AP48) -> 0 | K60: 0 | L60: 0 | M60: 0 | N60: 0 | O60: 0 | P60: 0 | Q60: 0 | R60: 0 | S60: 0 | T60: 0 | U60: 0 | V60: 0 | W60: 0 | X60: 0
B63: Gemiddelde afstand stadsvoertuig (km) | H63: =SUM(I63:X63) -> 0 | I63: 0 | J63: =SUM(J64:J64)+J66+J70+J74+SUM(J78:J80) -> 0 | K63: =J63*K$4 -> 0 | L63: 0 | M63: 0 | N63: 0 | O63: 0 | P63: 0 | Q63: 0 | R63: 0 | S63: 0 | T63: 0 | U63: 0 | V63: 0 | W63: 0 | X63: 0
B64: - waarvan buitenstedelijk | H64: 0 | I64: 0 | J64: 0 | K64: 0 | L64: 0 | M64: 0 | N64: 0 | O64: 0 | P64: 0 | Q64: 0 | R64: 0 | S64: 0 | T64: 0 | U64: 0 | V64: 0 | W64: 0 | X64: 0
B66: - waarvan stedelijk gebied tijdens AMvB-tijden | H66: 0 | I66: 0 | J66: =SUM(J67:J68) -> 0 | K66: =J66*K$4 -> 0 | L66: 0 | M66: 0 | N66: 0 | O66: 0 | P66: 0 | Q66: 0 | R66: 0 | S66: 0 | T66: 0 | U66: 0 | V66: 0 | W66: 0 | X66: 0
C67: - waarvan klantlocatie in stedelijk gebied | H67: 0 | I67: 0 | J67: 0 | K67: 0 | L67: 0 | M67: 0 | N67: 0 | O67: 0 | P67: 0 | Q67: 0 | R67: 0 | S67: 0 | T67: 0 | U67: 0 | V67: 0 | W67: 0 | X67: 0
C68: - waarvan klantlocatie in kernwinkelgebied | H68: 0 | I68: 0 | J68: 0 | K68: 0 | L68: 0 | M68: 0 | N68: 0 | O68: 0 | P68: 0 | Q68: 0 | R68: 0 | S68: 0 | T68: 0 | U68: 0 | V68: 0 | W68: 0 | X68: 0
B70: - waarvan stedelijk gebied buiten AMvB-tijden | H70: 0 | I70: 0 | J70: =SUM(J71:J72) -> 0 | K70: =J70*K$4 -> 0 | L70: 0 | M70: 0 | N70: 0 | O70: 0 | P70: 0 | Q70: 0 | R70: 0 | S70: 0 | T70: 0 | U70: 0 | V70: 0 | W70: 0 | X70: 0
C71: - waarvan klantlocatie in stedelijk gebied | H71: 0 | I71: 0 | J71: =Switch_Alt2*('Distributieschema''s'!N23*'Distributieschema''s'!AD23) -> 0 | K71: 0 | L71: 0 | M71: 0 | N71: 0 | O71: 0 | P71: 0 | Q71: 0 | R71: 0 | S71: 0 | T71: 0 | U71: 0 | V71: 0 | W71: 0 | X71: 0
C72: - waarvan klantlocatie in kernwinkelgebied | H72: 0 | I72: 0 | J72: =Switch_Alt2*('Distributieschema''s'!N43*'Distributieschema''s'!AD43) -> 0 | K72: 0 | L72: 0 | M72: 0 | N72: 0 | O72: 0 | P72: 0 | Q72: 0 | R72: 0 | S72: 0 | T72: 0 | U72: 0 | V72: 0 | W72: 0 | X72: 0
B74: - waarvan stedelijk gebied dagrand | H74: 0 | I74: 0 | J74: =SUM(J75:J76) -> 0 | K74: =J74*K$4 -> 0 | L74: 0 | M74: 0 | N74: 0 | O74: 0 | P74: 0 | Q74: 0 | R74: 0 | S74: 0 | T74: 0 | U74: 0 | V74: 0 | W74: 0 | X74: 0
C75: - waarvan klantlocatie in stedelijk gebied | H75: 0 | I75: 0 | J75: =Switch_Alt2*('Distributieschema''s'!N30*'Distributieschema''s'!AD30) -> 0 | K75: 0 | L75: 0 | M75: 0 | N75: 0 | O75: 0 | P75: 0 | Q75: 0 | R75: 0 | S75: 0 | T75: 0 | U75: 0 | V75: 0 | W75: 0 | X75: 0
C76: - waarvan klantlocatie in kernwinkelgebied | H76: 0 | I76: 0 | J76: =Switch_Alt2*('Distributieschema''s'!N50*'Distributieschema''s'!AD50) -> 0 | K76: 0 | L76: 0 | M76: 0 | N76: 0 | O76: 0 | P76: 0 | Q76: 0 | R76: 0 | S76: 0 | T76: 0 | U76: 0 | V76: 0 | W76: 0 | X76: 0
B78: - waarvan kernwinkelgebied tijdens AMvB-tijden | H78: 0 | I78: 0 | J78: 0 | K78: =J78*K$4 -> 0 | L78: 0 | M78: 0 | N78: 0 | O78: 0 | P78: 0 | Q78: 0 | R78: 0 | S78: 0 | T78: 0 | U78: 0 | V78: 0 | W78: 0 | X78: 0
B79: - waarvan kernwinkelgebied buiten AMvB-tijden | H79: 0 | I79: 0 | J79: =Switch_Alt2*('Distributieschema''s'!N43*'Distributieschema''s'!AP43) -> 0 | K79: 0 | L79: 0 | M79: 0 | N79: 0 | O79: 0 | P79: 0 | Q79: 0 | R79: 0 | S79: 0 | T79: 0 | U79: 0 | V79: 0 | W79: 0 | X79: 0
B80: - waarvan kernwinkelgebied dagrand | H80: 0 | I80: 0 | J80: =Switch_Alt2*('Distributieschema''s'!N50*'Distributieschema''s'!AP50) -> 0 | K80: 0 | L80: 0 | M80: 0 | N80: 0 | O80: 0 | P80: 0 | Q80: 0 | R80: 0 | S80: 0 | T80: 0 | U80: 0 | V80: 0 | W80: 0 | X80: 0
B82: Aantal aanvullende ritten door stadsvoertuig(en) per rit | H82: =SUM(I82:X82) -> 0 | I82: 0 | J82: =IF(J63=0,0,Aantal_keer_HB_stadsvt) -> 0 | K82: 0 | L82: 0 | M82: 0 | N82: 0 | O82: 0 | P82: 0 | Q82: 0 | R82: 0 | S82: 0 | T82: 0 | U82: 0 | V82: 0 | W82: 0 | X82: 0
B84: Gem. gereden afstand stadsvoertuigen aansluitend op rit hoofdvoertuig (km) | H84: =SUM(I84:X84) -> 0 | I84: 0 | J84: =SUM(J85:J85)+J87+J91+J95+SUM(J99:J101) -> 0 | K84: =SUM(K85:K85)+K87+K91+K95+SUM(K99:K101) -> 0 | L84: 0 | M84: 0 | N84: 0 | O84: 0 | P84: 0 | Q84: 0 | R84: 0 | S84: 0 | T84: 0 | U84: 0 | V84: 0 | W84: 0 | X84: 0
B85: - waarvan buitenstedelijk | H85: =SUM(I85:X85) -> 0 | I85: 0 | J85: =J64*J$82 -> 0 | K85: =K64*K$82 -> 0 | L85: 0 | M85: 0 | N85: 0 | O85: 0 | P85: 0 | Q85: 0 | R85: 0 | S85: 0 | T85: 0 | U85: 0 | V85: 0 | W85: 0 | X85: 0
B87: - waarvan stedelijk gebied tijdens AMvB-tijden | H87: 0 | I87: 0 | J87: =J66*J$82 -> 0 | K87: =K66*K$82 -> 0 | L87: 0 | M87: 0 | N87: 0 | O87: 0 | P87: 0 | Q87: 0 | R87: 0 | S87: 0 | T87: 0 | U87: 0 | V87: 0 | W87: 0 | X87: 0
C88: - waarvan klantlocatie in stedelijk gebied | H88: 0 | I88: 0 | J88: =J67*J$82 -> 0 | K88: 0 | L88: 0 | M88: 0 | N88: 0 | O88: 0 | P88: 0 | Q88: 0 | R88: 0 | S88: 0 | T88: 0 | U88: 0 | V88: 0 | W88: 0 | X88: 0
C89: - waarvan klantlocatie in kernwinkelgebied | H89: 0 | I89: 0 | J89: =J68*J$82 -> 0 | K89: 0 | L89: 0 | M89: 0 | N89: 0 | O89: 0 | P89: 0 | Q89: 0 | R89: 0 | S89: 0 | T89: 0 | U89: 0 | V89: 0 | W89: 0 | X89: 0
B91: - waarvan stedelijk gebied buiten AMvB-tijden | H91: 0 | I91: 0 | J91: =J70*J$82 -> 0 | K91: =K70*K$82 -> 0 | L91: 0 | M91: 0 | N91: 0 | O91: 0 | P91: 0 | Q91: 0 | R91: 0 | S91: 0 | T91: 0 | U91: 0 | V91: 0 | W91: 0 | X91: 0
C92: - waarvan klantlocatie in stedelijk gebied | H92: 0 | I92: 0 | J92: =J71*J$82 -> 0 | K92: 0 | L92: 0 | M92: 0 | N92: 0 | O92: 0 | P92: 0 | Q92: 0 | R92: 0 | S92: 0 | T92: 0 | U92: 0 | V92: 0 | W92: 0 | X92: 0
C93: - waarvan klantlocatie in kernwinkelgebied | H93: 0 | I93: 0 | J93: =J72*J$82 -> 0 | K93: 0 | L93: 0 | M93: 0 | N93: 0 | O93: 0 | P93: 0 | Q93: 0 | R93: 0 | S93: 0 | T93: 0 | U93: 0 | V93: 0 | W93: 0 | X93: 0
B95: - waarvan stedelijk gebied dagrand | H95: 0 | I95: 0 | J95: =J74*J$82 -> 0 | K95: =K74*K$82 -> 0 | L95: 0 | M95: 0 | N95: 0 | O95: 0 | P95: 0 | Q95: 0 | R95: 0 | S95: 0 | T95: 0 | U95: 0 | V95: 0 | W95: 0 | X95: 0
C96: - waarvan klantlocatie in stedelijk gebied | H96: 0 | I96: 0 | J96: =J75*J$82 -> 0 | K96: 0 | L96: 0 | M96: 0 | N96: 0 | O96: 0 | P96: 0 | Q96: 0 | R96: 0 | S96: 0 | T96: 0 | U96: 0 | V96: 0 | W96: 0 | X96: 0
C97: - waarvan klantlocatie in kernwinkelgebied | H97: 0 | I97: 0 | J97: =J76*J$82 -> 0 | K97: 0 | L97: 0 | M97: 0 | N97: 0 | O97: 0 | P97: 0 | Q97: 0 | R97: 0 | S97: 0 | T97: 0 | U97: 0 | V97: 0 | W97: 0 | X97: 0
B99: - waarvan kernwinkelgebied tijdens AMvB-tijden | H99: 0 | I99: 0 | J99: =J78*J$82 -> 0 | K99: =K78*K$82 -> 0 | L99: 0 | M99: 0 | N99: 0 | O99: 0 | P99: 0 | Q99: 0 | R99: 0 | S99: 0 | T99: 0 | U99: 0 | V99: 0 | W99: 0 | X99: 0
B100: - waarvan kernwinkelgebied buiten AMvB-tijden | H100: 0 | I100: 0 | J100: =J79*J$82 -> 0 | K100: 0 | L100: 0 | M100: 0 | N100: 0 | O100: 0 | P100: 0 | Q100: 0 | R100: 0 | S100: 0 | T100: 0 | U100: 0 | V100: 0 | W100: 0 | X100: 0
B101: - waarvan kernwinkelgebied dagrand | H101: 0 | I101: 0 | J101: =J80*J$82 -> 0 | K101: 0 | L101: 0 | M101: 0 | N101: 0 | O101: 0 | P101: 0 | Q101: 0 | R101: 0 | S101: 0 | T101: 0 | U101: 0 | V101: 0 | W101: 0 | X101: 0
B104: Aantal ritten per jaar hvt | H104: =SUM(I104:X104) -> 700 | I104: 0 | J104: =HB_ritten -> 100 | K104: =J104*K$4 -> 100 | L104: 100 | M104: 100 | N104: 100 | O104: 100 | P104: 100 | Q104: 0 | R104: 0 | S104: 0 | T104: 0 | U104: 0 | V104: 0 | W104: 0 | X104: 0
B105: Aantal ritten per jaar svt | H105: =SUM(I105:X105) -> 0 | J105: =J104*J82 -> 0 | K105: =K104*K82 -> 0 | L105: 0 | M105: 0 | N105: 0 | O105: 0 | P105: 0 | Q105: 0 | R105: 0 | S105: 0 | T105: 0 | U105: 0 | V105: 0 | W105: 0 | X105: 0
B107: Effectief aantal benodigde hoofdvoertuigen | I107: 0 | J107: =(J127+(J130+J104*'Distributieschema''s'!$N$9*Dashboard!$AY$118)+J131+J134+J135+(J138+J104*'Distributieschema''s'!$N$15*Dashboard!$AY$118)+J139+(J142+J104*'Distributieschema''s'!$N$21*Dashboard!$AY$118)+J143+(J146+J104*'Distributieschema''s'!$N$28*Dashboard!$AY$118)+J147+(J149+J104*'Distributieschema''s'!$N$35*Dashboard!$AY$118)+(J150+J104*'Distributieschema''s'!$N$41*Dashboard!$AY$118)+(J151+J104*'Distributieschema''s'!$N$48*Dashboard!$AY$118))/Uren_hvt_alt2 -> 0.105952381 | K107: =(K127+(K130+K104*'Distributieschema''s'!$N$9*Dashboard!$AY$118)+K131+K134+K135+(K138+K104*'Distributieschema''s'!$N$15*Dashboard!$AY$118)+K139+(K142+K104*'Distributieschema''s'!$N$21*Dashboard!$AY$118)+K143+(K146+K104*'Distributieschema''s'!$N$28*Dashboard!$AY$118)+K147+(K149+K104*'Distributieschema''s'!$N$35*Dashboard!$AY$118)+(K150+K104*'Distributieschema''s'!$N$41*Dashboard!$AY$118)+(K151+K104*'Distributieschema''s'!$N$48*Dashboard!$AY$118))/Uren_hvt_alt2 -> 0.105952381 | L107: =(L127+(L130+L104*'Distributieschema''s'!$N$9*Dashboard!$AY$118)+L131+L134+L135+(L138+L104*'Distributieschema''s'!$N$15*Dashboard!$AY$118)+L139+(L142+L104*'Distributieschema''s'!$N$21*Dashboard!$AY$118)+L143+(L146+L104*'Distributieschema''s'!$N$28*Dashboard!$AY$118)+L147+(L149+L104*'Distributieschema''s'!$N$35*Dashboard!$AY$118)+(L150+L104*'Distributieschema''s'!$N$41*Dashboard!$AY$118)+(L151+L104*'Distributieschema''s'!$N$48*Dashboard!$AY$118))/Uren_hvt_alt2 -> 0.105952381 | M107: =(M127+(M130+M104*'Distributieschema''s'!$N$9*Dashboard!$AY$118)+M131+M134+M135+(M138+M104*'Distributieschema''s'!$N$15*Dashboard!$AY$118)+M139+(M142+M104*'Distributieschema''s'!$N$21*Dashboard!$AY$118)+M143+(M146+M104*'Distributieschema''s'!$N$28*Dashboard!$AY$118)+M147+(M149+M104*'Distributieschema''s'!$N$35*Dashboard!$AY$118)+(M150+M104*'Distributieschema''s'!$N$41*Dashboard!$AY$118)+(M151+M104*'Distributieschema''s'!$N$48*Dashboard!$AY$118))/Uren_hvt_alt2 -> 0.105952381 | N107: =(N127+(N130+N104*'Distributieschema''s'!$N$9*Dashboard!$AY$118)+N131+N134+N135+(N138+N104*'Distributieschema''s'!$N$15*Dashboard!$AY$118)+N139+(N142+N104*'Distributieschema''s'!$N$21*Dashboard!$AY$118)+N143+(N146+N104*'Distributieschema''s'!$N$28*Dashboard!$AY$118)+N147+(N149+N104*'Distributieschema''s'!$N$35*Dashboard!$AY$118)+(N150+N104*'Distributieschema''s'!$N$41*Dashboard!$AY$118)+(N151+N104*'Distributieschema''s'!$N$48*Dashboard!$AY$118))/Uren_hvt_alt2 -> 0.105952381 | O107: =(O127+(O130+O104*'Distributieschema''s'!$N$9*Dashboard!$AY$118)+O131+O134+O135+(O138+O104*'Distributieschema''s'!$N$15*Dashboard!$AY$118)+O139+(O142+O104*'Distributieschema''s'!$N$21*Dashboard!$AY$118)+O143+(O146+O104*'Distributieschema''s'!$N$28*Dashboard!$AY$118)+O147+(O149+O104*'Distributieschema''s'!$N$35*Dashboard!$AY$118)+(O150+O104*'Distributieschema''s'!$N$41*Dashboard!$AY$118)+(O151+O104*'Distributieschema''s'!$N$48*Dashboard!$AY$118))/Uren_hvt_alt2 -> 0.105952381 | P107: =(P127+(P130+P104*'Distributieschema''s'!$N$9*Dashboard!$AY$118)+P131+P134+P135+(P138+P104*'Distributieschema''s'!$N$15*Dashboard!$AY$118)+P139+(P142+P104*'Distributieschema''s'!$N$21*Dashboard!$AY$118)+P143+(P146+P104*'Distributieschema''s'!$N$28*Dashboard!$AY$118)+P147+(P149+P104*'Distributieschema''s'!$N$35*Dashboard!$AY$118)+(P150+P104*'Distributieschema''s'!$N$41*Dashboard!$AY$118)+(P151+P104*'Distributieschema''s'!$N$48*Dashboard!$AY$118))/Uren_hvt_alt2 -> 0.105952381 | Q107: =(Q127+(Q130+Q104*'Distributieschema''s'!$N$9*Dashboard!$AY$118)+Q131+Q134+Q135+(Q138+Q104*'Distributieschema''s'!$N$15*Dashboard!$AY$118)+Q139+(Q142+Q104*'Distributieschema''s'!$N$21*Dashboard!$AY$118)+Q143+(Q146+Q104*'Distributieschema''s'!$N$28*Dashboard!$AY$118)+Q147+(Q149+Q104*'Distributieschema''s'!$N$35*Dashboard!$AY$118)+(Q150+Q104*'Distributieschema''s'!$N$41*Dashboard!$AY$118)+(Q151+Q104*'Distributieschema''s'!$N$48*Dashboard!$AY$118))/Uren_hvt_alt2 -> 0 | R107: =(R127+(R130+R104*'Distributieschema''s'!$N$9*Dashboard!$AY$118)+R131+R134+R135+(R138+R104*'Distributieschema''s'!$N$15*Dashboard!$AY$118)+R139+(R142+R104*'Distributieschema''s'!$N$21*Dashboard!$AY$118)+R143+(R146+R104*'Distributieschema''s'!$N$28*Dashboard!$AY$118)+R147+(R149+R104*'Distributieschema''s'!$N$35*Dashboard!$AY$118)+(R150+R104*'Distributieschema''s'!$N$41*Dashboard!$AY$118)+(R151+R104*'Distributieschema''s'!$N$48*Dashboard!$AY$118))/Uren_hvt_alt2 -> 0 | S107: =(S127+(S130+S104*'Distributieschema''s'!$N$9*Dashboard!$AY$118)+S131+S134+S135+(S138+S104*'Distributieschema''s'!$N$15*Dashboard!$AY$118)+S139+(S142+S104*'Distributieschema''s'!$N$21*Dashboard!$AY$118)+S143+(S146+S104*'Distributieschema''s'!$N$28*Dashboard!$AY$118)+S147+(S149+S104*'Distributieschema''s'!$N$35*Dashboard!$AY$118)+(S150+S104*'Distributieschema''s'!$N$41*Dashboard!$AY$118)+(S151+S104*'Distributieschema''s'!$N$48*Dashboard!$AY$118))/Uren_hvt_alt2 -> 0 | T107: =(T127+(T130+T104*'Distributieschema''s'!$N$9*Dashboard!$AY$118)+T131+T134+T135+(T138+T104*'Distributieschema''s'!$N$15*Dashboard!$AY$118)+T139+(T142+T104*'Distributieschema''s'!$N$21*Dashboard!$AY$118)+T143+(T146+T104*'Distributieschema''s'!$N$28*Dashboard!$AY$118)+T147+(T149+T104*'Distributieschema''s'!$N$35*Dashboard!$AY$118)+(T150+T104*'Distributieschema''s'!$N$41*Dashboard!$AY$118)+(T151+T104*'Distributieschema''s'!$N$48*Dashboard!$AY$118))/Uren_hvt_alt2 -> 0 | U107: =(U127+(U130+U104*'Distributieschema''s'!$N$9*Dashboard!$AY$118)+U131+U134+U135+(U138+U104*'Distributieschema''s'!$N$15*Dashboard!$AY$118)+U139+(U142+U104*'Distributieschema''s'!$N$21*Dashboard!$AY$118)+U143+(U146+U104*'Distributieschema''s'!$N$28*Dashboard!$AY$118)+U147+(U149+U104*'Distributieschema''s'!$N$35*Dashboard!$AY$118)+(U150+U104*'Distributieschema''s'!$N$41*Dashboard!$AY$118)+(U151+U104*'Distributieschema''s'!$N$48*Dashboard!$AY$118))/Uren_hvt_alt2 -> 0 | V107: =(V127+(V130+V104*'Distributieschema''s'!$N$9*Dashboard!$AY$118)+V131+V134+V135+(V138+V104*'Distributieschema''s'!$N$15*Dashboard!$AY$118)+V139+(V142+V104*'Distributieschema''s'!$N$21*Dashboard!$AY$118)+V143+(V146+V104*'Distributieschema''s'!$N$28*Dashboard!$AY$118)+V147+(V149+V104*'Distributieschema''s'!$N$35*Dashboard!$AY$118)+(V150+V104*'Distributieschema''s'!$N$41*Dashboard!$AY$118)+(V151+V104*'Distributieschema''s'!$N$48*Dashboard!$AY$118))/Uren_hvt_alt2 -> 0 | W107: =(W127+(W130+W104*'Distributieschema''s'!$N$9*Dashboard!$AY$118)+W131+W134+W135+(W138+W104*'Distributieschema''s'!$N$15*Dashboard!$AY$118)+W139+(W142+W104*'Distributieschema''s'!$N$21*Dashboard!$AY$118)+W143+(W146+W104*'Distributieschema''s'!$N$28*Dashboard!$AY$118)+W147+(W149+W104*'Distributieschema''s'!$N$35*Dashboard!$AY$118)+(W150+W104*'Distributieschema''s'!$N$41*Dashboard!$AY$118)+(W151+W104*'Distributieschema''s'!$N$48*Dashboard!$AY$118))/Uren_hvt_alt2 -> 0 | X107: =(X127+(X130+X104*'Distributieschema''s'!$N$9*Dashboard!$AY$118)+X131+X134+X135+(X138+X104*'Distributieschema''s'!$N$15*Dashboard!$AY$118)+X139+(X142+X104*'Distributieschema''s'!$N$21*Dashboard!$AY$118)+X143+(X146+X104*'Distributieschema''s'!$N$28*Dashboard!$AY$118)+X147+(X149+X104*'Distributieschema''s'!$N$35*Dashboard!$AY$118)+(X150+X104*'Distributieschema''s'!$N$41*Dashboard!$AY$118)+(X151+X104*'Distributieschema''s'!$N$48*Dashboard!$AY$118))/Uren_hvt_alt2 -> 0
B108: Effectief aantal benodigde stadsvoertuigen | I108: 0 | J108: =(J161+(J164+J104*'Distributieschema''s'!$N23*Aantal_keer_HB_stadsvt*Dashboard!$AY$119)+J165+(J168+J104*'Distributieschema''s'!$N30*Aantal_keer_HB_stadsvt*Dashboard!$AY$119)+J169+(J172+J104*'Distributieschema''s'!$N43*Aantal_keer_HB_stadsvt*Dashboard!$AY$119)+(J173+J104*'Distributieschema''s'!$N50*Aantal_keer_HB_stadsvt*Dashboard!$AY$119))/Uren_svt -> 0 | K108: =(K161+(K164+K104*'Distributieschema''s'!$N23*Aantal_keer_HB_stadsvt*Dashboard!$AY$119)+K165+(K168+K104*'Distributieschema''s'!$N30*Aantal_keer_HB_stadsvt*Dashboard!$AY$119)+K169+(K172+K104*'Distributieschema''s'!$N43*Aantal_keer_HB_stadsvt*Dashboard!$AY$119)+(K173+K104*'Distributieschema''s'!$N50*Aantal_keer_HB_stadsvt*Dashboard!$AY$119))/Uren_svt -> 0 | L108: =(L161+(L164+L104*'Distributieschema''s'!$N23*Aantal_keer_HB_stadsvt*Dashboard!$AY$119)+L165+(L168+L104*'Distributieschema''s'!$N30*Aantal_keer_HB_stadsvt*Dashboard!$AY$119)+L169+(L172+L104*'Distributieschema''s'!$N43*Aantal_keer_HB_stadsvt*Dashboard!$AY$119)+(L173+L104*'Distributieschema''s'!$N50*Aantal_keer_HB_stadsvt*Dashboard!$AY$119))/Uren_svt -> 0 | M108: =(M161+(M164+M104*'Distributieschema''s'!$N23*Aantal_keer_HB_stadsvt*Dashboard!$AY$119)+M165+(M168+M104*'Distributieschema''s'!$N30*Aantal_keer_HB_stadsvt*Dashboard!$AY$119)+M169+(M172+M104*'Distributieschema''s'!$N43*Aantal_keer_HB_stadsvt*Dashboard!$AY$119)+(M173+M104*'Distributieschema''s'!$N50*Aantal_keer_HB_stadsvt*Dashboard!$AY$119))/Uren_svt -> 0 | N108: =(N161+(N164+N104*'Distributieschema''s'!$N23*Aantal_keer_HB_stadsvt*Dashboard!$AY$119)+N165+(N168+N104*'Distributieschema''s'!$N30*Aantal_keer_HB_stadsvt*Dashboard!$AY$119)+N169+(N172+N104*'Distributieschema''s'!$N43*Aantal_keer_HB_stadsvt*Dashboard!$AY$119)+(N173+N104*'Distributieschema''s'!$N50*Aantal_keer_HB_stadsvt*Dashboard!$AY$119))/Uren_svt -> 0 | O108: =(O161+(O164+O104*'Distributieschema''s'!$N23*Aantal_keer_HB_stadsvt*Dashboard!$AY$119)+O165+(O168+O104*'Distributieschema''s'!$N30*Aantal_keer_HB_stadsvt*Dashboard!$AY$119)+O169+(O172+O104*'Distributieschema''s'!$N43*Aantal_keer_HB_stadsvt*Dashboard!$AY$119)+(O173+O104*'Distributieschema''s'!$N50*Aantal_keer_HB_stadsvt*Dashboard!$AY$119))/Uren_svt -> 0 | P108: =(P161+(P164+P104*'Distributieschema''s'!$N23*Aantal_keer_HB_stadsvt*Dashboard!$AY$119)+P165+(P168+P104*'Distributieschema''s'!$N30*Aantal_keer_HB_stadsvt*Dashboard!$AY$119)+P169+(P172+P104*'Distributieschema''s'!$N43*Aantal_keer_HB_stadsvt*Dashboard!$AY$119)+(P173+P104*'Distributieschema''s'!$N50*Aantal_keer_HB_stadsvt*Dashboard!$AY$119))/Uren_svt -> 0 | Q108: =(Q161+(Q164+Q104*'Distributieschema''s'!$N23*Aantal_keer_HB_stadsvt*Dashboard!$AY$119)+Q165+(Q168+Q104*'Distributieschema''s'!$N30*Aantal_keer_HB_stadsvt*Dashboard!$AY$119)+Q169+(Q172+Q104*'Distributieschema''s'!$N43*Aantal_keer_HB_stadsvt*Dashboard!$AY$119)+(Q173+Q104*'Distributieschema''s'!$N50*Aantal_keer_HB_stadsvt*Dashboard!$AY$119))/Uren_svt -> 0 | R108: =(R161+(R164+R104*'Distributieschema''s'!$N23*Aantal_keer_HB_stadsvt*Dashboard!$AY$119)+R165+(R168+R104*'Distributieschema''s'!$N30*Aantal_keer_HB_stadsvt*Dashboard!$AY$119)+R169+(R172+R104*'Distributieschema''s'!$N43*Aantal_keer_HB_stadsvt*Dashboard!$AY$119)+(R173+R104*'Distributieschema''s'!$N50*Aantal_keer_HB_stadsvt*Dashboard!$AY$119))/Uren_svt -> 0 | S108: =(S161+(S164+S104*'Distributieschema''s'!$N23*Aantal_keer_HB_stadsvt*Dashboard!$AY$119)+S165+(S168+S104*'Distributieschema''s'!$N30*Aantal_keer_HB_stadsvt*Dashboard!$AY$119)+S169+(S172+S104*'Distributieschema''s'!$N43*Aantal_keer_HB_stadsvt*Dashboard!$AY$119)+(S173+S104*'Distributieschema''s'!$N50*Aantal_keer_HB_stadsvt*Dashboard!$AY$119))/Uren_svt -> 0 | T108: =(T161+(T164+T104*'Distributieschema''s'!$N23*Aantal_keer_HB_stadsvt*Dashboard!$AY$119)+T165+(T168+T104*'Distributieschema''s'!$N30*Aantal_keer_HB_stadsvt*Dashboard!$AY$119)+T169+(T172+T104*'Distributieschema''s'!$N43*Aantal_keer_HB_stadsvt*Dashboard!$AY$119)+(T173+T104*'Distributieschema''s'!$N50*Aantal_keer_HB_stadsvt*Dashboard!$AY$119))/Uren_svt -> 0 | U108: =(U161+(U164+U104*'Distributieschema''s'!$N23*Aantal_keer_HB_stadsvt*Dashboard!$AY$119)+U165+(U168+U104*'Distributieschema''s'!$N30*Aantal_keer_HB_stadsvt*Dashboard!$AY$119)+U169+(U172+U104*'Distributieschema''s'!$N43*Aantal_keer_HB_stadsvt*Dashboard!$AY$119)+(U173+U104*'Distributieschema''s'!$N50*Aantal_keer_HB_stadsvt*Dashboard!$AY$119))/Uren_svt -> 0 | V108: =(V161+(V164+V104*'Distributieschema''s'!$N23*Aantal_keer_HB_stadsvt*Dashboard!$AY$119)+V165+(V168+V104*'Distributieschema''s'!$N30*Aantal_keer_HB_stadsvt*Dashboard!$AY$119)+V169+(V172+V104*'Distributieschema''s'!$N43*Aantal_keer_HB_stadsvt*Dashboard!$AY$119)+(V173+V104*'Distributieschema''s'!$N50*Aantal_keer_HB_stadsvt*Dashboard!$AY$119))/Uren_svt -> 0 | W108: =(W161+(W164+W104*'Distributieschema''s'!$N23*Aantal_keer_HB_stadsvt*Dashboard!$AY$119)+W165+(W168+W104*'Distributieschema''s'!$N30*Aantal_keer_HB_stadsvt*Dashboard!$AY$119)+W169+(W172+W104*'Distributieschema''s'!$N43*Aantal_keer_HB_stadsvt*Dashboard!$AY$119)+(W173+W104*'Distributieschema''s'!$N50*Aantal_keer_HB_stadsvt*Dashboard!$AY$119))/Uren_svt -> 0 | X108: =(X161+(X164+X104*'Distributieschema''s'!$N23*Aantal_keer_HB_stadsvt*Dashboard!$AY$119)+X165+(X168+X104*'Distributieschema''s'!$N30*Aantal_keer_HB_stadsvt*Dashboard!$AY$119)+X169+(X172+X104*'Distributieschema''s'!$N43*Aantal_keer_HB_stadsvt*Dashboard!$AY$119)+(X173+X104*'Distributieschema''s'!$N50*Aantal_keer_HB_stadsvt*Dashboard!$AY$119))/Uren_svt -> 0
B111: Werkelijk aantal gereden kilometers | H111: =SUM(I111:X111) -> 70000 | I111: 0 | J111: =SUM(J112:J113) -> 10000 | K111: =SUM(K112:K113) -> 10000 | L111: 10000 | M111: 10000 | N111: 10000 | O111: 10000 | P111: 10000 | Q111: 0 | R111: 0 | S111: 0 | T111: 0 | U111: 0 | V111: 0 | W111: 0 | X111: 0
B112: - waarvan hoofdvoertuig(en) | H112: =SUM(I112:X112) -> 70000 | I112: 0 | J112: =J33*J104 -> 10000 | K112: 10000 | L112: 10000 | M112: 10000 | N112: 10000 | O112: 10000 | P112: 10000 | Q112: 0 | R112: 0 | S112: 0 | T112: 0 | U112: 0 | V112: 0 | W112: 0 | X112: 0
B113: - waarvan stadsvoertuig(en) | H113: =SUM(I113:X113) -> 0 | I113: 0 | J113: =J84*J104 -> 0 | K113: =J113*K$4 -> 0 | L113: 0 | M113: 0 | N113: 0 | O113: 0 | P113: 0 | Q113: 0 | R113: 0 | S113: 0 | T113: 0 | U113: 0 | V113: 0 | W113: 0 | X113: 0
B116: Referentiekilometers | H116: =SUM(I116:X116) -> 70000 | I116: 0 | J116: =J104*OD_afstand -> 10000 | K116: 10000 | L116: 10000 | M116: 10000 | N116: 10000 | O116: 10000 | P116: 10000 | Q116: 0 | R116: 0 | S116: 0 | T116: 0 | U116: 0 | V116: 0 | W116: 0 | X116: 0
B119: Totaal aantal modaliteitswissels | H119: =SUM(I119:X119) -> 0 | I119: 0 | J119: =SUM(J120:J121) -> 0 | K119: =SUM(K120:K121) -> 0 | L119: =SUM(L120:L121) -> 0 | M119: 0 | N119: 0 | O119: 0 | P119: 0 | Q119: 0 | R119: 0 | S119: 0 | T119: 0 | U119: 0 | V119: 0 | W119: 0 | X119: 0
B120: - waarvan wissels tijdens normale werkuren | H120: =SUM(I120:X120) -> 0 | I120: 0 | J120: =('Distributieschema''s'!N23+'Distributieschema''s'!N43)*J104 -> 0 | K120: =J120*K$4 -> 0 | L120: =K120*L$4 -> 0 | M120: 0 | N120: 0 | O120: 0 | P120: 0 | Q120: 0 | R120: 0 | S120: 0 | T120: 0 | U120: 0 | V120: 0 | W120: 0 | X120: 0
B121: - waarvan wissels tijdens dagrand | H121: =SUM(I121:X121) -> 0 | I121: 0 | J121: =('Distributieschema''s'!N30+'Distributieschema''s'!N50)*J104 -> 0 | K121: =J121*K$4 -> 0 | L121: 0 | M121: 0 | N121: 0 | O121: 0 | P121: 0 | Q121: 0 | R121: 0 | S121: 0 | T121: 0 | U121: 0 | V121: 0 | W121: 0 | X121: 0
B124: Aantal uren hoofdvoertuig per jaar (uren) | H124: =SUM(I124:X124) -> 2225 | I124: 0 | J124: =J125+J129+J133+J137+J141+J145+SUM(J149:J151) -> 317.8571429 | K124: =J124*K$4 -> 317.8571429 | L124: =K124*L$4 -> 317.8571429 | M124: 317.8571429 | N124: 317.8571429 | O124: 317.8571429 | P124: 317.8571429 | Q124: 0 | R124: 0 | S124: 0 | T124: 0 | U124: 0 | V124: 0 | W124: 0 | X124: 0
B125: - waarvan buitenstedelijk gebied tijdens spits | H125: 1700 | I125: 0 | J125: =SUM(J126:J127) -> 242.8571429 | K125: =J125*K$4 -> 242.8571429 | L125: 242.8571429 | M125: 242.8571429 | N125: 242.8571429 | O125: 242.8571429 | P125: 242.8571429 | Q125: 0 | R125: 0 | S125: 0 | T125: 0 | U125: 0 | V125: 0 | W125: 0 | X125: 0
C126: - waarvan klantlocatie in buitenstedelijk gebied | H126: 0 | I126: 0 | J126: =IFERROR(J$104*J35/Snelheid_buitenstedelijk_spits,0) -> 0 | K126: 0 | L126: 0 | M126: 0 | N126: 0 | O126: 0 | P126: 0 | Q126: 0 | R126: 0 | S126: 0 | T126: 0 | U126: 0 | V126: 0 | W126: 0 | X126: 0
C127: - waarvan klantlocatie in stedelijk of kernwinkelgebied | H127: 1700 | I127: 0 | J127: =IFERROR(J$104*J36/Snelheid_buitenstedelijk_spits,0) -> 242.8571429 | K127: 242.8571429 | L127: 242.8571429 | M127: 242.8571429 | N127: 242.8571429 | O127: 242.8571429 | P127: 242.8571429 | Q127: 0 | R127: 0 | S127: 0 | T127: 0 | U127: 0 | V127: 0 | W127: 0 | X127: 0
B129: - waarvan buitenstedelijk gebied buiten spits | H129: 0 | I129: 0 | J129: =SUM(J130:J131) -> 0 | K129: =J129*K$4 -> 0 | L129: 0 | M129: 0 | N129: 0 | O129: 0 | P129: 0 | Q129: 0 | R129: 0 | S129: 0 | T129: 0 | U129: 0 | V129: 0 | W129: 0 | X129: 0
C130: - waarvan klantlocatie in buitenstedelijk gebied | H130: 0 | I130: 0 | J130: =IFERROR(J$104*J39/Snelheid_buitenstedelijk,0) -> 0 | K130: 0 | L130: 0 | M130: 0 | N130: 0 | O130: 0 | P130: 0 | Q130: 0 | R130: 0 | S130: 0 | T130: 0 | U130: 0 | V130: 0 | W130: 0 | X130: 0
C131: - waarvan klantlocatie in stedelijk of kernwinkelgebied | H131: 0 | I131: 0 | J131: =IFERROR(J$104*J40/Snelheid_buitenstedelijk,0) -> 0 | K131: 0 | L131: 0 | M131: 0 | N131: 0 | O131: 0 | P131: 0 | Q131: 0 | R131: 0 | S131: 0 | T131: 0 | U131: 0 | V131: 0 | W131: 0 | X131: 0
B133: - waarvan buitenstedelijk gebied tijdens dagrand | H133: 0 | I133: 0 | J133: =SUM(J134:J135) -> 0 | K133: =J133*K$4 -> 0 | L133: 0 | M133: 0 | N133: 0 | O133: 0 | P133: 0 | Q133: 0 | R133: 0 | S133: 0 | T133: 0 | U133: 0 | V133: 0 | W133: 0 | X133: 0
C134: - waarvan klantlocatie in buitenstedelijk gebied | H134: 0 | I134: 0 | J134: =IFERROR(J$104*J43/Snelheid_buitenstedelijk,0) -> 0 | K134: 0 | L134: 0 | M134: 0 | N134: 0 | O134: 0 | P134: 0 | Q134: 0 | R134: 0 | S134: 0 | T134: 0 | U134: 0 | V134: 0 | W134: 0 | X134: 0
C135: - waarvan klantlocatie in stedelijk of kernwinkelgebied | H135: 0 | I135: 0 | J135: =IFERROR(J$104*J44/Snelheid_buitenstedelijk,0) -> 0 | K135: 0 | L135: 0 | M135: 0 | N135: 0 | O135: 0 | P135: 0 | Q135: 0 | R135: 0 | S135: 0 | T135: 0 | U135: 0 | V135: 0 | W135: 0 | X135: 0
B137: - waarvan stedelijk gebied tijdens AMvB-tijden | H137: 525 | I137: 0 | J137: =SUM(J138:J139) -> 75 | K137: =J137*K$4 -> 75 | L137: 75 | M137: 75 | N137: 75 | O137: 75 | P137: 75 | Q137: 0 | R137: 0 | S137: 0 | T137: 0 | U137: 0 | V137: 0 | W137: 0 | X137: 0
C138: - waarvan klantlocatie in stedelijk gebied | H138: 525 | I138: 0 | J138: =IFERROR(J$104*J47/Snelheid_stedelijk_spits,0) -> 75 | K138: 75 | L138: 75 | M138: 75 | N138: 75 | O138: 75 | P138: 75 | Q138: 0 | R138: 0 | S138: 0 | T138: 0 | U138: 0 | V138: 0 | W138: 0 | X138: 0
C139: - waarvan klantlocatie in kernwinkelgebied | H139: 0 | I139: 0 | J139: =IFERROR(J$104*J48/Snelheid_stedelijk_spits,0) -> 0 | K139: 0 | L139: 0 | M139: 0 | N139: 0 | O139: 0 | P139: 0 | Q139: 0 | R139: 0 | S139: 0 | T139: 0 | U139: 0 | V139: 0 | W139: 0 | X139: 0
B141: - waarvan stedelijk gebied buiten AMvB-tijden | H141: 0 | I141: 0 | J141: =SUM(J142:J143) -> 0 | K141: =J141*K$4 -> 0 | L141: 0 | M141: 0 | N141: 0 | O141: 0 | P141: 0 | Q141: 0 | R141: 0 | S141: 0 | T141: 0 | U141: 0 | V141: 0 | W141: 0 | X141: 0
C142: - waarvan klantlocatie in stedelijk gebied | H142: 0 | I142: 0 | J142: =IFERROR(J$104*J51/Snelheid_stedelijk,0) -> 0 | K142: 0 | L142: 0 | M142: 0 | N142: 0 | O142: 0 | P142: 0 | Q142: 0 | R142: 0 | S142: 0 | T142: 0 | U142: 0 | V142: 0 | W142: 0 | X142: 0
C143: - waarvan klantlocatie in kernwinkelgebied | H143: 0 | I143: 0 | J143: =IFERROR(J$104*J52/Snelheid_stedelijk,0) -> 0 | K143: 0 | L143: 0 | M143: 0 | N143: 0 | O143: 0 | P143: 0 | Q143: 0 | R143: 0 | S143: 0 | T143: 0 | U143: 0 | V143: 0 | W143: 0 | X143: 0
B145: - waarvan stedelijk gebied dagrand | H145: 0 | I145: 0 | J145: =SUM(J146:J147) -> 0 | K145: =J145*K$4 -> 0 | L145: 0 | M145: 0 | N145: 0 | O145: 0 | P145: 0 | Q145: 0 | R145: 0 | S145: 0 | T145: 0 | U145: 0 | V145: 0 | W145: 0 | X145: 0
C146: - waarvan klantlocatie in stedelijk gebied | H146: 0 | I146: 0 | J146: =IFERROR(J$104*J55/Snelheid_stedelijk,0) -> 0 | K146: 0 | L146: 0 | M146: 0 | N146: 0 | O146: 0 | P146: 0 | Q146: 0 | R146: 0 | S146: 0 | T146: 0 | U146: 0 | V146: 0 | W146: 0 | X146: 0
C147: - waarvan klantlocatie in kernwinkelgebied | H147: 0 | I147: 0 | J147: =IFERROR(J$104*J56/Snelheid_stedelijk,0) -> 0 | K147: 0 | L147: 0 | M147: 0 | N147: 0 | O147: 0 | P147: 0 | Q147: 0 | R147: 0 | S147: 0 | T147: 0 | U147: 0 | V147: 0 | W147: 0 | X147: 0
B149: - waarvan kernwinkelgebied tijdens AMvB-tijden | H149: 0 | I149: 0 | J149: =IFERROR(J$104*J58/Snelheid_kwg_spits,0) -> 0 | K149: =J149*K$4 -> 0 | L149: 0 | M149: 0 | N149: 0 | O149: 0 | P149: 0 | Q149: 0 | R149: 0 | S149: 0 | T149: 0 | U149: 0 | V149: 0 | W149: 0 | X149: 0
B150: - waarvan kernwinkelgebied buiten AMvB-tijden | H150: 0 | I150: 0 | J150: =IFERROR(J$104*J59/Snelheid_kwg,0) -> 0 | K150: 0 | L150: 0 | M150: 0 | N150: 0 | O150: 0 | P150: 0 | Q150: 0 | R150: 0 | S150: 0 | T150: 0 | U150: 0 | V150: 0 | W150: 0 | X150: 0
B151: - waarvan kernwinkelgebied dagrand | H151: 0 | I151: 0 | J151: =IFERROR(J$104*J60/Snelheid_kwg,0) -> 0 | K151: 0 | L151: 0 | M151: 0 | N151: 0 | O151: 0 | P151: 0 | Q151: 0 | R151: 0 | S151: 0 | T151: 0 | U151: 0 | V151: 0 | W151: 0 | X151: 0
B154: Aantal uren stadsvoertuig per jaar (uren) | H154: =SUM(I154:X154) -> 0 | I154: 0 | J154: =SUM(J155:J157)+J159+J163+J167+SUM(J171:J173) -> 0 | K154: =J154*K$4 -> 0 | L154: 0 | M154: 0 | N154: 0 | O154: 0 | P154: 0 | Q154: 0 | R154: 0 | S154: 0 | T154: 0 | U154: 0 | V154: 0 | W154: 0 | X154: 0
B155: - waarvan buitenstedelijk gebied tijdens spits | H155: 0 | I155: 0 | J155: 0 | K155: 0 | L155: 0 | M155: 0 | N155: 0 | O155: 0 | P155: 0 | Q155: 0 | R155: 0 | S155: 0 | T155: 0 | U155: 0 | V155: 0 | W155: 0 | X155: 0
B156: - waarvan buitenstedelijk gebied buiten spits | H156: 0 | I156: 0 | J156: 0 | K156: 0 | L156: 0 | M156: 0 | N156: 0 | O156: 0 | P156: 0 | Q156: 0 | R156: 0 | S156: 0 | T156: 0 | U156: 0 | V156: 0 | W156: 0 | X156: 0
B157: - waarvan buitenstedelijk gebied tijdens dagrand | H157: 0 | I157: 0 | J157: 0 | K157: 0 | L157: 0 | M157: 0 | N157: 0 | O157: 0 | P157: 0 | Q157: 0 | R157: 0 | S157: 0 | T157: 0 | U157: 0 | V157: 0 | W157: 0 | X157: 0
B159: - waarvan stedelijk gebied tijdens AMvB-tijden | H159: 0 | I159: 0 | J159: =SUM(J160:J161) -> 0 | K159: =J159*K$4 -> 0 | L159: 0 | M159: 0 | N159: 0 | O159: 0 | P159: 0 | Q159: 0 | R159: 0 | S159: 0 | T159: 0 | U159: 0 | V159: 0 | W159: 0 | X159: 0
C160: - waarvan klantlocatie in stedelijk gebied | H160: 0 | I160: 0 | J160: =IFERROR(J$105*J88/Snelheid_stedelijk_spits,0) -> 0 | K160: 0 | L160: 0 | M160: 0 | N160: 0 | O160: 0 | P160: 0 | Q160: 0 | R160: 0 | S160: 0 | T160: 0 | U160: 0 | V160: 0 | W160: 0 | X160: 0
C161: - waarvan klantlocatie in kernwinkelgebied | H161: 0 | I161: 0 | J161: =IFERROR(J$105*J89/Snelheid_stedelijk_spits,0) -> 0 | K161: 0 | L161: 0 | M161: 0 | N161: 0 | O161: 0 | P161: 0 | Q161: 0 | R161: 0 | S161: 0 | T161: 0 | U161: 0 | V161: 0 | W161: 0 | X161: 0
B163: - waarvan stedelijk gebied buiten AMvB-tijden | H163: 0 | I163: 0 | J163: =SUM(J164:J165) -> 0 | K163: =J163*K$4 -> 0 | L163: 0 | M163: 0 | N163: 0 | O163: 0 | P163: 0 | Q163: 0 | R163: 0 | S163: 0 | T163: 0 | U163: 0 | V163: 0 | W163: 0 | X163: 0
C164: - waarvan klantlocatie in stedelijk gebied | H164: 0 | I164: 0 | J164: =IFERROR(J$105*J71/Snelheid_stedelijk,0) -> 0 | K164: 0 | L164: 0 | M164: 0 | N164: 0 | O164: 0 | P164: 0 | Q164: 0 | R164: 0 | S164: 0 | T164: 0 | U164: 0 | V164: 0 | W164: 0 | X164: 0
C165: - waarvan klantlocatie in kernwinkelgebied | H165: 0 | I165: 0 | J165: =IFERROR(J$105*J72/Snelheid_stedelijk,0) -> 0 | K165: 0 | L165: 0 | M165: 0 | N165: 0 | O165: 0 | P165: 0 | Q165: 0 | R165: 0 | S165: 0 | T165: 0 | U165: 0 | V165: 0 | W165: 0 | X165: 0
B167: - waarvan stedelijk gebied dagrand | H167: 0 | I167: 0 | J167: =SUM(J168:J169) -> 0 | K167: =J167*K$4 -> 0 | L167: 0 | M167: 0 | N167: 0 | O167: 0 | P167: 0 | Q167: 0 | R167: 0 | S167: 0 | T167: 0 | U167: 0 | V167: 0 | W167: 0 | X167: 0
C168: - waarvan klantlocatie in stedelijk gebied | H168: 0 | I168: 0 | J168: =IFERROR(J$105*J75/Snelheid_stedelijk,0) -> 0 | K168: 0 | L168: 0 | M168: 0 | N168: 0 | O168: 0 | P168: 0 | Q168: 0 | R168: 0 | S168: 0 | T168: 0 | U168: 0 | V168: 0 | W168: 0 | X168: 0
C169: - waarvan klantlocatie in kernwinkelgebied | H169: 0 | I169: 0 | J169: =IFERROR(J$105*J76/Snelheid_stedelijk,0) -> 0 | K169: 0 | L169: 0 | M169: 0 | N169: 0 | O169: 0 | P169: 0 | Q169: 0 | R169: 0 | S169: 0 | T169: 0 | U169: 0 | V169: 0 | W169: 0 | X169: 0
B171: - waarvan kernwinkelgebied tijdens AMvB-tijden | H171: 0 | I171: 0 | J171: =IFERROR(J$105*J78/Snelheid_kwg_spits,0) -> 0 | K171: =J171*K$4 -> 0 | L171: 0 | M171: 0 | N171: 0 | O171: 0 | P171: 0 | Q171: 0 | R171: 0 | S171: 0 | T171: 0 | U171: 0 | V171: 0 | W171: 0 | X171: 0
B172: - waarvan kernwinkelgebied buiten AMvB-tijden | H172: 0 | I172: 0 | J172: =IFERROR(J$105*J79/Snelheid_kwg,0) -> 0 | K172: 0 | L172: 0 | M172: 0 | N172: 0 | O172: 0 | P172: 0 | Q172: 0 | R172: 0 | S172: 0 | T172: 0 | U172: 0 | V172: 0 | W172: 0 | X172: 0
B173: - waarvan kernwinkelgebied dagrand | H173: 0 | I173: 0 | J173: =IFERROR(J$105*J80/Snelheid_kwg,0) -> 0 | K173: 0 | L173: 0 | M173: 0 | N173: 0 | O173: 0 | P173: 0 | Q173: 0 | R173: 0 | S173: 0 | T173: 0 | U173: 0 | V173: 0 | W173: 0 | X173: 0
B176: Personeelsinzet hoofd- en stadsvoertuig (uren) | H176: =SUM(I176:X176) -> 2225 | I176: 0 | J176: =J177+J181+J185+J189+J193+J197+SUM(J201:J203) -> 317.8571429 | K176: =J176*K$4 -> 317.8571429 | L176: =K176*L$4 -> 317.8571429 | M176: 317.8571429 | N176: 317.8571429 | O176: 317.8571429 | P176: 317.8571429 | Q176: 0 | R176: 0 | S176: 0 | T176: 0 | U176: 0 | V176: 0 | W176: 0 | X176: 0
B177: - waarvan buitenstedelijk gebied tijdens spits | H177: 1700 | I177: 0 | J177: =SUM(J178:J179) -> 242.8571429 | K177: =J177*K$4 -> 242.8571429 | L177: 242.8571429 | M177: 242.8571429 | N177: 242.8571429 | O177: 242.8571429 | P177: 242.8571429 | Q177: 0 | R177: 0 | S177: 0 | T177: 0 | U177: 0 | V177: 0 | W177: 0 | X177: 0
C178: - waarvan klantlocatie in buitenstedelijk gebied | H178: 0 | I178: 0 | J178: 0 | K178: 0 | L178: 0 | M178: 0 | N178: 0 | O178: 0 | P178: 0 | Q178: 0 | R178: 0 | S178: 0 | T178: 0 | U178: 0 | V178: 0 | W178: 0 | X178: 0
C179: - waarvan klantlocatie in stedelijk of kernwinkelgebied | H179: 1700 | I179: 0 | J179: =Bezetting_hvt*J127 -> 242.8571429 | K179: 242.8571429 | L179: 242.8571429 | M179: 242.8571429 | N179: 242.8571429 | O179: 242.8571429 | P179: 242.8571429 | Q179: 0 | R179: 0 | S179: 0 | T179: 0 | U179: 0 | V179: 0 | W179: 0 | X179: 0
B181: - waarvan buitenstedelijk gebied buiten spits | H181: 0 | I181: 0 | J181: =SUM(J182:J183) -> 0 | K181: =J181*K$4 -> 0 | L181: 0 | M181: 0 | N181: 0 | O181: 0 | P181: 0 | Q181: 0 | R181: 0 | S181: 0 | T181: 0 | U181: 0 | V181: 0 | W181: 0 | X181: 0
C182: - waarvan klantlocatie in buitenstedelijk gebied | H182: 0 | I182: 0 | J182: =Bezetting_hvt*(J130+J104*'Distributieschema''s'!N9*Dashboard!$AY$118) -> 0 | K182: 0 | L182: 0 | M182: 0 | N182: 0 | O182: 0 | P182: 0 | Q182: 0 | R182: 0 | S182: 0 | T182: 0 | U182: 0 | V182: 0 | W182: 0 | X182: 0
C183: - waarvan klantlocatie in stedelijk of kernwinkelgebied | H183: 0 | I183: 0 | J183: =Bezetting_hvt*J131 -> 0 | K183: 0 | L183: 0 | M183: 0 | N183: 0 | O183: 0 | P183: 0 | Q183: 0 | R183: 0 | S183: 0 | T183: 0 | U183: 0 | V183: 0 | W183: 0 | X183: 0
B185: - waarvan buitenstedelijk gebied tijdens dagrand | H185: 0 | I185: 0 | J185: =SUM(J186:J187) -> 0 | K185: =J185*K$4 -> 0 | L185: 0 | M185: 0 | N185: 0 | O185: 0 | P185: 0 | Q185: 0 | R185: 0 | S185: 0 | T185: 0 | U185: 0 | V185: 0 | W185: 0 | X185: 0
C186: - waarvan klantlocatie in buitenstedelijk gebied | H186: 0 | I186: 0 | J186: =Bezetting_hvt*(J134+J104*0*Dashboard!$AY$118) -> 0 | K186: 0 | L186: 0 | M186: 0 | N186: 0 | O186: 0 | P186: 0 | Q186: 0 | R186: 0 | S186: 0 | T186: 0 | U186: 0 | V186: 0 | W186: 0 | X186: 0
C187: - waarvan klantlocatie in stedelijk of kernwinkelgebied | H187: 0 | I187: 0 | J187: =Bezetting_hvt*J135 -> 0 | K187: 0 | L187: 0 | M187: 0 | N187: 0 | O187: 0 | P187: 0 | Q187: 0 | R187: 0 | S187: 0 | T187: 0 | U187: 0 | V187: 0 | W187: 0 | X187: 0
B189: - waarvan stedelijk gebied tijdens AMvB-tijden | H189: 525 | I189: 0 | J189: =SUM(J190:J191) -> 75 | K189: =J189*K$4 -> 75 | L189: 75 | M189: 75 | N189: 75 | O189: 75 | P189: 75 | Q189: 0 | R189: 0 | S189: 0 | T189: 0 | U189: 0 | V189: 0 | W189: 0 | X189: 0
C190: - waarvan klantlocatie in stedelijk gebied | H190: 525 | I190: 0 | J190: =Bezetting_hvt*(J138+J104*'Distributieschema''s'!N15*Dashboard!$AY$118)+Bezetting_svt*(J160+J104*0*Aantal_keer_HB_stadsvt*Dashboard!$AY$119) -> 75 | K190: 75 | L190: 75 | M190: 75 | N190: 75 | O190: 75 | P190: 75 | Q190: 0 | R190: 0 | S190: 0 | T190: 0 | U190: 0 | V190: 0 | W190: 0 | X190: 0
C191: - waarvan klantlocatie in kernwinkelgebied | H191: 0 | I191: 0 | J191: =Bezetting_hvt*J139+Bezetting_svt*J161 -> 0 | K191: 0 | L191: 0 | M191: 0 | N191: 0 | O191: 0 | P191: 0 | Q191: 0 | R191: 0 | S191: 0 | T191: 0 | U191: 0 | V191: 0 | W191: 0 | X191: 0
B193: - waarvan stedelijk gebied buiten AMvB-tijden | H193: 0 | I193: 0 | J193: =SUM(J194:J195) -> 0 | K193: =J193*K$4 -> 0 | L193: 0 | M193: 0 | N193: 0 | O193: 0 | P193: 0 | Q193: 0 | R193: 0 | S193: 0 | T193: 0 | U193: 0 | V193: 0 | W193: 0 | X193: 0
C194: - waarvan klantlocatie in stedelijk gebied | H194: 0 | I194: 0 | J194: =Bezetting_hvt*(J142+J104*'Distributieschema''s'!N21*Dashboard!$AY$118)+Bezetting_svt*(J164+J104*'Distributieschema''s'!N23*Aantal_keer_HB_stadsvt*Dashboard!$AY$119) -> 0 | K194: 0 | L194: 0 | M194: 0 | N194: 0 | O194: 0 | P194: 0 | Q194: 0 | R194: 0 | S194: 0 | T194: 0 | U194: 0 | V194: 0 | W194: 0 | X194: 0
C195: - waarvan klantlocatie in kernwinkelgebied | H195: 0 | I195: 0 | J195: =Bezetting_hvt*J143+Bezetting_svt*J165 -> 0 | K195: 0 | L195: 0 | M195: 0 | N195: 0 | O195: 0 | P195: 0 | Q195: 0 | R195: 0 | S195: 0 | T195: 0 | U195: 0 | V195: 0 | W195: 0 | X195: 0
H196: 0
B197: - waarvan stedelijk gebied dagrand | H197: 0 | I197: 0 | J197: =SUM(J198:J199) -> 0 | K197: =J197*K$4 -> 0 | L197: 0 | M197: 0 | N197: 0 | O197: 0 | P197: 0 | Q197: 0 | R197: 0 | S197: 0 | T197: 0 | U197: 0 | V197: 0 | W197: 0 | X197: 0
C198: - waarvan klantlocatie in stedelijk gebied | H198: 0 | I198: 0 | J198: =Bezetting_hvt*(J146+J104*'Distributieschema''s'!N28*Dashboard!$AY$118)+Bezetting_svt*(J168+J104*'Distributieschema''s'!N30*Aantal_keer_HB_stadsvt*Dashboard!$AY$119) -> 0 | K198: 0 | L198: 0 | M198: 0 | N198: 0 | O198: 0 | P198: 0 | Q198: 0 | R198: 0 | S198: 0 | T198: 0 | U198: 0 | V198: 0 | W198: 0 | X198: 0
C199: - waarvan klantlocatie in kernwinkelgebied | H199: 0 | I199: 0 | J199: =Bezetting_hvt*J147+Bezetting_svt*J169 -> 0 | K199: 0 | L199: 0 | M199: 0 | N199: 0 | O199: 0 | P199: 0 | Q199: 0 | R199: 0 | S199: 0 | T199: 0 | U199: 0 | V199: 0 | W199: 0 | X199: 0
B201: - waarvan kernwinkelgebied tijdens AMvB-tijden | H201: 0 | I201: 0 | J201: =Bezetting_hvt*(J149+J104*'Distributieschema''s'!N35*Dashboard!$AY$118)+Bezetting_svt*(J171+J104*0*Aantal_keer_HB_stadsvt*Dashboard!$AY$119) -> 0 | K201: =J201*K$4 -> 0 | L201: 0 | M201: 0 | N201: 0 | O201: 0 | P201: 0 | Q201: 0 | R201: 0 | S201: 0 | T201: 0 | U201: 0 | V201: 0 | W201: 0 | X201: 0
B202: - waarvan kernwinkelgebied buiten AMvB-tijden | H202: 0 | I202: 0 | J202: =Bezetting_hvt*(J150+J104*'Distributieschema''s'!N41*Dashboard!$AY$118)+Bezetting_svt*(J172+J104*'Distributieschema''s'!N43*Aantal_keer_HB_stadsvt*Dashboard!$AY$119) -> 0 | K202: 0 | L202: 0 | M202: 0 | N202: 0 | O202: 0 | P202: 0 | Q202: 0 | R202: 0 | S202: 0 | T202: 0 | U202: 0 | V202: 0 | W202: 0 | X202: 0
B203: - waarvan kernwinkelgebied dagrand | H203: 0 | I203: 0 | J203: =Bezetting_hvt*(J151+J104*'Distributieschema''s'!N48*Dashboard!$AY$118)+Bezetting_svt*(J173+J104*'Distributieschema''s'!N50*Aantal_keer_HB_stadsvt*Dashboard!$AY$119) -> 0 | K203: 0 | L203: 0 | M203: 0 | N203: 0 | O203: 0 | P203: 0 | Q203: 0 | R203: 0 | S203: 0 | T203: 0 | U203: 0 | V203: 0 | W203: 0 | X203: 0
B206: Brandstofprijs en - verbruik hoofdvoertuig
B207: ="Brandstof 1: "&Dashboard!L37&" ("&Dashboard!L38&")" -> Brandstof 1: LNG (kilogram) | G207: =Brandstofprijs2+Dashboard!L130 -> 0.82 | I207: 0 | J207: =J104*((J38+J42)+(J50+J54+J59+J60)*(1+Extra_verbruik_stad)+(J34)*(1+Extra_verbruik_spits)+(J46+J58)*(1+Extra_verbruik_spits)*(1+Extra_verbruik_stad))/100*Dashboard!$L$96*Dashboard!$L$97 -> 2600 | K207: =K104*((K38+K42)+(K50+K54+K59+K60)*(1+Extra_verbruik_stad)+(K34)*(1+Extra_verbruik_spits)+(K46+K58)*(1+Extra_verbruik_spits)*(1+Extra_verbruik_stad))/100*Dashboard!$L$96*Dashboard!$L$97 -> 2600 | L207: =L104*((L38+L42)+(L50+L54+L59+L60)*(1+Extra_verbruik_stad)+(L34)*(1+Extra_verbruik_spits)+(L46+L58)*(1+Extra_verbruik_spits)*(1+Extra_verbruik_stad))/100*Dashboard!$L$96*Dashboard!$L$97 -> 2600 | M207: =M104*((M38+M42)+(M50+M54+M59+M60)*(1+Extra_verbruik_stad)+(M34)*(1+Extra_verbruik_spits)+(M46+M58)*(1+Extra_verbruik_spits)*(1+Extra_verbruik_stad))/100*Dashboard!$L$96*Dashboard!$L$97 -> 2600 | N207: =N104*((N38+N42)+(N50+N54+N59+N60)*(1+Extra_verbruik_stad)+(N34)*(1+Extra_verbruik_spits)+(N46+N58)*(1+Extra_verbruik_spits)*(1+Extra_verbruik_stad))/100*Dashboard!$L$96*Dashboard!$L$97 -> 2600 | O207: =O104*((O38+O42)+(O50+O54+O59+O60)*(1+Extra_verbruik_stad)+(O34)*(1+Extra_verbruik_spits)+(O46+O58)*(1+Extra_verbruik_spits)*(1+Extra_verbruik_stad))/100*Dashboard!$L$96*Dashboard!$L$97 -> 2600 | P207: =P104*((P38+P42)+(P50+P54+P59+P60)*(1+Extra_verbruik_stad)+(P34)*(1+Extra_verbruik_spits)+(P46+P58)*(1+Extra_verbruik_spits)*(1+Extra_verbruik_stad))/100*Dashboard!$L$96*Dashboard!$L$97 -> 2600 | Q207: =Q104*((Q38+Q42)+(Q50+Q54+Q59+Q60)*(1+Extra_verbruik_stad)+(Q34)*(1+Extra_verbruik_spits)+(Q46+Q58)*(1+Extra_verbruik_spits)*(1+Extra_verbruik_stad))/100*Dashboard!$L$96*Dashboard!$L$97 -> 0 | R207: =R104*((R38+R42)+(R50+R54+R59+R60)*(1+Extra_verbruik_stad)+(R34)*(1+Extra_verbruik_spits)+(R46+R58)*(1+Extra_verbruik_spits)*(1+Extra_verbruik_stad))/100*Dashboard!$L$96*Dashboard!$L$97 -> 0 | S207: =S104*((S38+S42)+(S50+S54+S59+S60)*(1+Extra_verbruik_stad)+(S34)*(1+Extra_verbruik_spits)+(S46+S58)*(1+Extra_verbruik_spits)*(1+Extra_verbruik_stad))/100*Dashboard!$L$96*Dashboard!$L$97 -> 0 | T207: =T104*((T38+T42)+(T50+T54+T59+T60)*(1+Extra_verbruik_stad)+(T34)*(1+Extra_verbruik_spits)+(T46+T58)*(1+Extra_verbruik_spits)*(1+Extra_verbruik_stad))/100*Dashboard!$L$96*Dashboard!$L$97 -> 0 | U207: =U104*((U38+U42)+(U50+U54+U59+U60)*(1+Extra_verbruik_stad)+(U34)*(1+Extra_verbruik_spits)+(U46+U58)*(1+Extra_verbruik_spits)*(1+Extra_verbruik_stad))/100*Dashboard!$L$96*Dashboard!$L$97 -> 0 | V207: =V104*((V38+V42)+(V50+V54+V59+V60)*(1+Extra_verbruik_stad)+(V34)*(1+Extra_verbruik_spits)+(V46+V58)*(1+Extra_verbruik_spits)*(1+Extra_verbruik_stad))/100*Dashboard!$L$96*Dashboard!$L$97 -> 0 | W207: =W104*((W38+W42)+(W50+W54+W59+W60)*(1+Extra_verbruik_stad)+(W34)*(1+Extra_verbruik_spits)+(W46+W58)*(1+Extra_verbruik_spits)*(1+Extra_verbruik_stad))/100*Dashboard!$L$96*Dashboard!$L$97 -> 0 | X207: =X104*((X38+X42)+(X50+X54+X59+X60)*(1+Extra_verbruik_stad)+(X34)*(1+Extra_verbruik_spits)+(X46+X58)*(1+Extra_verbruik_spits)*(1+Extra_verbruik_stad))/100*Dashboard!$L$96*Dashboard!$L$97 -> 0
B208: ="Brandstof 2: "&IFERROR(Dashboard!L39&" ("&Dashboard!L40&")","n.v.t.") -> Brandstof 2: n.v.t. | G208: =IF(switch_Alt2_br2=1,Brandstofprijs2_2+Dashboard!L131,"n.v.t.") -> n.v.t. | I208: 0 | J208: =J104*((J38+J42+J50+J54+J59+J60)+(J34+J46+J58)*(1+Extra_verbruik_spits))/100*Dashboard!$L$99*Dashboard!$L$100 -> 0 | K208: =K104*((K38+K42+K50+K54+K59+K60)+(K34+K46+K58)*(1+Extra_verbruik_spits))/100*Dashboard!$L$99*Dashboard!$L$100 -> 0 | L208: =L104*((L38+L42+L50+L54+L59+L60)+(L34+L46+L58)*(1+Extra_verbruik_spits))/100*Dashboard!$L$99*Dashboard!$L$100 -> 0 | M208: =M104*((M38+M42+M50+M54+M59+M60)+(M34+M46+M58)*(1+Extra_verbruik_spits))/100*Dashboard!$L$99*Dashboard!$L$100 -> 0 | N208: =N104*((N38+N42+N50+N54+N59+N60)+(N34+N46+N58)*(1+Extra_verbruik_spits))/100*Dashboard!$L$99*Dashboard!$L$100 -> 0 | O208: =O104*((O38+O42+O50+O54+O59+O60)+(O34+O46+O58)*(1+Extra_verbruik_spits))/100*Dashboard!$L$99*Dashboard!$L$100 -> 0 | P208: =P104*((P38+P42+P50+P54+P59+P60)+(P34+P46+P58)*(1+Extra_verbruik_spits))/100*Dashboard!$L$99*Dashboard!$L$100 -> 0 | Q208: =Q104*((Q38+Q42+Q50+Q54+Q59+Q60)+(Q34+Q46+Q58)*(1+Extra_verbruik_spits))/100*Dashboard!$L$99*Dashboard!$L$100 -> 0 | R208: =R104*((R38+R42+R50+R54+R59+R60)+(R34+R46+R58)*(1+Extra_verbruik_spits))/100*Dashboard!$L$99*Dashboard!$L$100 -> 0 | S208: =S104*((S38+S42+S50+S54+S59+S60)+(S34+S46+S58)*(1+Extra_verbruik_spits))/100*Dashboard!$L$99*Dashboard!$L$100 -> 0 | T208: =T104*((T38+T42+T50+T54+T59+T60)+(T34+T46+T58)*(1+Extra_verbruik_spits))/100*Dashboard!$L$99*Dashboard!$L$100 -> 0 | U208: =U104*((U38+U42+U50+U54+U59+U60)+(U34+U46+U58)*(1+Extra_verbruik_spits))/100*Dashboard!$L$99*Dashboard!$L$100 -> 0 | V208: =V104*((V38+V42+V50+V54+V59+V60)+(V34+V46+V58)*(1+Extra_verbruik_spits))/100*Dashboard!$L$99*Dashboard!$L$100 -> 0 | W208: =W104*((W38+W42+W50+W54+W59+W60)+(W34+W46+W58)*(1+Extra_verbruik_spits))/100*Dashboard!$L$99*Dashboard!$L$100 -> 0 | X208: =X104*((X38+X42+X50+X54+X59+X60)+(X34+X46+X58)*(1+Extra_verbruik_spits))/100*Dashboard!$L$99*Dashboard!$L$100 -> 0
B211: Aantal uren
B212: Werkelijk aantal uren/jaar | G212: =J176+J119*J12 -> 317.8571429
B214: Overzicht kosten | D214: EUR | G214: =IF(Per_uur=1,"Per uur","Per H/B km") -> Per H/B km | H214: Totaal | I214: =I19 -> 0 | J214: 1 | K214: 2 | L214: 3 | M214: 4 | N214: 5 | O214: 6 | P214: 7 | Q214: 8 | R214: 9 | S214: 10 | T214: 11 | U214: 12 | V214: 13 | W214: 14 | X214: 15
B216: Brandstofkosten hoofdvoertuig | G216: =IFERROR(H216/($H$116*Per_km+Dashboard!L$102*Uren_Alternatief2*Per_uur),0) -> 0.2132 | H216: =SUM(I216:X216) -> 14924 | I216: 0 | J216: =J207*SUM($G$207)+J208*SUM($G$208) -> 2132 | K216: 2132 | L216: 2132 | M216: 2132 | N216: 2132 | O216: 2132 | P216: 2132 | Q216: 0 | R216: 0 | S216: 0 | T216: 0 | U216: 0 | V216: 0 | W216: 0 | X216: 0
B217: Onderhoudskosten | G217: =IFERROR(H217/($H$116*Per_km+Dashboard!L$102*Uren_Alternatief2*Per_uur),0) -> 0 | H217: 0 | I217: 0 | J217: =Dashboard!$L104*J112*J4 -> 0 | K217: =Dashboard!$L104*K112*K4 -> 0 | L217: =Dashboard!$L104*L112*L4 -> 0 | M217: =Dashboard!$L104*M112*M4 -> 0 | N217: =Dashboard!$L104*N112*N4 -> 0 | O217: =Dashboard!$L104*O112*O4 -> 0 | P217: =Dashboard!$L104*P112*P4 -> 0 | Q217: =Dashboard!$L104*Q112*Q4 -> 0 | R217: =Dashboard!$L104*R112*R4 -> 0 | S217: =Dashboard!$L104*S112*S4 -> 0 | T217: =Dashboard!$L104*T112*T4 -> 0 | U217: =Dashboard!$L104*U112*U4 -> 0 | V217: =Dashboard!$L104*V112*V4 -> 0 | W217: =Dashboard!$L104*W112*W4 -> 0 | X217: =Dashboard!$L104*X112*X4 -> 0
B218: Verzekeringen | G218: =IFERROR(H218/($H$116*Per_km+Dashboard!L$102*Uren_Alternatief2*Per_uur),0) -> 0 | H218: 0 | I218: 0 | J218: =Dashboard!$L105*J107*J4 -> 0 | K218: =Dashboard!$L105*K107*K4 -> 0 | L218: =Dashboard!$L105*L107*L4 -> 0 | M218: =Dashboard!$L105*M107*M4 -> 0 | N218: =Dashboard!$L105*N107*N4 -> 0 | O218: =Dashboard!$L105*O107*O4 -> 0 | P218: =Dashboard!$L105*P107*P4 -> 0 | Q218: =Dashboard!$L105*Q107*Q4 -> 0 | R218: =Dashboard!$L105*R107*R4 -> 0 | S218: =Dashboard!$L105*S107*S4 -> 0 | T218: =Dashboard!$L105*T107*T4 -> 0 | U218: =Dashboard!$L105*U107*U4 -> 0 | V218: =Dashboard!$L105*V107*V4 -> 0 | W218: =Dashboard!$L105*W107*W4 -> 0 | X218: =Dashboard!$L105*X107*X4 -> 0
